Workbook

Sheet YEAR (hidden)
C4: 7
E5: 2016 | F5: 2015/16 | G5: 2015-18
B6: Enter a date | C6: =TODAY() -> 2018-05-18 | E6: 2017 | F6: 2016/17 | G6: 2015-18
E7: 2018 | F7: 2017/18 | G7: 2015-18
B8: Calander year: | C8: =YEAR(C6)+IF(MONTH(C6)>=C4,1,0) -> 2018 | E8: 2019 | F8: 2018/19 | G8: 2018-21
B9: Fiscal year: | C9: =F20 -> 2017/18 | E9: 2020 | F9: 2019/20 | G9: 2018-21
B10: Fiscal NLTP: | C10: =G20 -> 2015-18 | E10: 2021 | F10: 2020/21 | G10: 2018-21
E11: 2022 | F11: 2021/22 | G11: 2021-24
E12: 2023 | F12: 2022/23 | G12: 2021-24
E13: 2024 | F13: 2023/24 | G13: 2021-24
E14: 2025 | F14: 2024/25 | G14: 2024-27
E15: 2026 | F15: 2025/26 | G15: 2024-27
E16: 2027 | F16: 2026/27 | G16: 2024-27
E17: 2028 | F17: 2027/28 | G17: 2027-30
E18: 2030 | F18: 2028/29 | G18: 2027-30
E19: 2031 | F19: 2029/30 | G19: 2027-30
E20: =VLOOKUP($C$8,$E4:$F18,1,FALSE) -> 2018 | F20: =VLOOKUP($C$8,$E4:$G18,2,FALSE) -> 2017/18 | G20: =VLOOKUP($C$8,$E4:$G18,3,FALSE) -> 2015-18

Sheet Profile rankings (hidden)
B2: PRIORITISATION PROCESS | J2: PRIORITISATION PROCESS | S2: PRIORITISATION PROCESS | AB2: PRIORITISATION PROCESS
B3: ='CBA benchmark'!E12 -> 2018-21 | J3: 2009-12 | S3: 2012-15 | AB3: 2015-18
B6: Priority ranking | C6: Profile type | J6: Priority ranking | K6: Profile type | S6: Priority ranking | T6: Profile type | AB6: Priority ranking | AC6: Profile type
H7: Other | Q7: Other | Z7: Other
B9: 1 | C9: =IF($B$3=$J$3,K9,IF($B$3=$S$3,T9,IF($B$3=$AB$3,AC9,""))) ->  | D9: =IF($B$3=$J$3,L9,IF($B$3=$S$3,U9,IF($B$3=$AB$3,AD9,""))) ->  | E9: =IF($B$3=$J$3,M9,IF($B$3=$S$3,V9,IF($B$3=$AB$3,AE9,""))) ->  | F9: =IF($B$3=$J$3,N9,IF($B$3=$S$3,W9,IF($B$3=$AB$3,AF9,""))) ->  | J9: 1 | S9: 1 | T9: HHH | AB9: 1 | AC9: HHH
B10: 2 | C10: =IF($B$3=$J$3,K10,IF($B$3=$S$3,T10,IF($B$3=$AB$3,AC10,""))) ->  | J10: 2 | S10: 2 | T10: HHM | U10: HMH | V10: MHH | AB10: 2 | AC10: HHM | AD10: HMH
B11: 3 | F11: =IF($B$3=$J$3,N11,IF($B$3=$S$3,W11,IF($B$3=$AB$3,AF11,""))) ->  | J11: 3 | S11: 3 | T11: HHL | U11: HMM | AB11: 3 | AC11: HHL | AD11: HMM
B12: 4 | F12: =IF($B$3=$J$3,N12,IF($B$3=$S$3,W12,IF($B$3=$AB$3,AF12,""))) ->  | J12: 4 | S12: 4 | T12: HLH | U12: MHM | V12: MMH | AB12: 4 | AC12: HML | AD12: MHH
B13: 5 | C13: =IF($B$3=$J$3,K13,IF($B$3=$S$3,T13,IF($B$3=$AB$3,AC13,""))) ->  | J13: 5 | S13: 5 | T13: HML | U13: LHH | AB13: 5 | AC13: MHM | AD13: MMH
B14: 6 | E14: =IF($B$3=$J$3,M14,IF($B$3=$S$3,V14,IF($B$3=$AB$3,AE14,""))) ->  | J14: 6 | S14: 6 | T14: HLM | U14: MHL | V14: MMM | AB14: 6 | AC14: MHL | AD14: MMM
B15: 7 | J15: 7 | S15: 7 | T15: MLH | U15: LHM | V15: LMH | AB15: 7 | AC15: MML
B16: =IF($B$3=$AB$3,"",8) -> 8 | J16: 8 | S16: 8 | T16: HLL | U16: MML | V16: MLM | W16: LHL | AC16: HLH | AD16: HLL | AE16: MLM | AF16: HLM
B17: =IF($B$3=$AB$3,"",9) -> 9 | J17: 9 | S17: 9 | T17: LMM | U17: LLH | AC17: LHH | AD17: LMM | AE17: LHL | AF17: LLH
B18: =IF($B$3=$AB$3,"",10) -> 10 | J18: 10 | S18: 10 | T18: MLL | U18: LML | V18: LLM | AC18: MLH | AD18: LHM | AE18: LMH
B19: =IF($B$3=$AB$3,"",11) -> 11 | J19: 11 | S19: 11 | T19: LLL | AC19: MLL | AD19: LML | AE19: LLM | AF19: LLL

Sheet Profile appraisal (hidden)
B2: SERVICE PROGRAMME BENEFIT COST APPRAISAL | F2: STRATEGIC FIT | H2: EFFECTIVENESS | J2: COST & BENEFIT APPRAISAL | L2: COST & BENEFIT APPRAISAL | N2: RESULTING RANKING | P2: SUMMARY
J3: [PROG. DO MIN] | L3: [WITH IMPROV.] | P3: COMMENTS
B5: TARGET: | F5: HIGH | H5: HIGH | J5: HIGH | L5: HIGH
F6: MEDIUM | H6: MEDIUM | J6: MEDIUM | L6: MEDIUM
F7: LOW | H7: LOW | J7: LOW | L7: LOW | W7: 2009-12 | X7: 2009-12
W8: 2012-15 | X8: 2012-15
W9: 2015-18 | X9: 2015-18
W10: 2018-21 | X10: 2018-21
B11: ='CBA benchmark'!E12 -> 2018-21 | F11: =IF($B$11=$W$7,$X$7,IF($B$11=$W$8,$X$8,IF($B$11=$W$9,$X$9,IF($B$11=$W$10,$X$10,)))) -> 2018-21 | H11: =IF($B$11=$W$7,$X$7,IF($B$11=$W$8,$X$8,IF($B$11=$W$9,$X$9,IF($B$11=$W$10,$X$10,)))) -> 2018-21 | J11: =IF($B$11=$W$7,$X$7,IF($B$11=$W$8,$X$8,IF($B$11=$W$9,$X$9,IF($B$11=$W$10,$X$10,)))) -> 2018-21 | L11: =IF($B$11=$W$7,$X$7,IF($B$11=$W$8,$X$8,IF($B$11=$W$9,$X$9,IF($B$11=$W$10,$X$10,)))) -> 2018-21 | N11: =IF($B$11=$W$7,$X$7,IF($B$11=$W$8,$X$8,IF($B$11=$W$9,$X$9,IF($B$11=$W$10,$X$10,)))) -> 2018-21
F12: =F2 -> STRATEGIC FIT | H12: =H2 -> EFFECTIVENESS | J12: BCA (PROG.) | L12: BCA (+ IMPR.) | N12: RANKING
B13: ='CBA benchmark'!B12 -> 0 | C13: programme | F13: =VLOOKUP($B$13,$B17:$P32,5,FALSE) ->  | H13: =VLOOKUP($B$13,$B17:$P32,7,FALSE) ->  | J13: =VLOOKUP($B$13,$B17:$P32,9,FALSE) ->  | L13: =VLOOKUP($B$13,$B17:$P32,11,FALSE) ->  | N13: =VLOOKUP($B$13,$B17:$P32,13,FALSE) ->  | P13: =VLOOKUP($B$13,$B17:$P32,15,FALSE) ->  | W13: GROSS
B15: Total network: | AH15: 2009-12 | AU15: 2012-15 | BH15: 2015-18
R16: Other
B17: Northland | F17: MEDIUM | H17: MEDIUM | J17: ='CBA benchmark'!X21 -> 0 | N17: =IF($B$11=$AH$15,AS17,IF($B$11=$AU$15,BF17,IF($B$11=$BH$15,BS17,))) -> 0 | AA17: =IF(F17=$F$5,300,IF(F17=$F$6,200,IF(F17=$F$7,100,0))) -> 200 | AB17: =IF(H17=$F$5,30,IF(H17=$F$6,20,IF(H17=$F$7,10,0))) -> 20 | AC17: =IF(J17=$F$5,3,IF(J17=$F$6,2,IF(J17=$F$7,1,0))) -> 0 | AD17: =IF(L17=$F$5,3,IF(L17=$F$6,2,IF(L17=$F$7,1,0))) -> 0 | AE17: =IF(AD17=0,AC17,AD17) -> 0 | AF17: =IF($C$13=$Z$18,SUM(AA17:AC17),(AA17+AB17+AE17)) -> 220 | AG17: =IF($AF17=333,"hhh",) -> 0 | AH17: =IF($AF17=333,1,) -> 0 | AI17: =IF($AF17=332,2,IF($AF17=233,2,IF($AF17=323,2,))) -> 0 | AJ17: =IF($AF17=322,3,IF($AF17=331,3,)) -> 0 | AK17: =IF($AF17=313,4,IF($AF17=223,4,IF($AF17=232,4,))) -> 0 | AL17: =IF($AF17=321,5,IF($AF17=133,5,)) -> 0 | AM17: =IF($AF17=312,6,IF($AF17=231,6,IF($AF17=222,6,))) -> 0 | AN17: =IF($AF17=132,7,IF($AF17=213,7,IF($AF17=123,7,))) -> 0 | AO17: =IF($AF17=311,8,IF($AF17=221,8,IF($AF17=212,8,IF($AF17=131,8,)))) -> 0 | AP17: =IF($AF17=122,9,IF($AF17=113,9,)) -> 0 | AQ17: =IF($AF17=112,10,IF($AF17=121,10,IF($AF17=211,10,))) -> 0 | AR17: =IF($AF17=111,11,) -> 0 | AS17: =SUM(AH17:AR17) -> 0 | AU17: =IF($AF17=333,1,) -> 0 | AV17: =IF($AF17=332,2,IF($AF17=233,2,IF($AF17=323,2,))) -> 0 | AW17: =IF($AF17=322,3,IF($AF17=331,3,)) -> 0 | AX17: =IF($AF17=313,4,IF($AF17=223,4,IF($AF17=232,4,))) -> 0 | AY17: =IF($AF17=321,5,IF($AF17=133,5,)) -> 0 | AZ17: =IF($AF17=312,6,IF($AF17=231,6,IF($AF17=222,6,))) -> 0 | BA17: =IF($AF17=132,7,IF($AF17=213,7,IF($AF17=123,7,))) -> 0 | BB17: =IF($AF17=311,8,IF($AF17=221,8,IF($AF17=212,8,IF($AF17=131,8,)))) -> 0 | BC17: =IF($AF17=122,9,IF($AF17=113,9,)) -> 0 | BD17: =IF($AF17=112,10,IF($AF17=121,10,IF($AF17=211,10,))) -> 0 | BE17: =IF($AF17=111,11,) -> 0 | BF17: =SUM(AU17:BE17) -> 0 | BH17: =IF($AF17=333,1,) -> 0 | BI17: =IF($AF17=332,2,IF($AF17=233,2,IF($AF17=323,2,))) -> 0 | BJ17: =IF($AF17=322,3,IF($AF17=331,3,)) -> 0 | BK17: =IF($AF17=313,4,IF($AF17=223,4,IF($AF17=232,4,))) -> 0 | BL17: =IF($AF17=321,5,IF($AF17=133,5,)) -> 0 | BM17: =IF($AF17=312,6,IF($AF17=231,6,IF($AF17=222,6,))) -> 0 | BN17: =IF($AF17=132,7,IF($AF17=213,7,IF($AF17=123,7,))) -> 0 | BO17: =IF($AF17=311,8,IF($AF17=221,8,IF($AF17=212,8,IF($AF17=131,8,)))) -> 0 | BP17: =IF($AF17=122,9,IF($AF17=113,9,)) -> 0 | BQ17: =IF($AF17=112,10,IF($AF17=121,10,IF($AF17=211,10,))) -> 0 | BR17: =IF($AF17=111,11,) -> 0 | BS17: =SUM(BH17:BR17) -> 0
B18: Auckland | F18: HIGH | H18: MEDIUM | J18: ='CBA benchmark'!X22 -> 0 | N18: =IF($B$11=$AH$15,AS18,IF($B$11=$AU$15,BF18,IF($B$11=$BH$15,BS18,))) -> 0 | W18: Northland | X18: Other | Y18: service costs only | Z18: programme | AA18: 300 | AB18: 20 | AC18: 0 | AD18: 0 | AE18: =IF(AD18=0,AC18,AD18) -> 0 | AF18: 320 | AH18: 0 | AI18: 0 | AJ18: 0 | AK18: 0 | AL18: 0 | AM18: 0 | AN18: 0 | AO18: 0 | AP18: 0 | AQ18: 0 | AR18: 0 | AS18: =SUM(AH18:AR18) -> 0 | AU18: 0 | AV18: 0 | AW18: 0 | AX18: 0 | AY18: 0 | AZ18: 0 | BA18: 0 | BB18: 0 | BC18: 0 | BD18: 0 | BE18: 0 | BF18: =SUM(AU18:BE18) -> 0 | BH18: 0 | BI18: 0 | BJ18: 0 | BK18: 0 | BL18: 0 | BM18: 0 | BN18: 0 | BO18: 0 | BP18: 0 | BQ18: 0 | BR18: 0 | BS18: =SUM(BH18:BR18) -> 0
B19: Waikato | F19: MEDIUM | H19: MEDIUM | J19: ='CBA benchmark'!X23 -> 0 | N19: 0 | W19: Auckland | X19: =W19 -> Auckland | Y19: total operational costs | Z19: improvement & programme | AA19: 200 | AB19: 20 | AC19: 0 | AD19: 0 | AE19: 0 | AF19: 220 | AH19: 0 | AI19: 0 | AJ19: 0 | AK19: 0 | AL19: 0 | AM19: 0 | AN19: 0 | AO19: 0 | AP19: 0 | AQ19: 0 | AR19: 0 | AS19: 0 | AU19: 0 | AV19: 0 | AW19: 0 | AX19: 0 | AY19: 0 | AZ19: 0 | BA19: 0 | BB19: 0 | BC19: 0 | BD19: 0 | BE19: 0 | BF19: 0 | BH19: 0 | BI19: 0 | BJ19: 0 | BK19: 0 | BL19: 0 | BM19: 0 | BN19: 0 | BO19: 0 | BP19: 0 | BQ19: 0 | BR19: 0 | BS19: 0
B20: Bay of Plenty | F20: MEDIUM | H20: MEDIUM | J20: ='CBA benchmark'!X24 -> 0 | N20: 0 | W20: Waikato | X20: Other | AA20: 200 | AB20: 20 | AC20: 0 | AD20: 0 | AE20: 0 | AF20: 220 | AH20: 0 | AI20: 0 | AJ20: 0 | AK20: 0 | AL20: 0 | AM20: 0 | AN20: 0 | AO20: 0 | AP20: 0 | AQ20: 0 | AR20: 0 | AS20: 0 | AU20: 0 | AV20: 0 | AW20: 0 | AX20: 0 | AY20: 0 | AZ20: 0 | BA20: 0 | BB20: 0 | BC20: 0 | BD20: 0 | BE20: 0 | BF20: 0 | BH20: 0 | BI20: 0 | BJ20: 0 | BK20: 0 | BL20: 0 | BM20: 0 | BN20: 0 | BO20: 0 | BP20: 0 | BQ20: 0 | BR20: 0 | BS20: 0
B21: Gisborne | F21: MEDIUM | H21: MEDIUM | J21: ='CBA benchmark'!X25 -> 0 | N21: 0 | W21: Bay of Plenty | X21: Other | AA21: 200 | AB21: 20 | AC21: 0 | AD21: 0 | AE21: 0 | AF21: 220 | AH21: 0 | AI21: 0 | AJ21: 0 | AK21: 0 | AL21: 0 | AM21: 0 | AN21: 0 | AO21: 0 | AP21: 0 | AQ21: 0 | AR21: 0 | AS21: 0 | AU21: 0 | AV21: 0 | AW21: 0 | AX21: 0 | AY21: 0 | AZ21: 0 | BA21: 0 | BB21: 0 | BC21: 0 | BD21: 0 | BE21: 0 | BF21: 0 | BH21: 0 | BI21: 0 | BJ21: 0 | BK21: 0 | BL21: 0 | BM21: 0 | BN21: 0 | BO21: 0 | BP21: 0 | BQ21: 0 | BR21: 0 | BS21: 0
B22: Hawkes Bay | F22: MEDIUM | H22: MEDIUM | J22: ='CBA benchmark'!X26 -> 0 | N22: 0 | W22: Gisborne | Y22: bus network | Z22: R/stock IN | AA22: 200 | AB22: 20 | AC22: 0 | AD22: 0 | AE22: 0 | AF22: 220 | AH22: 0 | AI22: 0 | AJ22: 0 | AK22: 0 | AL22: 0 | AM22: 0 | AN22: 0 | AO22: 0 | AP22: 0 | AQ22: 0 | AR22: 0 | AS22: 0 | AU22: 0 | AV22: 0 | AW22: 0 | AX22: 0 | AY22: 0 | AZ22: 0 | BA22: 0 | BB22: 0 | BC22: 0 | BD22: 0 | BE22: 0 | BF22: 0 | BH22: 0 | BI22: 0 | BJ22: 0 | BK22: 0 | BL22: 0 | BM22: 0 | BN22: 0 | BO22: 0 | BP22: 0 | BQ22: 0 | BR22: 0 | BS22: 0
B23: Taranaki | F23: MEDIUM | H23: HIGH | J23: ='CBA benchmark'!X27 -> 0 | N23: 0 | W23: Hawkes Bay | X23: Other | Y23: ferry network | Z23: R/stock OUT | AA23: 200 | AB23: 30 | AC23: 0 | AD23: 0 | AE23: 0 | AF23: 230 | AH23: 0 | AI23: 0 | AJ23: 0 | AK23: 0 | AL23: 0 | AM23: 0 | AN23: 0 | AO23: 0 | AP23: 0 | AQ23: 0 | AR23: 0 | AS23: 0 | AU23: 0 | AV23: 0 | AW23: 0 | AX23: 0 | AY23: 0 | AZ23: 0 | BA23: 0 | BB23: 0 | BC23: 0 | BD23: 0 | BE23: 0 | BF23: 0 | BH23: 0 | BI23: 0 | BJ23: 0 | BK23: 0 | BL23: 0 | BM23: 0 | BN23: 0 | BO23: 0 | BP23: 0 | BQ23: 0 | BR23: 0 | BS23: 0
B24: Manawatu-Wanganui | F24: MEDIUM | H24: MEDIUM | J24: ='CBA benchmark'!X28 -> 0 | N24: 0 | W24: Taranaki | X24: Other | Y24: rail network | AA24: 200 | AB24: 20 | AC24: 0 | AD24: 0 | AE24: 0 | AF24: 220 | AH24: 0 | AI24: 0 | AJ24: 0 | AK24: 0 | AL24: 0 | AM24: 0 | AN24: 0 | AO24: 0 | AP24: 0 | AQ24: 0 | AR24: 0 | AS24: 0 | AU24: 0 | AV24: 0 | AW24: 0 | AX24: 0 | AY24: 0 | AZ24: 0 | BA24: 0 | BB24: 0 | BC24: 0 | BD24: 0 | BE24: 0 | BF24: 0 | BH24: 0 | BI24: 0 | BJ24: 0 | BK24: 0 | BL24: 0 | BM24: 0 | BN24: 0 | BO24: 0 | BP24: 0 | BQ24: 0 | BR24: 0 | BS24: 0
B25: Wellington | F25: HIGH | H25: MEDIUM | J25: ='CBA benchmark'!X29 -> 0 | N25: 0 | W25: Manawatu-Wanganui | X25: Other | Y25: total network | AA25: 300 | AB25: 20 | AC25: 0 | AD25: 0 | AE25: 0 | AF25: 320 | AH25: 0 | AI25: 0 | AJ25: 0 | AK25: 0 | AL25: 0 | AM25: 0 | AN25: 0 | AO25: 0 | AP25: 0 | AQ25: 0 | AR25: 0 | AS25: 0 | AU25: 0 | AV25: 0 | AW25: 0 | AX25: 0 | AY25: 0 | AZ25: 0 | BA25: 0 | BB25: 0 | BC25: 0 | BD25: 0 | BE25: 0 | BF25: 0 | BH25: 0 | BI25: 0 | BJ25: 0 | BK25: 0 | BL25: 0 | BM25: 0 | BN25: 0 | BO25: 0 | BP25: 0 | BQ25: 0 | BR25: 0 | BS25: 0
B26: Marlborough | F26: MEDIUM | H26: MEDIUM | J26: ='CBA benchmark'!X30 -> 0 | N26: 0 | W26: Wellington | X26: =W26 -> Wellington | AA26: 200 | AB26: 20 | AC26: 0 | AD26: 0 | AE26: 0 | AF26: 220 | AH26: 0 | AI26: 0 | AJ26: 0 | AK26: 0 | AL26: 0 | AM26: 0 | AN26: 0 | AO26: 0 | AP26: 0 | AQ26: 0 | AR26: 0 | AS26: 0 | AU26: 0 | AV26: 0 | AW26: 0 | AX26: 0 | AY26: 0 | AZ26: 0 | BA26: 0 | BB26: 0 | BC26: 0 | BD26: 0 | BE26: 0 | BF26: 0 | BH26: 0 | BI26: 0 | BJ26: 0 | BK26: 0 | BL26: 0 | BM26: 0 | BN26: 0 | BO26: 0 | BP26: 0 | BQ26: 0 | BR26: 0 | BS26: 0
B27: Nelson | F27: MEDIUM | H27: MEDIUM | J27: ='CBA benchmark'!X31 -> 0 | N27: 0 | W27: Marlborough | X27: Other | AA27: 200 | AB27: 20 | AC27: 0 | AD27: 0 | AE27: 0 | AF27: 220 | AH27: 0 | AI27: 0 | AJ27: 0 | AK27: 0 | AL27: 0 | AM27: 0 | AN27: 0 | AO27: 0 | AP27: 0 | AQ27: 0 | AR27: 0 | AS27: 0 | AU27: 0 | AV27: 0 | AW27: 0 | AX27: 0 | AY27: 0 | AZ27: 0 | BA27: 0 | BB27: 0 | BC27: 0 | BD27: 0 | BE27: 0 | BF27: 0 | BH27: 0 | BI27: 0 | BJ27: 0 | BK27: 0 | BL27: 0 | BM27: 0 | BN27: 0 | BO27: 0 | BP27: 0 | BQ27: 0 | BR27: 0 | BS27: 0
B28: Canterbury | F28: HIGH | H28: MEDIUM | J28: ='CBA benchmark'!X32 -> 0 | N28: 0 | W28: Nelson | X28: Other | Y28: Peak | AA28: 300 | AB28: 20 | AC28: 0 | AD28: 0 | AE28: 0 | AF28: 320 | AH28: 0 | AI28: 0 | AJ28: 0 | AK28: 0 | AL28: 0 | AM28: 0 | AN28: 0 | AO28: 0 | AP28: 0 | AQ28: 0 | AR28: 0 | AS28: 0 | AU28: 0 | AV28: 0 | AW28: =IF($AF28=322,3,IF($AF28=331,3,)) -> 0 | AX28: 0 | AY28: 0 | AZ28: 0 | BA28: 0 | BB28: 0 | BC28: 0 | BD28: 0 | BE28: 0 | BF28: 0 | BH28: 0 | BI28: 0 | BJ28: 0 | BK28: 0 | BL28: 0 | BM28: 0 | BN28: 0 | BO28: 0 | BP28: 0 | BQ28: 0 | BR28: 0 | BS28: 0
B29: West Coast | F29: MEDIUM | H29: MEDIUM | J29: ='CBA benchmark'!X33 -> 0 | N29: 0 | R29: Auckland | W29: Canterbury | X29: =W29 -> Canterbury | Y29: Off-peak | AA29: 200 | AB29: 20 | AC29: 0 | AD29: 0 | AE29: 0 | AF29: 220 | AH29: 0 | AI29: 0 | AJ29: 0 | AK29: 0 | AL29: 0 | AM29: 0 | AN29: 0 | AO29: 0 | AP29: 0 | AQ29: 0 | AR29: 0 | AS29: 0 | AU29: 0 | AV29: 0 | AW29: =IF($AF29=322,3,IF($AF29=331,3,)) -> 0 | AX29: 0 | AY29: 0 | AZ29: 0 | BA29: 0 | BB29: 0 | BC29: 0 | BD29: 0 | BE29: 0 | BF29: 0 | BH29: 0 | BI29: 0 | BJ29: 0 | BK29: 0 | BL29: 0 | BM29: 0 | BN29: 0 | BO29: 0 | BP29: 0 | BQ29: 0 | BR29: 0 | BS29: 0
B30: Otago | F30: MEDIUM | H30: MEDIUM | J30: ='CBA benchmark'!X34 -> 0 | L30: MEDIUM | N30: 0 | R30: Wellington | W30: West Coast | X30: Other | Y30: peak/ off-peak | AA30: 200 | AB30: 20 | AC30: 0 | AD30: 2 | AE30: 2 | AF30: 220 | AH30: 0 | AI30: 0 | AJ30: 0 | AK30: 0 | AL30: 0 | AM30: 0 | AN30: 0 | AO30: 0 | AP30: 0 | AQ30: 0 | AR30: 0 | AS30: 0 | AU30: 0 | AV30: 0 | AW30: =IF($AF30=322,3,IF($AF30=331,3,)) -> 0 | AX30: 0 | AY30: 0 | AZ30: 0 | BA30: 0 | BB30: 0 | BC30: 0 | BD30: 0 | BE30: 0 | BF30: 0 | BH30: 0 | BI30: 0 | BJ30: 0 | BK30: 0 | BL30: 0 | BM30: 0 | BN30: 0 | BO30: 0 | BP30: 0 | BQ30: 0 | BR30: 0 | BS30: 0
B31: Southland | F31: MEDIUM | H31: MEDIUM | J31: ='CBA benchmark'!X35 -> 0 | N31: 0 | W31: Otago | X31: Other | Y31: =IF(B13=B18,1,IF(B13=B25,1,0)) -> 0 | AA31: 200 | AB31: 20 | AC31: 0 | AD31: 0 | AE31: 0 | AF31: 220 | AH31: 0 | AI31: 0 | AJ31: 0 | AK31: 0 | AL31: 0 | AM31: 0 | AN31: 0 | AO31: 0 | AP31: 0 | AQ31: 0 | AR31: 0 | AS31: 0 | AU31: 0 | AV31: 0 | AW31: =IF($AF31=322,3,IF($AF31=331,3,)) -> 0 | AX31: 0 | AY31: 0 | AZ31: 0 | BA31: 0 | BB31: 0 | BC31: 0 | BD31: 0 | BE31: 0 | BF31: 0 | BH31: 0 | BI31: 0 | BJ31: 0 | BK31: 0 | BL31: 0 | BM31: 0 | BN31: 0 | BO31: 0 | BP31: 0 | BQ31: 0 | BR31: 0 | BS31: 0

Sheet NAVIGATION (hidden)
B2: sheet type | C2: title | D2: input to | E2: role of sheet/ where information is generated
B3: Forecast data -information flow:
B4: Entry sheet | C4: Public_transport_existing_servi | D4: data "live" (TIO) | E4: Raw Extract sheet from TIO -directly correlates with 18-21 statistical and financial data provided
B5: Secondary sheet | C5: Public_transport_extract totals | D5: data "live" (TIO) | E5: Takes raw data and combines together if sub regional data (e.g. Nelson or West Coast), and leaves separate sub regionally for Otago, and do min vs change (Bay of Plenty)
C6: base data (TIO ext) | D6: data "live" (TIO) | E6: Basic datasheet based on forecast data extract ("live forecast data")
C7: delta fullnet data (TIO ext) | D7: data "live" (TIO) | E7: Same information as base data sheet with the exception of information measuring within a region (Otago), or where there is a delta change (Bay of Plenty), in such instances the "overview & guide" page drives the information necessary for these regions
C8: data "historic" (TIO) | D8: data "live" (TIO) | E8: Forecast information is locked out. It is based on information provided from 3 years ago, inclusive of the current NLTP, i.e. the current NLTP submission is NOT updated when actual information roles in.
C9: data "live" (TIO) | D9: performance indicators, (& from this all other front end worksheets) | E9: Information here is either from the delta sheet (see above), OR you can take historic forecast information provided from 3 years ago via sheet: "data "historic" (TIO)" (see immediately above), depending upon the forecast submission you want to review. If you take the 2018-21 information, data for 2015-18 is updated with actual information as well when it comes in. Again the "overview & guide" page drives the forecast information being used. Generally the default is the "live" up to date, data provided via the current submission (in this case for 18-21 NLTP).
B11: Actual data update -information flow:
B12: Entry sheet | C12: Public_transport_existing_servi | D12: data "live" (TIO) | E12: The sheets above are updated upon completion of the end of the current year where forecast information is superseded for "live" datasheets and the future NLTP. Data historic sheets are not updated.
E13: Forecast expenditure data for the current year is updated from an external source and fed into this sheet via quarterly updates
C16: NOTE: at the above process is new and an added layer of information and analysis, it is a work in progress as to how to best get it working & updated easily.
C21: How to unhide sheets:
C23: This task corresponds to the following VBA command:
C24: Sheets("SheetName").Visible = xlVeryHidden"
C25: Will hide the sheet(s) and can only be made visible again through the use of VBA code - or via the ‘Developer’ tab.
C26: Sheets("SheetName").Visible = xlHidden"
C27: Will hide the sheet(s) and can only be made visible again through the use of VBA code - or via ‘Developer’ tab.
C28: Sheets("SheetName").Visible = True"
C29: Will make sheet(s) visible again through the use of VBA code - or via the ‘Developer’ tab.
C31: Instructions to change manually via ‘Developers tab’
C33: 1. Click on ‘Developer’ Tab or press [ALT]+[F11] to display Visual Basic screen. If you have previously saved this excel file with the ‘Properties Window’ open, then it will already be available to view, in which case go to step 4.
C36: 2. Click on ‘Visual Basic’ or press [ALT]+[F11] to display. If you have previously saved the file with the ‘Properties Window’ open, then it will already be available to view, in which case go to step 4.
C39: 3. Click on ‘View’ or press [F4] key to display the ‘Properties Window’
C42: 4. Make sure you apply properties to the correct spreadsheet by clinking on the particular ‘Excel Object’ (worksheet) that you want to hide/unhide!
C46: 5. The last item choice in the properties window is the worksheet property ‘Visible’. Use the drop down box to select 0, 1 or 2 (visible, hidden, or very hidden)
C50: 6. Click Save and close screen or press [ALT]+[Q] . You will be back to spreadsheet. (Note: You can keep both visual basic screen and normal worksheet open whilst you work if you so wish.)

Sheet overview & guide
C2: PUBLIC TRANSPORT COST - BENEFIT APPRAISAL OVERVIEW AND GUIDELINES
C4: Worksheet title (and link):
D5: a brief description
C7: CBA profile | D7: -serves as the front-end dashboard to determine a network programme's cost - benefit appraisal (CBA) rating, with various drop-down options selected impacting across other sheets
C9: CBA trends | D9: -graphically shows performance of the specific region under review, compared against the impact of sensitivity testing and network averages/ comparisons over NLTP cycles
C11: CBA benchmark | D11: -provides summary information which benchmarks a network programme's efficiency rating against all other regions
C13: scenario testing | D13: -provides for the ability to carry out scenario testing (including testing the impact of service trials) for a network and as an input into the CBA trends and CBA benchmark sheets
C15: LCLR template (trial interface) | D15: -data sheet to transfer across the impact of trials from the LCLR template, closely linked with the scenario testing worksheet above
C17: BER" calc | D17: -demonstrates the Benefits Efficiency Ratio (BER) calculation in terms of the formula itself and the application of the formula (for the network selected)
C19: FRR" calc | D19: -demonstrates the Farebox Recovery Ratio (FBR) calculation in terms of the formula itself and the application of the formula (for the network selected)
C21: SER" calc | D21: -demonstrates the Service Efficiency Ratio (SER) calculation in terms of the formula itself and the application of the formula (for the network selected)
C23: SUA calc | D23: -demonstrates the Service Utilisation Average (SUA) calculation in terms of both the formula used and the application of it (for the network selected)
C24: -base data | D24: The raw data, either actual as at end of the year compiled from achievement returns and claims to the Transport Agency
C25: -performance indicators | D25: Performance indicators generated from data (supplied by input into TIO by regions (i.e. achievement returns, claims, or NLTP forecast generated)), for specific mode and for whole regional network(s)
C27: Steps to use the appraisal tool:
C29: i) In the cell to the right (E29), enter your region or the region you want to focus the CBA assessment on (applied across all worksheets) | G29: Region wide | J29: 2018-21 submission | N29: do-minimum
C30: ii) Go into "CBA profile" worksheet, select the comparative grouping you want to assess against (cell G4) N.B.: relevant for the CBA profile and CBA trends worksheets
C31: iii) As necessary also on this worksheet, select the mode of comparison (cell D2), the primary 3 year period of assessment (cell D4) and if the costs applied are only service or full operational costs being assessed (cell D6) N.B.: for any of these options selected they apply across all worksheets
C32: iv) For any scenario testing including variation to your network you want to test, refer to the "scenario testing" worksheet and enter data as necessary (pale yellow cells provided). To then bring through this scenario option to test and apply in other worksheets, select the scenario as appropriate (cell H3).
C34: general cell guide | CE34: Northland | CF34: Dunedin (only) | CG34: Tauranga | CH34: Christchurch | CI34: Main city | CJ34: =IF($E$29=$CE$37,CG34,IF($E$29=$CE$45,CH34,IF($E$29=$CE$47,CF34,""))) ->  | CK34: 1
C35: -pale yellow, non-bordered cells are generally open for overlaying or inputting data or information as required | CE35: Auckland | CF35: Wakatipu | CG35: Rotorua | CH35: Timaru | CI35: smaller city | CJ35: =IF($E$29=$CE$37,CG35,IF($E$29=$CE$45,CH35,IF($E$29=$CE$47,CF35,""))) ->  | CK35: 2
C36: -yellow, blue bordered cells allow drop down options to select varying the impact or focus area/ focus type | CD36: 2015-18 submission | CE36: Waikato | CF36: Region wide | CG36: Region wide | CH36: Region wide | CI36: Region wide | CJ36: =IF($E$29=$CE$37,CG36,IF($E$29=$CE$45,CH36,IF($E$29=$CE$47,CF36,""))) ->  | CK36: 3
CD37: 2018-21 submission | CE37: Bay of Plenty
C38: Cost and Benefit Appraisal for public transport programmes (background): | CE38: Gisborne | CH38: =IF(E29=CE37,1,IF(E29=CE47,1,0)) -> 0 | CI38: =IF(CJ38=CJ36,3,IF(G29=0,3,CK38)) -> 3 | CJ38: =IF(G29=0,3,G29) -> Region wide | CK38: =IF(CH38=1,IF(G29=0,3,VLOOKUP(G29,CJ33:CK36,2,FALSE)),3) -> 3
CE39: Hawkes Bay
C40: As detailed in the Planning and Investment Knowledge Base (PIKB), the Transport Agency requires all investments to be assessed across the Investment Assessment Framework (IAF). | CE40: Taranaki
CE41: Manawatu-Wanganui
C42: This includes public transport service and operations programmes as well as improvement initiatives. As part of this assessment, we need to determine both the efficiency of existing service programme both as of now and in future, and also in combination with any intended service improvements. This is to ensure what we are investing in is providing value for money and that the investment and service provision is being optimised, particularly over time. To do this we have adopted a methodology to apply a Cost - Benefit appraisal to service programmes and variations to these, applicable at the network level and also mode specific for Auckland and Wellington. | CE42: Wellington | CG42: do-minimum
CE43: Marlborough | CG43: with improvements
C44: Information source: Expenditure: Expenditure costs used in the assessment are derived from actual expenditure or forecast expenditure associated with the service work categories captured from the information in TIO, i.e.: (511 (bus), 512 (ferry), 515 (rail)). Addition operational costs (work categories 514 and 524) can also be applied to the appraisal tool as necessary. Service costs align to those captured in the public transport programme, can potentially also include service improvements, service trials, as well as scenario options. | CE44: Nelson
CE45: Canterbury
CE46: West Coast
C47: Non expenditure statistical performance data: This data is also sourced from within TIO, based on end of year achievement returns or forecast information provided. | CE47: Otago | CF47: =IF(E29=CE37,2,IF(E29=CE47,2,1)) -> 1
C48: Knowledge base link: | CE48: Southland
C50: PIKB (PT programme link)
C62: ADD IN NEW EEM UPDATE FACTORS
C63: ADD IN NEW FORECASTS

Sheet CBA profile
B2: network/ modal component: | D2: total network | H2: Total comparator (by average): | K2: Network profiled: | M2: =IF('overview & guide'!E29=X41,"Auckland ferry:","") ->  | N2: =IF('overview & guide'!E29=X41,"Additional costings:",IF('overview & guide'!E29=X48,"Additional costings:","")) -> 
B4: NLTP cycle of focus: | D4: 2018-21 | H4: National average | I4: =IF(H4=Y40,"",IF(H4=Y40,"",IF(H4=Y41,IF('overview & guide'!E29=X41," [Wgtn]",IF(H4=Y41,IF('overview & guide'!E29=X48," [Akl]","")))))) ->  | K4: =IF('overview & guide'!E29=0,"",'overview & guide'!E29) ->  | M4: total | N4: Rail rolling stock OUT
B6: cost profile assigned: | D6: service costs only | H6: =K6 -> forward forecast | I6: trend | K6: =Z51 -> forward forecast | L6: trend | M6: grade
B9: BENEFIT/COST EFFICIENCY RATIO | D9: HIGH | E9: ='CBA benchmark'!I6 -> +5 | F9: =IF($K$9>='CBA benchmark'!H6,'CBA benchmark'!H6,) ->  | H9: =IF($D$2=$Z$47,'CBA benchmark'!$G$36,IF($D$2=$Z$44,'CBA benchmark'!$G$42,IF($D$2='CBA profile'!$Z$46,IF('overview & guide'!$E$29=$X$41,'CBA benchmark'!$G$45,IF($D$2='CBA profile'!$Z$46,IF('overview & guide'!$E$29=$X$48,'CBA benchmark'!$G$44,'CBA benchmark'!$G$47)))))) -> 6.436228457 | I9: =IF($D$2=$Z$47,'CBA benchmark'!I36,IF($D$2=$Z$44,'CBA benchmark'!I42,IF($D$2='CBA profile'!$Z$46,IF('overview & guide'!$E$29=$X$41,'CBA benchmark'!I45,IF($D$2='CBA profile'!$Z$46,IF('overview & guide'!$E$29=$X$48,'CBA benchmark'!I44,'CBA benchmark'!I47)))))) -> -0.05783701646 | K9: ='CBA benchmark'!G15 ->  | L9: ='CBA benchmark'!I15 ->  | M9: =IF($F$13='CBA benchmark'!H6,D9,IF($F$13='CBA benchmark'!H7,D10,IF($F$13='CBA benchmark'!H8,D11,IF($F$13='CBA benchmark'!H9,D12,"")))) -> 
D10: MEDIUM | E10: ='CBA benchmark'!I7 -> +3 | F10: =IF($K$9>='CBA benchmark'!H7,IF($K$9<'CBA benchmark'!H6,'CBA benchmark'!H7,)) -> 
D11: LOW | E11: ='CBA benchmark'!I8 -> +1 | F11: =IF($K$9>='CBA benchmark'!H8,IF($K$9<'CBA benchmark'!H7,'CBA benchmark'!H8,)) ->  | H11: enter commentary as appropriate for: -network performance -network trend -comparison against the appropriate comparator | J11: >>>
D12: INEFFIECIENT | E12: ='CBA benchmark'!I9 -> <1 | F12: =IF($K$9<'CBA benchmark'!H9,-1,) -> 
F13: =SUM(F9:F12) -> 
B14: FAREBOX RECOVERY RATIO | D14: HIGH | E14: ='CBA benchmark'!M6 -> +40% | F14: =IF($K$14>='CBA benchmark'!L6,'CBA benchmark'!L6,) ->  | H14: =IF($D$2=$Z$47,'CBA benchmark'!K36,IF($D$2=$Z$44,'CBA benchmark'!K42,IF($D$2='CBA profile'!$Z$46,IF('overview & guide'!$E$29=$X$41,'CBA benchmark'!K45,IF($D$2='CBA profile'!$Z$46,IF('overview & guide'!$E$29=$X$48,'CBA benchmark'!K44,'CBA benchmark'!K47)))))) -> 0.4415962127 | I14: =IF($D$2=$Z$47,'CBA benchmark'!M36,IF($D$2=$Z$44,'CBA benchmark'!M42,IF($D$2='CBA profile'!$Z$46,IF('overview & guide'!$E$29=$X$41,'CBA benchmark'!M45,IF($D$2='CBA profile'!$Z$46,IF('overview & guide'!$E$29=$X$48,'CBA benchmark'!M44,'CBA benchmark'!M47)))))) -> -0.05304767069 | K14: ='CBA benchmark'!K15 ->  | L14: ='CBA benchmark'!M15 ->  | M14: =IF($F$18='CBA benchmark'!L6,D14,IF($F$18='CBA benchmark'!L7,D15,IF($F$18='CBA benchmark'!L8,D16,IF($F$18=-1,D17,"")))) -> 
D15: MEDIUM | E15: ='CBA benchmark'!M7 -> +30% | F15: =IF($K$14>='CBA benchmark'!L7,IF($K$14<'CBA benchmark'!L6,'CBA benchmark'!L7,)) -> 
D16: LOW | E16: ='CBA benchmark'!M8 -> +20% | F16: =IF($K$14>='CBA benchmark'!L8,IF($K$14<'CBA benchmark'!L7,'CBA benchmark'!L8,)) ->  | H16: enter commentary as appropriate for: -network performance -network trend -comparison against the appropriate comparator | J16: >>>
D17: INEFFIECIENT | E17: ='CBA benchmark'!M9 -> <20% | F17: =IF($K$14<'CBA benchmark'!L9,-1,) -> 
F18: =SUM(F14:F17) -> 
B19: SERVICE EFFICIENCY RATIO | D19: HIGH | E19: ='CBA benchmark'!Q6 -> <$1.50 | F19: =IF($K$19<G19,G19,) ->  | G19: =IF('BL benchmark'!$D$8='BL benchmark'!$AJ$14,1.5,2.5) -> 1.5 | H19: =IF($D$2=$Z$47,'CBA benchmark'!O36,IF($D$2=$Z$44,'CBA benchmark'!O42,IF($D$2='CBA profile'!$Z$46,IF('overview & guide'!$E$29=$X$41,'CBA benchmark'!O45,IF($D$2='CBA profile'!$Z$46,IF('overview & guide'!$E$29=$X$48,'CBA benchmark'!O44,'CBA benchmark'!O47)))))) -> 4.026664985 | I19: =IF($D$2=$Z$47,'CBA benchmark'!Q36,IF($D$2=$Z$44,'CBA benchmark'!Q42,IF($D$2='CBA profile'!$Z$46,IF('overview & guide'!$E$29=$X$41,'CBA benchmark'!Q45,IF($D$2='CBA profile'!$Z$46,IF('overview & guide'!$E$29=$X$48,'CBA benchmark'!Q44,'CBA benchmark'!Q47)))))) -> 0.06382229486 | K19: ='CBA benchmark'!O15 ->  | L19: ='CBA benchmark'!Q15 ->  | M19: =IF($F$23=G19,D19,IF($F$23=G20,D20,IF($F$23=G21,D21,IF($F$23=7,D22,"")))) -> 
D20: MEDIUM | E20: ='CBA benchmark'!Q7 -> <$3.00 | F20: =IF($K$19>=G19,IF($K$19<G20,G20,)) ->  | G20: =IF('BL benchmark'!$D$8='BL benchmark'!$AJ$14,3,4.5) -> 3
D21: LOW | E21: ='CBA benchmark'!Q8 -> <$5.00 | F21: =IF($K$19>=G20,IF($K$19<G22,G21,)) ->  | G21: =IF('BL benchmark'!$D$8='BL benchmark'!$AJ$14,5,7) -> 5 | H21: enter commentary as appropriate for: -network performance -network trend -comparison against the appropriate comparator | J21: >>>
D22: INEFFIECIENT | E22: ='CBA benchmark'!Q9 -> >$5.00 | F22: =IF($K$19>=G22,G22,) ->  | G22: =IF('BL benchmark'!$D$8='BL benchmark'!$AJ$14,5,7) -> 5
F23: =SUM(F19:F22) -> 
B24: SERVICE UTILISATION AVERAGE | D24: HIGH | E24: ='CBA benchmark'!V6 -> +10 ave pax | F24: =IF($K$24>='CBA benchmark'!U6,'CBA benchmark'!U6,) ->  | H24: =IF($D$2=$Z$47,'CBA benchmark'!T36,IF($D$2=$Z$44,'CBA benchmark'!T42,IF($D$2='CBA profile'!$Z$46,IF('overview & guide'!$E$29=$X$41,'CBA benchmark'!T45,IF($D$2='CBA profile'!$Z$46,IF('overview & guide'!$E$29=$X$48,'CBA benchmark'!T44,'CBA benchmark'!T47)))))) -> 13.62936709 | I24: =IF($D$2=$Z$47,'CBA benchmark'!V36,IF($D$2=$Z$44,'CBA benchmark'!V42,IF($D$2='CBA profile'!$Z$46,IF('overview & guide'!$E$29=$X$41,'CBA benchmark'!V45,IF($D$2='CBA profile'!$Z$46,IF('overview & guide'!$E$29=$X$48,'CBA benchmark'!V44,'CBA benchmark'!V47)))))) -> 0.01438558174 | K24: ='CBA benchmark'!T15 ->  | L24: ='CBA benchmark'!V15 ->  | M24: =IF($F$28='CBA benchmark'!U6,D24,IF($F$28='CBA benchmark'!U7,D25,IF($F$28='CBA benchmark'!U8,D26,IF($F$28=-1,D27,"")))) -> 
D25: MEDIUM | E25: ='CBA benchmark'!V7 -> +7 ave pax | F25: =IF($K$24>='CBA benchmark'!U7,IF($K$24<'CBA benchmark'!U6,'CBA benchmark'!U7,)) -> 
D26: LOW | E26: ='CBA benchmark'!V8 -> +3 ave pax | F26: =IF($K$24>='CBA benchmark'!U8,IF($K$24<'CBA benchmark'!U7,'CBA benchmark'!U8,)) ->  | H26: enter commentary as appropriate for: -network performance -network trend -comparison against the appropriate comparator | J26: >>>
D27: INEFFIECIENT | E27: ='CBA benchmark'!V9 -> <3 ave pax | F27: =IF($K$24<'CBA benchmark'!U9,-1,) -> 
F28: =SUM(F24:F27) -> 
B29: OVERALL COST & BENEFIT APPRAISAL | D29: HIGH | E29: [GOOD] | K29: enter overall CBA profile: [NZTA entered]
D30: MEDIUM | E30: [FAIR]
D31: LOW | E31: [AMBER] | H31: justify overall assessment: | J31: >>>
D32: INEFFIECIENT | E32: [POOR] | H32: [NZTA entered]
X40: Northland | Y40: National average | Z40: service costs only | AA40: 2009-12
X41: Auckland | Y41: =IF(K4=X41,"Large networks", IF(K4=X48,"Large networks","Accessible networks")) -> Accessible networks | Z41: total operational costs | AA41: 2012-15
X42: Waikato | AA42: 2015-18
X43: Bay of Plenty | AA43: 2018-21
X44: Gisborne | Z44: bus network | AA44: 2021-24
X45: Hawkes Bay | Z45: ferry network
X46: Taranaki | Z46: rail network
X47: Manawatu-Wanganui | Z47: total network | AA47: contracted
X48: Wellington | AA48: total
X49: Marlborough | Z49: ='data "live" (TIO)'!G1 -> 2017/18 | AA49: ='data "live" (TIO)'!H1 -> 2015-18
X50: Nelson | Z50: current yr | AA50: current NLTP
X51: Canterbury | Z51: =IF(D4>AA49,"forward forecast",IF(D4=AA49,"current projected","actual")) -> forward forecast
X52: West Coast | Y52: Rail rolling stock IN | AA52: HIGH
X53: Otago | Y53: Rail rolling stock OUT | AA53: MEDIUM
X54: Southland | Z54: =IF('overview & guide'!E29=X41,0,IF('overview & guide'!E29=X48,0,1)) -> 1 | AA54: LOW
Z55: =IF('overview & guide'!E29=X41,0,1) -> 1 | AA55: INEFFIECIENT

Sheet CBA trends
B2: NETWORK PERFORMANCE ON AVERAGE PER NLTP CYCLE ACROSS KEY MEASURES OF COST - BENEFIT APPRAISAL FOR PUBLIC TRANSPORT | R2: ='CBA profile'!D2 -> total network | S2: current NLTP: | T2: =YEAR!C10 -> 2015-18 | U2: ='CBA profile'!K4 -> 
C25: BENEFITS EFFICIENCY RATIO | F25: 2009-12 | G25: 2012-15 | H25: 2015-18 | I25: 2018-21 | J25: 2021-24 | N25: FAREBOX RECOVERY RATIO | Q25: 2009-12 | R25: 2012-15 | S25: 2015-18 | T25: 2018-21 | U25: =J25 -> 2021-24
C26: [BER] | F26: actual | G26: actual | H26: forecast | I26: forecast | J26: forecast | N26: [FRR] | Q26: actual | R26: actual | S26: forecast | T26: forecast | U26: forecast
C27: ='CBA benchmark'!B15 -> National average | D27: ='CBA profile'!I4 ->  | E27: =E29 -> total network | F27: =IF($E$29='CBA benchmark'!$AJ$26,'performance indicators'!S19,IF($E$29='CBA benchmark'!$AJ$27,'performance indicators'!S219,IF($E$29='CBA benchmark'!$AJ$28,IF($C$29="Auckland",'performance indicators'!S412,'performance indicators'!S405),IF($E$29='CBA benchmark'!$AJ$29,'performance indicators'!S619,'performance indicators'!S619)))) -> 7.168192561 | G27: =IF($E$29='CBA benchmark'!$AJ$26,'performance indicators'!T19,IF($E$29='CBA benchmark'!$AJ$27,'performance indicators'!T219,IF($E$29='CBA benchmark'!$AJ$28,IF($C$29="Auckland",'performance indicators'!T412,'performance indicators'!T405),IF($E$29='CBA benchmark'!$AJ$29,'performance indicators'!T619,'performance indicators'!T619)))) -> 7.059017115 | H27: =IF($E$29='CBA benchmark'!$AJ$26,'performance indicators'!U19,IF($E$29='CBA benchmark'!$AJ$27,'performance indicators'!U219,IF($E$29='CBA benchmark'!$AJ$28,IF($C$29="Auckland",'performance indicators'!U412,'performance indicators'!U405),IF($E$29='CBA benchmark'!$AJ$29,'performance indicators'!U619,'performance indicators'!U619)))) -> 6.831332337 | I27: =IF($E$29='CBA benchmark'!$AJ$26,'performance indicators'!V19,IF($E$29='CBA benchmark'!$AJ$27,'performance indicators'!V219,IF($E$29='CBA benchmark'!$AJ$28,IF($C$29="Auckland",'performance indicators'!V412,'performance indicators'!V405),IF($E$29='CBA benchmark'!$AJ$29,'performance indicators'!V619,'performance indicators'!V619)))) -> 6.436228457 | J27: =IF($E$29='CBA benchmark'!$AJ$26,'performance indicators'!W19,IF($E$29='CBA benchmark'!$AJ$27,'performance indicators'!W219,IF($E$29='CBA benchmark'!$AJ$28,IF($C$29="Auckland",'performance indicators'!W412,'performance indicators'!W405),IF($E$29='CBA benchmark'!$AJ$29,'performance indicators'!W619,'performance indicators'!W619)))) -> 6.584578868 | N27: =C27 -> National average | P27: total network | Q27: =IF($E$29='CBA benchmark'!$AJ$26,'performance indicators'!S139,IF($E$29='CBA benchmark'!$AJ$27,'performance indicators'!S339,IF($E$29='CBA benchmark'!$AJ$28,IF($C$29="Auckland",'performance indicators'!S532,'performance indicators'!S525),IF($E$29='CBA benchmark'!$AJ$29,'performance indicators'!S739,'performance indicators'!S739)))) -> 0.448108596 | R27: =IF($E$29='CBA benchmark'!$AJ$26,'performance indicators'!T139,IF($E$29='CBA benchmark'!$AJ$27,'performance indicators'!T339,IF($E$29='CBA benchmark'!$AJ$28,IF($C$29="Auckland",'performance indicators'!T532,'performance indicators'!T525),IF($E$29='CBA benchmark'!$AJ$29,'performance indicators'!T739,'performance indicators'!T739)))) -> 0.4693491646 | S27: =IF($E$29='CBA benchmark'!$AJ$26,'performance indicators'!U139,IF($E$29='CBA benchmark'!$AJ$27,'performance indicators'!U339,IF($E$29='CBA benchmark'!$AJ$28,IF($C$29="Auckland",'performance indicators'!U532,'performance indicators'!U525),IF($E$29='CBA benchmark'!$AJ$29,'performance indicators'!U739,'performance indicators'!U739)))) -> 0.4663341533 | T27: =IF($E$29='CBA benchmark'!$AJ$26,'performance indicators'!V139,IF($E$29='CBA benchmark'!$AJ$27,'performance indicators'!V339,IF($E$29='CBA benchmark'!$AJ$28,IF($C$29="Auckland",'performance indicators'!V532,'performance indicators'!V525),IF($E$29='CBA benchmark'!$AJ$29,'performance indicators'!V739,'performance indicators'!V739)))) -> 0.4415962127 | U27: =IF($E$29='CBA benchmark'!$AJ$26,'performance indicators'!W139,IF($E$29='CBA benchmark'!$AJ$27,'performance indicators'!W339,IF($E$29='CBA benchmark'!$AJ$28,IF($C$29="Auckland",'performance indicators'!W532,'performance indicators'!W525),IF($E$29='CBA benchmark'!$AJ$29,'performance indicators'!W739,'performance indicators'!W739)))) -> 0.457846642
C28: =C29 -> 0 | D28: NLTP SUBMISSION (1518) | E28: =E29 -> total network | H28: =IF($E$29='CBA benchmark'!$AJ$26,'performance indicators'!U21,IF($E$29='CBA benchmark'!$AJ$27,'performance indicators'!U221,IF($E$29='CBA benchmark'!$AJ$28,'performance indicators'!U421,'performance indicators'!U621))) ->  | I28: =IF($E$29='CBA benchmark'!$AJ$26,'performance indicators'!V21,IF($E$29='CBA benchmark'!$AJ$27,'performance indicators'!V221,IF($E$29='CBA benchmark'!$AJ$28,'performance indicators'!V421,'performance indicators'!V621))) ->  | J28: =IF($E$29='CBA benchmark'!$AJ$26,'performance indicators'!W21,IF($E$29='CBA benchmark'!$AJ$27,'performance indicators'!W221,IF($E$29='CBA benchmark'!$AJ$28,'performance indicators'!W421,'performance indicators'!W621))) ->  | N28: =C28 -> 0 | O28: =D28 -> NLTP SUBMISSION (1518) | P28: =E28 -> total network | S28: =IF($E$29='CBA benchmark'!$AJ$26,'performance indicators'!U141,IF($E$29='CBA benchmark'!$AJ$27,'performance indicators'!U341,IF($E$29='CBA benchmark'!$AJ$28,'performance indicators'!U541,'performance indicators'!U741))) ->  | T28: =IF($E$29='CBA benchmark'!$AJ$26,'performance indicators'!V141,IF($E$29='CBA benchmark'!$AJ$27,'performance indicators'!V341,IF($E$29='CBA benchmark'!$AJ$28,'performance indicators'!V541,'performance indicators'!V741))) ->  | U28: =IF($E$29='CBA benchmark'!$AJ$26,'performance indicators'!W141,IF($E$29='CBA benchmark'!$AJ$27,'performance indicators'!W341,IF($E$29='CBA benchmark'!$AJ$28,'performance indicators'!W541,'performance indicators'!W741))) -> 
C29: ='CBA benchmark'!B12 -> 0 | D29: NLTP ACTUAL/ SUBMISSION (1821) | E29: ='CBA benchmark'!C15 -> total network | F29: =IF($E$29='CBA benchmark'!$AJ$26,'performance indicators'!S20,IF($E$29='CBA benchmark'!$AJ$27,'performance indicators'!S220,IF($E$29='CBA benchmark'!$AJ$28,'performance indicators'!S420,'performance indicators'!S620))) ->  | G29: =IF($E$29='CBA benchmark'!$AJ$26,'performance indicators'!T20,IF($E$29='CBA benchmark'!$AJ$27,'performance indicators'!T220,IF($E$29='CBA benchmark'!$AJ$28,'performance indicators'!T420,'performance indicators'!T620))) ->  | H29: =IF($E$29='CBA benchmark'!$AJ$26,'performance indicators'!U20,IF($E$29='CBA benchmark'!$AJ$27,'performance indicators'!U220,IF($E$29='CBA benchmark'!$AJ$28,'performance indicators'!U420,'performance indicators'!U620))) ->  | I29: =IF($E$29='CBA benchmark'!$AJ$26,'performance indicators'!V20,IF($E$29='CBA benchmark'!$AJ$27,'performance indicators'!V220,IF($E$29='CBA benchmark'!$AJ$28,'performance indicators'!V420,'performance indicators'!V620))) ->  | J29: =IF($E$29='CBA benchmark'!$AJ$26,'performance indicators'!W20,IF($E$29='CBA benchmark'!$AJ$27,'performance indicators'!W220,IF($E$29='CBA benchmark'!$AJ$28,'performance indicators'!W420,'performance indicators'!W620))) ->  | N29: 0 | O29: NLTP ACTUAL/ SUBMISSION (1821) | P29: total network | Q29: =IF($E$29='CBA benchmark'!$AJ$26,'performance indicators'!S140,IF($E$29='CBA benchmark'!$AJ$27,'performance indicators'!S340,IF($E$29='CBA benchmark'!$AJ$28,'performance indicators'!S540,'performance indicators'!S740))) ->  | R29: =IF($E$29='CBA benchmark'!$AJ$26,'performance indicators'!T140,IF($E$29='CBA benchmark'!$AJ$27,'performance indicators'!T340,IF($E$29='CBA benchmark'!$AJ$28,'performance indicators'!T540,'performance indicators'!T740))) ->  | S29: =IF($E$29='CBA benchmark'!$AJ$26,'performance indicators'!U140,IF($E$29='CBA benchmark'!$AJ$27,'performance indicators'!U340,IF($E$29='CBA benchmark'!$AJ$28,'performance indicators'!U540,'performance indicators'!U740))) ->  | T29: =IF($E$29='CBA benchmark'!$AJ$26,'performance indicators'!V140,IF($E$29='CBA benchmark'!$AJ$27,'performance indicators'!V340,IF($E$29='CBA benchmark'!$AJ$28,'performance indicators'!V540,'performance indicators'!V740))) ->  | U29: =IF($E$29='CBA benchmark'!$AJ$26,'performance indicators'!W140,IF($E$29='CBA benchmark'!$AJ$27,'performance indicators'!W340,IF($E$29='CBA benchmark'!$AJ$28,'performance indicators'!W540,'performance indicators'!W740))) -> 
C30: =C29 -> 0 | D30: ='scenario testing'!H3 -> DEFAULT (DO MINIMUM) | E30: =E29 -> total network | F30: =IF($E$29='CBA benchmark'!$AJ$26,'performance indicators'!S22,IF($E$29='CBA benchmark'!$AJ$27,'performance indicators'!S222,IF($E$29='CBA benchmark'!$AJ$28,'performance indicators'!S422,'performance indicators'!S622))) ->  | G30: =IF($E$29='CBA benchmark'!$AJ$26,'performance indicators'!T22,IF($E$29='CBA benchmark'!$AJ$27,'performance indicators'!T222,IF($E$29='CBA benchmark'!$AJ$28,'performance indicators'!T422,'performance indicators'!T622))) ->  | H30: =IF($E$29='CBA benchmark'!$AJ$26,'performance indicators'!U22,IF($E$29='CBA benchmark'!$AJ$27,'performance indicators'!U222,IF($E$29='CBA benchmark'!$AJ$28,'performance indicators'!U422,'performance indicators'!U622))) ->  | I30: =IF($E$29='CBA benchmark'!$AJ$26,'performance indicators'!V22,IF($E$29='CBA benchmark'!$AJ$27,'performance indicators'!V222,IF($E$29='CBA benchmark'!$AJ$28,'performance indicators'!V422,'performance indicators'!V622))) ->  | J30: =IF($E$29='CBA benchmark'!$AJ$26,'performance indicators'!W22,IF($E$29='CBA benchmark'!$AJ$27,'performance indicators'!W222,IF($E$29='CBA benchmark'!$AJ$28,'performance indicators'!W422,'performance indicators'!W622))) ->  | N30: =N29 -> 0 | O30: =D30 -> DEFAULT (DO MINIMUM) | P30: =P29 -> total network | Q30: =IF($E$29='CBA benchmark'!$AJ$26,'performance indicators'!S142,IF($E$29='CBA benchmark'!$AJ$27,'performance indicators'!S342,IF($E$29='CBA benchmark'!$AJ$28,'performance indicators'!S542,'performance indicators'!S742))) ->  | R30: =IF($E$29='CBA benchmark'!$AJ$26,'performance indicators'!T142,IF($E$29='CBA benchmark'!$AJ$27,'performance indicators'!T342,IF($E$29='CBA benchmark'!$AJ$28,'performance indicators'!T542,'performance indicators'!T742))) ->  | S30: =IF($E$29='CBA benchmark'!$AJ$26,'performance indicators'!U142,IF($E$29='CBA benchmark'!$AJ$27,'performance indicators'!U342,IF($E$29='CBA benchmark'!$AJ$28,'performance indicators'!U542,'performance indicators'!U742))) ->  | T30: =IF($E$29='CBA benchmark'!$AJ$26,'performance indicators'!V142,IF($E$29='CBA benchmark'!$AJ$27,'performance indicators'!V342,IF($E$29='CBA benchmark'!$AJ$28,'performance indicators'!V542,'performance indicators'!V742))) ->  | U30: =IF($E$29='CBA benchmark'!$AJ$26,'performance indicators'!W142,IF($E$29='CBA benchmark'!$AJ$27,'performance indicators'!W342,IF($E$29='CBA benchmark'!$AJ$28,'performance indicators'!W542,'performance indicators'!W742))) -> 
F31: =IF(F$25=$T$2,F27,"") ->  | G31: =IF(G$25=$T$2,G27,"") ->  | H31: =IF(H$25=$T$2,H27,"") -> 6.831332337 | I31: =IF(I$25=$T$2,I27,"") ->  | J31: =IF(J$25=$T$2,J27,"") ->  | Q31: =IF(Q$25=$T$2,Q27,"") ->  | R31: =IF(R$25=$T$2,R27,"") ->  | S31: =IF(S$25=$T$2,S27,"") -> 0.4663341533 | T31: =IF(T$25=$T$2,T27,"") ->  | U31: =IF(U$25=$T$2,U27,"") -> 
F32: =IF(F$25=$T$2,F29,"") ->  | Q32: =IF(Q$25=$T$2,Q29,"") -> 
F34: =IF(F$25=$T$2,"",) -> 0 | G34: =IF(G$25=$T$2,"",) -> 0 | H34: =IF(H$25=$T$2,"",) ->  | I34: =IF(I$25=$T$2,"",) -> 0 | J34: =IF(J$25=$T$2,"",) -> 0 | Q34: =IF(Q$25=$T$2,"",) -> 0 | R34: =IF(R$25=$T$2,"",) -> 0 | S34: =IF(S$25=$T$2,"",) ->  | T34: =IF(T$25=$T$2,"",) -> 0 | U34: =IF(U$25=$T$2,"",) -> 0
C54: SERVICE EFFICIENCY RATIO | F54: 2009-12 | G54: 2012-15 | H54: 2015-18 | I54: 2018-21 | J54: =J25 -> 2021-24 | N54: SERVICE UTILISATION AVERAGE | Q54: 2009-12 | R54: 2012-15 | S54: 2015-18 | T54: 2018-21 | U54: =J25 -> 2021-24
C55: [SER] | F55: actual | G55: actual | H55: forecast | I55: forecast | J55: forecast | N55: [SUA] | Q55: actual | R55: actual | S55: forecast | T55: forecast | U55: forecast
C56: =C27 -> National average | D56: =D27 ->  | E56: =E27 -> total network | F56: =IF($E$29='CBA benchmark'!$AJ$26,'performance indicators'!S99,IF($E$29='CBA benchmark'!$AJ$27,'performance indicators'!S299,IF($E$29='CBA benchmark'!$AJ$28,IF($C$29="Auckland",'performance indicators'!S492,'performance indicators'!S485),IF($E$29='CBA benchmark'!$AJ$29,'performance indicators'!S699,'performance indicators'!S699)))) -> 3.327351772 | G56: =IF($E$29='CBA benchmark'!$AJ$26,'performance indicators'!T99,IF($E$29='CBA benchmark'!$AJ$27,'performance indicators'!T299,IF($E$29='CBA benchmark'!$AJ$28,IF($C$29="Auckland",'performance indicators'!T492,'performance indicators'!T485),IF($E$29='CBA benchmark'!$AJ$29,'performance indicators'!T699,'performance indicators'!T699)))) -> 3.397022279 | H56: =IF($E$29='CBA benchmark'!$AJ$26,'performance indicators'!U99,IF($E$29='CBA benchmark'!$AJ$27,'performance indicators'!U299,IF($E$29='CBA benchmark'!$AJ$28,IF($C$29="Auckland",'performance indicators'!U492,'performance indicators'!U485),IF($E$29='CBA benchmark'!$AJ$29,'performance indicators'!U699,'performance indicators'!U699)))) -> 3.785091744 | I56: =IF($E$29='CBA benchmark'!$AJ$26,'performance indicators'!V99,IF($E$29='CBA benchmark'!$AJ$27,'performance indicators'!V299,IF($E$29='CBA benchmark'!$AJ$28,IF($C$29="Auckland",'performance indicators'!V492,'performance indicators'!V485),IF($E$29='CBA benchmark'!$AJ$29,'performance indicators'!V699,'performance indicators'!V699)))) -> 4.026664985 | J56: =IF($E$29='CBA benchmark'!$AJ$26,'performance indicators'!W99,IF($E$29='CBA benchmark'!$AJ$27,'performance indicators'!W299,IF($E$29='CBA benchmark'!$AJ$28,IF($C$29="Auckland",'performance indicators'!W492,'performance indicators'!W485),IF($E$29='CBA benchmark'!$AJ$29,'performance indicators'!W699,'performance indicators'!W699)))) -> 4.002653838 | N56: =N27 -> National average | O56: =D27 ->  | P56: =P27 -> total network | Q56: =IF($E$29='CBA benchmark'!$AJ$26,'performance indicators'!S119,IF($E$29='CBA benchmark'!$AJ$27,'performance indicators'!S319,IF($E$29='CBA benchmark'!$AJ$28,IF($C$29="Auckland",'performance indicators'!S512,'performance indicators'!S505),IF($E$29='CBA benchmark'!$AJ$29,'performance indicators'!S719,'performance indicators'!S719)))) -> 12.18237814 | R56: =IF($E$29='CBA benchmark'!$AJ$26,'performance indicators'!T119,IF($E$29='CBA benchmark'!$AJ$27,'performance indicators'!T319,IF($E$29='CBA benchmark'!$AJ$28,IF($C$29="Auckland",'performance indicators'!T512,'performance indicators'!T505),IF($E$29='CBA benchmark'!$AJ$29,'performance indicators'!T719,'performance indicators'!T719)))) -> 12.90334226 | S56: =IF($E$29='CBA benchmark'!$AJ$26,'performance indicators'!U119,IF($E$29='CBA benchmark'!$AJ$27,'performance indicators'!U319,IF($E$29='CBA benchmark'!$AJ$28,IF($C$29="Auckland",'performance indicators'!U512,'performance indicators'!U505),IF($E$29='CBA benchmark'!$AJ$29,'performance indicators'!U719,'performance indicators'!U719)))) -> 13.43608125 | T56: =IF($E$29='CBA benchmark'!$AJ$26,'performance indicators'!V119,IF($E$29='CBA benchmark'!$AJ$27,'performance indicators'!V319,IF($E$29='CBA benchmark'!$AJ$28,IF($C$29="Auckland",'performance indicators'!V512,'performance indicators'!V505),IF($E$29='CBA benchmark'!$AJ$29,'performance indicators'!V719,'performance indicators'!V719)))) -> 13.62936709 | U56: =IF($E$29='CBA benchmark'!$AJ$26,'performance indicators'!W119,IF($E$29='CBA benchmark'!$AJ$27,'performance indicators'!W319,IF($E$29='CBA benchmark'!$AJ$28,IF($C$29="Auckland",'performance indicators'!W512,'performance indicators'!W505),IF($E$29='CBA benchmark'!$AJ$29,'performance indicators'!W719,'performance indicators'!W719)))) -> 13.87691917
C57: =C28 -> 0 | D57: NLTP SUBMISSION (1518) | E57: total network | H57: =IF($E$29='CBA benchmark'!$AJ$26,'performance indicators'!U101,IF($E$29='CBA benchmark'!$AJ$27,'performance indicators'!U301,IF($E$29='CBA benchmark'!$AJ$28,'performance indicators'!U501,'performance indicators'!U701))) ->  | I57: =IF($E$29='CBA benchmark'!$AJ$26,'performance indicators'!V101,IF($E$29='CBA benchmark'!$AJ$27,'performance indicators'!V301,IF($E$29='CBA benchmark'!$AJ$28,'performance indicators'!V501,'performance indicators'!V701))) ->  | J57: =IF($E$29='CBA benchmark'!$AJ$26,'performance indicators'!W101,IF($E$29='CBA benchmark'!$AJ$27,'performance indicators'!W301,IF($E$29='CBA benchmark'!$AJ$28,'performance indicators'!W501,'performance indicators'!W701))) ->  | N57: =N28 -> 0 | O57: =O28 -> NLTP SUBMISSION (1518) | P57: =P28 -> total network | S57: =IF($E$29='CBA benchmark'!$AJ$26,'performance indicators'!U119,IF($E$29='CBA benchmark'!$AJ$27,'performance indicators'!U319,IF($E$29='CBA benchmark'!$AJ$28,'performance indicators'!U519,'performance indicators'!U719))) -> 13.43608125 | T57: =IF($E$29='CBA benchmark'!$AJ$26,'performance indicators'!V119,IF($E$29='CBA benchmark'!$AJ$27,'performance indicators'!V319,IF($E$29='CBA benchmark'!$AJ$28,'performance indicators'!V519,'performance indicators'!V719))) -> 13.62936709 | U57: =IF($E$29='CBA benchmark'!$AJ$26,'performance indicators'!W119,IF($E$29='CBA benchmark'!$AJ$27,'performance indicators'!W319,IF($E$29='CBA benchmark'!$AJ$28,'performance indicators'!W519,'performance indicators'!W719))) -> 13.87691917
C58: 0 | D58: NLTP ACTUAL/ SUBMISSION (1821) | E58: total network | F58: =IF($E$29='CBA benchmark'!$AJ$26,'performance indicators'!S100,IF($E$29='CBA benchmark'!$AJ$27,'performance indicators'!S300,IF($E$29='CBA benchmark'!$AJ$28,'performance indicators'!S500,'performance indicators'!S700))) ->  | G58: =IF($E$29='CBA benchmark'!$AJ$26,'performance indicators'!T100,IF($E$29='CBA benchmark'!$AJ$27,'performance indicators'!T300,IF($E$29='CBA benchmark'!$AJ$28,'performance indicators'!T500,'performance indicators'!T700))) ->  | H58: =IF($E$29='CBA benchmark'!$AJ$26,'performance indicators'!U100,IF($E$29='CBA benchmark'!$AJ$27,'performance indicators'!U300,IF($E$29='CBA benchmark'!$AJ$28,'performance indicators'!U500,'performance indicators'!U700))) ->  | I58: =IF($E$29='CBA benchmark'!$AJ$26,'performance indicators'!V100,IF($E$29='CBA benchmark'!$AJ$27,'performance indicators'!V300,IF($E$29='CBA benchmark'!$AJ$28,'performance indicators'!V500,'performance indicators'!V700))) ->  | J58: =IF($E$29='CBA benchmark'!$AJ$26,'performance indicators'!W100,IF($E$29='CBA benchmark'!$AJ$27,'performance indicators'!W300,IF($E$29='CBA benchmark'!$AJ$28,'performance indicators'!W500,'performance indicators'!W700))) ->  | N58: =N29 -> 0 | O58: =O29 -> NLTP ACTUAL/ SUBMISSION (1821) | P58: =P29 -> total network | Q58: =IF($E$29='CBA benchmark'!$AJ$26,'performance indicators'!S120,IF($E$29='CBA benchmark'!$AJ$27,'performance indicators'!S320,IF($E$29='CBA benchmark'!$AJ$28,'performance indicators'!S520,'performance indicators'!S720))) ->  | R58: =IF($E$29='CBA benchmark'!$AJ$26,'performance indicators'!T120,IF($E$29='CBA benchmark'!$AJ$27,'performance indicators'!T320,IF($E$29='CBA benchmark'!$AJ$28,'performance indicators'!T520,'performance indicators'!T720))) ->  | S58: =IF($E$29='CBA benchmark'!$AJ$26,'performance indicators'!U120,IF($E$29='CBA benchmark'!$AJ$27,'performance indicators'!U320,IF($E$29='CBA benchmark'!$AJ$28,'performance indicators'!U520,'performance indicators'!U720))) ->  | T58: =IF($E$29='CBA benchmark'!$AJ$26,'performance indicators'!V120,IF($E$29='CBA benchmark'!$AJ$27,'performance indicators'!V320,IF($E$29='CBA benchmark'!$AJ$28,'performance indicators'!V520,'performance indicators'!V720))) ->  | U58: =IF($E$29='CBA benchmark'!$AJ$26,'performance indicators'!W120,IF($E$29='CBA benchmark'!$AJ$27,'performance indicators'!W320,IF($E$29='CBA benchmark'!$AJ$28,'performance indicators'!W520,'performance indicators'!W720))) -> 
C59: =C58 -> 0 | D59: =D30 -> DEFAULT (DO MINIMUM) | E59: =E58 -> total network | F59: =IF($E$29='CBA benchmark'!$AJ$26,'performance indicators'!S102,IF($E$29='CBA benchmark'!$AJ$27,'performance indicators'!S302,IF($E$29='CBA benchmark'!$AJ$28,'performance indicators'!S502,'performance indicators'!S702))) ->  | G59: =IF($E$29='CBA benchmark'!$AJ$26,'performance indicators'!T102,IF($E$29='CBA benchmark'!$AJ$27,'performance indicators'!T302,IF($E$29='CBA benchmark'!$AJ$28,'performance indicators'!T502,'performance indicators'!T702))) ->  | H59: =IF($E$29='CBA benchmark'!$AJ$26,'performance indicators'!U102,IF($E$29='CBA benchmark'!$AJ$27,'performance indicators'!U302,IF($E$29='CBA benchmark'!$AJ$28,'performance indicators'!U502,'performance indicators'!U702))) ->  | I59: =IF($E$29='CBA benchmark'!$AJ$26,'performance indicators'!V102,IF($E$29='CBA benchmark'!$AJ$27,'performance indicators'!V302,IF($E$29='CBA benchmark'!$AJ$28,'performance indicators'!V502,'performance indicators'!V702))) ->  | J59: =IF($E$29='CBA benchmark'!$AJ$26,'performance indicators'!W102,IF($E$29='CBA benchmark'!$AJ$27,'performance indicators'!W302,IF($E$29='CBA benchmark'!$AJ$28,'performance indicators'!W502,'performance indicators'!W702))) ->  | N59: =N58 -> 0 | O59: =D59 -> DEFAULT (DO MINIMUM) | P59: =P58 -> total network | Q59: =IF($E$29='CBA benchmark'!$AJ$26,'performance indicators'!S122,IF($E$29='CBA benchmark'!$AJ$27,'performance indicators'!S322,IF($E$29='CBA benchmark'!$AJ$28,'performance indicators'!S522,'performance indicators'!S722))) ->  | R59: =IF($E$29='CBA benchmark'!$AJ$26,'performance indicators'!T122,IF($E$29='CBA benchmark'!$AJ$27,'performance indicators'!T322,IF($E$29='CBA benchmark'!$AJ$28,'performance indicators'!T522,'performance indicators'!T722))) ->  | S59: =IF($E$29='CBA benchmark'!$AJ$26,'performance indicators'!U122,IF($E$29='CBA benchmark'!$AJ$27,'performance indicators'!U322,IF($E$29='CBA benchmark'!$AJ$28,'performance indicators'!U522,'performance indicators'!U722))) ->  | T59: =IF($E$29='CBA benchmark'!$AJ$26,'performance indicators'!V122,IF($E$29='CBA benchmark'!$AJ$27,'performance indicators'!V322,IF($E$29='CBA benchmark'!$AJ$28,'performance indicators'!V522,'performance indicators'!V722))) ->  | U59: =IF($E$29='CBA benchmark'!$AJ$26,'performance indicators'!W122,IF($E$29='CBA benchmark'!$AJ$27,'performance indicators'!W322,IF($E$29='CBA benchmark'!$AJ$28,'performance indicators'!W522,'performance indicators'!W722))) -> 
F60: =IF(F$25=$T$2,F56,"") ->  | G60: =IF(G$25=$T$2,G56,"") ->  | H60: =IF(H$25=$T$2,H56,"") -> 3.785091744 | I60: =IF(I$25=$T$2,I56,"") ->  | J60: =IF(J$25=$T$2,J56,"") ->  | Q60: =IF(Q$25=$T$2,Q56,"") ->  | R60: =IF(R$25=$T$2,R56,"") ->  | S60: =IF(S$25=$T$2,S56,"") -> 13.43608125 | T60: =IF(T$25=$T$2,T56,"") ->  | U60: =IF(U$25=$T$2,U56,"") -> 
F61: =IF(F$25=$T$2,F58,"") ->  | Q61: =IF(Q$25=$T$2,Q58,"") -> 

Sheet LoS trends
C2: LEVEL OF SERVICE COMPARED TO COST PER KM (% CHANGE OVER TIME) | G2: =C25 -> 0 | H2: ='CBA profile'!D2 -> total network | I2: ='overview & guide'!G29 -> Region wide | R2: =M25 -> National average | S2: =H2 -> total network
W5: applied
W6: inflation adjusted
C25: ='CBA benchmark'!B12 -> 0 | E25: 2009-12 | F25: 2012-15 | G25: 2015-18 | H25: 2018-21 | I25: 2021-24 | M25: ='CBA profile'!H4 -> National average | O25: 2009-12 | P25: 2012-15 | Q25: 2015-18 | R25: 2018-21 | S25: 2021-24
C26: ='CBA benchmark'!C15 -> total network | E26: actual | F26: actual | G26: forecast | H26: forecast | I26: forecast | M26: ='CBA benchmark'!C15 -> total network | O26: actual | P26: actual | Q26: forecast | R26: forecast | S26: forecast
C28: ='data "live" (TIO)'!B542 ->  | E28: 0 | F28: =IF($D$30='CBA benchmark'!$AJ$26,'data "live" (TIO)'!BV60,IF($D$30='CBA benchmark'!$AJ$27,'data "live" (TIO)'!BV180,IF($D$30='CBA benchmark'!$AJ$28,'data "live" (TIO)'!BV300,'data "live" (TIO)'!BV420))) ->  | G28: =IF($D$30='CBA benchmark'!$AJ$26,'data "live" (TIO)'!BW60,IF($D$30='CBA benchmark'!$AJ$27,'data "live" (TIO)'!BW180,IF($D$30='CBA benchmark'!$AJ$28,'data "live" (TIO)'!BW300,'data "live" (TIO)'!BW420))) ->  | H28: =IF($D$30='CBA benchmark'!$AJ$26,'data "live" (TIO)'!BX60,IF($D$30='CBA benchmark'!$AJ$27,'data "live" (TIO)'!BX180,IF($D$30='CBA benchmark'!$AJ$28,'data "live" (TIO)'!BX300,'data "live" (TIO)'!BX420))) ->  | I28: =IF($D$30='CBA benchmark'!$AJ$26,'data "live" (TIO)'!BY60,IF($D$30='CBA benchmark'!$AJ$27,'data "live" (TIO)'!BY180,IF($D$30='CBA benchmark'!$AJ$28,'data "live" (TIO)'!BY300,'data "live" (TIO)'!BY420))) ->  | M28: ='data "live" (TIO)'!B541 -> National total in service vehicle kilometres | O28: 0 | P28: =IF($N$30='CBA benchmark'!$AJ$26,'data "live" (TIO)'!BV59,IF($N$30='CBA benchmark'!$AJ$27,'data "live" (TIO)'!BV179,IF($N$30='CBA benchmark'!$AJ$28,'data "live" (TIO)'!BV299,'data "live" (TIO)'!BV419))) -> 0.06658916469 | Q28: =IF($N$30='CBA benchmark'!$AJ$26,'data "live" (TIO)'!BW59,IF($N$30='CBA benchmark'!$AJ$27,'data "live" (TIO)'!BW179,IF($N$30='CBA benchmark'!$AJ$28,'data "live" (TIO)'!BW299,'data "live" (TIO)'!BW419))) -> 0.1101488404 | R28: =IF($N$30='CBA benchmark'!$AJ$26,'data "live" (TIO)'!BX59,IF($N$30='CBA benchmark'!$AJ$27,'data "live" (TIO)'!BX179,IF($N$30='CBA benchmark'!$AJ$28,'data "live" (TIO)'!BX299,'data "live" (TIO)'!BX419))) -> 0.2239656045 | S28: =IF($N$30='CBA benchmark'!$AJ$26,'data "live" (TIO)'!BY59,IF($N$30='CBA benchmark'!$AJ$27,'data "live" (TIO)'!BY179,IF($N$30='CBA benchmark'!$AJ$28,'data "live" (TIO)'!BY299,'data "live" (TIO)'!BY419))) -> 0.3294656126
C30: ='performance indicators'!B100 ->  | E30: 0 | F30: =IF($H$38=$W$5,F40,F40-F$34) ->  | M30: ='performance indicators'!B99 -> National total cost per in-service kilometre: | O30: 0 | P30: =IF($H$38=$W$5,P40,P40-P$34) -> 0.02093872583 | Q30: 0.1375688545 | R30: 0.2101711093 | S30: 0.2029548158
C31: ='performance indicators'!B80 ->  | E31: 0 | M31: ='performance indicators'!B79 -> National total cost per passenger kilometre: | O31: 0 | P31: -0.03610542431 | Q31: 0.03142379763 | R31: 0.08169087881 | S31: 0.05605936522
C32: ='performance indicators'!B180 ->  | E32: 0 | M32: ='performance indicators'!B179 -> National total fares per passenger km: | O32: 0 | P32: 0.04999465404 | Q32: 0.1100315321 | R32: 0.05353873383 | S32: 0.09838999467
C34: =IF('CBA profile'!D2='CBA profile'!Z45,"Ferry cost escalation (CPI index)",IF('CBA profile'!D2='CBA profile'!Z46,"Rail cost escalation","Bus cost escalation (CPI index)")) -> Bus cost escalation (CPI index) | E34: 0 | F34: =IF('CBA profile'!$D$2='CBA profile'!$Z$45,'[1]Index values plotted'!$O$19,IF('CBA profile'!$D$2='CBA profile'!$Z$46,'[1]Index values plotted'!$O$19,'[1]Index values plotted'!$G$19)) -> 0.08023429042 | G34: =IF('CBA profile'!$D$2='CBA profile'!$Z$45,'[1]Index values plotted'!$O$31,IF('CBA profile'!$D$2='CBA profile'!$Z$46,'[1]Index values plotted'!$O$31,'[1]Index values plotted'!$G$31)) -> 0.1259636741 | H34: =IF('CBA profile'!$D$2='CBA profile'!$Z$45,'[1]Index values plotted'!$O$31+0.01,IF('CBA profile'!$D$2='CBA profile'!$Z$46,'[1]Index values plotted'!$O$31+0.005,'[1]Index values plotted'!$G$31+0.015)) -> 0.1409636741 | I34: =IF('CBA profile'!$D$2='CBA profile'!$Z$45,H34+0.03,IF('CBA profile'!$D$2='CBA profile'!$Z$46,H34+0.02,H34+0.045)) -> 0.1859636741 | M34: =C34 -> Bus cost escalation (CPI index) | O34: =E34 -> 0 | P34: =F34 -> 0.08023429042 | Q34: =G34 -> 0.1259636741 | R34: =H34 -> 0.1409636741 | S34: =I34 -> 0.1859636741
E36: =IF(E$25=$D$38,"",) -> 0 | F36: =IF(F$25=$D$38,"",) -> 0 | G36: =IF(G$25=$D$38,"",) ->  | H36: =IF(H$25=$D$38,"",) -> 0 | I36: =IF(I$25=$D$38,"",) -> 0 | O36: =IF(O$25=$N$38,"",) -> 0 | P36: =IF(P$25=$N$38,"",) -> 0 | Q36: =IF(Q$25=$N$38,"",) -> 0 | R36: =IF(R$25=$N$38,"",) -> 0 | S36: =IF(S$25=$N$38,"",) -> 0
C38: current NLTP: | D38: =YEAR!C10 -> 2015-18 | G38: Cost escalation: | H38: applied | L38: =IF(H38="applied","(nominal)","(real)") -> (nominal)
C39: [UPDATED DATA]
F40: =IF($C$26='CBA benchmark'!$AJ$26,'performance indicators'!AM100,IF($C$26='CBA benchmark'!$AJ$27,'performance indicators'!AM300,IF($C$26='CBA benchmark'!$AJ$28,'performance indicators'!AM500,'performance indicators'!AM700))) ->  | G40: =IF($C$26='CBA benchmark'!$AJ$26,'performance indicators'!AN100,IF($C$26='CBA benchmark'!$AJ$27,'performance indicators'!AN300,IF($C$26='CBA benchmark'!$AJ$28,'performance indicators'!AN500,'performance indicators'!AN700))) ->  | H40: =IF($C$26='CBA benchmark'!$AJ$26,'performance indicators'!AO100,IF($C$26='CBA benchmark'!$AJ$27,'performance indicators'!AO300,IF($C$26='CBA benchmark'!$AJ$28,'performance indicators'!AO500,'performance indicators'!AO700))) ->  | I40: =IF($C$26='CBA benchmark'!$AJ$26,'performance indicators'!AP100,IF($C$26='CBA benchmark'!$AJ$27,'performance indicators'!AP300,IF($C$26='CBA benchmark'!$AJ$28,'performance indicators'!AP500,'performance indicators'!AP700))) ->  | P40: =IF($M$26='CBA benchmark'!$AJ$26,'performance indicators'!AM99,IF($M$26='CBA benchmark'!$AJ$27,'performance indicators'!AM299,IF($M$26='CBA benchmark'!$AJ$28,'performance indicators'!AM499,'performance indicators'!AM699))) -> 0.02093872583 | Q40: =IF($M$26='CBA benchmark'!$AJ$26,'performance indicators'!AN99,IF($M$26='CBA benchmark'!$AJ$27,'performance indicators'!AN299,IF($M$26='CBA benchmark'!$AJ$28,'performance indicators'!AN499,'performance indicators'!AN699))) -> 0.1375688545 | R40: =IF($M$26='CBA benchmark'!$AJ$26,'performance indicators'!AO99,IF($M$26='CBA benchmark'!$AJ$27,'performance indicators'!AO299,IF($M$26='CBA benchmark'!$AJ$28,'performance indicators'!AO499,'performance indicators'!AO699))) -> 0.2101711093 | S40: =IF($M$26='CBA benchmark'!$AJ$26,'performance indicators'!AP99,IF($M$26='CBA benchmark'!$AJ$27,'performance indicators'!AP299,IF($M$26='CBA benchmark'!$AJ$28,'performance indicators'!AP499,'performance indicators'!AP699))) -> 0.2029548158
F41: =IF($C$26='CBA benchmark'!$AJ$26,'performance indicators'!AM80,IF($C$26='CBA benchmark'!$AJ$27,'performance indicators'!AM280,IF($C$26='CBA benchmark'!$AJ$28,'performance indicators'!AM480,'performance indicators'!AM680))) ->  | G41: =IF($C$26='CBA benchmark'!$AJ$26,'performance indicators'!AN80,IF($C$26='CBA benchmark'!$AJ$27,'performance indicators'!AN280,IF($C$26='CBA benchmark'!$AJ$28,'performance indicators'!AN480,'performance indicators'!AN680))) ->  | H41: =IF($C$26='CBA benchmark'!$AJ$26,'performance indicators'!AO80,IF($C$26='CBA benchmark'!$AJ$27,'performance indicators'!AO280,IF($C$26='CBA benchmark'!$AJ$28,'performance indicators'!AO480,'performance indicators'!AO680))) ->  | I41: =IF($C$26='CBA benchmark'!$AJ$26,'performance indicators'!AP80,IF($C$26='CBA benchmark'!$AJ$27,'performance indicators'!AP280,IF($C$26='CBA benchmark'!$AJ$28,'performance indicators'!AP480,'performance indicators'!AP680))) ->  | P41: =IF($M$26='CBA benchmark'!$AJ$26,'performance indicators'!AM79,IF($M$26='CBA benchmark'!$AJ$27,'performance indicators'!AM279,IF($M$26='CBA benchmark'!$AJ$28,'performance indicators'!AM479,'performance indicators'!AM679))) -> -0.03610542431 | Q41: =IF($M$26='CBA benchmark'!$AJ$26,'performance indicators'!AN79,IF($M$26='CBA benchmark'!$AJ$27,'performance indicators'!AN279,IF($M$26='CBA benchmark'!$AJ$28,'performance indicators'!AN479,'performance indicators'!AN679))) -> 0.03142379763 | R41: =IF($M$26='CBA benchmark'!$AJ$26,'performance indicators'!AO79,IF($M$26='CBA benchmark'!$AJ$27,'performance indicators'!AO279,IF($M$26='CBA benchmark'!$AJ$28,'performance indicators'!AO479,'performance indicators'!AO679))) -> 0.08169087881 | S41: =IF($M$26='CBA benchmark'!$AJ$26,'performance indicators'!AP79,IF($M$26='CBA benchmark'!$AJ$27,'performance indicators'!AP279,IF($M$26='CBA benchmark'!$AJ$28,'performance indicators'!AP479,'performance indicators'!AP679))) -> 0.05605936522
F42: =IF($C$26='CBA benchmark'!$AJ$26,'performance indicators'!AM180,IF($C$26='CBA benchmark'!$AJ$27,'performance indicators'!AM380,IF($C$26='CBA benchmark'!$AJ$28,'performance indicators'!AM580,'performance indicators'!AM780))) ->  | G42: =IF($C$26='CBA benchmark'!$AJ$26,'performance indicators'!AN180,IF($C$26='CBA benchmark'!$AJ$27,'performance indicators'!AN380,IF($C$26='CBA benchmark'!$AJ$28,'performance indicators'!AN580,'performance indicators'!AN780))) ->  | H42: =IF($C$26='CBA benchmark'!$AJ$26,'performance indicators'!AO180,IF($C$26='CBA benchmark'!$AJ$27,'performance indicators'!AO380,IF($C$26='CBA benchmark'!$AJ$28,'performance indicators'!AO580,'performance indicators'!AO780))) ->  | I42: =IF($C$26='CBA benchmark'!$AJ$26,'performance indicators'!AP180,IF($C$26='CBA benchmark'!$AJ$27,'performance indicators'!AP380,IF($C$26='CBA benchmark'!$AJ$28,'performance indicators'!AP580,'performance indicators'!AP780))) ->  | P42: =IF($M$26='CBA benchmark'!$AJ$26,'performance indicators'!AM179,IF($M$26='CBA benchmark'!$AJ$27,'performance indicators'!AM379,IF($M$26='CBA benchmark'!$AJ$28,'performance indicators'!AM579,'performance indicators'!AM779))) -> 0.04999465404 | Q42: =IF($M$26='CBA benchmark'!$AJ$26,'performance indicators'!AN179,IF($M$26='CBA benchmark'!$AJ$27,'performance indicators'!AN379,IF($M$26='CBA benchmark'!$AJ$28,'performance indicators'!AN579,'performance indicators'!AN779))) -> 0.1100315321 | R42: =IF($M$26='CBA benchmark'!$AJ$26,'performance indicators'!AO179,IF($M$26='CBA benchmark'!$AJ$27,'performance indicators'!AO379,IF($M$26='CBA benchmark'!$AJ$28,'performance indicators'!AO579,'performance indicators'!AO779))) -> 0.05353873383 | S42: =IF($M$26='CBA benchmark'!$AJ$26,'performance indicators'!AP179,IF($M$26='CBA benchmark'!$AJ$27,'performance indicators'!AP379,IF($M$26='CBA benchmark'!$AJ$28,'performance indicators'!AP579,'performance indicators'!AP779))) -> 0.09838999467
C43: =H2 -> total network | D43: ='data "live" (TIO)'!I3 -> 2015/16 | E43: ='data "live" (TIO)'!J3 -> 2016/17 | F43: ='data "live" (TIO)'!K3 -> 2017/18 | G43: ='data "live" (TIO)'!L3 -> 2018/19 | H43: ='data "live" (TIO)'!M3 -> 2019/20 | I43: ='data "live" (TIO)'!N3 -> 2020/21 | M43: =S2 -> total network | N43: ='data "live" (TIO)'!I3 -> 2015/16 | O43: ='data "live" (TIO)'!J3 -> 2016/17 | P43: ='data "live" (TIO)'!K3 -> 2017/18 | Q43: ='data "live" (TIO)'!L3 -> 2018/19 | R43: ='data "live" (TIO)'!M3 -> 2019/20 | S43: ='data "live" (TIO)'!N3 -> 2020/21
D44: actual | E44: actual | F44: forecast | G44: forecast | H44: forecast | I44: forecast | N44: actual | O44: actual | P44: forecast | Q44: forecast | R44: forecast | S44: forecast
C45: service costs | M45: service costs
C46: Service cost -annual ($000s) | D46: ='scenario testing'!M11/1000 ->  | E46: ='scenario testing'!N11/1000 ->  | F46: ='scenario testing'!O11/1000 ->  | G46: ='scenario testing'!P11/1000 ->  | H46: ='scenario testing'!Q11/1000 ->  | I46: ='scenario testing'!R11/1000 ->  | M46: Service cost -annual ($000s) | N46: ='data "live" (TIO)'!I601/1000 -> 376676.744 | O46: ='data "live" (TIO)'!J601/1000 -> 408450.338 | P46: ='data "live" (TIO)'!K601/1000 -> 492945.6854 | Q46: ='data "live" (TIO)'!L601/1000 -> 498448.124 | R46: ='data "live" (TIO)'!M601/1000 -> 497445.732 | S46: ='data "live" (TIO)'!N601/1000 -> 503144.25
C47: Service cost (year on year % change) | E47: =E46/D46-1 ->  | F47: =F46/E46-1 ->  | H47: =H46/G46-1 ->  | I47: =I46/H46-1 ->  | M47: Service cost (year on year % change) | O47: =O46/N46-1 -> 0.08435241757 | P47: =P46/O46-1 -> 0.2068681051 | Q47: =Q46/P46-1 -> 0.01116236276 | R47: =R46/Q46-1 -> -0.002011025725 | S47: =S46/R46-1 -> 0.01145555713
C48: Service cost (six year % change) | E48: =E46/$D46-1 ->  | F48: =F46/$D46-1 ->  | M48: Service cost (six year % change) | O48: =O46/$N46-1 -> 0.08435241757 | P48: =P46/$N46-1 -> 0.3086703474 | Q48: 0.3232782006 | R48: 0.3206170541 | S48: 0.3357454582
C49: Service cost -NLTP 3yr period ($000s) | E49: =SUM(D46:F46) ->  | H49: =SUM(G46:I48) ->  | M49: Service cost -NLTP 3yr period ($000s) | O49: =SUM(N46:P48) -> 1278073.452 | R49: =SUM(Q46:S48) -> 1499039.106
C50: Service cost (average programme % change) | H50: =H49/E49-1 ->  | M50: Service cost (average programme % change) | R50: =R49/O49-1 -> 0.1728896366
C51: service kilometres | M51: service kilometres
C52: Service kms -annual (000s) | D52: ='scenario testing'!M10/1000 ->  | E52: ='scenario testing'!N10/1000 ->  | F52: ='scenario testing'!O10/1000 ->  | G52: ='scenario testing'!P10/1000 ->  | H52: ='scenario testing'!Q10/1000 ->  | I52: ='scenario testing'!R10/1000 ->  | M52: Service kms -annual (000s) | N52: ='data "live" (TIO)'!I541/1000 -> 109214.499 | O52: ='data "live" (TIO)'!J541/1000 -> 111439.794 | P52: ='data "live" (TIO)'!K541/1000 -> 117005.3607 | Q52: ='data "live" (TIO)'!L541/1000 -> 122637.524 | R52: ='data "live" (TIO)'!M541/1000 -> 123964.139 | S52: ='data "live" (TIO)'!N541/1000 -> 125676.1678
C53: Service kms (year on year % change) | E53: =E52/D52-1 ->  | F53: =F52/E52-1 ->  | G53: =G52/F52-1 ->  | H53: =H52/G52-1 ->  | I53: =I52/H52-1 ->  | M53: Service kms (year on year % change) | O53: =O52/N52-1 -> 0.020375454 | P53: =P52/O52-1 -> 0.04994236355 | Q53: =Q52/P52-1 -> 0.04813594199 | R53: =R52/Q52-1 -> 0.01081736673 | S53: =S52/R52-1 -> 0.01381067769
C54: Service kms (six year % change) | E54: =E52/$D52-1 ->  | F54: =F52/$D52-1 ->  | G54: =G52/$D52-1 ->  | H54: =H52/$D52-1 ->  | I54: =I52/$D52-1 ->  | M54: Service kms (six year % change) | O54: =O52/$N52-1 -> 0.020375454 | P54: =P52/$N52-1 -> 0.07133541588 | Q54: 0.1229051553 | R54: 0.1350520322 | S54: 0.15072787
C55: Service kms -NLTP 3yr period (000s) | E55: =SUM(D52:F52) ->  | H55: =SUM(G52:I54) ->  | M55: Service kms -NLTP 3yr period (000s) | O55: =SUM(N52:P54) -> 337659.8157 | R55: =SUM(Q52:S54) -> 372278.3122
C56: Service km (average programme % change) | H56: =H55/E55-1 ->  | M56: Service km (average programme % change) | R56: =R55/O55-1 -> 0.1025247746
C57: passenger kilometres | M57: passenger kilometres
C58: Passenger kms -annual (000s) | D58: ='scenario testing'!M9/1000 ->  | E58: ='scenario testing'!N9/1000 ->  | F58: ='scenario testing'!O9/1000 ->  | G58: ='scenario testing'!P9/1000 ->  | H58: ='scenario testing'!Q9/1000 ->  | I58: ='scenario testing'!R9/1000 ->  | M58: Passenger kms -annual (000s) | N58: ='data "live" (TIO)'!I521/1000 -> 1469329.184 | O58: ='data "live" (TIO)'!J521/1000 -> 1505759.076 | P58: ='data "live" (TIO)'!K521/1000 -> 1561734.28 | Q58: ='data "live" (TIO)'!L521/1000 -> 1638411.326 | R58: ='data "live" (TIO)'!M521/1000 -> 1688697.715 | S58: ='data "live" (TIO)'!N521/1000 -> 1746802.175
C59: Passenger kms (year on year % change) | E59: =E58/D58-1 ->  | F59: =F58/E58-1 ->  | G59: =G58/F58-1 ->  | H59: =H58/G58-1 ->  | I59: =I58/H58-1 ->  | M59: Passenger kms (year on year % change) | O59: =O58/N58-1 -> 0.02479355369 | P59: =P58/O58-1 -> 0.03717407738 | Q59: =Q58/P58-1 -> 0.04909737004 | R59: =R58/Q58-1 -> 0.03069216346 | S59: =S58/R58-1 -> 0.03440785148
C60: Passenger kms (six year % change) | E60: =E58/$D58-1 ->  | F60: =F58/$D58-1 ->  | G60: =G58/$D58-1 ->  | H60: =H58/$D58-1 ->  | I60: =I58/$D58-1 ->  | M60: Passenger kms (six year % change) | O60: =O58/$N58-1 -> 0.02479355369 | P60: =P58/$N58-1 -> 0.06288930856 | Q60: 0.1150743783 | R60: 0.1492984233 | S60: 0.1888433128
C61: Passenger kms NLTP 3yr period (000s) | E61: =SUM(D58:F60) ->  | H61: =SUM(G58:I60) ->  | M61: Passenger kms NLTP 3yr period (000s) | O61: =SUM(N58:P60) -> 4536822.69 | R61: =SUM(Q58:S60) -> 5073911.783
C62: Passenger km (average programme % change) | H62: =H61/E61-1 ->  | M62: Passenger km (average programme % change) | R62: =R61/O61-1 -> 0.1183844134
C63: fare revenue | M63: fare revenue
C64: Fare revenue -annual (000s) | D64: ='scenario testing'!M13/1000 ->  | E64: ='scenario testing'!N13/1000 ->  | F64: ='scenario testing'!O13/1000 ->  | G64: ='scenario testing'!P13/1000 ->  | H64: ='scenario testing'!Q13/1000 ->  | I64: ='scenario testing'!R13/1000 ->  | M64: Fare revenue -annual (000s) | N64: ='data "live" (TIO)'!I581/1000 -> 371884.026 | O64: ='data "live" (TIO)'!J581/1000 -> 369032.378 | P64: ='data "live" (TIO)'!K581/1000 -> 375904.1413 | Q64: ='data "live" (TIO)'!L581/1000 -> 377134.0537 | R64: ='data "live" (TIO)'!M581/1000 -> 395010.3008 | S64: ='data "live" (TIO)'!N581/1000 -> 413323.1611
C65: Fare revenue (year on year % change) | E65: =E64/D64-1 ->  | F65: =F64/E64-1 ->  | G65: =G64/F64-1 ->  | H65: =H64/G64-1 ->  | I65: =I64/H64-1 ->  | M65: Fare revenue (year on year % change) | O65: =O64/N64-1 -> -0.007668111026 | P65: =P64/O64-1 -> 0.01862103089 | Q65: =Q64/P64-1 -> 0.003271877647 | R65: =R64/Q64-1 -> 0.04740024645 | S65: =S64/R64-1 -> 0.04636046276
C66: Fare revenue (six year % change) | E66: =E64/$D64-1 ->  | F66: =F64/$D64-1 ->  | G66: =G64/$D64-1 ->  | H66: =H64/$D64-1 ->  | I66: =I64/$D64-1 ->  | M66: Fare revenue (six year % change) | O66: =O64/$N64-1 -> -0.007668111026 | P66: =P64/$N64-1 -> 0.01081013173 | Q66: 0.01411737881 | R66: 0.06218679249 | S66: 0.1114302637
C67: Fare revenue NLTP 3yr period ($000s) | E67: =SUM(D64:F66) ->  | H67: =SUM(G64:I66) ->  | M67: Fare revenue NLTP 3yr period ($000s) | O67: =SUM(N64:P66) -> 1116820.559 | R67: =SUM(Q64:S66) -> 1185467.8
C68: Fare revenue (average programme % change) | H68: =H67/E67-1 ->  | M68: Fare revenue (average programme % change) | R68: =R67/O67-1 -> 0.06146667009
C71: [FIRM BID DATA (OLD)]
C72: =C43 -> total network | D72: =D43 -> 2015/16 | E72: =E43 -> 2016/17 | F72: =F43 -> 2017/18 | G72: 2018/19 | H72: 2019/20 | I72: =I43 -> 2020/21
D73: actual | E73: actual | F73: forecast | G73: forecast | H73: forecast | I73: forecast
C74: service costs
C75: Service cost ($000s) | D75: =D46 ->  | E75: =E46 ->  | F75: =F46 ->  | G75: =G118 -> 58339.375 | H75: =H118 -> 56247.027 | I75: =I118 -> 57143.282
C76: Service cost (six year % change) | E76: =E75/$D75-1 ->  | F76: =F75/$D75-1 ->  | G76: =G75/$D75-1 ->  | H76: =H75/$D75-1 ->  | I76: =I75/$D75-1 -> 
C77: Service cost ($000s) | F77: =SUM(D75:F76) ->  | I77: =SUM(G75:I76) -> 
C78: Service cost (average programme % change) | I78: =I77/F77-1 -> 
C79: service kilometres
C80: Service kms (000s) | D80: =D52 ->  | E80: =E52 -> 
C81: Service kms (six year % change) | E81: =E80/$D80-1 ->  | F81: =F80/$D80-1 ->  | G81: =G80/$D80-1 ->  | H81: =H80/$D80-1 ->  | I81: =I80/$D80-1 -> 
C82: Service kms(000s) | F82: =SUM(D80:F81) ->  | I82: =SUM(G80:I81) -> 
C83: Service km (average programme % change) | I83: =I82/F82-1 -> 
C84: passenger kilometres
C85: Passenger kms (000s) | D85: =D58 ->  | E85: =E58 -> 
C86: Passenger kms (six year % change) | E86: =E85/$D85-1 ->  | F86: =F85/$D85-1 ->  | G86: =G85/$D85-1 ->  | H86: =H85/$D85-1 ->  | I86: =I85/$D85-1 -> 
C87: Passenger kms(000s) | F87: =SUM(D85:F86) ->  | I87: =SUM(G85:I86) -> 
C88: Passenger km (average programme % change) | I88: =I87/F87-1 -> 
C89: fare revenue
C90: Fare revenue (000s) | D90: =D64 ->  | E90: =E64 -> 
C91: Fare revenue (six year % change) | E91: =E90/$D90-1 ->  | F91: =F90/$D90-1 ->  | G91: =G90/$D90-1 ->  | H91: =H90/$D90-1 ->  | I91: =I90/$D90-1 -> 
C92: Fare revenue(000s) | F92: =SUM(D90:F91) ->  | I92: =SUM(G90:I91) -> 
C93: Fare revenue (average programme % change) | I93: =I92/F92-1 -> 
C96: OLD $s entered
C97: Bus expenditure | G97: 56036582 | H97: 57262440 | I97: 66131286
C98: Rail expenditure | G98: 58339375 | H98: 56247027 | I98: 57143282
C99: WC 514 | G99: 15209428 | H99: 14177879 | I99: 13781458
C100: WC 524 | G100: 7428006 | H100: 16877368 | I100: 16723844
C101: TM | G101: 2731844 | H101: 2804426 | I101: 2869637
C103: NEW $s entered
C104: Bus expenditure | G104: 46077832 | H104: 53110893 | I104: 56576443
C105: Rail expenditure | G105: 61503062 | H105: 53816487 | I105: 50643281
C106: WC 514 | G106: 12267247 | H106: 13235744 | I106: 13673961
C107: WC 524 | G107: 10391075 | H107: 9932518 | I107: 9610202
C108: TM | G108: 2874482 | H108: 3007130 | I108: 2884103
C110: VARIANCE $s entered
C111: Bus expenditure | G111: =G104-G97 -> -9958750 | H111: -4151547 | I111: -9554843
C112: Rail expenditure | G112: 3163687 | H112: -2430540 | I112: -6500001
C113: WC 514 | G113: =G106-G99 -> -2942181 | H113: -942135 | I113: -107497
C114: WC 524 | G114: =G107-G100 -> 2963069 | H114: -6944850 | I114: -7113642
C115: TM | G115: =G108-G101 -> 142638 | H115: 202704 | I115: 14466
C118: =H2 -> total network | D118: OLD DATA | G118: =IF(H2="bus network",G97/1000,G98/1000) -> 58339.375 | H118: =IF(I2="bus network",H97/1000,H98/1000) -> 56247.027 | I118: =IF(J2="bus network",I97/1000,I98/1000) -> 57143.282

Sheet BL benchmark (hidden)
AA2: SUMMARY
B3: CAR COMPARISON | F3: =K3/1.02/1.02/1.02 -> 0.7416783515 | G3: ='performance indicators'!#REF! ->  | K3: =((2422.45+(10*46*5))/5000)/1.2 -> 0.787075 | L3: ='performance indicators'!Z108 -> 8.524617287 | P3: =K3*1.02*1.02*1.02 -> 0.8352502866 | Q3: ='performance indicators'!Z68 -> 0.4027078857 | U3: =P3*1.02*1.02*1.02 -> 0.8863742861 | V3: ='performance indicators'!Z88 -> 3.432930604 | Z3: RATING | AA3: TREND | AC3: COMMENTS | AJ3: 2009-12 | AK3: 2009-12 performance
AJ4: 2012-15 | AK4: 2012-15 performance
B5: BASELINE TARGET | F5: HIGH | G5: 5 | H5: >25% under | I5: < | J5: =F3*0.75 -> 0.5562587636 | K5: HIGH | L5: 0.5 | M5: >25% under | N5: < | O5: =K3*0.75 -> 0.59030625 | P5: HIGH | Q5: 10 | R5: >25% under | S5: < | T5: =P3*0.75 -> 0.626437715 | U5: HIGH | V5: 10 | W5: >25% under | X5: < | Y5: =U3*0.75 -> 0.6647807146 | Z5: HIGH | AA5: GOOD | AJ5: 2009-12 | AK5: 2009-12 performance
F6: MEDIUM | G6: 3 | H6: 25% under to 25% over | K6: MEDIUM | L6: 0.4 | M6: 25% under to 25% over | P6: MEDIUM | Q6: 7 | R6: 25% under to 25% over | U6: MEDIUM | V6: 7 | W6: 25% under to 25% over | Z6: MEDIUM | AA6: FAIR | AJ6: 2012-15 | AK6: 2012-15 performance
F7: LOW | G7: 1 | H7: 25% over to 50% over | K7: LOW | L7: 0.25 | M7: 25% over to 50% over | P7: LOW | Q7: 3 | R7: 25% over to 50% over | U7: LOW | V7: 3 | W7: 25% over to 50% over | Z7: LOW | AA7: AMBER | AG7: improvements | AJ7: 2015-18 | AK7: 2015-18 performance
D8: ='CBA benchmark'!O2 -> NET | F8: INEFFIECIENT | G8: 1 | H8: >50% over | I8: > | J8: =F3*1.25 -> 0.9270979393 | K8: INEFFIECIENT | L8: 0.25 | M8: >50% over | N8: > | O8: =K3*1.25 -> 0.98384375 | P8: INEFFIECIENT | Q8: 3 | R8: >50% over | S8: > | T8: =P3*1.25 -> 1.044062858 | U8: INEFFIECIENT | V8: 3 | W8: >50% over | X8: > | Y8: =U3*1.25 -> 1.107967858 | Z8: INEFFIECIENT | AA8: POOR | AJ8: 2018-21 | AK8: 2018-21 performance
AJ9: 2021-24 | AK9: 2021-24 performance
B11: LEVEL OF SERVICE COMPARISON [AVERAGE COST PER PERSON PER KM] | F11: 2009-12 ACTUAL performance | K11: 2012-15 ACTUAL performance | M11: % variance (previous 3 years) | P11: 2015-18 FORECAST performance | R11: % variance (previous 3 years) | U11: 2018-21 FORECAST performance | W11: % variance (previous 3 years) | AG11: use: | AM11: average distance travelled
AM12: average passengers on trip
B13: ='CBA benchmark'!B12 -> 0 | C13: ='CBA benchmark'!C15 -> total network | D13: ='CBA benchmark'!E15 -> service costs only | F13: ='performance indicators'!S1003 ->  | G13: ='performance indicators'!#REF! ->  | K13: ='performance indicators'!T1003 ->  | L13: ='performance indicators'!Z118 -> 4.057181765 | M13: =K13/F13-1 ->  | P13: ='performance indicators'!U1003 ->  | Q13: ='performance indicators'!Z78 -> 0.6506916154 | R13: =P13/K13-1 ->  | U13: ='performance indicators'!V1003 ->  | V13: ='performance indicators'!Z98 -> 2.639974157 | W13: =U13/P13-1 ->  | AG13: average passengers on trip | AJ13: GROSS
B14: R/stock OUT | C14: =IF(C13=AL23,"> BUS: 'scenario test'",IF(C13=AL24,"> FERRY: 'scenario test'",IF(C13=AL25,"> RAIL: 'scenario test'","> NETWORK: 'scenario test'"))) -> > NETWORK: 'scenario test' | F14: ='performance indicators'!S1005 ->  | G14: ='performance indicators'!Z825 ->  | K14: ='performance indicators'!T1005 ->  | L14: ='performance indicators'!Z945 ->  | M14: =K14/F14-1 ->  | P14: ='performance indicators'!U1005 ->  | Q14: ='performance indicators'!Z905 ->  | R14: =P14/K14-1 ->  | U14: ='performance indicators'!V1005 ->  | V14: ='performance indicators'!Z925 ->  | W14: =U14/P14-1 ->  | AJ14: NET
B16: Total network: | AN16: 2009-12 | AP16: 2012-15
AE17: Other
B18: Northland | F18: ='performance indicators'!S784 -> 0.1634137265 | G18: ='performance indicators'!Z4 -> 3.409829751 | K18: ='performance indicators'!T784 -> 0.1549315789 | L18: ='performance indicators'!Z124 -> 0.3698236813 | M18: =K18/F18-1 -> -0.05190596758 | P18: ='performance indicators'!U784 -> 0.2519525937 | Q18: ='performance indicators'!Z84 -> 2.838357698 | R18: =P18/K18-1 -> 0.6262184603 | U18: ='performance indicators'!V784 -> 0.2827344718 | V18: ='performance indicators'!Z104 -> 11.58249773 | W18: =U18/P18-1 -> 0.122173293 | AN18: HIGH | AO18: N/A | AP18: HIGH | AQ18: FAIR
B19: Auckland | F19: ='performance indicators'!S785 -> 0.3266274528 | G19: ='performance indicators'!Z605 -> 6.583817489 | K19: ='performance indicators'!T785 -> 0.3054516722 | L19: ='performance indicators'!Z725 -> 0.4603312118 | M19: =K19/F19-1 -> -0.06483160093 | P19: ='performance indicators'!U785 -> 0.3140376851 | Q19: ='performance indicators'!Z685 -> 4.537794681 | R19: 0.02810923539 | U19: ='performance indicators'!V785 -> 0.328428647 | V19: ='performance indicators'!Z705 -> 14.37159519 | W19: 0.04582558911 | AJ19: Northland | AK19: Other | AL19: service costs only | AN19: HIGH | AO19: N/A | AP19: HIGH | AQ19: FAIR
B20: Waikato | F20: ='performance indicators'!S786 -> 0.4085452658 | G20: ='performance indicators'!Z6 -> 3.982160858 | K20: ='performance indicators'!T786 -> 0.3572360632 | L20: ='performance indicators'!Z126 -> 0.3279059664 | M20: -0.1255900066 | P20: ='performance indicators'!U786 -> 0.3740311835 | Q20: ='performance indicators'!Z86 -> 2.511743053 | R20: 0.04701406748 | U20: ='performance indicators'!V786 -> 0.4382404232 | V20: ='performance indicators'!Z106 -> 6.730192944 | W20: 0.1716681457 | AJ20: Auckland | AK20: =AJ20 -> Auckland | AL20: total operational costs | AN20: LOW | AO20: N/A | AP20: MEDIUM | AQ20: GOOD
B21: Bay of Plenty | F21: ='performance indicators'!S787 -> 0.377447769 | G21: ='performance indicators'!Z7 -> 3.747973726 | K21: ='performance indicators'!T787 -> 0.3673591472 | L21: ='performance indicators'!Z127 -> 0.3143049137 | M21: -0.02672852433 | P21: ='performance indicators'!U787 -> 0.4147093149 | Q21: ='performance indicators'!Z87 -> 1.684380722 | R21: 0.1288933953 | U21: ='performance indicators'!V787 -> 0.4400991545 | V21: ='performance indicators'!Z107 -> 4.060062837 | W21: 0.0612232198 | AJ21: Waikato | AK21: Other | AN21: LOW | AO21: N/A | AP21: MEDIUM | AQ21: GOOD
B22: Gisborne | F22: ='performance indicators'!S788 -> 0.2785025523 | G22: ='performance indicators'!Z8 -> 4.879635349 | K22: ='performance indicators'!T788 -> 0.3109371534 | L22: ='performance indicators'!Z128 -> 0.3049069295 | M22: 0.1164606959 | P22: ='performance indicators'!U788 -> 0.4026401903 | Q22: ='performance indicators'!Z88 -> 3.432930604 | R22: 0.2949246684 | U22: ='performance indicators'!V788 -> 0.5068595041 | V22: ='performance indicators'!Z108 -> 8.524617287 | W22: 0.2588398188 | AJ22: Bay of Plenty | AK22: Other | AN22: HIGH | AO22: N/A | AP22: HIGH | AQ22: AMBER
B23: Hawkes Bay | F23: ='performance indicators'!S789 -> 0.5441742774 | G23: ='performance indicators'!Z9 -> 4.418421883 | K23: ='performance indicators'!T789 -> 0.4113193183 | L23: ='performance indicators'!Z129 -> 0.4269505355 | M23: -0.2441404612 | P23: ='performance indicators'!U789 -> 0.2787060916 | Q23: ='performance indicators'!Z89 -> 2.15795092 | R23: -0.3224094295 | U23: ='performance indicators'!V789 -> 0.2932202064 | V23: ='performance indicators'!Z109 -> 7.769012577 | W23: 0.05207677643 | AJ23: Gisborne | AL23: bus network | AM23: R/stock IN | AN23: LOW | AO23: N/A | AP23: LOW | AQ23: FAIR
B24: Taranaki | F24: ='performance indicators'!S790 -> 0.2863493535 | G24: ='performance indicators'!Z10 -> 4.485726397 | K24: ='performance indicators'!T790 -> 0.3198012622 | L24: ='performance indicators'!Z130 -> 0.3900143406 | M24: 0.1168220161 | P24: ='performance indicators'!U790 -> 0.2709360863 | Q24: ='performance indicators'!Z90 -> 2.289342001 | R24: -0.1527985714 | U24: ='performance indicators'!V790 -> 0.3041839567 | V24: ='performance indicators'!Z110 -> 8.469467398 | W24: 0.1227148103 | AJ24: Hawkes Bay | AK24: Other | AL24: ferry network | AM24: R/stock OUT | AN24: MEDIUM | AO24: N/A | AP24: MEDIUM | AQ24: GOOD
B25: Manawatu-Wanganui | F25: ='performance indicators'!S791 -> 0.197251964 | G25: ='performance indicators'!Z11 -> 5.812876607 | K25: ='performance indicators'!T791 -> 0.1822641755 | L25: ='performance indicators'!Z131 -> 0.3733226879 | M25: -0.07598296192 | P25: ='performance indicators'!U791 -> 0.2136047923 | Q25: ='performance indicators'!Z91 -> 1.924118019 | R25: 0.171951601 | U25: ='performance indicators'!V791 -> 0.2658456009 | V25: ='performance indicators'!Z111 -> 9.142488449 | W25: 0.2445675868 | AJ25: Taranaki | AK25: Other | AL25: rail network | AN25: MEDIUM | AO25: N/A | AP25: HIGH | AQ25: GOOD
B26: Wellington | F26: ='performance indicators'!S792 -> 0.1810763256 | G26: ='performance indicators'!Z612 -> 8.550834135 | K26: ='performance indicators'!T792 -> 0.1757432462 | L26: ='performance indicators'!Z732 -> 0.5249475498 | M26: -0.02945210705 | P26: ='performance indicators'!U792 -> 0.2063437526 | Q26: ='performance indicators'!Z692 -> 4.870842919 | R26: 0.1741205256 | U26: ='performance indicators'!V792 -> 0.2081869567 | V26: ='performance indicators'!Z712 -> 23.53827185 | W26: 0.008932686732 | AJ26: Manawatu-Wanganui | AK26: Other | AL26: total network | AN26: HIGH | AO26: N/A | AP26: HIGH | AQ26: FAIR
B27: Marlborough | F27: ='performance indicators'!S793 -> 0.5306119514 | G27: ='performance indicators'!Z13 -> 3.926492193 | K27: ='performance indicators'!T793 -> 0.4580503481 | L27: ='performance indicators'!Z133 -> 0.3617277654 | M27: -0.1367507897 | P27: ='performance indicators'!U793 -> 0.5104963326 | Q27: ='performance indicators'!Z93 -> 1.745344894 | R27: 0.1144982964 | U27: ='performance indicators'!V793 -> 0.8417145077 | V27: ='performance indicators'!Z113 -> 3.507628923 | W27: 0.6488159738 | AJ27: Wellington | AK27: =AJ27 -> Wellington | AN27: MEDIUM | AO27: N/A | AP27: MEDIUM | AQ27: GOOD
B28: Nelson | F28: ='performance indicators'!S794 -> 0.5334533697 | G28: ='performance indicators'!Z14 -> 8.996937854 | K28: ='performance indicators'!T794 -> 0.1897080343 | L28: ='performance indicators'!Z134 -> 0.6337697008 | M28: -0.644377475 | P28: ='performance indicators'!U794 -> 0.2128700439 | Q28: ='performance indicators'!Z94 -> 1.37656727 | R28: 0.1220929291 | U28: ='performance indicators'!V794 -> 0.2870902609 | V28: ='performance indicators'!Z114 -> 6.437027617 | W28: 0.3486644512 | AJ28: Marlborough | AK28: Other | AN28: HIGH | AO28: N/A | AP28: HIGH | AQ28: GOOD
B29: Canterbury | F29: ='performance indicators'!S795 -> 0.2718871319 | G29: ='performance indicators'!Z615 -> 6.906472387 | K29: ='performance indicators'!T795 -> 0.2749592138 | L29: ='performance indicators'!Z135 -> 0.4140435692 | M29: 0.01129910754 | P29: ='performance indicators'!U795 -> 0.2751281577 | Q29: ='performance indicators'!Z695 -> 2.13898994 | R29: 0.0006144323755 | U29: ='performance indicators'!V795 -> 0.3056840885 | V29: ='performance indicators'!Z715 -> 7.764856677 | W29: 0.1110607184 | AJ29: Nelson | AK29: Other | AL29: Peak | AN29: MEDIUM | AO29: N/A | AP29: MEDIUM | AQ29: AMBER
B30: West Coast | F30: ='performance indicators'!S796 -> 0.6605142472 | G30: ='performance indicators'!Z16 -> 3.866889259 | K30: ='performance indicators'!T796 -> 0.6339214972 | L30: ='performance indicators'!Z136 -> 0.7359690914 | M30: -0.04026067576 | R30: =IF(P30=0,"",P30/K30-1) ->  | W30: =IF(U30=0,"",U30/P30-1) ->  | AE30: Auckland | AJ30: Canterbury | AK30: =AJ30 -> Canterbury | AL30: Off-peak | AN30: HIGH | AO30: N/A | AP30: MEDIUM | AQ30: POOR
B31: Otago | F31: ='performance indicators'!S797 -> 0.3614470207 | G31: ='performance indicators'!Z17 -> 4.583780202 | K31: ='performance indicators'!T797 -> 0.3575591204 | L31: ='performance indicators'!Z137 -> 0.4644978301 | M31: -0.0107564873 | P31: ='performance indicators'!U797 -> 0.5137441938 | Q31: ='performance indicators'!Z97 -> 1.809448979 | R31: =P31/K31-1 -> 0.4368090883 | U31: ='performance indicators'!V797 -> 0.3913610227 | V31: ='performance indicators'!Z117 -> 3.606233652 | W31: -0.2382181104 | AE31: Wellington | AJ31: West Coast | AK31: Other | AL31: peak/ off-peak | AN31: MEDIUM | AO31: N/A | AP31: HIGH | AQ31: AMBER
B32: Southland | F32: ='performance indicators'!S798 -> 1.185439104 | G32: ='performance indicators'!Z18 -> 3.646910838 | K32: ='performance indicators'!T798 -> 0.8509489778 | L32: ='performance indicators'!Z138 -> 0.298353244 | M32: -0.2821655916 | P32: ='performance indicators'!U798 -> 0.6505925101 | Q32: ='performance indicators'!Z98 -> 2.639974157 | R32: =P32/K32-1 -> -0.2354506239 | U32: ='performance indicators'!V798 -> 0.8426866859 | V32: ='performance indicators'!Z118 -> 4.057181765 | W32: 0.2952603554 | AJ32: Otago | AK32: Other | AL32: =IF(B13=B19,1,IF(B13=B26,1,0)) -> 0 | AN32: LOW | AO32: N/A | AP32: LOW | AQ32: AMBER
B33: National (total network) | F33: ='performance indicators'!S799 -> 0.2730654931 | G33: ='performance indicators'!Z619 -> 6.831332337 | K33: ='performance indicators'!T799 -> 0.2632648841 | L33: ='performance indicators'!Z739 -> 0.4663341533 | M33: -0.03589105623 | P33: ='performance indicators'!U799 -> 0.2809810041 | Q33: ='performance indicators'!Z699 -> 3.785091744 | R33: =P33/K33-1 -> 0.06729389691 | U33: ='performance indicators'!V799 -> 0.2955058377 | V33: ='performance indicators'!Z719 -> 13.43608125 | W33: 0.05169329377 | AJ33: Southland | AK33: Other | AL33: =IF(C13=AL26,1,0) -> 1 | AM33: base
AL34: =SUM(AL32:AL33) -> 1 | AM34: improvements
B35: Sub network: | AK35: =VLOOKUP($B$13,$AJ19:$AK34,2,FALSE) ->  | AL35: =IF(B13=AJ20,IF(C13=AL23,11,IF(B13=AJ27,IF(C13=AL23,12,IF(B13=AJ20,IF(C13=AL25,31,IF(B13=AJ27,IF(C13=AL25,32,0)))))))) -> FALSE
AE36: Other
B37: Auckland (bus) | F37: ='performance indicators'!S185 -> 0.3173999403 | G37: ='performance indicators'!Z5 -> 7.167076091 | K37: ='performance indicators'!T185 -> 0.2644668135 | L37: ='performance indicators'!Z125 -> 0.4590301044 | M37: =K37/F37-1 -> -0.1667710672 | P37: ='performance indicators'!U185 -> 0.3337974905 | Q37: ='performance indicators'!Z85 -> 3.094716608 | R37: =P37/K37-1 -> 0.2621526536 | U37: ='performance indicators'!V185 -> 0.4077405514 | V37: ='performance indicators'!Z105 -> 9.22215472 | W37: =U37/P37-1 -> 0.2215207214 | Z37: =IF($B$11=$AJ$5,AN37,IF($B$11=$AJ$6,AP37,IF($B$11=$AJ$7,"",""))) ->  | AA37: =IF($B$11=$AJ$5,AO37,IF($B$11=$AJ$6,AQ37,IF($B$11=$AJ$7,"",""))) ->  | AL37: =IF(B13=AJ20,IF(C13=AL24,21,AL35)) -> FALSE | AN37: HIGH | AO37: N/A | AP37: HIGH | AQ37: GOOD
B38: Wellington (bus) | F38: ='performance indicators'!S192 -> 0.2621241058 | G38: ='performance indicators'!Z6 -> 3.982160858 | K38: ='performance indicators'!T192 -> 0.265961232 | L38: ='performance indicators'!Z126 -> 0.3279059664 | M38: 0.01463858571 | P38: ='performance indicators'!U192 -> 0.305200902 | Q38: ='performance indicators'!Z86 -> 2.511743053 | R38: 0.1475390592 | U38: ='performance indicators'!V192 -> 0.2655099477 | V38: ='performance indicators'!Z112 -> 10.29670473 | W38: -0.1300486139 | Z38: =IF($B$11=$AJ$5,AN38,IF($B$11=$AJ$6,AP38,IF($B$11=$AJ$7,"",""))) ->  | AA38: =IF($B$11=$AJ$5,AO38,IF($B$11=$AJ$6,AQ38,IF($B$11=$AJ$7,"",""))) ->  | AN38: HIGH | AO38: N/A | AP38: HIGH | AQ38: GOOD
B39: National (bus network) | F39: ='performance indicators'!S199 -> 0.303283377 | G39: ='performance indicators'!Z7 -> 3.747973726 | K39: ='performance indicators'!T199 -> 0.2744062318 | L39: ='performance indicators'!Z127 -> 0.3143049137 | M39: -0.09521506089 | P39: ='performance indicators'!U199 -> 0.3233840515 | Q39: ='performance indicators'!Z87 -> 1.684380722 | R39: 0.1784865431 | U39: ='performance indicators'!V199 -> 0.3636887428 | V39: ='performance indicators'!Z119 -> 8.433579579 | W39: 0.124634134
B41: Auckland (passenger rail) | F41: ='performance indicators'!S585 -> 0.4314884494 | G41: ='performance indicators'!Z405 -> 6.009024003 | K41: ='performance indicators'!T585 -> 0.5001066944 | L41: ='performance indicators'!Z525 -> 0.3614508903 | M41: 0.1590268411 | P41: ='performance indicators'!U585 -> 0.3406343997 | Q41: ='performance indicators'!Z485 -> 19.66587233 | R41: -0.3188765447 | U41: ='performance indicators'!V585 -> 0.2769965605 | V41: ='performance indicators'!Z505 -> 56.60900439 | W41: -0.1868215286 | Z41: =IF($B$11=$AJ$5,AN41,IF($B$11=$AJ$6,AP41,IF($B$11=$AJ$7,"",""))) ->  | AA41: =IF($B$11=$AJ$5,AO41,IF($B$11=$AJ$6,AQ41,IF($B$11=$AJ$7,"",""))) ->  | AN41: MEDIUM | AO41: N/A | AP41: MEDIUM | AQ41: GOOD
B42: Wellington (passenger rail) | F42: ='performance indicators'!S592 -> 0.1284500763 | G42: ='performance indicators'!Z412 -> 9.09346392 | K42: ='performance indicators'!T592 -> 0.1213666386 | L42: ='performance indicators'!Z532 -> 0.5196295042 | M42: -0.05514545355 | P42: ='performance indicators'!U592 -> 0.1513053124 | Q42: ='performance indicators'!Z492 -> 13.38641324 | R42: 0.2466796001 | U42: ='performance indicators'!V592 -> 0.1774264571 | V42: ='performance indicators'!Z512 -> 88.48857603 | W42: 0.1726386487 | Z42: =IF($B$11=$AJ$5,AN42,IF($B$11=$AJ$6,AP42,IF($B$11=$AJ$7,"",""))) ->  | AA42: =IF($B$11=$AJ$5,AO42,IF($B$11=$AJ$6,AQ42,IF($B$11=$AJ$7,"",""))) ->  | AN42: HIGH | AO42: N/A | AP42: HIGH | AQ42: AMBER
B44: Auckland (passenger ferry) | F44: ='performance indicators'!S385 -> 0.1194333662 | G44: ='performance indicators'!Z205 -> 11.48718869 | K44: ='performance indicators'!T385 -> 0.1161627344 | L44: ='performance indicators'!Z325 -> 0.7848603419 | M44: -0.02738457365 | P44: ='performance indicators'!U385 -> 0.1116450759 | Q44: ='performance indicators'!Z285 -> 6.403511483 | R44: -0.0388907726 | U44: ='performance indicators'!V385 -> 0.1111221947 | V44: ='performance indicators'!Z305 -> 57.3171577 | W44: -0.004683423785 | Z44: =IF($B$11=$AJ$5,AN44,IF($B$11=$AJ$6,AP44,IF($B$11=$AJ$7,"",""))) ->  | AA44: =IF($B$11=$AJ$5,AO44,IF($B$11=$AJ$6,AQ44,IF($B$11=$AJ$7,"",""))) ->  | AN44: HIGH | AO44: N/A | AP44: HIGH | AQ44: AMBER

Sheet CBA benchmark
B2: SERVICE PROGRAMME COST - BENEFIT APPRAISAL | G2: BENEFITS/ COST EFFICIENCY RATIO | K2: FAREBOX RECOVERY RATIO | O2: =IF(N11="GROSS","NET","GROSS") -> NET | T2: SERVICE UTILISATION AVERAGE | Y2: SUMMARY
O3: SERVICE EFFICIENCY RATIO
G4: [BER] | K4: [FRR] | O4: [SER] | T4: [SUA] | X4: RATING | Y4: TREND | AA4: COMMENTS
B6: TARGET: | G6: HIGH | H6: 5 | I6: +5 | K6: HIGH | L6: 0.4 | M6: +40% | O6: HIGH | P6: 10 | Q6: =IF($O$2="NET","<$1.50","<$2.50") -> <$1.50 | T6: HIGH | U6: 10 | V6: +10 ave pax | X6: HIGH | Y6: GOOD | AH6: 2009-12 | AI6: 2009-12 ACTUAL performance
G7: MEDIUM | H7: 3 | I7: +3 | K7: MEDIUM | L7: 0.3 | M7: +30% | O7: MEDIUM | P7: 7 | Q7: =IF($O$2="NET","<$3.00","<$4.50") -> <$3.00 | T7: MEDIUM | U7: 7 | V7: +7 ave pax | X7: MEDIUM | Y7: FAIR | AH7: 2012-15 | AI7: 2012-15 ACTUAL performance
G8: LOW | H8: 1 | I8: +1 | K8: LOW | L8: =L9 -> 0.2 | M8: +20% | O8: LOW | P8: 3 | Q8: =IF($O$2="NET","<$5.00","<$7.00") -> <$5.00 | T8: LOW | U8: 3 | V8: +3 ave pax | X8: LOW | Y8: AMBER | AE8: =IF('overview & guide'!N29='overview & guide'!CG42,'CBA benchmark'!AK36,IF('overview & guide'!N29='overview & guide'!CG43,'CBA benchmark'!AK37,)) -> base | AH8: 2015-18 | AI8: 2015-18 FORECAST performance
G9: INEFFIECIENT | H9: 1 | I9: <1 | K9: INEFFIECIENT | L9: 0.2 | M9: <20% | O9: INEFFIECIENT | P9: 3 | Q9: =IF($O$2="NET",">$5.00",">$7.00") -> >$5.00 | T9: INEFFIECIENT | U9: 3 | V9: <3 ave pax | X9: INEFFIECIENT | Y9: POOR | AH9: 2018-21 | AI9: 2018-21 FORECAST performance
N10: NET | AH10: 2021-24 | AI10: 2021-24 FORECAST performance
G11: peak/ off-peak | N11: GROSS | O11: NET
B12: ='overview & guide'!E29 -> 0 | E12: ='CBA profile'!D4 -> 2018-21 | G12: =IF($E$12=$AH$6,$AI$6,IF($E$12=$AH$7,$AI$7,IF($E$12=$AH$8,$AI$8,IF($E$12=$AH$9,$AI$9,$AI$10)))) -> 2018-21 FORECAST performance | I12: % variance (previous 3 years) | K12: =IF($E$12=$AH$6,$AI$6,IF($E$12=$AH$7,$AI$7,IF($E$12=$AH$8,$AI$8,IF($E$12=$AH$9,$AI$9,$AI$10)))) -> 2018-21 FORECAST performance | M12: % variance (previous 3 years) | O12: =IF($E$12=$AH$6,$AI$6,IF($E$12=$AH$7,$AI$7,IF($E$12=$AH$8,$AI$8,IF($E$12=$AH$9,$AI$9,$AI$10)))) -> 2018-21 FORECAST performance | Q12: % variance (previous 3 years) | T12: =IF($E$12=$AH$6,$AI$6,IF($E$12=$AH$7,$AI$7,IF($E$12=$AH$8,$AI$8,IF($E$12=$AH$9,$AI$9,$AI$10)))) -> 2018-21 FORECAST performance | V12: % variance (previous 3 years) | X12: =G12 -> 2018-21 FORECAST performance
B15: ='CBA profile'!H4 -> National average | C15: ='CBA profile'!D2 -> total network | E15: ='CBA profile'!D6 -> service costs only | G15: ='performance indicators'!Y823 ->  | H15: ='performance indicators'!Z823 ->  | I15: =IF(ISNA(G15/H15-1),"",G15/H15-1) ->  | K15: ='performance indicators'!Y943 ->  | L15: ='performance indicators'!Z943 ->  | M15: =IF(ISNA(K15/L15-1),"",K15/L15-1) ->  | O15: ='performance indicators'!Y903 ->  | P15: ='performance indicators'!Z903 ->  | Q15: =IF(ISNA(O15/P15-1),"",O15/P15-1) ->  | R15: =O2 -> NET | T15: ='performance indicators'!Y923 ->  | U15: ='performance indicators'!Z923 ->  | V15: =IF(ISNA(T15/U15-1),"",T15/U15-1) ->  | AH15: GROSS
B16: =IF('CBA profile'!N4='CBA profile'!Y53,"R/stock OUT","R/stock IN") -> R/stock OUT | C16: ='scenario testing'!H3 -> DEFAULT (DO MINIMUM) | E16: ='scenario testing'!M3 -> BASE PROGRAMME | G16: ='performance indicators'!Y825 ->  | H16: ='performance indicators'!Z825 ->  | I16: =IF(ISNA(G16/H16-1),"",G16/H16-1) ->  | K16: ='performance indicators'!Y945 ->  | L16: ='performance indicators'!Z945 ->  | M16: =IF(ISNA(K16/L16-1),"",K16/L16-1) ->  | O16: ='performance indicators'!Y905 ->  | P16: ='performance indicators'!Z905 ->  | Q16: =IF(ISNA(O16/P16-1),"",O16/P16-1) ->  | R16: =R15 -> NET | T16: ='performance indicators'!Y925 ->  | U16: ='performance indicators'!Z925 ->  | V16: =IF(ISNA(T16/U16-1),"",T16/U16-1) ->  | AH16: NET
B19: Total network: | AL19: 2009-12 | AN19: 2012-15
AC20: Other
B21: Northland | G21: ='performance indicators'!Y4 -> 3.216062995 | H21: ='performance indicators'!Z4 -> 3.409829751 | I21: =IF(ISNA(G21/H21-1),"",G21/H21-1) -> -0.05682593272 | K21: ='performance indicators'!Y124 -> 0.3326071194 | L21: ='performance indicators'!Z124 -> 0.3698236813 | M21: =IF(ISNA(K21/L21-1),"",K21/L21-1) -> -0.1006332578 | O21: ='performance indicators'!Y84 -> 2.544159933 | P21: ='performance indicators'!Z84 -> 2.838357698 | Q21: =IF(ISNA(O21/P21-1),"",O21/P21-1) -> -0.1036507011 | R21: =R16 -> NET | T21: ='performance indicators'!Y104 -> 9 | U21: ='performance indicators'!Z104 -> 11.58249773 | V21: =IF(ISNA(T21/U21-1),"",T21/U21-1) -> -0.2229655286 | AL21: HIGH | AM21: N/A | AN21: HIGH | AO21: FAIR
B22: Auckland | G22: ='performance indicators'!Y605 -> 6.223475661 | H22: ='performance indicators'!Z605 -> 6.583817489 | I22: =IF(ISNA(G22/H22-1),"",G22/H22-1) -> -0.05473144245 | K22: ='performance indicators'!Y725 -> 0.4310793464 | L22: ='performance indicators'!Z725 -> 0.4603312118 | M22: -0.06354525746 | O22: ='performance indicators'!Y685 -> 4.626867257 | P22: ='performance indicators'!Z685 -> 4.537794681 | Q22: 0.01962904507 | R22: =R21 -> NET | T22: ='performance indicators'!Y705 -> 14.09277042 | U22: ='performance indicators'!Z705 -> 14.37159519 | V22: -0.01940110087 | AH22: Northland | AI22: Other | AJ22: service costs only | AL22: HIGH | AM22: N/A | AN22: HIGH | AO22: FAIR
B23: Waikato | G23: ='performance indicators'!Y6 -> 3.400204643 | H23: ='performance indicators'!Z6 -> 3.982160858 | I23: -0.1461408105 | K23: ='performance indicators'!Y126 -> 0.3118913469 | L23: ='performance indicators'!Z126 -> 0.3279059664 | M23: -0.04883906093 | O23: ='performance indicators'!Y86 -> 2.726630151 | P23: ='performance indicators'!Z86 -> 2.511743053 | Q23: 0.08555297797 | R23: =R22 -> NET | T23: ='performance indicators'!Y106 -> 6.221017652 | U23: ='performance indicators'!Z106 -> 6.730192944 | V23: -0.07565537803 | AH23: Auckland | AI23: =AH23 -> Auckland | AJ23: total operational costs | AL23: LOW | AM23: N/A | AN23: MEDIUM | AO23: GOOD
B24: Bay of Plenty | G24: ='performance indicators'!Y7 -> 3.566803723 | H24: ='performance indicators'!Z7 -> 3.747973726 | I24: -0.04833811962 | K24: ='performance indicators'!Y127 -> 0.3070264341 | L24: ='performance indicators'!Z127 -> 0.3143049137 | M24: -0.02315738404 | O24: ='performance indicators'!Y87 -> 1.760390838 | P24: ='performance indicators'!Z87 -> 1.684380722 | Q24: 0.04512644619 | R24: NET | T24: ='performance indicators'!Y107 -> 4.017700047 | U24: ='performance indicators'!Z107 -> 4.060062837 | V24: -0.0104340233 | AH24: Waikato | AI24: Other | AL24: LOW | AM24: N/A | AN24: MEDIUM | AO24: GOOD
B25: Gisborne | G25: ='performance indicators'!Y8 -> 4.033621953 | H25: ='performance indicators'!Z8 -> 4.879635349 | I25: -0.1733763562 | K25: ='performance indicators'!Y128 -> 0.3224514597 | L25: ='performance indicators'!Z128 -> 0.3049069295 | M25: 0.05754060803 | O25: ='performance indicators'!Y88 -> 4.157966102 | P25: ='performance indicators'!Z88 -> 3.432930604 | Q25: 0.2112001614 | R25: NET | T25: ='performance indicators'!Y108 -> 8.203389831 | U25: ='performance indicators'!Z108 -> 8.524617287 | V25: -0.03768233168 | AH25: Bay of Plenty | AI25: Other | AL25: HIGH | AM25: N/A | AN25: HIGH | AO25: AMBER
B26: Hawkes Bay | G26: ='performance indicators'!Y9 -> 3.981067141 | H26: ='performance indicators'!Z9 -> 4.418421883 | I26: -0.09898437817 | K26: ='performance indicators'!Y129 -> 0.3801990608 | L26: ='performance indicators'!Z129 -> 0.4269505355 | M26: -0.1095009161 | O26: ='performance indicators'!Y89 -> 2.218393159 | P26: ='performance indicators'!Z89 -> 2.15795092 | Q26: 0.0280090889 | R26: NET | T26: ='performance indicators'!Y109 -> 7.56562171 | U26: ='performance indicators'!Z109 -> 7.769012577 | V26: -0.02617975775 | AH26: Gisborne | AJ26: bus network | AK26: R/stock IN | AL26: LOW | AM26: N/A | AN26: LOW | AO26: FAIR
B27: Taranaki | G27: ='performance indicators'!Y10 -> 5.048641754 | H27: ='performance indicators'!Z10 -> 4.485726397 | I27: 0.1254903459 | K27: ='performance indicators'!Y130 -> 0.3950484751 | L27: ='performance indicators'!Z130 -> 0.3900143406 | M27: 0.01290756255 | O27: ='performance indicators'!Y90 -> 2.574560389 | P27: ='performance indicators'!Z90 -> 2.289342001 | Q27: 0.1245853127 | R27: NET | T27: ='performance indicators'!Y110 -> 8.463827013 | U27: ='performance indicators'!Z110 -> 8.469467398 | V27: -0.000665966897 | AH27: Hawkes Bay | AI27: Other | AJ27: ferry network | AK27: R/stock OUT | AL27: MEDIUM | AM27: N/A | AN27: MEDIUM | AO27: GOOD
B28: Manawatu-Wanganui | G28: ='performance indicators'!Y11 -> 4.947044158 | H28: ='performance indicators'!Z11 -> 5.812876607 | I28: -0.1489507703 | K28: ='performance indicators'!Y131 -> 0.3333957042 | L28: ='performance indicators'!Z131 -> 0.3733226879 | M28: -0.1069503275 | O28: ='performance indicators'!Y91 -> 2.285676957 | P28: ='performance indicators'!Z91 -> 1.924118019 | Q28: 0.1879089191 | R28: NET | T28: ='performance indicators'!Y111 -> 8.598092499 | U28: ='performance indicators'!Z111 -> 9.142488449 | V28: -0.05954570829 | AH28: Taranaki | AI28: Other | AJ28: rail network | AL28: MEDIUM | AM28: N/A | AN28: HIGH | AO28: GOOD
B29: Wellington | G29: ='performance indicators'!Y612 -> 8.369840037 | H29: ='performance indicators'!Z612 -> 8.550834135 | I29: -0.02116683531 | K29: ='performance indicators'!Y732 -> 0.5184611323 | L29: ='performance indicators'!Z732 -> 0.5249475498 | M29: -0.01235631537 | O29: ='performance indicators'!Y692 -> 5.179173332 | P29: ='performance indicators'!Z692 -> 4.870842919 | Q29: 0.06330124337 | R29: NET | T29: ='performance indicators'!Y712 -> 24.88528486 | U29: ='performance indicators'!Z712 -> 23.53827185 | V29: 0.05722650427 | AH29: Manawatu-Wanganui | AI29: Other | AJ29: total network | AL29: HIGH | AM29: N/A | AN29: HIGH | AO29: FAIR
B30: Marlborough | G30: ='performance indicators'!Y13 -> 2.168983021 | H30: ='performance indicators'!Z13 -> 3.926492193 | I30: -0.4476028693 | K30: ='performance indicators'!Y133 -> 0.2785927008 | L30: ='performance indicators'!Z133 -> 0.3617277654 | M30: -0.2298277116 | O30: ='performance indicators'!Y93 -> 2.633604797 | P30: ='performance indicators'!Z93 -> 1.745344894 | Q30: 0.5089308746 | R30: NET | T30: ='performance indicators'!Y113 -> 3.128857556 | U30: ='performance indicators'!Z113 -> 3.507628923 | V30: -0.1079850165 | AH30: Wellington | AI30: =AH30 -> Wellington | AL30: MEDIUM | AM30: N/A | AN30: MEDIUM | AO30: GOOD
B31: Nelson | G31: ='performance indicators'!Y14 -> 6.187136635 | H31: ='performance indicators'!Z14 -> 8.996937854 | I31: -0.3123063941 | K31: ='performance indicators'!Y134 -> 0.5099523204 | L31: ='performance indicators'!Z134 -> 0.6337697008 | M31: -0.1953665191 | O31: ='performance indicators'!Y94 -> 2.008862022 | P31: ='performance indicators'!Z94 -> 1.37656727 | Q31: 0.4593271722 | R31: NET | T31: ='performance indicators'!Y114 -> 6.997318597 | U31: ='performance indicators'!Z114 -> 6.437027617 | V31: 0.08704187921 | AH31: Marlborough | AI31: Other | AL31: HIGH | AM31: N/A | AN31: HIGH | AO31: GOOD
B32: Canterbury | G32: ='performance indicators'!Y615 -> 6.315380559 | H32: ='performance indicators'!Z615 -> 6.906472387 | I32: -0.08558520114 | K32: ='performance indicators'!Y135 -> 0.3863632951 | L32: ='performance indicators'!Z135 -> 0.4140435692 | M32: -0.06685352989 | O32: ='performance indicators'!Y695 -> 2.419084342 | P32: ='performance indicators'!Z695 -> 2.13898994 | Q32: 0.1309470402 | R32: NET | T32: ='performance indicators'!Y715 -> 7.913795793 | U32: ='performance indicators'!Z715 -> 7.764856677 | V32: 0.01918118034 | AH32: Nelson | AI32: Other | AJ32: Peak | AL32: MEDIUM | AM32: N/A | AN32: MEDIUM | AO32: AMBER
B33: West Coast | G33: ='performance indicators'!Y16 -> 12.50634971 | H33: ='performance indicators'!Z16 -> 3.866889259 | I33: =IF(ISNA(G33/H33-1),"",G33/H33-1) -> 2.234214604 | K33: ='performance indicators'!Y136 -> 0 | L33: ='performance indicators'!Z136 -> 0.7359690914 | M33: -1 | O33: =IF(ISERROR('performance indicators'!Y96)," ",('performance indicators'!Y96)) -> 0.5933598573 | P33: ='performance indicators'!Z96 -> 2.058020763 | Q33: -0.7116842221 | R33: NET | T33: =IF(ISERROR('performance indicators'!Y116)," ",('performance indicators'!Y116)) -> 0 | U33: ='performance indicators'!Z116 -> 2.474625093 | V33: -1 | AC33: Auckland | AH33: Canterbury | AI33: =AH33 -> Canterbury | AJ33: Off-peak | AL33: HIGH | AM33: N/A | AN33: MEDIUM | AO33: POOR
B34: =IF('overview & guide'!G29='overview & guide'!CJ34,"Otago (Dunedin -Mosgiel)",IF('overview & guide'!G29='overview & guide'!CJ35,"Otago (Wakatipu)","Otago (region-wide)")) -> Otago (region-wide) | G34: ='performance indicators'!Y17 -> 3.808369894 | H34: ='performance indicators'!Z17 -> 4.583780202 | I34: -0.1691639375 | K34: ='performance indicators'!Y137 -> 0.390793677 | L34: ='performance indicators'!Z137 -> 0.4644978301 | M34: -0.1586749136 | O34: ='performance indicators'!Y97 -> 2.528806868 | P34: ='performance indicators'!Z97 -> 1.809448979 | Q34: 0.3975563264 | R34: NET | T34: ='performance indicators'!Y117 -> 6.461570573 | U34: ='performance indicators'!Z117 -> 3.606233652 | V34: 0.7917781251 | AC34: Wellington | AH34: West Coast | AI34: Other | AJ34: peak/ off-peak | AL34: MEDIUM | AM34: N/A | AN34: HIGH | AO34: AMBER
B35: Southland | G35: ='performance indicators'!Y18 -> 2.528754308 | H35: ='performance indicators'!Z18 -> 3.646910838 | I35: -0.3066037474 | K35: ='performance indicators'!Y138 -> 0.2282730418 | L35: ='performance indicators'!Z138 -> 0.298353244 | M35: -0.2348900293 | O35: ='performance indicators'!Y98 -> 3.096445724 | P35: ='performance indicators'!Z98 -> 2.639974157 | Q35: 0.1729075892 | R35: NET | T35: ='performance indicators'!Y118 -> 3.674492282 | U35: ='performance indicators'!Z118 -> 4.057181765 | V35: -0.094323968 | AH35: Otago | AI35: Other | AJ35: =IF(B12=B22,1,IF(B12=B29,1,0)) -> 0 | AL35: LOW | AM35: N/A | AN35: LOW | AO35: AMBER
B36: =IF(B15=AI41,"National (total network) -average",IF(B15=AI42,"Accessible (small to medium) networks average comparison",IF(B15=AI43,IF(B12=AH23,"Wellington (large network comparison)",IF(B15=AI43,IF(B12=AH30,"Auckland (large network comparison)","")))))) -> National (total network) -average | G36: ='performance indicators'!Y619 -> 6.436228457 | H36: ='performance indicators'!Z619 -> 6.831332337 | I36: -0.05783701646 | K36: ='performance indicators'!Y739 -> 0.4415962127 | L36: ='performance indicators'!Z739 -> 0.4663341533 | M36: -0.05304767069 | O36: ='performance indicators'!Y699 -> 4.026664985 | P36: ='performance indicators'!Z699 -> 3.785091744 | Q36: 0.06382229486 | R36: NET | T36: ='performance indicators'!Y719 -> 13.62936709 | U36: ='performance indicators'!Z719 -> 13.43608125 | V36: 0.01438558174 | AH36: Southland | AI36: Other | AJ36: =IF(C15=AJ29,1,0) -> 1 | AK36: base
AJ37: =SUM(AJ35:AJ36) -> 1 | AK37: improvements
B38: Sub network: | AI38: =VLOOKUP($B$12,$AH22:$AI37,2,FALSE) ->  | AJ38: =IF(B12=AH23,IF(C15=AJ26,11,IF(B12=AH30,IF(C15=AJ26,12,IF(B12=AH23,IF(C15=AJ28,31,IF(B12=AH30,IF(C15=AJ28,32,0)))))))) -> FALSE
AC39: Other
B40: Auckland (bus) | G40: ='performance indicators'!Y5 -> 6.027349979 | H40: ='performance indicators'!Z5 -> 7.167076091 | I40: =IF(ISNA(G40/H40-1),"",G40/H40-1) -> -0.1590224657 | K40: ='performance indicators'!Y125 -> 0.3955248874 | L40: ='performance indicators'!Z125 -> 0.4590301044 | M40: =IF(ISNA(K40/L40-1),"",K40/L40-1) -> -0.138346519 | O40: ='performance indicators'!Y85 -> 3.541940375 | P40: ='performance indicators'!Z85 -> 3.094716608 | Q40: =IF(ISNA(O40/P40-1),"",O40/P40-1) -> 0.1445120261 | R40: =R36 -> NET | T40: ='performance indicators'!Y105 -> 8.687628821 | U40: ='performance indicators'!Z105 -> 9.22215472 | V40: =IF(ISNA(T40/U40-1),"",T40/U40-1) -> -0.05796106394 | Y40: =IF($E$12=$AH$6,AM40,IF($E$12=$AH$7,AO40,IF($E$12=$AH$8,"",""))) ->  | AJ40: =IF(B12=AH23,IF(C15=AJ27,21,AJ38)) -> FALSE | AL40: HIGH | AM40: N/A | AN40: HIGH | AO40: GOOD
B41: Wellington (bus) | G41: ='performance indicators'!Y12 -> 9.731371718 | H41: ='performance indicators'!Z12 -> 8.443156397 | I41: =IF(ISNA(G41/H41-1),"",G41/H41-1) -> 0.1525750869 | K41: ='performance indicators'!Y132 -> 0.5415272313 | L41: ='performance indicators'!Z132 -> 0.5247686339 | M41: =IF(ISNA(K41/L41-1),"",K41/L41-1) -> 0.03193521159 | O41: ='performance indicators'!Y92 -> 2.799430665 | P41: ='performance indicators'!Z92 -> 3.144807704 | Q41: =IF(ISNA(O41/P41-1),"",O41/P41-1) -> -0.1098245336 | R41: =R36 -> NET | T41: ='performance indicators'!Y112 -> 10.54044323 | U41: ='performance indicators'!Z112 -> 10.29670473 | V41: 0.0236715062 | X41: =IF($E$12=$AH$6,AL41,IF($E$12=$AH$7,AN41,IF($E$12=$AH$8,"",""))) ->  | Y41: =IF($E$12=$AH$6,AM41,IF($E$12=$AH$7,AO41,IF($E$12=$AH$8,"",""))) ->  | AI41: National average | AL41: HIGH | AM41: N/A | AN41: HIGH | AO41: GOOD
B42: =IF(B15=AI41,"National (bus network) -average",IF(B15=AI42,"Accessible -small to medium (bus) networks average comparison",IF(B15=AI43,IF(B12=AH23,"Wellington (large bus network comparison)",IF(B15=AI43,IF(B12=AH30,"Auckland (large bus network comparison)","")))))) -> National (bus network) -average | G42: ='performance indicators'!Y19 -> 6.122289988 | H42: ='performance indicators'!Z19 -> 6.813830501 | I42: =IF(ISNA(G42/H42-1),"",G42/H42-1) -> -0.1014907126 | K42: ='performance indicators'!Y139 -> 0.413304754 | L42: ='performance indicators'!Z139 -> 0.4568313314 | M42: =IF(ISNA(K42/L42-1),"",K42/L42-1) -> -0.09527931738 | O42: ='performance indicators'!Y99 -> 3.028349191 | P42: ='performance indicators'!Z99 -> 2.731523611 | Q42: =IF(ISNA(O42/P42-1),"",O42/P42-1) -> 0.1086666718 | R42: =R37 -> 0 | T42: ='performance indicators'!Y119 -> 8.327262927 | U42: ='performance indicators'!Z119 -> 8.433579579 | V42: -0.01260634949 | AI42: Accessible networks
AI43: Large networks
B44: Auckland (passenger rail) | G44: ='performance indicators'!Y405 -> 7.386145249 | H44: ='performance indicators'!Z405 -> 6.009024003 | I44: =IF(ISNA(G44/H44-1),"",G44/H44-1) -> 0.2291755277 | K44: ='performance indicators'!Y525 -> 0.401432964 | L44: ='performance indicators'!Z525 -> 0.3614508903 | M44: =IF(ISNA(K44/L44-1),"",K44/L44-1) -> 0.1106155076 | O44: ='performance indicators'!Y485 -> 13.28311279 | P44: ='performance indicators'!Z485 -> 19.66587233 | Q44: =IF(ISNA(O44/P44-1),"",O44/P44-1) -> -0.3245602044 | R44: =R40 -> NET | T44: ='performance indicators'!Y505 -> 48.06533282 | U44: ='performance indicators'!Z505 -> 56.60900439 | V44: -0.1509242507 | X44: =IF($E$12=$AH$6,AL44,IF($E$12=$AH$7,AN44,IF($E$12=$AH$8,"",""))) ->  | Y44: =IF($E$12=$AH$6,AM44,IF($E$12=$AH$7,AO44,IF($E$12=$AH$8,"",""))) ->  | AL44: MEDIUM | AM44: N/A | AN44: MEDIUM | AO44: GOOD
B45: Wellington (passenger rail) | G45: ='performance indicators'!Y412 -> 7.716530958 | H45: ='performance indicators'!Z412 -> 9.09346392 | I45: =IF(ISNA(G45/H45-1),"",G45/H45-1) -> -0.151420072 | K45: ='performance indicators'!Y532 -> 0.4931389561 | L45: ='performance indicators'!Z532 -> 0.5196295042 | M45: =IF(ISNA(K45/L45-1),"",K45/L45-1) -> -0.05097968428 | O45: ='performance indicators'!Y492 -> 16.76183072 | P45: ='performance indicators'!Z492 -> 13.38641324 | Q45: =IF(ISNA(O45/P45-1),"",O45/P45-1) -> 0.2521524938 | R45: =R40 -> NET | T45: ='performance indicators'!Y512 -> 94.47199135 | U45: ='performance indicators'!Z512 -> 88.48857603 | V45: 0.06761794104 | X45: =IF($E$12=$AH$6,AL45,IF($E$12=$AH$7,AN45,IF($E$12=$AH$8,"",""))) ->  | Y45: =IF($E$12=$AH$6,AM45,IF($E$12=$AH$7,AO45,IF($E$12=$AH$8,"",""))) ->  | AL45: HIGH | AM45: N/A | AN45: HIGH | AO45: AMBER
B47: Auckland (passenger ferry) | G47: ='performance indicators'!Y205 -> 10.55189435 | H47: ='performance indicators'!Z205 -> 11.48718869 | I47: =IF(ISNA(G47/H47-1),"",G47/H47-1) -> -0.08142064702 | K47: ='performance indicators'!Y325 -> 0.7642151867 | L47: ='performance indicators'!Z325 -> 0.7848603419 | M47: =IF(ISNA(K47/L47-1),"",K47/L47-1) -> -0.02630424051 | O47: ='performance indicators'!Y285 -> 6.800346593 | P47: ='performance indicators'!Z285 -> 6.403511483 | Q47: =IF(ISNA(O47/P47-1),"",O47/P47-1) -> 0.06197148412 | R47: =R40 -> NET | T47: ='performance indicators'!Y305 -> 61.17972861 | U47: ='performance indicators'!Z305 -> 57.3171577 | V47: =IF(ISNA(T47/U47-1),"",T47/U47-1) -> 0.06738943567 | X47: =IF($E$12=$AH$6,AL47,IF($E$12=$AH$7,AN47,IF($E$12=$AH$8,"",""))) ->  | Y47: =IF($E$12=$AH$6,AM47,IF($E$12=$AH$7,AO47,IF($E$12=$AH$8,"",""))) ->  | AL47: HIGH | AM47: N/A | AN47: HIGH | AO47: AMBER

Sheet scenario testing
B3: ='CBA benchmark'!B12 -> 0 | C3: ='CBA benchmark'!C15 -> total network | H3: DEFAULT (DO MINIMUM) | M3: =IF($H$3=$AY$8,M45,IF($H$3=$AY$9,M57,IF($H$3=$AY$10,M85,"BASE PROGRAMME"))) -> BASE PROGRAMME | Y3: DEFAULT (DO MINIMUM) | AD3: =IF($H$3=$AY$8,AD45,IF($H$3=$AY$9,AD57,IF($H$3=$AY$10,AD85,"BASE PROGRAMME"))) -> BASE PROGRAMME
AV4: -0.05 | AW4: continuous
AV5: -0.04 | AW5: 1 year
G6: 2009/10 | H6: 2010/11 | I6: 2011/12 | J6: 2012/13 | K6: 2013/14 | L6: 2014/15 | M6: 2015/16 | N6: 2016/17 | O6: 2017/18 | P6: 2018/19 | Q6: 2019/20 | R6: 2020/21 | S6: 2021/22 | T6: 2022/23 | U6: 2023/24 | V6: 2024/25 | X6: 2009/10 | Y6: 2010/11 | Z6: 2011/12 | AA6: 2012/13 | AB6: 2013/14 | AC6: 2014/15 | AD6: 2015/16 | AE6: 2016/17 | AF6: 2017/18 | AG6: 2018/19 | AH6: 2019/20 | AI6: 2020/21 | AJ6: 2021/22 | AK6: 2022/23 | AL6: 2023/24 | AM6: 2024/25 | AV6: -0.03 | AW6: 2 years | AX6: forecast | BD6: 2016/17 | BE6: 2017/18 | BF6: 2018/19 | BG6: 2019/20 | BH6: 2020/21 | BI6: 2021/22 | BJ6: 2022/23 | BK6: 2023/24 | BL6: 2024/25 | BN6: 2016/17 | BO6: 2017/18 | BP6: 2018/19 | BQ6: 2019/20 | BR6: 2020/21 | BS6: 2021/22 | BT6: 2022/23 | BU6: 2023/24 | BV6: 2024/25
G7: actual | H7: actual | I7: actual | J7: actual | K7: actual | L7: actual | M7: actual | N7: =M7 -> actual | O7: forecast | P7: forecast | Q7: forecast | R7: forecast | S7: forecast | T7: forecast | U7: forecast | V7: forecast | X7: percentage change | Y7: percentage change | Z7: percentage change | AA7: percentage change | AB7: percentage change | AC7: percentage change | AD7: percentage change | AE7: percentage change | AF7: percentage change | AG7: percentage change | AH7: percentage change | AI7: percentage change | AJ7: percentage change | AK7: percentage change | AL7: percentage change | AM7: percentage change | AT7: 1 | AU7: 250 | AV7: -0.02 | AW7: 3 years | AX7: actual | AY7: DEFAULT (DO MINIMUM)
B8: patronage | C8: S.T variance: | D8: DEFAULT | E8: continuous | G8: =IF($C$3=$AX$10,'data "live" (TIO)'!C380,IF($C$3=$AX$11,'data "live" (TIO)'!C20,IF($C$3=$AX$12,'data "live" (TIO)'!C140,IF($C$3=$AX$13,'data "live" (TIO)'!C260,0)))) ->  | H8: =IF($C$3=$AX$10,'data "live" (TIO)'!D380,IF($C$3=$AX$11,'data "live" (TIO)'!D20,IF($C$3=$AX$12,'data "live" (TIO)'!D140,IF($C$3=$AX$13,'data "live" (TIO)'!D260,0)))) ->  | I8: =IF($C$3=$AX$10,'data "live" (TIO)'!E380,IF($C$3=$AX$11,'data "live" (TIO)'!E20,IF($C$3=$AX$12,'data "live" (TIO)'!E140,IF($C$3=$AX$13,'data "live" (TIO)'!E260,0)))) ->  | J8: =IF($C$3=$AX$10,'data "live" (TIO)'!F380,IF($C$3=$AX$11,'data "live" (TIO)'!F20,IF($C$3=$AX$12,'data "live" (TIO)'!F140,IF($C$3=$AX$13,'data "live" (TIO)'!F260,0)))) ->  | K8: =IF($C$3=$AX$10,'data "live" (TIO)'!G380,IF($C$3=$AX$11,'data "live" (TIO)'!G20,IF($C$3=$AX$12,'data "live" (TIO)'!G140,IF($C$3=$AX$13,'data "live" (TIO)'!G260,0)))) ->  | L8: =IF($C$3=$AX$10,'data "live" (TIO)'!H380,IF($C$3=$AX$11,'data "live" (TIO)'!H20,IF($C$3=$AX$12,'data "live" (TIO)'!H140,IF($C$3=$AX$13,'data "live" (TIO)'!H260,0)))) ->  | M8: =IF($C$3=$AX$10,'data "live" (TIO)'!I380,IF($C$3=$AX$11,'data "live" (TIO)'!I20,IF($C$3=$AX$12,'data "live" (TIO)'!I140,IF($C$3=$AX$13,'data "live" (TIO)'!I260,0)))) ->  | N8: =IF($C$3=$AX$10,'data "live" (TIO)'!J380,IF($C$3=$AX$11,'data "live" (TIO)'!J20,IF($C$3=$AX$12,'data "live" (TIO)'!J140,IF($C$3=$AX$13,'data "live" (TIO)'!J260,0)))) ->  | O8: =IF($E$8=$AW$5,BE8,BO8) ->  | P8: =IF($E$8=$AW$3,BP8,IF($E$8=$AW$5,BF8,IF($E$8=$AW$6,BF8,BP8))) ->  | Q8: =IF($E$8=$AW$5,BG8,IF($E$8=$AW$6,BG8,IF($E$8=$AW$7,BG8,IF($E$8=$AW$8,BQ8,BQ8)))) ->  | R8: =IF($E$8=$AW$5,BH8,IF($E$8=$AW$6,BH8,IF($E$8=$AW$7,BH8,IF($E$8=$AW$8,BH8,BR8)))) ->  | S8: =IF($E$8=$AW$3,BS8,BI8) ->  | T8: =IF($E$8=$AW$3,BT8,BJ8) ->  | U8: =IF($E$8=$AW$3,BU8,BK8) ->  | V8: =IF($E$8=$AW$3,BV8,BL8) ->  | X8: =IF($C$3=$AX$10,'data "live" (TIO)'!T380,IF($C$3=$AX$11,'data "live" (TIO)'!T20,IF($C$3=$AX$12,'data "live" (TIO)'!T140,IF($C$3=$AX$13,'data "live" (TIO)'!T260,0)))) ->  | Y8: =IF($C$3=$AX$10,'data "live" (TIO)'!U380,IF($C$3=$AX$11,'data "live" (TIO)'!U20,IF($C$3=$AX$12,'data "live" (TIO)'!U140,IF($C$3=$AX$13,'data "live" (TIO)'!U260,0)))) ->  | Z8: =IF($C$3=$AX$10,'data "live" (TIO)'!V380,IF($C$3=$AX$11,'data "live" (TIO)'!V20,IF($C$3=$AX$12,'data "live" (TIO)'!V140,IF($C$3=$AX$13,'data "live" (TIO)'!V260,0)))) ->  | AA8: =IF($C$3=$AX$10,'data "live" (TIO)'!W380,IF($C$3=$AX$11,'data "live" (TIO)'!W20,IF($C$3=$AX$12,'data "live" (TIO)'!W140,IF($C$3=$AX$13,'data "live" (TIO)'!W260,0)))) ->  | AB8: =IF($C$3=$AX$10,'data "live" (TIO)'!X380,IF($C$3=$AX$11,'data "live" (TIO)'!X20,IF($C$3=$AX$12,'data "live" (TIO)'!X140,IF($C$3=$AX$13,'data "live" (TIO)'!X260,0)))) ->  | AC8: =IF($C$3=$AX$10,'data "live" (TIO)'!Y380,IF($C$3=$AX$11,'data "live" (TIO)'!Y20,IF($C$3=$AX$12,'data "live" (TIO)'!Y140,IF($C$3=$AX$13,'data "live" (TIO)'!Y260,0)))) ->  | AD8: =IF($C$3=$AX$10,'data "live" (TIO)'!Z380,IF($C$3=$AX$11,'data "live" (TIO)'!Z20,IF($C$3=$AX$12,'data "live" (TIO)'!Z140,IF($C$3=$AX$13,'data "live" (TIO)'!Z260,0)))) ->  | AF8: =IF($H$3=$AY$8,AF49,IF($H$3=$AY$9,AF61,IF($H$3=$AY$10,AF89,AF37))) ->  | AG8: =IF($H$3=$AY$8,AG49,IF($H$3=$AY$9,AG61,IF($H$3=$AY$10,AG89,AG37))) ->  | AT8: 2 | AU8: 260 | AV8: -0.01 | AW8: 4 years | AY8: SCENARIO 1 | BD8: =IF($H$3=$AY$8,N49,IF($H$3=$AY$9,N61,IF($H$3=$AY$10,N89,N37))) ->  | BN8: =IF($D$8=$AV$9,BD8,BD8*(1+$D$8)) -> 
B9: passenger kilometres | C9: S.T variance: | D9: DEFAULT | E9: continuous | G9: =IF($C$3=$AX$10,'data "live" (TIO)'!C400,IF($C$3=$AX$11,'data "live" (TIO)'!C40,IF($C$3=$AX$12,'data "live" (TIO)'!C160,IF($C$3=$AX$13,'data "live" (TIO)'!C280,0)))) ->  | H9: =IF($C$3=$AX$10,'data "live" (TIO)'!D400,IF($C$3=$AX$11,'data "live" (TIO)'!D40,IF($C$3=$AX$12,'data "live" (TIO)'!D160,IF($C$3=$AX$13,'data "live" (TIO)'!D280,0)))) ->  | I9: =IF($C$3=$AX$10,'data "live" (TIO)'!E400,IF($C$3=$AX$11,'data "live" (TIO)'!E40,IF($C$3=$AX$12,'data "live" (TIO)'!E160,IF($C$3=$AX$13,'data "live" (TIO)'!E280,0)))) ->  | J9: =IF($C$3=$AX$10,'data "live" (TIO)'!F400,IF($C$3=$AX$11,'data "live" (TIO)'!F40,IF($C$3=$AX$12,'data "live" (TIO)'!F160,IF($C$3=$AX$13,'data "live" (TIO)'!F280,0)))) ->  | K9: =IF($C$3=$AX$10,'data "live" (TIO)'!G400,IF($C$3=$AX$11,'data "live" (TIO)'!G40,IF($C$3=$AX$12,'data "live" (TIO)'!G160,IF($C$3=$AX$13,'data "live" (TIO)'!G280,0)))) ->  | L9: =IF($C$3=$AX$10,'data "live" (TIO)'!H400,IF($C$3=$AX$11,'data "live" (TIO)'!H40,IF($C$3=$AX$12,'data "live" (TIO)'!H160,IF($C$3=$AX$13,'data "live" (TIO)'!H280,0)))) ->  | M9: =IF($C$3=$AX$10,'data "live" (TIO)'!I400,IF($C$3=$AX$11,'data "live" (TIO)'!I40,IF($C$3=$AX$12,'data "live" (TIO)'!I160,IF($C$3=$AX$13,'data "live" (TIO)'!I280,0)))) ->  | N9: =IF($C$3=$AX$10,'data "live" (TIO)'!J400,IF($C$3=$AX$11,'data "live" (TIO)'!J40,IF($C$3=$AX$12,'data "live" (TIO)'!J160,IF($C$3=$AX$13,'data "live" (TIO)'!J280,0)))) ->  | O9: =IF($E$9=$AW$5,BE9,BO9) ->  | P9: =IF($E$9=$AW$3,BP9,IF($E$9=$AW$5,BF9,IF($E$9=$AW$6,BF9,BP9))) ->  | Q9: =IF($E$9=$AW$5,BG9,IF($E$9=$AW$6,BG9,IF($E$9=$AW$7,BG9,IF($E$9=$AW$8,BQ9,BQ9)))) ->  | R9: =IF($E$9=$AW$5,BH9,IF($E$9=$AW$6,BH9,IF($E$9=$AW$7,BH9,IF($E$9=$AW$8,BH9,BR9)))) ->  | S9: =IF($E$9=$AW$3,BS9,BI9) ->  | T9: =IF($E$9=$AW$3,BT9,BJ9) ->  | U9: =IF($E$9=$AW$3,BU9,BK9) ->  | V9: =IF($E$9=$AW$3,BV9,BL9) ->  | X9: =IF($C$3=$AX$10,'data "live" (TIO)'!T400,IF($C$3=$AX$11,'data "live" (TIO)'!T40,IF($C$3=$AX$12,'data "live" (TIO)'!T160,IF($C$3=$AX$13,'data "live" (TIO)'!T280,0)))) ->  | Y9: =IF($C$3=$AX$10,'data "live" (TIO)'!U400,IF($C$3=$AX$11,'data "live" (TIO)'!U40,IF($C$3=$AX$12,'data "live" (TIO)'!U160,IF($C$3=$AX$13,'data "live" (TIO)'!U280,0)))) ->  | Z9: =IF($C$3=$AX$10,'data "live" (TIO)'!V400,IF($C$3=$AX$11,'data "live" (TIO)'!V40,IF($C$3=$AX$12,'data "live" (TIO)'!V160,IF($C$3=$AX$13,'data "live" (TIO)'!V280,0)))) ->  | AA9: =IF($C$3=$AX$10,'data "live" (TIO)'!W400,IF($C$3=$AX$11,'data "live" (TIO)'!W40,IF($C$3=$AX$12,'data "live" (TIO)'!W160,IF($C$3=$AX$13,'data "live" (TIO)'!W280,0)))) ->  | AB9: =IF($C$3=$AX$10,'data "live" (TIO)'!X400,IF($C$3=$AX$11,'data "live" (TIO)'!X40,IF($C$3=$AX$12,'data "live" (TIO)'!X160,IF($C$3=$AX$13,'data "live" (TIO)'!X280,0)))) ->  | AC9: =IF($C$3=$AX$10,'data "live" (TIO)'!Y400,IF($C$3=$AX$11,'data "live" (TIO)'!Y40,IF($C$3=$AX$12,'data "live" (TIO)'!Y160,IF($C$3=$AX$13,'data "live" (TIO)'!Y280,0)))) ->  | AD9: =IF($C$3=$AX$10,'data "live" (TIO)'!Z400,IF($C$3=$AX$11,'data "live" (TIO)'!Z40,IF($C$3=$AX$12,'data "live" (TIO)'!Z160,IF($C$3=$AX$13,'data "live" (TIO)'!Z280,0)))) ->  | AF9: =IF($H$3=$AY$8,AF50,IF($H$3=$AY$9,AF62,IF($H$3=$AY$10,AF90,AF38))) ->  | AT9: 3 | AU9: 375 | AV9: DEFAULT | AW9: 5 years | AY9: SCENARIO 2 | BN9: =IF($D$9=$AV$9,BD9,BD9*(1+$D$9)) -> 
B10: in service vehicle kilometres | G10: =IF($C$3=$AX$10,'data "live" (TIO)'!C420,IF($C$3=$AX$11,'data "live" (TIO)'!C60,IF($C$3=$AX$12,'data "live" (TIO)'!C180,IF($C$3=$AX$13,'data "live" (TIO)'!C300,0)))) ->  | H10: =IF($C$3=$AX$10,'data "live" (TIO)'!D420,IF($C$3=$AX$11,'data "live" (TIO)'!D60,IF($C$3=$AX$12,'data "live" (TIO)'!D180,IF($C$3=$AX$13,'data "live" (TIO)'!D300,0)))) ->  | I10: =IF($C$3=$AX$10,'data "live" (TIO)'!E420,IF($C$3=$AX$11,'data "live" (TIO)'!E60,IF($C$3=$AX$12,'data "live" (TIO)'!E180,IF($C$3=$AX$13,'data "live" (TIO)'!E300,0)))) ->  | J10: =IF($C$3=$AX$10,'data "live" (TIO)'!F420,IF($C$3=$AX$11,'data "live" (TIO)'!F60,IF($C$3=$AX$12,'data "live" (TIO)'!F180,IF($C$3=$AX$13,'data "live" (TIO)'!F300,0)))) ->  | K10: =IF($C$3=$AX$10,'data "live" (TIO)'!G420,IF($C$3=$AX$11,'data "live" (TIO)'!G60,IF($C$3=$AX$12,'data "live" (TIO)'!G180,IF($C$3=$AX$13,'data "live" (TIO)'!G300,0)))) ->  | L10: =IF($C$3=$AX$10,'data "live" (TIO)'!H420,IF($C$3=$AX$11,'data "live" (TIO)'!H60,IF($C$3=$AX$12,'data "live" (TIO)'!H180,IF($C$3=$AX$13,'data "live" (TIO)'!H300,0)))) ->  | M10: =IF($C$3=$AX$10,'data "live" (TIO)'!I420,IF($C$3=$AX$11,'data "live" (TIO)'!I60,IF($C$3=$AX$12,'data "live" (TIO)'!I180,IF($C$3=$AX$13,'data "live" (TIO)'!I300,0)))) ->  | N10: =IF($C$3=$AX$10,'data "live" (TIO)'!J420,IF($C$3=$AX$11,'data "live" (TIO)'!J60,IF($C$3=$AX$12,'data "live" (TIO)'!J180,IF($C$3=$AX$13,'data "live" (TIO)'!J300,0)))) ->  | O10: =BO10 ->  | X10: =IF($C$3=$AX$10,'data "live" (TIO)'!T420,IF($C$3=$AX$11,'data "live" (TIO)'!T60,IF($C$3=$AX$12,'data "live" (TIO)'!T180,IF($C$3=$AX$13,'data "live" (TIO)'!T300,0)))) ->  | Y10: =IF($C$3=$AX$10,'data "live" (TIO)'!U420,IF($C$3=$AX$11,'data "live" (TIO)'!U60,IF($C$3=$AX$12,'data "live" (TIO)'!U180,IF($C$3=$AX$13,'data "live" (TIO)'!U300,0)))) ->  | Z10: =IF($C$3=$AX$10,'data "live" (TIO)'!V420,IF($C$3=$AX$11,'data "live" (TIO)'!V60,IF($C$3=$AX$12,'data "live" (TIO)'!V180,IF($C$3=$AX$13,'data "live" (TIO)'!V300,0)))) ->  | AA10: =IF($C$3=$AX$10,'data "live" (TIO)'!W420,IF($C$3=$AX$11,'data "live" (TIO)'!W60,IF($C$3=$AX$12,'data "live" (TIO)'!W180,IF($C$3=$AX$13,'data "live" (TIO)'!W300,0)))) ->  | AB10: =IF($C$3=$AX$10,'data "live" (TIO)'!X420,IF($C$3=$AX$11,'data "live" (TIO)'!X60,IF($C$3=$AX$12,'data "live" (TIO)'!X180,IF($C$3=$AX$13,'data "live" (TIO)'!X300,0)))) ->  | AC10: =IF($C$3=$AX$10,'data "live" (TIO)'!Y420,IF($C$3=$AX$11,'data "live" (TIO)'!Y60,IF($C$3=$AX$12,'data "live" (TIO)'!Y180,IF($C$3=$AX$13,'data "live" (TIO)'!Y300,0)))) ->  | AD10: =IF($C$3=$AX$10,'data "live" (TIO)'!Z420,IF($C$3=$AX$11,'data "live" (TIO)'!Z60,IF($C$3=$AX$12,'data "live" (TIO)'!Z180,IF($C$3=$AX$13,'data "live" (TIO)'!Z300,0)))) ->  | AF10: =IF($H$3=$AY$8,AF51,IF($H$3=$AY$9,AF63,IF($H$3=$AY$10,AF91,AF39))) ->  | AT10: 4 | AV10: 0.01 | AX10: TOTAL NETWORK | AY10: SCENARIO 3 | BN10: =BD10 -> 
B11: total net service expenditure | G11: =IF($C$3=$AX$10,'data "live" (TIO)'!C460,IF($C$3=$AX$11,'data "live" (TIO)'!C100,IF($C$3=$AX$12,'data "live" (TIO)'!C220,IF($C$3=$AX$13,'data "live" (TIO)'!C340,0)))) ->  | H11: =IF($C$3=$AX$10,'data "live" (TIO)'!D460,IF($C$3=$AX$11,'data "live" (TIO)'!D100,IF($C$3=$AX$12,'data "live" (TIO)'!D220,IF($C$3=$AX$13,'data "live" (TIO)'!D340,0)))) ->  | I11: =IF($C$3=$AX$10,'data "live" (TIO)'!E460,IF($C$3=$AX$11,'data "live" (TIO)'!E100,IF($C$3=$AX$12,'data "live" (TIO)'!E220,IF($C$3=$AX$13,'data "live" (TIO)'!E340,0)))) ->  | J11: =IF($C$3=$AX$10,'data "live" (TIO)'!F460,IF($C$3=$AX$11,'data "live" (TIO)'!F100,IF($C$3=$AX$12,'data "live" (TIO)'!F220,IF($C$3=$AX$13,'data "live" (TIO)'!F340,0)))) ->  | K11: =IF($C$3=$AX$10,'data "live" (TIO)'!G460,IF($C$3=$AX$11,'data "live" (TIO)'!G100,IF($C$3=$AX$12,'data "live" (TIO)'!G220,IF($C$3=$AX$13,'data "live" (TIO)'!G340,0)))) ->  | L11: =IF($C$3=$AX$10,'data "live" (TIO)'!H460,IF($C$3=$AX$11,'data "live" (TIO)'!H100,IF($C$3=$AX$12,'data "live" (TIO)'!H220,IF($C$3=$AX$13,'data "live" (TIO)'!H340,0)))) ->  | M11: =IF($C$3=$AX$10,'data "live" (TIO)'!I460,IF($C$3=$AX$11,'data "live" (TIO)'!I100,IF($C$3=$AX$12,'data "live" (TIO)'!I220,IF($C$3=$AX$13,'data "live" (TIO)'!I340,0)))) ->  | N11: =IF($C$3=$AX$10,'data "live" (TIO)'!J460,IF($C$3=$AX$11,'data "live" (TIO)'!J100,IF($C$3=$AX$12,'data "live" (TIO)'!J220,IF($C$3=$AX$13,'data "live" (TIO)'!J340,0)))) ->  | X11: =IF($C$3=$AX$10,'data "live" (TIO)'!T460,IF($C$3=$AX$11,'data "live" (TIO)'!T100,IF($C$3=$AX$12,'data "live" (TIO)'!T220,IF($C$3=$AX$13,'data "live" (TIO)'!T340,0)))) ->  | Y11: =IF($C$3=$AX$10,'data "live" (TIO)'!U460,IF($C$3=$AX$11,'data "live" (TIO)'!U100,IF($C$3=$AX$12,'data "live" (TIO)'!U220,IF($C$3=$AX$13,'data "live" (TIO)'!U340,0)))) ->  | Z11: =IF($C$3=$AX$10,'data "live" (TIO)'!V460,IF($C$3=$AX$11,'data "live" (TIO)'!V100,IF($C$3=$AX$12,'data "live" (TIO)'!V220,IF($C$3=$AX$13,'data "live" (TIO)'!V340,0)))) ->  | AA11: =IF($C$3=$AX$10,'data "live" (TIO)'!W460,IF($C$3=$AX$11,'data "live" (TIO)'!W100,IF($C$3=$AX$12,'data "live" (TIO)'!W220,IF($C$3=$AX$13,'data "live" (TIO)'!W340,0)))) ->  | AB11: =IF($C$3=$AX$10,'data "live" (TIO)'!X460,IF($C$3=$AX$11,'data "live" (TIO)'!X100,IF($C$3=$AX$12,'data "live" (TIO)'!X220,IF($C$3=$AX$13,'data "live" (TIO)'!X340,0)))) ->  | AC11: =IF($C$3=$AX$10,'data "live" (TIO)'!Y460,IF($C$3=$AX$11,'data "live" (TIO)'!Y100,IF($C$3=$AX$12,'data "live" (TIO)'!Y220,IF($C$3=$AX$13,'data "live" (TIO)'!Y340,0)))) ->  | AD11: =IF($C$3=$AX$10,'data "live" (TIO)'!Z460,IF($C$3=$AX$11,'data "live" (TIO)'!Z100,IF($C$3=$AX$12,'data "live" (TIO)'!Z220,IF($C$3=$AX$13,'data "live" (TIO)'!Z340,0)))) ->  | AF11: =IF($H$3=$AY$8,AF52,IF($H$3=$AY$9,AF64,IF($H$3=$AY$10,AF92,AF40))) ->  | AT11: 5 | AU11: 56 | AV11: 0.02 | AW11: peak | AX11: BUS NETWORK
B12: total net service/ operations/ amenity expenditure | G12: =IF($C$3=$AX$10,'data "live" (TIO)'!C480,IF($C$3=$AX$11,'data "live" (TIO)'!C120,IF($C$3=$AX$12,'data "live" (TIO)'!C240,IF($C$3=$AX$13,'data "live" (TIO)'!C360,0)))) ->  | H12: =IF($C$3=$AX$10,'data "live" (TIO)'!D480,IF($C$3=$AX$11,'data "live" (TIO)'!D120,IF($C$3=$AX$12,'data "live" (TIO)'!D240,IF($C$3=$AX$13,'data "live" (TIO)'!D360,0)))) ->  | I12: =IF($C$3=$AX$10,'data "live" (TIO)'!E480,IF($C$3=$AX$11,'data "live" (TIO)'!E120,IF($C$3=$AX$12,'data "live" (TIO)'!E240,IF($C$3=$AX$13,'data "live" (TIO)'!E360,0)))) ->  | J12: =IF($C$3=$AX$10,'data "live" (TIO)'!F480,IF($C$3=$AX$11,'data "live" (TIO)'!F120,IF($C$3=$AX$12,'data "live" (TIO)'!F240,IF($C$3=$AX$13,'data "live" (TIO)'!F360,0)))) ->  | K12: =IF($C$3=$AX$10,'data "live" (TIO)'!G480,IF($C$3=$AX$11,'data "live" (TIO)'!G120,IF($C$3=$AX$12,'data "live" (TIO)'!G240,IF($C$3=$AX$13,'data "live" (TIO)'!G360,0)))) ->  | L12: =IF($C$3=$AX$10,'data "live" (TIO)'!H480,IF($C$3=$AX$11,'data "live" (TIO)'!H120,IF($C$3=$AX$12,'data "live" (TIO)'!H240,IF($C$3=$AX$13,'data "live" (TIO)'!H360,0)))) ->  | M12: =IF($C$3=$AX$10,'data "live" (TIO)'!I480,IF($C$3=$AX$11,'data "live" (TIO)'!I120,IF($C$3=$AX$12,'data "live" (TIO)'!I240,IF($C$3=$AX$13,'data "live" (TIO)'!I360,0)))) ->  | N12: =IF($C$3=$AX$10,'data "live" (TIO)'!J480,IF($C$3=$AX$11,'data "live" (TIO)'!J120,IF($C$3=$AX$12,'data "live" (TIO)'!J240,IF($C$3=$AX$13,'data "live" (TIO)'!J360,0)))) ->  | X12: =IF($C$3=$AX$10,'data "live" (TIO)'!T480,IF($C$3=$AX$11,'data "live" (TIO)'!T120,IF($C$3=$AX$12,'data "live" (TIO)'!T240,IF($C$3=$AX$13,'data "live" (TIO)'!T360,0)))) ->  | Y12: =IF($C$3=$AX$10,'data "live" (TIO)'!U480,IF($C$3=$AX$11,'data "live" (TIO)'!U120,IF($C$3=$AX$12,'data "live" (TIO)'!U240,IF($C$3=$AX$13,'data "live" (TIO)'!U360,0)))) ->  | Z12: =IF($C$3=$AX$10,'data "live" (TIO)'!V480,IF($C$3=$AX$11,'data "live" (TIO)'!V120,IF($C$3=$AX$12,'data "live" (TIO)'!V240,IF($C$3=$AX$13,'data "live" (TIO)'!V360,0)))) ->  | AA12: =IF($C$3=$AX$10,'data "live" (TIO)'!W480,IF($C$3=$AX$11,'data "live" (TIO)'!W120,IF($C$3=$AX$12,'data "live" (TIO)'!W240,IF($C$3=$AX$13,'data "live" (TIO)'!W360,0)))) ->  | AB12: =IF($C$3=$AX$10,'data "live" (TIO)'!X480,IF($C$3=$AX$11,'data "live" (TIO)'!X120,IF($C$3=$AX$12,'data "live" (TIO)'!X240,IF($C$3=$AX$13,'data "live" (TIO)'!X360,0)))) ->  | AC12: =IF($C$3=$AX$10,'data "live" (TIO)'!Y480,IF($C$3=$AX$11,'data "live" (TIO)'!Y120,IF($C$3=$AX$12,'data "live" (TIO)'!Y240,IF($C$3=$AX$13,'data "live" (TIO)'!Y360,0)))) ->  | AD12: =IF($C$3=$AX$10,'data "live" (TIO)'!Z480,IF($C$3=$AX$11,'data "live" (TIO)'!Z120,IF($C$3=$AX$12,'data "live" (TIO)'!Z240,IF($C$3=$AX$13,'data "live" (TIO)'!Z360,0)))) ->  | AF12: =IF($H$3=$AY$8,AF53,IF($H$3=$AY$9,AF65,IF($H$3=$AY$10,AF93,AF41))) ->  | AT12: 6 | AV12: 0.03 | AW12: off-peak | AX12: FERRY NETWORK
B13: fare revenue (incl all fare substitutes) | C13: S.T variance: | D13: DEFAULT | E13: continuous | G13: =IF($C$3=$AX$10,'data "live" (TIO)'!C440,IF($C$3=$AX$11,'data "live" (TIO)'!C80,IF($C$3=$AX$12,'data "live" (TIO)'!C200,IF($C$3=$AX$13,'data "live" (TIO)'!C320,0)))) ->  | H13: =IF($C$3=$AX$10,'data "live" (TIO)'!D440,IF($C$3=$AX$11,'data "live" (TIO)'!D80,IF($C$3=$AX$12,'data "live" (TIO)'!D200,IF($C$3=$AX$13,'data "live" (TIO)'!D320,0)))) ->  | I13: =IF($C$3=$AX$10,'data "live" (TIO)'!E440,IF($C$3=$AX$11,'data "live" (TIO)'!E80,IF($C$3=$AX$12,'data "live" (TIO)'!E200,IF($C$3=$AX$13,'data "live" (TIO)'!E320,0)))) ->  | J13: =IF($C$3=$AX$10,'data "live" (TIO)'!F440,IF($C$3=$AX$11,'data "live" (TIO)'!F80,IF($C$3=$AX$12,'data "live" (TIO)'!F200,IF($C$3=$AX$13,'data "live" (TIO)'!F320,0)))) ->  | K13: =IF($C$3=$AX$10,'data "live" (TIO)'!G440,IF($C$3=$AX$11,'data "live" (TIO)'!G80,IF($C$3=$AX$12,'data "live" (TIO)'!G200,IF($C$3=$AX$13,'data "live" (TIO)'!G320,0)))) ->  | L13: =IF($C$3=$AX$10,'data "live" (TIO)'!H440,IF($C$3=$AX$11,'data "live" (TIO)'!H80,IF($C$3=$AX$12,'data "live" (TIO)'!H200,IF($C$3=$AX$13,'data "live" (TIO)'!H320,0)))) ->  | M13: =IF($C$3=$AX$10,'data "live" (TIO)'!I440,IF($C$3=$AX$11,'data "live" (TIO)'!I80,IF($C$3=$AX$12,'data "live" (TIO)'!I200,IF($C$3=$AX$13,'data "live" (TIO)'!I320,0)))) ->  | N13: =IF($C$3=$AX$10,'data "live" (TIO)'!J440,IF($C$3=$AX$11,'data "live" (TIO)'!J80,IF($C$3=$AX$12,'data "live" (TIO)'!J200,IF($C$3=$AX$13,'data "live" (TIO)'!J320,0)))) ->  | O13: =IF($E$13=$AW$5,BE13,BO13) ->  | P13: =IF($E$13=$AW$3,BP13,IF($E$13=$AW$5,BF13,IF($E$13=$AW$6,BF13,BP13))) ->  | Q13: =IF($E$13=$AW$5,BG13,IF($E$13=$AW$6,BG13,IF($E$13=$AW$7,BG13,IF($E$13=$AW$8,BQ13,BQ13)))) ->  | R13: =IF($E$13=$AW$5,BH13,IF($E$13=$AW$6,BH13,IF($E$13=$AW$7,BH13,IF($E$13=$AW$8,BH13,BR13)))) ->  | S13: =IF($E$13=$AW$3,BS13,BI13) ->  | T13: =IF($E$13=$AW$3,BT13,BJ13) ->  | U13: =IF($E$13=$AW$3,BU13,BK13) ->  | V13: =IF($E$13=$AW$3,BV13,BL13) ->  | X13: =IF($C$3=$AX$10,'data "live" (TIO)'!T440,IF($C$3=$AX$11,'data "live" (TIO)'!T80,IF($C$3=$AX$12,'data "live" (TIO)'!T200,IF($C$3=$AX$13,'data "live" (TIO)'!T320,0)))) ->  | Y13: =IF($C$3=$AX$10,'data "live" (TIO)'!U440,IF($C$3=$AX$11,'data "live" (TIO)'!U80,IF($C$3=$AX$12,'data "live" (TIO)'!U200,IF($C$3=$AX$13,'data "live" (TIO)'!U320,0)))) ->  | Z13: =IF($C$3=$AX$10,'data "live" (TIO)'!V440,IF($C$3=$AX$11,'data "live" (TIO)'!V80,IF($C$3=$AX$12,'data "live" (TIO)'!V200,IF($C$3=$AX$13,'data "live" (TIO)'!V320,0)))) ->  | AA13: =IF($C$3=$AX$10,'data "live" (TIO)'!W440,IF($C$3=$AX$11,'data "live" (TIO)'!W80,IF($C$3=$AX$12,'data "live" (TIO)'!W200,IF($C$3=$AX$13,'data "live" (TIO)'!W320,0)))) ->  | AB13: =IF($C$3=$AX$10,'data "live" (TIO)'!X440,IF($C$3=$AX$11,'data "live" (TIO)'!X80,IF($C$3=$AX$12,'data "live" (TIO)'!X200,IF($C$3=$AX$13,'data "live" (TIO)'!X320,0)))) ->  | AC13: =IF($C$3=$AX$10,'data "live" (TIO)'!Y440,IF($C$3=$AX$11,'data "live" (TIO)'!Y80,IF($C$3=$AX$12,'data "live" (TIO)'!Y200,IF($C$3=$AX$13,'data "live" (TIO)'!Y320,0)))) ->  | AD13: =IF($C$3=$AX$10,'data "live" (TIO)'!Z440,IF($C$3=$AX$11,'data "live" (TIO)'!Z80,IF($C$3=$AX$12,'data "live" (TIO)'!Z200,IF($C$3=$AX$13,'data "live" (TIO)'!Z320,0)))) ->  | AF13: =IF($H$3=$AY$8,AF54,IF($H$3=$AY$9,AF66,IF($H$3=$AY$10,AF94,AF42))) ->  | AT13: 7 | AV13: 0.04 | AW13: peak/off-peak | AX13: RAIL NETWORK | BN13: =IF($D$13=$AV$9,BD13,BD13*(1+$D$13)) -> 
AT14: 8 | AU14: 52 | AV14: 0.05
AT15: 24
B16: NETWORK | G16: actual | H16: actual | I16: actual | J16: actual | K16: actual | L16: forecast | M16: forecast | N16: forecast | O16: forecast | P16: forecast | Q16: forecast | R16: forecast | S16: forecast | T16: forecast | U16: forecast | V16: forecast | X16: actual | Y16: actual | Z16: actual | AA16: actual | AB16: actual | AC16: forecast | AD16: forecast | AE16: forecast | AF16: forecast | AG16: forecast | AH16: forecast | AI16: forecast | AJ16: forecast | AK16: forecast | AL16: forecast | AM16: forecast | AT16: 25
B17: patronage | G17: =G8+#REF!+#REF! ->  | H17: =H8+#REF!+#REF! ->  | I17: =I8+#REF!+#REF! ->  | J17: =J8+#REF!+#REF! ->  | K17: =K8+#REF!+#REF! ->  | L17: =BB8+#REF!+#REF! ->  | M17: =BC8+#REF!+#REF! ->  | N17: =BD8+#REF!+#REF! ->  | O17: =BE8+#REF!+#REF! ->  | P17: =BF8+#REF!+#REF! ->  | Q17: =BG8+#REF!+#REF! ->  | R17: =BH8+#REF!+#REF! ->  | S17: =BI8+#REF!+#REF! ->  | T17: =BJ8+#REF!+#REF! ->  | U17: =BK8+#REF!+#REF! ->  | V17: =BL8+#REF!+#REF! ->  | X17: =X8+#REF!+#REF! ->  | Y17: =Y8+#REF!+#REF! ->  | Z17: =Z8+#REF!+#REF! ->  | AA17: =AA8+#REF!+#REF! ->  | AB17: =AB8+#REF!+#REF! ->  | AC17: =BS8+#REF!+#REF! ->  | AD17: =BT8+#REF!+#REF! ->  | AE17: =BU8+#REF!+#REF! ->  | AF17: =BV8+#REF!+#REF! ->  | AG17: =BW8+#REF!+#REF! ->  | AH17: =BX8+#REF!+#REF! ->  | AI17: =BY8+#REF!+#REF! ->  | AJ17: =BZ8+#REF!+#REF! ->  | AK17: =CA8+#REF!+#REF! ->  | AL17: =CB8+#REF!+#REF! ->  | AM17: =CC8+#REF!+#REF! ->  | AT17: 26
B18: passenger kilometres | G18: =G9+#REF!+#REF! ->  | H18: =H9+#REF!+#REF! ->  | I18: =I9+#REF!+#REF! ->  | J18: =J9+#REF!+#REF! ->  | K18: =K9+#REF!+#REF! ->  | L18: =BB9+#REF!+#REF! ->  | M18: =BC9+#REF!+#REF! ->  | N18: =BD9+#REF!+#REF! ->  | O18: =BE9+#REF!+#REF! ->  | P18: =BF9+#REF!+#REF! ->  | Q18: =BG9+#REF!+#REF! ->  | R18: =BH9+#REF!+#REF! ->  | S18: =BI9+#REF!+#REF! ->  | T18: =BJ9+#REF!+#REF! ->  | U18: =BK9+#REF!+#REF! ->  | V18: =BL9+#REF!+#REF! ->  | X18: =X9+#REF!+#REF! ->  | Y18: =Y9+#REF!+#REF! ->  | Z18: =Z9+#REF!+#REF! ->  | AA18: =AA9+#REF!+#REF! ->  | AB18: =AB9+#REF!+#REF! ->  | AC18: =BS9+#REF!+#REF! ->  | AD18: =BT9+#REF!+#REF! ->  | AE18: =BU9+#REF!+#REF! ->  | AF18: =BV9+#REF!+#REF! ->  | AG18: =BW9+#REF!+#REF! ->  | AH18: =BX9+#REF!+#REF! ->  | AI18: =BY9+#REF!+#REF! ->  | AJ18: =BZ9+#REF!+#REF! ->  | AK18: =CA9+#REF!+#REF! ->  | AL18: =CB9+#REF!+#REF! ->  | AM18: =CC9+#REF!+#REF! ->  | AT18: 27
B19: in service vehicle kilometres | G19: =G10+#REF!+#REF! ->  | H19: =H10+#REF!+#REF! ->  | I19: =I10+#REF!+#REF! ->  | J19: =J10+#REF!+#REF! ->  | K19: =K10+#REF!+#REF! ->  | L19: =BB10+#REF!+#REF! ->  | M19: =BC10+#REF!+#REF! ->  | N19: =BD10+#REF!+#REF! ->  | O19: =BE10+#REF!+#REF! ->  | P19: =BF10+#REF!+#REF! ->  | Q19: =BG10+#REF!+#REF! ->  | R19: =BH10+#REF!+#REF! ->  | S19: =BI10+#REF!+#REF! ->  | T19: =BJ10+#REF!+#REF! ->  | U19: =BK10+#REF!+#REF! ->  | V19: =BL10+#REF!+#REF! ->  | X19: =X10+#REF!+#REF! ->  | Y19: =Y10+#REF!+#REF! ->  | Z19: =Z10+#REF!+#REF! ->  | AA19: =AA10+#REF!+#REF! ->  | AB19: =AB10+#REF!+#REF! ->  | AC19: =BS10+#REF!+#REF! ->  | AD19: =BT10+#REF!+#REF! ->  | AE19: =BU10+#REF!+#REF! ->  | AF19: =BV10+#REF!+#REF! ->  | AG19: =BW10+#REF!+#REF! ->  | AH19: =BX10+#REF!+#REF! ->  | AI19: =BY10+#REF!+#REF! ->  | AJ19: =BZ10+#REF!+#REF! ->  | AK19: =CA10+#REF!+#REF! ->  | AL19: =CB10+#REF!+#REF! ->  | AM19: =CC10+#REF!+#REF! ->  | AT19: 28
B20: total net service expenditure | G20: =G11+#REF!+#REF! ->  | H20: =H11+#REF!+#REF! ->  | I20: =I11+#REF!+#REF! ->  | J20: =J11+#REF!+#REF! ->  | K20: =K11+#REF!+#REF! ->  | L20: =BB11+#REF!+#REF! ->  | M20: =BC11+#REF!+#REF! ->  | N20: =BD11+#REF!+#REF! ->  | O20: =BE11+#REF!+#REF! ->  | P20: =BF11+#REF!+#REF! ->  | Q20: =BG11+#REF!+#REF! ->  | R20: =BH11+#REF!+#REF! ->  | S20: =BI11+#REF!+#REF! ->  | T20: =BJ11+#REF!+#REF! ->  | U20: =BK11+#REF!+#REF! ->  | V20: =BL11+#REF!+#REF! ->  | X20: =X11+#REF!+#REF! ->  | Y20: =Y11+#REF!+#REF! ->  | Z20: =Z11+#REF!+#REF! ->  | AA20: =AA11+#REF!+#REF! ->  | AB20: =AB11+#REF!+#REF! ->  | AC20: =BS11+#REF!+#REF! ->  | AD20: =BT11+#REF!+#REF! ->  | AE20: =BU11+#REF!+#REF! ->  | AF20: =BV11+#REF!+#REF! ->  | AG20: =BW11+#REF!+#REF! ->  | AH20: =BX11+#REF!+#REF! ->  | AI20: =BY11+#REF!+#REF! ->  | AJ20: =BZ11+#REF!+#REF! ->  | AK20: =CA11+#REF!+#REF! ->  | AL20: =CB11+#REF!+#REF! ->  | AM20: =CC11+#REF!+#REF! ->  | AT20: 29
B21: total net service/ operations expenditure | G21: =G12+#REF!+#REF! ->  | H21: =H12+#REF!+#REF! ->  | I21: =I12+#REF!+#REF! ->  | J21: =J12+#REF!+#REF! ->  | K21: =K12+#REF!+#REF! ->  | L21: =BB12+#REF!+#REF! ->  | M21: =BC12+#REF!+#REF! ->  | N21: =BD12+#REF!+#REF! ->  | O21: =BE12+#REF!+#REF! ->  | P21: =BF12+#REF!+#REF! ->  | Q21: =BG12+#REF!+#REF! ->  | R21: =BH12+#REF!+#REF! ->  | S21: =BI12+#REF!+#REF! ->  | T21: =BJ12+#REF!+#REF! ->  | U21: =BK12+#REF!+#REF! ->  | V21: =BL12+#REF!+#REF! ->  | X21: =X12+#REF!+#REF! ->  | Y21: =Y12+#REF!+#REF! ->  | Z21: =Z12+#REF!+#REF! ->  | AA21: =AA12+#REF!+#REF! ->  | AB21: =AB12+#REF!+#REF! ->  | AC21: =BS12+#REF!+#REF! ->  | AD21: =BT12+#REF!+#REF! ->  | AE21: =BU12+#REF!+#REF! ->  | AF21: =BV12+#REF!+#REF! ->  | AG21: =BW12+#REF!+#REF! ->  | AH21: =BX12+#REF!+#REF! ->  | AI21: =BY12+#REF!+#REF! ->  | AJ21: =BZ12+#REF!+#REF! ->  | AK21: =CA12+#REF!+#REF! ->  | AL21: =CB12+#REF!+#REF! ->  | AM21: =CC12+#REF!+#REF! ->  | AT21: 30
B22: fare revenue (incl all fare substitutes) | G22: =G13+#REF!+#REF! ->  | H22: =H13+#REF!+#REF! ->  | I22: =I13+#REF!+#REF! ->  | J22: =J13+#REF!+#REF! ->  | K22: =K13+#REF!+#REF! ->  | L22: =BB13+#REF!+#REF! ->  | M22: =BC13+#REF!+#REF! ->  | N22: =BD13+#REF!+#REF! ->  | O22: =BE13+#REF!+#REF! ->  | P22: =BF13+#REF!+#REF! ->  | Q22: =BG13+#REF!+#REF! ->  | R22: =BH13+#REF!+#REF! ->  | S22: =BI13+#REF!+#REF! ->  | T22: =BJ13+#REF!+#REF! ->  | U22: =BK13+#REF!+#REF! ->  | V22: =BL13+#REF!+#REF! ->  | X22: =X13+#REF!+#REF! ->  | Y22: =Y13+#REF!+#REF! ->  | Z22: =Z13+#REF!+#REF! ->  | AA22: =AA13+#REF!+#REF! ->  | AB22: =AB13+#REF!+#REF! ->  | AC22: =BS13+#REF!+#REF! ->  | AD22: =BT13+#REF!+#REF! ->  | AE22: =BU13+#REF!+#REF! ->  | AF22: =BV13+#REF!+#REF! ->  | AG22: =BW13+#REF!+#REF! ->  | AH22: =BX13+#REF!+#REF! ->  | AI22: =BY13+#REF!+#REF! ->  | AJ22: =BZ13+#REF!+#REF! ->  | AK22: =CA13+#REF!+#REF! ->  | AL22: =CB13+#REF!+#REF! ->  | AM22: =CC13+#REF!+#REF! ->  | AT22: 31
AT23: 32
G24: actual | H24: actual | I24: actual | J24: actual | K24: actual | L24: forecast | M24: forecast | N24: forecast | O24: forecast | P24: forecast | Q24: forecast | R24: forecast | S24: forecast | T24: forecast | U24: forecast | V24: forecast | X24: actual | Y24: actual | Z24: actual | AA24: actual | AB24: actual | AC24: forecast | AD24: forecast | AE24: forecast | AF24: forecast | AG24: forecast | AH24: forecast | AI24: forecast | AJ24: forecast | AK24: forecast | AL24: forecast | AM24: forecast | AT24: 33
B25: patronage | AT25: 34
B26: passenger kilometres | AT26: 35
B27: in service vehicle kilometres | AT27: 36
B28: total net service expenditure | AT28: 37
B29: total net service/ operations expenditure | AT29: 38
B30: fare revenue (incl all fare substitutes) | AT30: 39
AT31: 6
A33: > | B33: DEFAULT (PROGRAMME SUBMISSION OR DO MINIMUM)
B36: =C3 -> total network | G36: =G$7 -> actual | H36: actual | I36: actual | J36: actual | K36: actual | L36: actual | M36: actual | N36: actual | O36: forecast | P36: forecast | Q36: forecast | R36: forecast | S36: forecast | T36: forecast | U36: forecast | V36: forecast | X36: percentage change | Y36: percentage change | Z36: percentage change | AA36: percentage change | AB36: percentage change | AC36: percentage change | AD36: percentage change | AE36: percentage change | AF36: percentage change | AG36: percentage change | AH36: percentage change | AI36: percentage change | AJ36: percentage change | AK36: percentage change | AL36: percentage change | AM36: percentage change | AT36: 1 | AU36: 250
B37: patronage | G37: =G8 ->  | N37: =N8 ->  | O37: =IF($C$3=$AX$10,'data "live" (TIO)'!K380,IF($C$3=$AX$11,'data "live" (TIO)'!K20,IF($C$3=$AX$12,'data "live" (TIO)'!K140,IF($C$3=$AX$13,'data "live" (TIO)'!K260,0)))) ->  | P37: =IF($C$3=$AX$10,'data "live" (TIO)'!L380,IF($C$3=$AX$11,'data "live" (TIO)'!L20,IF($C$3=$AX$12,'data "live" (TIO)'!L140,IF($C$3=$AX$13,'data "live" (TIO)'!L260,0)))) ->  | Q37: =IF($C$3=$AX$10,'data "live" (TIO)'!M380,IF($C$3=$AX$11,'data "live" (TIO)'!M20,IF($C$3=$AX$12,'data "live" (TIO)'!M140,IF($C$3=$AX$13,'data "live" (TIO)'!M260,0)))) ->  | R37: =IF($C$3=$AX$10,'data "live" (TIO)'!N380,IF($C$3=$AX$11,'data "live" (TIO)'!N20,IF($C$3=$AX$12,'data "live" (TIO)'!N140,IF($C$3=$AX$13,'data "live" (TIO)'!N260,0)))) ->  | S37: =IF($C$3=$AX$10,'data "live" (TIO)'!O380,IF($C$3=$AX$11,'data "live" (TIO)'!O20,IF($C$3=$AX$12,'data "live" (TIO)'!O140,IF($C$3=$AX$13,'data "live" (TIO)'!O260,0)))) ->  | T37: =IF($C$3=$AX$10,'data "live" (TIO)'!P380,IF($C$3=$AX$11,'data "live" (TIO)'!P20,IF($C$3=$AX$12,'data "live" (TIO)'!P140,IF($C$3=$AX$13,'data "live" (TIO)'!P260,0)))) ->  | U37: =IF($C$3=$AX$10,'data "live" (TIO)'!Q380,IF($C$3=$AX$11,'data "live" (TIO)'!Q20,IF($C$3=$AX$12,'data "live" (TIO)'!Q140,IF($C$3=$AX$13,'data "live" (TIO)'!Q260,0)))) ->  | V37: =IF($C$3=$AX$10,'data "live" (TIO)'!R380,IF($C$3=$AX$11,'data "live" (TIO)'!R20,IF($C$3=$AX$12,'data "live" (TIO)'!R140,IF($C$3=$AX$13,'data "live" (TIO)'!R260,0)))) ->  | Z37: =Z8 ->  | AE37: 0 | AF37: =O37/$N37-1 ->  | AG37: =P37/$N37-1 ->  | AH37: =Q37/$N37-1 ->  | AI37: =R37/$N37-1 ->  | AJ37: =S37/$N37-1 ->  | AK37: =T37/$N37-1 ->  | AL37: =U37/$N37-1 ->  | AM37: =V37/$N37-1 ->  | AT37: 2 | AU37: 260 | AX37: PROGRAMME-NO TRIALS
B38: passenger kilometres | O38: =IF($C$3=$AX$10,'data "live" (TIO)'!K400,IF($C$3=$AX$11,'data "live" (TIO)'!K40,IF($C$3=$AX$12,'data "live" (TIO)'!K160,IF($C$3=$AX$13,'data "live" (TIO)'!K280,0)))) ->  | P38: =IF($C$3=$AX$10,'data "live" (TIO)'!L400,IF($C$3=$AX$11,'data "live" (TIO)'!L40,IF($C$3=$AX$12,'data "live" (TIO)'!L160,IF($C$3=$AX$13,'data "live" (TIO)'!L280,0)))) ->  | Q38: =IF($C$3=$AX$10,'data "live" (TIO)'!M400,IF($C$3=$AX$11,'data "live" (TIO)'!M40,IF($C$3=$AX$12,'data "live" (TIO)'!M160,IF($C$3=$AX$13,'data "live" (TIO)'!M280,0)))) ->  | R38: =IF($C$3=$AX$10,'data "live" (TIO)'!N400,IF($C$3=$AX$11,'data "live" (TIO)'!N40,IF($C$3=$AX$12,'data "live" (TIO)'!N160,IF($C$3=$AX$13,'data "live" (TIO)'!N280,0)))) ->  | S38: =IF($C$3=$AX$10,'data "live" (TIO)'!O400,IF($C$3=$AX$11,'data "live" (TIO)'!O40,IF($C$3=$AX$12,'data "live" (TIO)'!O160,IF($C$3=$AX$13,'data "live" (TIO)'!O280,0)))) ->  | T38: =IF($C$3=$AX$10,'data "live" (TIO)'!P400,IF($C$3=$AX$11,'data "live" (TIO)'!P40,IF($C$3=$AX$12,'data "live" (TIO)'!P160,IF($C$3=$AX$13,'data "live" (TIO)'!P280,0)))) ->  | U38: =IF($C$3=$AX$10,'data "live" (TIO)'!Q400,IF($C$3=$AX$11,'data "live" (TIO)'!Q40,IF($C$3=$AX$12,'data "live" (TIO)'!Q160,IF($C$3=$AX$13,'data "live" (TIO)'!Q280,0)))) ->  | V38: =IF($C$3=$AX$10,'data "live" (TIO)'!R400,IF($C$3=$AX$11,'data "live" (TIO)'!R40,IF($C$3=$AX$12,'data "live" (TIO)'!R160,IF($C$3=$AX$13,'data "live" (TIO)'!R280,0)))) ->  | Y38: =Y9 ->  | AE38: 0 | AF38: =O38/$N38-1 ->  | AT38: 3 | AU38: 375 | AX38: PROGRAMME-WITH TRIALS
B39: in service vehicle kilometres | O39: =IF($C$3=$AX$10,'data "live" (TIO)'!K420,IF($C$3=$AX$11,'data "live" (TIO)'!K60,IF($C$3=$AX$12,'data "live" (TIO)'!K180,IF($C$3=$AX$13,'data "live" (TIO)'!K300,0)))) ->  | P39: =IF($C$3=$AX$10,'data "live" (TIO)'!L420,IF($C$3=$AX$11,'data "live" (TIO)'!L60,IF($C$3=$AX$12,'data "live" (TIO)'!L180,IF($C$3=$AX$13,'data "live" (TIO)'!L300,0)))) ->  | Q39: =IF($C$3=$AX$10,'data "live" (TIO)'!M420,IF($C$3=$AX$11,'data "live" (TIO)'!M60,IF($C$3=$AX$12,'data "live" (TIO)'!M180,IF($C$3=$AX$13,'data "live" (TIO)'!M300,0)))) ->  | R39: =IF($C$3=$AX$10,'data "live" (TIO)'!N420,IF($C$3=$AX$11,'data "live" (TIO)'!N60,IF($C$3=$AX$12,'data "live" (TIO)'!N180,IF($C$3=$AX$13,'data "live" (TIO)'!N300,0)))) ->  | S39: =IF($C$3=$AX$10,'data "live" (TIO)'!O420,IF($C$3=$AX$11,'data "live" (TIO)'!O60,IF($C$3=$AX$12,'data "live" (TIO)'!O180,IF($C$3=$AX$13,'data "live" (TIO)'!O300,0)))) ->  | T39: =IF($C$3=$AX$10,'data "live" (TIO)'!P420,IF($C$3=$AX$11,'data "live" (TIO)'!P60,IF($C$3=$AX$12,'data "live" (TIO)'!P180,IF($C$3=$AX$13,'data "live" (TIO)'!P300,0)))) ->  | U39: =IF($C$3=$AX$10,'data "live" (TIO)'!Q420,IF($C$3=$AX$11,'data "live" (TIO)'!Q60,IF($C$3=$AX$12,'data "live" (TIO)'!Q180,IF($C$3=$AX$13,'data "live" (TIO)'!Q300,0)))) ->  | V39: =IF($C$3=$AX$10,'data "live" (TIO)'!R420,IF($C$3=$AX$11,'data "live" (TIO)'!R60,IF($C$3=$AX$12,'data "live" (TIO)'!R180,IF($C$3=$AX$13,'data "live" (TIO)'!R300,0)))) ->  | Y39: =Y10 ->  | AE39: 0 | AT39: 4
B40: total net service expenditure | O40: =IF($C$3=$AX$10,'data "live" (TIO)'!K460,IF($C$3=$AX$11,'data "live" (TIO)'!K100,IF($C$3=$AX$12,'data "live" (TIO)'!K220,IF($C$3=$AX$13,'data "live" (TIO)'!K340,0)))) ->  | P40: =IF($C$3=$AX$10,'data "live" (TIO)'!L460,IF($C$3=$AX$11,'data "live" (TIO)'!L100,IF($C$3=$AX$12,'data "live" (TIO)'!L220,IF($C$3=$AX$13,'data "live" (TIO)'!L340,0)))) ->  | Q40: =IF($C$3=$AX$10,'data "live" (TIO)'!M460,IF($C$3=$AX$11,'data "live" (TIO)'!M100,IF($C$3=$AX$12,'data "live" (TIO)'!M220,IF($C$3=$AX$13,'data "live" (TIO)'!M340,0)))) ->  | R40: =IF($C$3=$AX$10,'data "live" (TIO)'!N460,IF($C$3=$AX$11,'data "live" (TIO)'!N100,IF($C$3=$AX$12,'data "live" (TIO)'!N220,IF($C$3=$AX$13,'data "live" (TIO)'!N340,0)))) ->  | S40: =IF($C$3=$AX$10,'data "live" (TIO)'!O460,IF($C$3=$AX$11,'data "live" (TIO)'!O100,IF($C$3=$AX$12,'data "live" (TIO)'!O220,IF($C$3=$AX$13,'data "live" (TIO)'!O340,0)))) ->  | T40: =IF($C$3=$AX$10,'data "live" (TIO)'!P460,IF($C$3=$AX$11,'data "live" (TIO)'!P100,IF($C$3=$AX$12,'data "live" (TIO)'!P220,IF($C$3=$AX$13,'data "live" (TIO)'!P340,0)))) ->  | U40: =IF($C$3=$AX$10,'data "live" (TIO)'!Q460,IF($C$3=$AX$11,'data "live" (TIO)'!Q100,IF($C$3=$AX$12,'data "live" (TIO)'!Q220,IF($C$3=$AX$13,'data "live" (TIO)'!Q340,0)))) ->  | V40: =IF($C$3=$AX$10,'data "live" (TIO)'!R460,IF($C$3=$AX$11,'data "live" (TIO)'!R100,IF($C$3=$AX$12,'data "live" (TIO)'!R220,IF($C$3=$AX$13,'data "live" (TIO)'!R340,0)))) ->  | Y40: =Y11 ->  | AE40: 0 | AT40: 5 | AU40: 56 | AW40: peak
B41: total net service/ operations expenditure | O41: =IF($C$3=$AX$10,'data "live" (TIO)'!K480,IF($C$3=$AX$11,'data "live" (TIO)'!K120,IF($C$3=$AX$12,'data "live" (TIO)'!K240,IF($C$3=$AX$13,'data "live" (TIO)'!K360,0)))) ->  | P41: =IF($C$3=$AX$10,'data "live" (TIO)'!L480,IF($C$3=$AX$11,'data "live" (TIO)'!L120,IF($C$3=$AX$12,'data "live" (TIO)'!L240,IF($C$3=$AX$13,'data "live" (TIO)'!L360,0)))) ->  | Q41: =IF($C$3=$AX$10,'data "live" (TIO)'!M480,IF($C$3=$AX$11,'data "live" (TIO)'!M120,IF($C$3=$AX$12,'data "live" (TIO)'!M240,IF($C$3=$AX$13,'data "live" (TIO)'!M360,0)))) ->  | R41: =IF($C$3=$AX$10,'data "live" (TIO)'!N480,IF($C$3=$AX$11,'data "live" (TIO)'!N120,IF($C$3=$AX$12,'data "live" (TIO)'!N240,IF($C$3=$AX$13,'data "live" (TIO)'!N360,0)))) ->  | S41: =IF($C$3=$AX$10,'data "live" (TIO)'!O480,IF($C$3=$AX$11,'data "live" (TIO)'!O120,IF($C$3=$AX$12,'data "live" (TIO)'!O240,IF($C$3=$AX$13,'data "live" (TIO)'!O360,0)))) ->  | T41: =IF($C$3=$AX$10,'data "live" (TIO)'!P480,IF($C$3=$AX$11,'data "live" (TIO)'!P120,IF($C$3=$AX$12,'data "live" (TIO)'!P240,IF($C$3=$AX$13,'data "live" (TIO)'!P360,0)))) ->  | U41: =IF($C$3=$AX$10,'data "live" (TIO)'!Q480,IF($C$3=$AX$11,'data "live" (TIO)'!Q120,IF($C$3=$AX$12,'data "live" (TIO)'!Q240,IF($C$3=$AX$13,'data "live" (TIO)'!Q360,0)))) ->  | V41: =IF($C$3=$AX$10,'data "live" (TIO)'!R480,IF($C$3=$AX$11,'data "live" (TIO)'!R120,IF($C$3=$AX$12,'data "live" (TIO)'!R240,IF($C$3=$AX$13,'data "live" (TIO)'!R360,0)))) ->  | Y41: =Y12 ->  | AE41: 0 | AT41: 6 | AW41: off-peak
B42: fare revenue (incl all fare substitutes) | O42: =IF($C$3=$AX$10,'data "live" (TIO)'!K440,IF($C$3=$AX$11,'data "live" (TIO)'!K80,IF($C$3=$AX$12,'data "live" (TIO)'!K200,IF($C$3=$AX$13,'data "live" (TIO)'!K320,0)))) ->  | P42: =IF($C$3=$AX$10,'data "live" (TIO)'!L440,IF($C$3=$AX$11,'data "live" (TIO)'!L80,IF($C$3=$AX$12,'data "live" (TIO)'!L200,IF($C$3=$AX$13,'data "live" (TIO)'!L320,0)))) ->  | Q42: =IF($C$3=$AX$10,'data "live" (TIO)'!M440,IF($C$3=$AX$11,'data "live" (TIO)'!M80,IF($C$3=$AX$12,'data "live" (TIO)'!M200,IF($C$3=$AX$13,'data "live" (TIO)'!M320,0)))) ->  | R42: =IF($C$3=$AX$10,'data "live" (TIO)'!N440,IF($C$3=$AX$11,'data "live" (TIO)'!N80,IF($C$3=$AX$12,'data "live" (TIO)'!N200,IF($C$3=$AX$13,'data "live" (TIO)'!N320,0)))) ->  | S42: =IF($C$3=$AX$10,'data "live" (TIO)'!O440,IF($C$3=$AX$11,'data "live" (TIO)'!O80,IF($C$3=$AX$12,'data "live" (TIO)'!O200,IF($C$3=$AX$13,'data "live" (TIO)'!O320,0)))) ->  | T42: =IF($C$3=$AX$10,'data "live" (TIO)'!P440,IF($C$3=$AX$11,'data "live" (TIO)'!P80,IF($C$3=$AX$12,'data "live" (TIO)'!P200,IF($C$3=$AX$13,'data "live" (TIO)'!P320,0)))) ->  | U42: =IF($C$3=$AX$10,'data "live" (TIO)'!Q440,IF($C$3=$AX$11,'data "live" (TIO)'!Q80,IF($C$3=$AX$12,'data "live" (TIO)'!Q200,IF($C$3=$AX$13,'data "live" (TIO)'!Q320,0)))) ->  | V42: =IF($C$3=$AX$10,'data "live" (TIO)'!R440,IF($C$3=$AX$11,'data "live" (TIO)'!R80,IF($C$3=$AX$12,'data "live" (TIO)'!R200,IF($C$3=$AX$13,'data "live" (TIO)'!R320,0)))) ->  | Y42: =Y13 ->  | AE42: 0 | AT42: 7 | AW42: peak/off-peak
AT43: 8 | AU43: 52
A45: > | B45: SCENARIO 1 | L45: title: | AC45: title: | AD45: =M45 -> 0
B48: =B36 -> total network | G48: =G$7 -> actual | H48: =H$7 -> actual | I48: actual | J48: actual | K48: actual | L48: actual | M48: actual | N48: actual | O48: forecast | P48: forecast | Q48: forecast | R48: forecast | S48: forecast | T48: forecast | U48: forecast | V48: forecast | X48: =X$7 -> percentage change | Y48: =Y$7 -> percentage change | Z48: percentage change | AA48: percentage change | AB48: percentage change | AC48: percentage change | AD48: percentage change | AE48: percentage change | AF48: percentage change | AG48: percentage change | AH48: percentage change | AI48: percentage change | AJ48: percentage change | AK48: percentage change | AL48: percentage change | AM48: percentage change
B49: patronage | G49: =G37 ->  | N49: =N37 ->  | Y49: =Y37 -> 0 | AE49: 0 | AF49: =O49/$N49-1 ->  | AG49: =P49/$N49-1 ->  | AH49: =Q49/$N49-1 ->  | AI49: =R49/$N49-1 ->  | AJ49: =S49/$N49-1 ->  | AK49: =T49/$N49-1 ->  | AL49: =U49/$N49-1 ->  | AM49: =V49/$N49-1 -> 
B50: passenger kilometres | Y50: =Y38 ->  | AE50: 0
B51: in service vehicle kilometres | Y51: =Y39 ->  | AE51: 0
B52: total net service expenditure | Y52: =Y40 ->  | AE52: 0
B53: total net service/ operations/ amenity expenditure | Y53: =Y41 ->  | AE53: 0
B54: fare revenue (incl all fare substitutes) | Y54: =Y42 ->  | AE54: 0
A57: > | B57: SCENARIO 2 | L57: title: | AC57: title: | AD57: =M57 -> 0
B60: =B36 -> total network | G60: =G$7 -> actual | H60: actual | I60: actual | J60: actual | K60: actual | L60: actual | M60: actual | N60: actual | O60: forecast | P60: forecast | Q60: forecast | R60: forecast | S60: forecast | T60: forecast | U60: forecast | V60: forecast | X60: percentage change | Y60: percentage change | Z60: percentage change | AA60: percentage change | AB60: percentage change | AC60: percentage change | AD60: percentage change | AE60: percentage change | AF60: percentage change | AG60: percentage change | AH60: percentage change | AI60: percentage change | AJ60: percentage change | AK60: percentage change | AL60: percentage change | AM60: percentage change
B61: patronage | G61: =G49 ->  | N61: =N49 ->  | Y61: =Y49 -> 0 | AE61: 0 | AF61: =O61/$N61-1 ->  | AG61: =P61/$N61-1 ->  | AH61: =Q61/$N61-1 ->  | AI61: =R61/$N61-1 ->  | AJ61: =S61/$N61-1 ->  | AK61: =T61/$N61-1 ->  | AL61: =U61/$N61-1 ->  | AM61: =V61/$N61-1 -> 
B62: passenger kilometres | Y62: =Y50 ->  | AE62: 0
B63: in service vehicle kilometres | Y63: =Y51 ->  | AE63: 0
B64: total net service expenditure | Y64: =Y52 ->  | AE64: 0
B65: total net service/ operations/ amenity expenditure | Y65: =Y53 ->  | AE65: 0
B66: fare revenue (incl all fare substitutes) | Y66: =Y54 ->  | AE66: 0
B68: NETWORK | G68: actual | H68: actual | I68: actual | J68: actual | K68: actual | L68: forecast | M68: forecast | N68: forecast | O68: forecast | P68: forecast | Q68: forecast | R68: forecast | S68: forecast | T68: forecast | U68: forecast | V68: forecast | X68: actual | Y68: actual | Z68: actual | AA68: actual | AB68: actual | AC68: forecast | AD68: forecast | AE68: forecast | AF68: forecast | AG68: forecast | AH68: forecast | AI68: forecast | AJ68: forecast | AK68: forecast | AL68: forecast | AM68: forecast
B69: patronage | G69: =G37+G49+G61 ->  | X69: =X37+X49+X61 -> 0 | Y69: 0 | AE69: 0
B70: passenger kilometres | X70: =X38+X50+X62 -> 0 | AE70: 0
B71: in service vehicle kilometres | X71: =X39+X51+X63 -> 0 | AE71: 0
B72: total net service expenditure | X72: =X40+X52+X64 -> 0 | AE72: 0
B73: total net service/ operations expenditure | X73: =X41+X53+X65 -> 0 | AE73: 0
B74: fare revenue (incl all fare substitutes) | X74: =X42+X54+X66 -> 0 | AE74: 0
G76: actual | H76: actual | I76: actual | J76: actual | K76: actual | L76: forecast | M76: forecast | N76: forecast | O76: forecast | P76: forecast | Q76: forecast | R76: forecast | S76: forecast | T76: forecast | U76: forecast | V76: forecast | X76: actual | Y76: actual | Z76: actual | AA76: actual | AB76: actual | AC76: forecast | AD76: forecast | AE76: forecast | AF76: forecast | AG76: forecast | AH76: forecast | AI76: forecast | AJ76: forecast | AK76: forecast | AL76: forecast | AM76: forecast
B77: patronage
B78: passenger kilometres
B79: in service vehicle kilometres
B80: total net service expenditure
B81: total net service/ operations expenditure
B82: fare revenue (incl all fare substitutes)
A85: > | B85: SCENARIO 3 (PROGRAMME & IMPACT OF TRIALS) | L85: title: | M85: PROGRAMME-NO TRIALS | AC85: title: | AD85: =M85 -> PROGRAMME-NO TRIALS
B88: =B60 -> total network | G88: =G$7 -> actual | H88: actual | I88: actual | J88: actual | K88: actual | L88: actual | M88: actual | N88: actual | O88: forecast | P88: forecast | Q88: forecast | R88: forecast | S88: forecast | T88: forecast | U88: forecast | V88: forecast | X88: percentage change | Y88: percentage change | Z88: percentage change | AA88: percentage change | AB88: percentage change | AC88: percentage change | AD88: percentage change | AE88: percentage change | AF88: percentage change | AG88: percentage change | AH88: percentage change | AI88: percentage change | AJ88: percentage change | AK88: percentage change | AL88: percentage change | AM88: percentage change
B89: patronage | G89: =G37 ->  | H89: =H37 ->  | O89: =IF($M$85=$AX$38,O37+O101,O37) ->  | Y89: =Y37 -> 0 | AE89: 0 | AF89: =IF($M$85=$AX$38,AF37+AF101,AF37) -> 
B90: passenger kilometres | G90: =G38 ->  | Y90: =Y38 ->  | AE90: 0 | AF90: =IF($M$85=$AX$38,AF38+AF102,AF38) -> 
B91: in service vehicle kilometres | G91: =G39 ->  | Y91: =Y39 ->  | AE91: 0 | AF91: =IF($M$85=$AX$38,AF39+AF103,AF39) -> 
B92: total net service expenditure | G92: =G40 ->  | Y92: =Y40 ->  | AE92: 0 | AF92: =IF($M$85=$AX$38,AF40+AF104,AF40) -> 
B93: total net service/ operations/ amenity expenditure | G93: =G41 ->  | Y93: =Y41 ->  | AE93: 0 | AF93: =IF($M$85=$AX$38,AF41+AF105,AF41) -> 
B94: fare revenue (incl all fare substitutes) | G94: =G42 ->  | Y94: =Y42 ->  | AE94: 0 | AF94: =IF($M$85=$AX$38,AF42+AF106,AF42) -> 
A97: > | B97: SCENARIO X (TRIALS ONLY -TOTAL) | L97: title: | M97: Low cost- low risk improvement trials only | S97: actual | AC97: title: | AD97: Low cost- low risk improvement trials only | AJ97: actual
B100: =B71 -> in service vehicle kilometres | O100: =O$7 -> forecast | P100: forecast | Q100: forecast | R100: forecast | S100: forecast | T100: forecast | U100: forecast | V100: forecast | AF100: =AF$7 -> percentage change | AG100: percentage change | AH100: percentage change | AI100: percentage change | AJ100: percentage change | AK100: percentage change | AL100: percentage change | AM100: percentage change
B101: patronage | O101: =IF($S$97=$AX$6,'LCLR template (trial interface)'!H8,IF($S$97=$AX$7,'LCLR template (trial interface)'!H16,)) -> 0 | P101: =IF($S$97=$AX$6,'LCLR template (trial interface)'!I8,IF($S$97=$AX$7,'LCLR template (trial interface)'!I16,)) -> 0 | Q101: =IF($S$97=$AX$6,'LCLR template (trial interface)'!J8,IF($S$97=$AX$7,'LCLR template (trial interface)'!J16,)) -> 0 | R101: =IF($S$97=$AX$6,'LCLR template (trial interface)'!K8,IF($S$97=$AX$7,'LCLR template (trial interface)'!K16,)) -> 0 | S101: =IF($S$97=$AX$6,'LCLR template (trial interface)'!L8,IF($S$97=$AX$7,'LCLR template (trial interface)'!L16,)) -> 0 | AF101: =IF($S$97=$AX$6,'LCLR template (trial interface)'!Y8,IF($S$97=$AX$7,'LCLR template (trial interface)'!Y16,)) -> 0 | AG101: =IF($S$97=$AX$6,'LCLR template (trial interface)'!Z8,IF($S$97=$AX$7,'LCLR template (trial interface)'!Z16,)) -> 0 | AH101: =IF($S$97=$AX$6,'LCLR template (trial interface)'!AA8,IF($S$97=$AX$7,'LCLR template (trial interface)'!AA16,)) -> 0 | AI101: =IF($S$97=$AX$6,'LCLR template (trial interface)'!AB8,IF($S$97=$AX$7,'LCLR template (trial interface)'!AB16,)) -> 0 | AJ101: =IF($S$97=$AX$6,'LCLR template (trial interface)'!AC8,IF($S$97=$AX$7,'LCLR template (trial interface)'!AC16,)) -> 0
B102: passenger kilometres | O102: =IF($S$97=$AX$6,'LCLR template (trial interface)'!H9,IF($S$97=$AX$7,'LCLR template (trial interface)'!H17,)) -> 0 | P102: =IF($S$97=$AX$6,'LCLR template (trial interface)'!I9,IF($S$97=$AX$7,'LCLR template (trial interface)'!I17,)) -> 0 | Q102: =IF($S$97=$AX$6,'LCLR template (trial interface)'!J9,IF($S$97=$AX$7,'LCLR template (trial interface)'!J17,)) -> 0 | R102: =IF($S$97=$AX$6,'LCLR template (trial interface)'!K9,IF($S$97=$AX$7,'LCLR template (trial interface)'!K17,)) -> 0 | S102: =IF($S$97=$AX$6,'LCLR template (trial interface)'!L9,IF($S$97=$AX$7,'LCLR template (trial interface)'!L17,)) -> 0 | AF102: =IF($S$97=$AX$6,'LCLR template (trial interface)'!Y9,IF($S$97=$AX$7,'LCLR template (trial interface)'!Y17,)) -> 0 | AG102: =IF($S$97=$AX$6,'LCLR template (trial interface)'!Z9,IF($S$97=$AX$7,'LCLR template (trial interface)'!Z17,)) -> 0 | AH102: =IF($S$97=$AX$6,'LCLR template (trial interface)'!AA9,IF($S$97=$AX$7,'LCLR template (trial interface)'!AA17,)) -> 0 | AI102: =IF($S$97=$AX$6,'LCLR template (trial interface)'!AB9,IF($S$97=$AX$7,'LCLR template (trial interface)'!AB17,)) -> 0 | AJ102: =IF($S$97=$AX$6,'LCLR template (trial interface)'!AC9,IF($S$97=$AX$7,'LCLR template (trial interface)'!AC17,)) -> 0
B103: in service vehicle kilometres | O103: =IF($S$97=$AX$6,'LCLR template (trial interface)'!H10,IF($S$97=$AX$7,'LCLR template (trial interface)'!H18,)) -> 0 | P103: =IF($S$97=$AX$6,'LCLR template (trial interface)'!I10,IF($S$97=$AX$7,'LCLR template (trial interface)'!I18,)) -> 0 | Q103: =IF($S$97=$AX$6,'LCLR template (trial interface)'!J10,IF($S$97=$AX$7,'LCLR template (trial interface)'!J18,)) -> 0 | R103: =IF($S$97=$AX$6,'LCLR template (trial interface)'!K10,IF($S$97=$AX$7,'LCLR template (trial interface)'!K18,)) -> 0 | S103: =IF($S$97=$AX$6,'LCLR template (trial interface)'!L10,IF($S$97=$AX$7,'LCLR template (trial interface)'!L18,)) -> 0 | AF103: =IF($S$97=$AX$6,'LCLR template (trial interface)'!Y10,IF($S$97=$AX$7,'LCLR template (trial interface)'!Y18,)) -> 0 | AG103: =IF($S$97=$AX$6,'LCLR template (trial interface)'!Z10,IF($S$97=$AX$7,'LCLR template (trial interface)'!Z18,)) -> 0 | AH103: =IF($S$97=$AX$6,'LCLR template (trial interface)'!AA10,IF($S$97=$AX$7,'LCLR template (trial interface)'!AA18,)) -> 0 | AI103: =IF($S$97=$AX$6,'LCLR template (trial interface)'!AB10,IF($S$97=$AX$7,'LCLR template (trial interface)'!AB18,)) -> 0 | AJ103: =IF($S$97=$AX$6,'LCLR template (trial interface)'!AC10,IF($S$97=$AX$7,'LCLR template (trial interface)'!AC18,)) -> 0
B104: total net service expenditure | O104: =IF($S$97=$AX$6,'LCLR template (trial interface)'!H11,IF($S$97=$AX$7,'LCLR template (trial interface)'!H19,)) -> 0 | P104: =IF($S$97=$AX$6,'LCLR template (trial interface)'!I11,IF($S$97=$AX$7,'LCLR template (trial interface)'!I19,)) -> 0 | Q104: =IF($S$97=$AX$6,'LCLR template (trial interface)'!J11,IF($S$97=$AX$7,'LCLR template (trial interface)'!J19,)) -> 0 | R104: =IF($S$97=$AX$6,'LCLR template (trial interface)'!K11,IF($S$97=$AX$7,'LCLR template (trial interface)'!K19,)) -> 0 | S104: =IF($S$97=$AX$6,'LCLR template (trial interface)'!L11,IF($S$97=$AX$7,'LCLR template (trial interface)'!L19,)) -> 0 | AF104: =IF($S$97=$AX$6,'LCLR template (trial interface)'!Y11,IF($S$97=$AX$7,'LCLR template (trial interface)'!Y19,)) -> 0 | AG104: =IF($S$97=$AX$6,'LCLR template (trial interface)'!Z11,IF($S$97=$AX$7,'LCLR template (trial interface)'!Z19,)) -> 0 | AH104: =IF($S$97=$AX$6,'LCLR template (trial interface)'!AA11,IF($S$97=$AX$7,'LCLR template (trial interface)'!AA19,)) -> 0 | AI104: =IF($S$97=$AX$6,'LCLR template (trial interface)'!AB11,IF($S$97=$AX$7,'LCLR template (trial interface)'!AB19,)) -> 0 | AJ104: =IF($S$97=$AX$6,'LCLR template (trial interface)'!AC11,IF($S$97=$AX$7,'LCLR template (trial interface)'!AC19,)) -> 0
B105: total net service/ operations/ amenity expenditure | O105: =IF($S$97=$AX$6,'LCLR template (trial interface)'!H12,IF($S$97=$AX$7,'LCLR template (trial interface)'!H20,)) -> 0 | P105: =IF($S$97=$AX$6,'LCLR template (trial interface)'!I12,IF($S$97=$AX$7,'LCLR template (trial interface)'!I20,)) -> 0 | Q105: =IF($S$97=$AX$6,'LCLR template (trial interface)'!J12,IF($S$97=$AX$7,'LCLR template (trial interface)'!J20,)) -> 0 | R105: =IF($S$97=$AX$6,'LCLR template (trial interface)'!K12,IF($S$97=$AX$7,'LCLR template (trial interface)'!K20,)) -> 0 | S105: =IF($S$97=$AX$6,'LCLR template (trial interface)'!L12,IF($S$97=$AX$7,'LCLR template (trial interface)'!L20,)) -> 0 | AF105: =IF($S$97=$AX$6,'LCLR template (trial interface)'!Y12,IF($S$97=$AX$7,'LCLR template (trial interface)'!Y20,)) -> 0 | AG105: =IF($S$97=$AX$6,'LCLR template (trial interface)'!Z12,IF($S$97=$AX$7,'LCLR template (trial interface)'!Z20,)) -> 0 | AH105: =IF($S$97=$AX$6,'LCLR template (trial interface)'!AA12,IF($S$97=$AX$7,'LCLR template (trial interface)'!AA20,)) -> 0 | AI105: =IF($S$97=$AX$6,'LCLR template (trial interface)'!AB12,IF($S$97=$AX$7,'LCLR template (trial interface)'!AB20,)) -> 0 | AJ105: =IF($S$97=$AX$6,'LCLR template (trial interface)'!AC12,IF($S$97=$AX$7,'LCLR template (trial interface)'!AC20,)) -> 0
B106: fare revenue (incl all fare substitutes) | O106: =IF($S$97=$AX$6,'LCLR template (trial interface)'!H13,IF($S$97=$AX$7,'LCLR template (trial interface)'!H21,)) -> 0 | P106: =IF($S$97=$AX$6,'LCLR template (trial interface)'!I13,IF($S$97=$AX$7,'LCLR template (trial interface)'!I21,)) -> 0 | Q106: =IF($S$97=$AX$6,'LCLR template (trial interface)'!J13,IF($S$97=$AX$7,'LCLR template (trial interface)'!J21,)) -> 0 | R106: =IF($S$97=$AX$6,'LCLR template (trial interface)'!K13,IF($S$97=$AX$7,'LCLR template (trial interface)'!K21,)) -> 0 | S106: =IF($S$97=$AX$6,'LCLR template (trial interface)'!L13,IF($S$97=$AX$7,'LCLR template (trial interface)'!L21,)) -> 0 | AF106: =IF($S$97=$AX$6,'LCLR template (trial interface)'!Y13,IF($S$97=$AX$7,'LCLR template (trial interface)'!Y21,)) -> 0 | AG106: =IF($S$97=$AX$6,'LCLR template (trial interface)'!Z13,IF($S$97=$AX$7,'LCLR template (trial interface)'!Z21,)) -> 0 | AH106: =IF($S$97=$AX$6,'LCLR template (trial interface)'!AA13,IF($S$97=$AX$7,'LCLR template (trial interface)'!AA21,)) -> 0 | AI106: =IF($S$97=$AX$6,'LCLR template (trial interface)'!AB13,IF($S$97=$AX$7,'LCLR template (trial interface)'!AB21,)) -> 0 | AJ106: =IF($S$97=$AX$6,'LCLR template (trial interface)'!AC13,IF($S$97=$AX$7,'LCLR template (trial interface)'!AC21,)) -> 0
G108: This sheet is used to either: scenario test existing data (e.g. inclusion of additional service improvements) or to update programme data for a region being analysed for the forward programme. | X108: This sheet is used to either: scenario test existing data (e.g. inclusion of additional service improvements) or to update programme data for a region being analysed for the forward programme.
G109: >Simply overlay the pale yellow coloured cells and the existing data above with the necessary revised information and various scenarios you want to test | X109: >Simply overlay the pale yellow coloured cells and the existing data above with the necessary revised information and various scenarios you want to test
G110: >Bright yellow drop down options (top part of the dashboard) enable you to use a specific scenario to test and adjust/ vary across future years. | X110: >Bright yellow drop down options (top part of the dashboard) enable you to use a specific scenario to test and adjust/ vary across future years.
G111: NOTE: ensure the region is correct prior to inputting and assessment (go to the CBA profile sheet to alter if not) | X111: NOTE: ensure the region is correct prior to inputting and assessment (go to the CBA profile sheet to alter if not)

Sheet LCLR template (trial interface)
C2: LOW COST/ LOW RISK IMPACT (TRIAL SERVICES ONLY)
I4: 2018-21 NLTP
H6: 2017/18 | I6: 2018/19 | J6: 2019/20 | K6: 2020/21 | L6: 2021/22
C7: Forecasted impact of trials (in total): | H7: forecast | I7: forecast | J7: forecast | K7: forecast | L7: forecast
B8: Forecast | C8: patronage
B9: Forecast | C9: passenger kilometres
B10: Forecast | C10: in service vehicle kilometres
B11: Forecast | C11: total net service expenditure
B12: Forecast | C12: total net service/ operations/ amenity expenditure
B13: Forecast | C13: fare revenue (incl all fare substitutes)
C15: Actual impact of trials (in total): | H15: actual | I15: actual | J15: actual | K15: actual | L15: actual
B16: Actual | C16: patronage | H16: =H8 -> 0 | I16: 0 | J16: 0 | K16: 0 | L16: 0
B17: Actual | C17: passenger kilometres | H17: 0 | I17: 0 | J17: 0 | K17: 0 | L17: 0
B18: Actual | C18: in service vehicle kilometres | H18: 0 | I18: 0 | J18: 0 | K18: 0 | L18: 0
B19: Actual | C19: total net service expenditure | H19: 0 | I19: 0 | J19: =J11 -> 0 | K19: 0 | L19: 0
B20: Actual | C20: total net service/ operations/ amenity expenditure | H20: =H12 -> 0 | I20: 0 | J20: 0 | K20: 0 | L20: 0
B21: Actual | C21: fare revenue (incl all fare substitutes) | H21: 0 | I21: 0 | J21: 0 | K21: 0 | L21: 0

Sheet BER calc
B2: BENEFITS/ COST EFFICIENCY RATIO | D2: BER for: | G2: BER for: | M2: BENEFIT FACTOR CALCULATIONS, as applied in the EEM volume 1, 2013, adjusted with relevant update factors | AG2: BENEFIT FACTOR CALCULATIONS -2008 (as applied in the EEM volume 1, 2013)
B3: [BER] | D3: ='CBA benchmark'!B12 -> 0 | G3: =D3 -> 0 | J3: change from the previous | M3: Urban area | N3: Mode | O3: Road traffic reduction benefits | R3: Public transport user benefits | U3: Road traffic reduction benefits | V3: Public transport user benefits
D4: ='CBA benchmark'!C15 -> total network | G4: =D4 -> total network | J4: three year average to the | Z4: BUS NETWORK | AA4: Bus/Ferry | AB4: Peak | AC4: =AB4 -> Peak
B5: calculation | D5: average across: | G5: average across: | J5: =D6 -> 2018-21 | Z5: FERRY NETWORK | AA5: Bus/Ferry | AB5: Off-peak | AC5: Off peak
D6: ='CBA benchmark'!E12 -> 2018-21 | G6: ='data "live" (TIO)'!AC3 -> 2015-18 | J6: three year average: | O6: Peak | P6: Off peak | Q6: Average | R6: Peak | S6: Off peak | T6: Average | U6: =AC8 -> Average | V6: =U6 -> Average | Z6: RAIL NETWORK | AA6: Rail | AB6: peak/ off-peak | AC6: Average | AG6: Peak | AH6: Off peak | AJ6: Peak | AK6: Off peak
Z7: TOTAL NETWORK | AA7: All
B8: calculated by the following formula: | D8: as applied: | G8: as applied: | M8: User benefits updated factor applied (adjusted to July 2017): | R8: 1.19 | U8: =D3 -> 0 | Z8: =D4 -> total network | AA8: =IF(Z8=Z4,AA4,IF(Z8=Z5,AA5,IF(Z8=Z6,AA6,AA7))) -> All | AB8: ='[2]CBA benchmark'!G11 -> peak/ off-peak | AC8: =IF(AB8=AB4,AC4,IF(AB8=AB5,AC5,AC6)) -> Average
B10: PASSENGER BOARDINGS (AVERAGE P/A ACROSS 3 YEARS) | D10: ='data "live" (TIO)'!AB504/1000000 ->  | E10: (M) | G10: ='data "live" (TIO)'!AC504/1000000 ->  | H10: (M) | J10: =IF(K10>0,"+","") ->  | K10: =D10/G10-1 ->  | M10: Auckland | N10: Bus/ferry | O10: =AG10*$R$8 -> 13.9587 | P10: =AH10*$R$8 -> 0.9044 | Q10: =(O10+P10)/2 -> 7.43155 | R10: =AJ10*$R$8 -> 12.0904 | S10: =AK10*$R$8 -> 8.0563 | T10: =(R10+S10)/2 -> 10.07335 | U10: =IF($AC$8=$AC$4,O10,IF($AC$8=$AC$5,P10,Q10)) -> 7.43155 | V10: =IF($AC$8=$AC$4,R10,IF($AC$8=$AC$5,S10,T10)) -> 10.07335 | Z10: =IF(M10=M$20,1,0) ->  | AA10: =IF(N10=N$20,1,0) -> 0 | AB10: =SUM(Z10:AA10) ->  | AC10: =IF(AB10=2,U10,0) ->  | AD10: =IF(AB10=2,V10,0) ->  | AE10: Auckland | AF10: Bus/ferry | AG10: 11.73 | AH10: 0.76 | AJ10: 10.16 | AK10: 6.77
B11: x | D11: =B11 -> x | G11: =D11 -> x | M11: Auckland | N11: Rail | O11: =AG11*$R$8 -> 20.5513 | P11: =AH11*$R$8 -> 1.9635 | Q11: 11.2574 | R11: 19.9325 | S11: 13.2923 | T11: 16.6124 | U11: 11.2574 | V11: 16.6124 | Z11: =IF(M11=M$20,1,0) ->  | AA11: =IF(N11=N$20,1,0) -> 0 | AB11: =SUM(Z11:AA11) ->  | AE11: Auckland | AF11: Rail | AG11: 17.27 | AH11: 1.65 | AJ11: 16.75 | AK11: 11.17
B12: ROAD TRAFFIC REDUCTION BENEFIT FACTOR (as applied in the Economic Evaluation Manual, updated in 2008) | D12: =U20 ->  | E12: ='CBA benchmark'!G11 -> peak/ off-peak | G12: =D12 ->  | H12: =E12 -> peak/ off-peak | K12: - | M12: Auckland | N12: All | O12: 15.0059 | P12: 1.0234 | Q12: 8.01465 | R12: 12.9591 | S12: 8.6394 | T12: 10.79925 | U12: 8.01465 | V12: 10.79925 | Z12: =IF(M12=M$20,1,0) ->  | AA12: =IF(AA8=AA7,1,) -> 1 | AE12: Auckland | AF12: All | AG12: 12.61 | AH12: 0.86 | AJ12: 10.89 | AK12: 7.26
B13: + | D13: + | G13: + | M13: Wellington | N13: Bus/ferry | O13: 14.2443 | P13: 1.0591 | Q13: 7.6517 | R13: 12.3879 | S13: 8.2586 | T13: 10.32325 | U13: 7.6517 | V13: 10.32325 | AA13: =IF(N13=N$20,1,0) -> 0 | AE13: Wellington | AF13: Bus/ferry | AG13: 11.97 | AH13: 0.89 | AJ13: 10.41 | AK13: 6.94
B14: PASSENGER BOARDINGS (AVERAGE P/A ACROSS 3 YEARS) | D14: =D10 ->  | E14: =E10 -> (M) | G14: =G10 ->  | H14: =H10 -> (M) | J14: =IF(K14>0,"+","") ->  | K14: =D14/G14-1 ->  | M14: Wellington | N14: Rail | O14: 21.063 | P14: 2.3681 | Q14: 11.71555 | R14: 24.8829 | S14: 16.5886 | T14: 20.73575 | U14: 11.71555 | V14: 20.73575 | AA14: =IF(N14=N$20,1,0) -> 0 | AE14: Wellington | AF14: Rail | AG14: 17.7 | AH14: 1.99 | AJ14: 20.91 | AK14: 13.94
B15: x | D15: =B15 -> x | G15: =D15 -> x | M15: Wellington | N15: All | O15: 15.7675 | P15: 1.4875 | Q15: 8.6275 | R15: 16.4815 | S15: 10.9837 | T15: 13.7326 | U15: 8.6275 | V15: 13.7326 | AA15: =IF(AA8=AA7,1,) -> 1 | AE15: Wellington | AF15: All | AG15: 13.25 | AH15: 1.25 | AJ15: 13.85 | AK15: 9.23
B16: PUBLIC TRANSPORT USER BENEFIT FACTOR (as applied in the Economic Evaluation Manual, updated in 2008) | D16: =V20 ->  | E16: =E12 -> peak/ off-peak | G16: =D16 ->  | H16: =E16 -> peak/ off-peak | K16: - | M16: Canterbury | N16: All | O16: 3.2249 | P16: 1.4756 | Q16: 2.35025 | R16: 13.2447 | S16: 8.8298 | T16: 11.03725 | U16: 2.35025 | V16: 11.03725 | AA16: 1 | AE16: Canterbury | AF16: All | AG16: 2.71 | AH16: 1.24 | AJ16: 11.13 | AK16: 7.42
M17: Other | N17: All | O17: 2.4514 | P17: 1.19 | Q17: 1.8207 | R17: 13.09 | S17: 8.7227 | T17: 10.90635 | U17: 1.8207 | V17: 10.90635 | AA17: 1 | AE17: Other | AF17: All | AG17: 2.06 | AH17: 1 | AJ17: 11 | AK17: 7.33
O18: 0 | P18: 0 | R18: 0 | S18: 0
O19: 0 | P19: 0 | R19: 0 | S19: 0
B20: NET GOVERNMENT SUBSIDY PROVISION (in-service net costs, inclusive of the related Professional services) | D20: ='FRR calc'!D20:D21 ->  | E20: =E10 -> (M) | G20: ='FRR calc'!G20:G21 ->  | H20: =H10 -> (M) | J20: =IF(K20>0,"+","") ->  | K20: =D20/G20-1 ->  | M20: ='CBA benchmark'!AI38 ->  | N20: =AA8 -> All | O20: =IF($O$6=$AC$8,$U20,0) -> 0 | P20: =IF($P$6=$AC$8,$U20,0) -> 0 | Q20: =IF($Q$6=$AC$8,$U20,0) ->  | R20: =IF($R$6=$AC$8,$V20,0) -> 0 | S20: =IF($S$6=$AC$8,$V20,0) -> 0 | T20: =IF($T$6=$AC$8,$V20,0) ->  | U20: =AC20 ->  | V20: =AD20 ->  | AC20: =SUM(AC10:AC19) ->  | AD20: =SUM(AD10:AD19) -> 
B21: = | D21: = | G21: =
B22: BENEFITS EFFICIENCY RATIO (ratio can be network wide or total across specific mode) | D22: =(D10*D12+D14*D16)/D20 ->  | G22: =(G10*G12+G14*G16)/G20 ->  | J22: =IF(K22>0,"+","") ->  | K22: =D22/G22-1 -> 
M156: Other | N156: All | O156: 2.06 | P156: 1 | Q156: =(O156+P156)/2 -> 1.53 | R156: 11 | S156: 7.33 | T156: =(R156+S156)/2 -> 9.165 | U156: =IF($U$6=$AC$7,O156,IF($U$6=$AC$5,P156,Q156)) -> 1.53 | V156: =IF($U$6=$AC$7,R156,IF($U$6=$AC$5,S156,T156)) -> 9.165
M157: Auckland | N157: Bus/ferry | O157: 11.73 | P157: 0.76 | Q157: 6.245 | R157: 10.16 | S157: 6.77 | T157: 8.465 | U157: 6.245 | V157: 8.465
M158: Other | N158: All | O158: 2.06 | P158: 1 | Q158: 1.53 | R158: 11 | S158: 7.33 | T158: 9.165 | U158: 1.53 | V158: 9.165
M159: Other | N159: All | O159: 2.06 | P159: 1 | Q159: 1.53 | R159: 11 | S159: 7.33 | T159: 9.165 | U159: 1.53 | V159: 9.165
M160: Other | N160: All | O160: 2.06 | P160: 1 | Q160: 1.53 | R160: 11 | S160: 7.33 | T160: 9.165 | U160: 1.53 | V160: 9.165
M161: Other | N161: All | O161: 2.06 | P161: 1 | Q161: 1.53 | R161: 11 | S161: 7.33 | T161: 9.165 | U161: 1.53 | V161: 9.165
M162: Wellington | N162: Bus/ferry | O162: 11.97 | P162: 0.89 | Q162: 6.43 | R162: 10.41 | S162: 6.94 | T162: 8.675 | U162: 6.43 | V162: 8.675
M163: Other | N163: All | O163: 2.06 | P163: 1 | Q163: 1.53 | R163: 11 | S163: 7.33 | T163: 9.165 | U163: 1.53 | V163: 9.165
M164: Other | N164: All | O164: 2.06 | P164: 1 | Q164: 1.53 | R164: 11 | S164: 7.33 | T164: 9.165 | U164: 1.53 | V164: 9.165
M165: Other | N165: All | O165: 2.06 | P165: 1 | Q165: 1.53 | R165: 11 | S165: 7.33 | T165: 9.165 | U165: 1.53 | V165: 9.165
M166: Other | N166: All | O166: 2.06 | P166: 1 | Q166: 1.53 | R166: 11 | S166: 7.33 | T166: 9.165 | U166: 1.53 | V166: 9.165
M167: Other | N167: All | O167: 2.06 | P167: 1 | Q167: 1.53 | R167: 11 | S167: 7.33 | T167: 9.165 | U167: 1.53 | V167: 9.165
M168: Canterbury | N168: All | O168: 2.71 | P168: 1.24 | Q168: 1.975 | R168: 11.13 | S168: 7.42 | T168: 9.275 | U168: 1.975 | V168: 9.275
M169: Other | N169: All | O169: 2.06 | P169: 1 | Q169: 1.53 | R169: 11 | S169: 7.33 | T169: 9.165 | U169: 1.53 | V169: 9.165
M170: Other | N170: All | O170: 2.06 | P170: 1 | Q170: 1.53 | R170: 11 | S170: 7.33 | T170: 9.165 | U170: 1.53 | V170: 9.165
U171: 0 | V171: 0
U173: =VLOOKUP($B$613,$A156:$Z171,27,FALSE) ->  | V173: =VLOOKUP($B$613,$A156:$Z171,28,FALSE) -> 
M309: Auckland | N309: Rail | O309: 17.27 | P309: 1.65 | Q309: =(O309+P309)/2 -> 9.46 | R309: 16.75 | S309: 11.17 | T309: =(R309+S309)/2 -> 13.96 | U309: =IF($U$6=$AC$7,O309,IF($U$6=$AC$5,P309,Q309)) -> 9.46 | V309: =IF($U$6=$AC$7,R309,IF($U$6=$AC$5,S309,T309)) -> 13.96
M316: Wellington | N316: Rail | O316: 17.7 | P316: 1.99 | Q316: =(O316+P316)/2 -> 9.845 | R316: 20.91 | S316: 13.94 | T316: =(R316+S316)/2 -> 17.425 | U316: =IF($U$6=$AC$7,O316,IF($U$6=$AC$5,P316,Q316)) -> 9.845 | V316: =IF($U$6=$AC$7,R316,IF($U$6=$AC$5,S316,T316)) -> 17.425
U323: =IF($U$6=$AC$7,O323,IF($U$6=$AC$5,P323,Q323)) -> 0 | V323: =IF($U$6=$AC$7,R323,IF($U$6=$AC$5,S323,T323)) -> 0
U325: =VLOOKUP($B$613,$A308:$Z323,27,FALSE) ->  | V325: =VLOOKUP($B$613,$A308:$Z323,28,FALSE) -> 
M460: Other | N460: All | O460: 2.06 | P460: 1 | Q460: =(O460+P460)/2 -> 1.53 | R460: 11 | S460: 7.33 | T460: =(R460+S460)/2 -> 9.165 | U460: =IF($U$6=$AC$7,O460,IF($U$6=$AC$5,P460,Q460)) -> 1.53 | V460: =IF($U$6=$AC$7,R460,IF($U$6=$AC$5,S460,T460)) -> 9.165
M461: Auckland | N461: All | O461: 12.61 | P461: 0.86 | Q461: 6.735 | R461: 10.89 | S461: 7.26 | T461: 9.075 | U461: 6.735 | V461: 9.075
M462: Other | N462: All | O462: 2.06 | P462: 1 | Q462: 1.53 | R462: 11 | S462: 7.33 | T462: 9.165 | U462: 1.53 | V462: 9.165
M463: Other | N463: All | O463: 2.06 | P463: 1 | Q463: 1.53 | R463: 11 | S463: 7.33 | T463: 9.165 | U463: 1.53 | V463: 9.165
M464: Other | N464: All | O464: 2.06 | P464: 1 | Q464: 1.53 | R464: 11 | S464: 7.33 | T464: 9.165 | U464: 1.53 | V464: 9.165
M465: Other | N465: All | O465: 2.06 | P465: 1 | Q465: 1.53 | R465: 11 | S465: 7.33 | T465: 9.165 | U465: 1.53 | V465: 9.165
M466: Other | N466: All | O466: 2.06 | P466: 1 | Q466: 1.53 | R466: 11 | S466: 7.33 | T466: 9.165 | U466: 1.53 | V466: 9.165
M467: Other | N467: All | O467: 2.06 | P467: 1 | Q467: 1.53 | R467: 11 | S467: 7.33 | T467: 9.165 | U467: 1.53 | V467: 9.165
M468: Wellington | N468: All | O468: 13.25 | P468: 1.25 | Q468: 7.25 | R468: 13.85 | S468: 9.23 | T468: 11.54 | U468: 7.25 | V468: 11.54
M469: Other | N469: All | O469: 2.06 | P469: 1 | Q469: 1.53 | R469: 11 | S469: 7.33 | T469: 9.165 | U469: 1.53 | V469: 9.165
M470: Other | N470: All | O470: 2.06 | P470: 1 | Q470: 1.53 | R470: 11 | S470: 7.33 | T470: 9.165 | U470: 1.53 | V470: 9.165
M471: Canterbury | N471: All | O471: 2.71 | P471: 1.24 | Q471: 1.975 | R471: 11.13 | S471: 7.42 | T471: 9.275 | U471: 1.975 | V471: 9.275
M472: Other | N472: All | O472: 2.06 | P472: 1 | Q472: 1.53 | R472: 11 | S472: 7.33 | T472: 9.165 | U472: 1.53 | V472: 9.165
M473: Other | N473: All | O473: 2.06 | P473: 1 | Q473: 1.53 | R473: 11 | S473: 7.33 | T473: 9.165 | U473: 1.53 | V473: 9.165
M474: Other | N474: All | O474: 2.06 | P474: 1 | Q474: 1.53 | R474: 11 | S474: 7.33 | T474: 9.165 | U474: 1.53 | V474: 9.165
U475: 0 | V475: 0
U477: =VLOOKUP($B$613,$A460:$Z475,27,FALSE) ->  | V477: =VLOOKUP($B$613,$A460:$Z475,28,FALSE) -> 

Sheet FRR calc
B2: FAREBOX RECOVERY RATIO | D2: FRR for: | G2: FRR for:
B3: [FRR] | D3: ='CBA benchmark'!B12 -> 0 | G3: =D3 -> 0 | J3: change from the previous
D4: ='CBA benchmark'!C15 -> total network | G4: =D4 -> total network | J4: three year average to the
B5: calculation | D5: average across: | G5: average across: | J5: =D6 -> 2018-21
D6: ='CBA benchmark'!E12 -> 2018-21 | G6: ='data "live" (TIO)'!AC3 -> 2015-18 | J6: three year average:
B8: calculated by the following formula: | D8: as applied: | G8: as applied:
B10: FARE REVENUE -AVERAGE P/A ACROSS 3 YRS (exclusive of net subsidy provision) | D10: ='data "live" (TIO)'!AB584/1000000 ->  | E10: (M) | G10: ='data "live" (TIO)'!AC584/1000000 ->  | H10: (M) | J10: =IF(K10>0,"+","") ->  | K10: =D16/G16-1 -> 
B11: FARE SUBTITUTE -AVERAGE P/A ACROSS 3 YRS (additional funding recognised as a fare substitute, non SGC related)
B12: SUPERGOLD FUNDING -AVERAGE P/A ACROSS 3 YRS (100% Crown funded, recognised as a stand alone fare substitute)
B16: FARE REVENUE -AVERAGE P/A ACROSS 3 YRS (exclusive of net subsidy provision) | D16: =D10 ->  | E16: (M) | G16: =G10 ->  | H16: (M)
B17: FARE SUBTITUTE -AVERAGE P/A ACROSS 3 YRS (additional funding recognised as a fare substitute, non SGC related)
B18: SUPERGOLD FUNDING -AVERAGE P/A ACROSS 3 YRS (100% Crown funded, recognised as a stand alone fare substitute)
B19: + | D19: + | G19: +
B20: NET GOVERNMENT SUBSIDY PROVISION -AVERAGE P/A ACROSS 3 YRS (in-service net costs, inclusive of the related Professional services) | C20: =IF('[2]CBA benchmark'!E15='[2]CBA benchmark'!AJ23," * inclusive of non service operational costs","") ->  | D20: =IF('CBA benchmark'!E15='CBA benchmark'!AJ22,'data "live" (TIO)'!AB604/1000000,'data "live" (TIO)'!AB624/1000000) ->  | E20: =E16 -> (M) | G20: =IF('CBA benchmark'!E15='CBA benchmark'!AJ22,'data "live" (TIO)'!AC604/1000000,'data "live" (TIO)'!AC624/1000000) ->  | H20: =H16 -> (M) | J20: =IF(K20>0,"+","") ->  | K20: =D20/G20-1 -> 
B21: SUBSIDY SUBTITUTE -AVERAGE P/A ACROSS 3 YRS (additional funding support from within local govt. or third party)
B22: = | D22: = | G22: =
B23: FAREBOX RECOVERY RATIO (ratio can be network wide or total across specific mode) | D23: =D10/(D16+D20) ->  | G23: =G10/(G16+G20) ->  | J23: =IF(K23>0,"+","") ->  | K23: =D23/G23-1 -> 

Sheet SER calc
B2: SERVICE EFFICIENCY RATIO | D2: SER for: | G2: SER for:
B3: [SER] | D3: ='CBA benchmark'!B12 -> 0 | G3: =D3 -> 0 | J3: change from the previous
D4: ='CBA benchmark'!C15 -> total network | G4: =D4 -> total network | J4: three year average to the
B5: calculation | D5: average across: | G5: average across: | J5: =D6 -> 2018-21
D6: ='CBA benchmark'!E12 -> 2018-21 | G6: ='data "live" (TIO)'!AC3 -> 2015-18 | J6: three year average:
B8: calculated by the following formula: | D8: as applied: | G8: as applied:
B10: FARE REVENUE -AVERAGE P/A ACROSS 3 YRS (exclusive of net subsidy provision) | D10: ='FRR calc'!D10 ->  | E10: (M) | G10: ='FRR calc'!G10 ->  | H10: (M) | J10: =IF(K10>0,"+","") ->  | K10: =D10/G10-1 -> 
B11: FARE SUBTITUTE -AVERAGE P/A ACROSS 3 YRS (additional funding recognised as a fare substitute, non SGC related)
B12: SUPERGOLD FUNDING -AVERAGE P/A ACROSS 3 YRS (100% Crown funded, recognised as a stand alone fare substitute)
B13: + | D13: + | G13: +
B14: NET GOVERNMENT SUBSIDY PROVISION -AVERAGE P/A ACROSS 3 YRS (in-service net costs, inclusive of the related Professional services) | D14: ='FRR calc'!D20 ->  | E14: (M) | G14: ='FRR calc'!G20 ->  | H14: (M) | J14: =IF(K14>0,"+","") ->  | K14: =D14/G14-1 -> 
B15: SUBSIDY SUBTITUTE -AVERAGE P/A ACROSS 3 YRS (additional funding support from within local govt. or third party)
B19: IN SERVICE VEHICLE KILOMETRES -AVERAGE P/A ACROSS 3 YRS (total in service vehicle kilometres travelled) | D19: ='data "live" (TIO)'!AB544/1000000 ->  | E19: (M) | G19: ='data "live" (TIO)'!AC544/1000000 ->  | H19: (M) | J19: =IF(K19>0,"+","") ->  | K19: =D19/G19-1 -> 
B20: = | D20: = | G20: =
B21: AVERAGE COST PER SERVICE KM (average cost per service kilometre travelled to operate the services) | D21: =IF('CBA benchmark'!N11='CBA benchmark'!AH16,(D10+D14)/D19,(D14)/D19) ->  | G21: =IF('CBA benchmark'!N11='CBA benchmark'!AH16,(G10+G14)/G19,(G14)/G19) ->  | J21: =IF(K21>0,"+","") ->  | K21: =D21/G21-1 -> 

Sheet SUA calc
B2: SERVICE UTILISATION AVERAGE | D2: SUA for: | G2: SUA for:
B3: [SUA] | D3: ='CBA benchmark'!B12 -> 0 | G3: =D3 -> 0 | J3: change from the previous
D4: ='CBA benchmark'!C15 -> total network | G4: =D4 -> total network | J4: three year average to the
B5: calculation | D5: average across: | G5: average across: | J5: =D6 -> 2018-21
D6: ='CBA benchmark'!E12 -> 2018-21 | G6: ='data "live" (TIO)'!AC3 -> 2015-18 | J6: three year average:
B8: calculated by the following formula: | D8: as applied: | G8: as applied:
B10: PASSENGER KILOMETRES -AVERAGE P/A ACROSS 3 YRS (estimated by the ave trip length X boardings or real via tag on tag off equipment) | D10: ='data "live" (TIO)'!AB524/1000000 ->  | E10: (M) | G10: ='data "live" (TIO)'!AC524/1000000 ->  | H10: (M) | J10: =IF(K10>0,"+","") ->  | K10: =D10/G10-1 -> 
B14: IN SERVICE VEHICLE KILOMETRES -AVERAGE P/A ACROSS 3 YRS (total in service vehicle kilometres travelled) | D14: ='data "live" (TIO)'!AB544/1000000 ->  | E14: (M) | G14: ='data "live" (TIO)'!AC544/1000000 ->  | H14: (M) | J14: =IF(K14>0,"+","") ->  | K14: =D14/G14-1 -> 
B15: = | D15: = | G15: =
B16: AVERAGE PASSENGER BOARDINGS (average boardings in a vehicle, (vessel or carriage) across any service trip) | D16: =D10/D14 ->  | G16: =G10/G14 ->  | J16: =IF(K16>0,"+","") ->  | K16: =D16/G16-1 -> 

Sheet data "historic" (TIO) (hidden)
B1: ='data "live" (TIO)'!B1 -> 0 | C1: ='data "live" (TIO)'!C1 -> 2018-21 | D1: ='data "live" (TIO)'!D1 -> total network | E1: ='data "live" (TIO)'!E1 -> service costs only | F1: ='data "live" (TIO)'!F1 -> peak/ off-peak | G1: ='data "live" (TIO)'!G1 -> 2017/18 | H1: ='data "live" (TIO)'!H1 -> 2015-18 | AF1: BASE | AT1: WITH IMPROVEMENTS
G2: current yr | H2: current NLTP | BH2: IMPROVEMENTS
B3: BUS PATRONAGE | C3: 2009/10 | D3: 2010/11 | E3: 2011/12 | F3: 2012/13 | G3: 2013/14 | H3: 2014/15 | I3: 2015/16 | J3: 2016/17 | K3: 2017/18 | L3: 2018/19 | M3: 2019/20 | N3: 2020/21 | O3: 2021/22 | P3: 2022/23 | Q3: 2023/24 | R3: 2024/25 | S3: 2025/26 | T3: 2026/27 | U3: 2027/28 | V3: 2009-12 | W3: 2012-15 | X3: 2015-18 | Y3: 2018-21 | Z3: 2021-24 | AA3: 2024-27 | AB3: ='[3]CBA benchmark'!E12 -> 2018-21 | AC3: ='[3]performance indicators'!Z3 -> 2015-18 | AF3: 2015/16 | AG3: 2016/17 | AH3: 2017/18 | AI3: 2018/19 | AJ3: 2019/20 | AK3: 2020/21 | AL3: 2021/22 | AM3: 2022/23 | AN3: 2023/24 | AO3: 2024/25 | AP3: 2025/26 | AQ3: 2026/27 | AR3: 2027/28 | AT3: 2015/16 | AU3: 2016/17 | AV3: 2017/18 | AW3: 2018/19 | AX3: 2019/20 | AY3: 2020/21 | AZ3: 2021/22 | BA3: 2022/23 | BB3: 2023/24 | BC3: 2024/25 | BD3: 2025/26 | BE3: 2026/27 | BF3: 2027/28 | BH3: 2015/16 | BI3: 2016/17 | BJ3: 2017/18 | BK3: 2018/19 | BL3: 2019/20 | BM3: 2020/21 | BN3: 2021/22 | BO3: 2022/23 | BP3: 2023/24 | BQ3: 2024/25
A4: Northland | B4: Northland total patronage: | C4: 289485 | D4: 287006 | E4: 305735 | F4: 305737 | G4: 323553 | H4: 312821 | I4: 343257 | J4: 353555 | K4: 364162 | L4: 375087 | M4: 386339 | N4: 397929 | O4: 409867 | P4: 422163 | Q4: 434828 | R4: 447873 | V4: =AVERAGE(C4:E4) -> 294075.3333 | W4: =AVERAGE(F4:H4) -> 314037 | X4: =AVERAGE(I4:K4) -> 353658 | Y4: =AVERAGE(L4:N4) -> 386451.6667 | Z4: =AVERAGE(O4:Q4) -> 422286 | AA4: =AVERAGE(R4:T4) -> 447873 | AB4: =HLOOKUP($AB$3,$V3:$AA19,2,FALSE) -> 386451.6667 | AC4: =HLOOKUP($AC$3,$V3:$AA19,2,FALSE) -> 353658
A5: Auckland | B5: Auckland total patronage: | C5: 47611050 | D5: 51163334 | E5: 54827193 | F5: 53530078 | G5: 55851701 | H5: 59796338 | I5: 59441508 | J5: 60653965 | K5: 61226239 | L5: 63266176 | M5: 64949031 | N5: 66492888 | O5: 68213227 | P5: 70295039 | Q5: 71977423 | R5: 73761550 | V5: 51200525.67 | W5: 56392705.67 | X5: 60440570.67 | Y5: =AVERAGE(L5:N5) -> 64902698.33 | Z5: 70161896.33 | AA5: 73761550 | AB5: =HLOOKUP($AB$3,$V3:$AA19,3,FALSE) -> 64902698.33 | AC5: =HLOOKUP($AC$3,$V3:$AA19,3,FALSE) -> 60440570.67
A6: Waikato | B6: Waikato total patronage: | C6: 4323384 | D6: 4338802 | E6: 4466401 | F6: 4322894 | G6: 4370780 | H6: 4341361 | I6: 5141000 | J6: 5192410 | K6: 5270295 | L6: 5349349 | M6: 5402843 | N6: 5456870 | O6: 5538723 | P6: 5621804 | Q6: 5678022 | R6: 5734802 | V6: 4376195.667 | W6: 4345011.667 | X6: 5201235 | Y6: 5403020.667 | Z6: 5612849.667 | AA6: 5734802 | AB6: =HLOOKUP($AB$3,$V3:$AA19,4,FALSE) -> 5403020.667 | AC6: =HLOOKUP($AC$3,$V3:$AA19,4,FALSE) -> 5201235
A7: Bay of Plenty | B7: Bay of Plenty total patronage: | C7: 2150662 | D7: 2479589 | E7: 2853490 | F7: 2854444 | G7: 3005049 | H7: 3109603 | I7: 3956300 | J7: 4035400 | K7: 4116100 | L7: 4198400 | M7: 4282400 | N7: 4368000 | O7: 4455400 | P7: 4544500 | Q7: 4635400 | R7: 4728100 | V7: 2494580.333 | W7: 2989698.667 | X7: 4035933.333 | Y7: 4282933.333 | Z7: 4545100 | AA7: 4728100 | AB7: =HLOOKUP($AB$3,$V3:$AA19,5,FALSE) -> 4282933.333 | AC7: =HLOOKUP($AC$3,$V3:$AA19,5,FALSE) -> 4035933.333
A8: Gisborne | B8: Gisborne total patronage: | C8: 136020 | D8: 152258 | E8: 157596 | F8: 157008 | G8: 139473 | H8: 138261 | I8: 139500 | J8: 139500 | K8: 139500 | L8: 140500 | M8: 140500 | N8: 140500 | O8: 142500 | P8: 142500 | Q8: 142500 | R8: 142500 | V8: 148624.6667 | W8: 144914 | X8: 139500 | Y8: 140500 | Z8: 142500 | AA8: 142500 | AB8: =HLOOKUP($AB$3,$V3:$AA19,6,FALSE) -> 140500 | AC8: =HLOOKUP($AC$3,$V3:$AA19,6,FALSE) -> 139500
A9: Hawkes Bay | B9: Hawkes Bay total patronage: | C9: 480113 | D9: 554647 | E9: 681566 | F9: 761392 | G9: 799845 | H9: 744381 | I9: 831839 | J9: 848500 | K9: 865200 | L9: 882700 | M9: 900300 | N9: 918200 | O9: 936700 | P9: 955400 | Q9: 974500 | R9: 994000 | V9: 572108.6667 | W9: 768539.3333 | X9: 848513 | Y9: 900400 | Z9: 955533.3333 | AA9: 994000 | AB9: =HLOOKUP($AB$3,$V3:$AA19,7,FALSE) -> 900400 | AC9: =HLOOKUP($AC$3,$V3:$AA19,7,FALSE) -> 848513
A10: Taranaki | B10: Taranaki total patronage: | C10: 405598 | D10: 497277 | E10: 543317 | F10: 556017 | G10: 584371 | H10: 586306 | I10: 640086 | J10: 678209 | K10: 718619 | L10: 761454 | M10: 806860 | N10: 854989 | O10: 906006 | P10: 960084 | Q10: 1017407 | R10: 1078170 | V10: 482064 | W10: 575564.6667 | X10: 678971.3333 | Y10: 807767.6667 | Z10: 961165.6667 | AA10: 1078170 | AB10: =HLOOKUP($AB$3,$V3:$AA19,8,FALSE) -> 807767.6667 | AC10: =HLOOKUP($AC$3,$V3:$AA19,8,FALSE) -> 678971.3333
A11: Manawatu-Wanganui | B11: Manawatu-Wanganui total patronage: | C11: 1357004 | D11: 1599934 | E11: 1635096 | F11: 1620202 | G11: 1577158 | H11: 1447403 | I11: 1620718 | J11: 1842396 | K11: 1822472 | L11: 1858313 | M11: 1893794 | N11: 1929970 | O11: 1966851 | P11: 2004453 | Q11: 2042789 | R11: 2081874 | V11: 1530678 | W11: 1548254.333 | X11: 1761862 | Y11: 1894025.667 | Z11: 2004697.667 | AA11: 2081874 | AB11: =HLOOKUP($AB$3,$V3:$AA19,9,FALSE) -> 1894025.667 | AC11: =HLOOKUP($AC$3,$V3:$AA19,9,FALSE) -> 1761862
A12: Wellington | B12: Wellington total patronage: | C12: 24248085 | D12: 24022706 | E12: 24108471 | F12: 23607936 | G12: 23981194 | H12: 24098765 | I12: 24584300 | J12: 24953100 | K12: 25327400 | L12: 25707300 | M12: 26092900 | N12: 26484300 | O12: 26881600 | P12: 27284800 | Q12: 27694100 | R12: 28109500 | V12: 24126420.67 | W12: 23895965 | X12: 24954933.33 | Y12: 26094833.33 | Z12: 27286833.33 | AA12: 28109500 | AB12: =HLOOKUP($AB$3,$V3:$AA19,10,FALSE) -> 26094833.33 | AC12: =HLOOKUP($AC$3,$V3:$AA19,10,FALSE) -> 24954933.33
A13: Marlborough | B13: Marlborough total patronage: | C13: 22520 | D13: 23523 | E13: 23773 | F13: 25149 | G13: 26498 | H13: 26979 | I13: 31500 | J13: 44325 | K13: 45655 | L13: 47024 | M13: 48435 | N13: 49888 | O13: 51884 | P13: 54940 | Q13: 56588 | R13: 58285 | V13: 23272 | W13: 26208.66667 | X13: 40493.33333 | Y13: 48449 | Z13: 54470.66667 | AA13: 58285 | AB13: =HLOOKUP($AB$3,$V3:$AA19,11,FALSE) -> 48449 | AC13: =HLOOKUP($AC$3,$V3:$AA19,11,FALSE) -> 40493.33333
A14: Nelson | B14: Nelson total patronage: | C14: 45343 | D14: 50714 | E14: 131392 | F14: 351685 | G14: 396326 | H14: 415326 | I14: 436036 | J14: 475675 | K14: 515315 | L14: 554954 | M14: 594594 | N14: 612432 | O14: 630269 | P14: 648107 | Q14: 665945 | R14: 683783 | V14: 75816.33333 | W14: 387779 | X14: 475675.3333 | Y14: 587326.6667 | Z14: 648107 | AA14: 683783 | AB14: =HLOOKUP($AB$3,$V3:$AA19,12,FALSE) -> 587326.6667 | AC14: =HLOOKUP($AC$3,$V3:$AA19,12,FALSE) -> 475675.3333
A15: Canterbury | B15: Canterbury total patronage: | C15: 17293221 | D15: 13109822 | E15: 11352649 | F15: 13417358 | G15: 14174013 | H15: 14219679 | I15: 14891580 | J15: 15636148 | K15: 16417955 | L15: 17238853 | M15: 18100795 | N15: 19005834 | O15: 19956126 | P15: 20953931 | Q15: 22001628 | R15: 23101708 | V15: 13918564 | W15: 13937016.67 | X15: 15648561 | Y15: 18115160.67 | Z15: 20970561.67 | AA15: 23101708 | AB15: =HLOOKUP($AB$3,$V3:$AA19,13,FALSE) -> 18115160.67 | AC15: =HLOOKUP($AC$3,$V3:$AA19,13,FALSE) -> 15648561
A16: West Coast | B16: West Coast total patronage: | C16: 30367 | D16: 29958 | E16: 29727 | F16: 40518 | G16: 24173 | H16: 23952 | I16: 35500 | J16: 36500 | K16: 36500 | L16: 37000 | M16: 37000 | N16: 37000 | O16: 37500 | P16: 37500 | Q16: 37500 | R16: 38000 | V16: 30017.33333 | W16: 29547.66667 | X16: 36166.66667 | Y16: 37000 | Z16: 37500 | AA16: 38000 | AB16: =HLOOKUP($AB$3,$V3:$AA19,14,FALSE) -> 37000 | AC16: =HLOOKUP($AC$3,$V3:$AA19,14,FALSE) -> 36166.66667
A17: Otago | B17: Otago (DUNEDIN ONLY) total patronage: | C17: =C735 -> 2171696 | D17: 2171399 | E17: 2229556 | F17: 2249736 | G17: 2250562 | H17: 2236713 | I17: 2831194 | J17: 2851392 | K17: 2883707 | L17: =L735 -> 2269705.197 | M17: 2281053.261 | N17: 2292459.126 | O17: 2303921.788 | P17: 1015442.144 | Q17: 2327019.987 | R17: 2338654.997 | V17: 2190883.667 | W17: 2245670.333 | X17: 2855431 | Y17: 2281072.528 | Z17: 1882127.973 | AA17: 2338654.997 | AB17: =HLOOKUP($AB$3,$V3:$AA19,15,FALSE) -> 2281072.528 | AC17: =HLOOKUP($AC$3,$V3:$AA19,15,FALSE) -> 2855431
A18: Southland | B18: Southland total patronage: | C18: 400000 | D18: 373000 | E18: 393000 | F18: 310531 | G18: 289745 | H18: 245118 | I18: 271500 | J18: 278287 | K18: 285244 | L18: 292375 | M18: 299685 | N18: 307177 | O18: 314857 | P18: 322727 | Q18: 330796 | R18: 339066 | V18: 388666.6667 | W18: 281798 | X18: 278343.6667 | Y18: 299745.6667 | Z18: 322793.3333 | AA18: 339066 | AB18: =HLOOKUP($AB$3,$V3:$AA19,16,FALSE) -> 299745.6667 | AC18: =HLOOKUP($AC$3,$V3:$AA19,16,FALSE) -> 278343.6667
A19: National | B19: National total patronage: | C19: =IF('[3]CBA benchmark'!$B$15='[3]CBA benchmark'!$AI$41,SUM(C4:C18),IF('[3]CBA benchmark'!$B$15='[3]CBA benchmark'!$AI$42,SUM(C4:C18)-C5-C12,IF('[3]CBA benchmark'!$B$15='[3]CBA benchmark'!$AI$43,IF('[3]CBA benchmark'!$B$12='[3]CBA benchmark'!$AH$23,'data "historic" (TIO)'!C12,IF('[3]CBA benchmark'!$B$15='[3]CBA benchmark'!$AI$43,IF('[3]CBA benchmark'!$B$12='[3]CBA benchmark'!$AH$30,'data "historic" (TIO)'!C5,0)))))) -> 0 | D19: =IF('[3]CBA benchmark'!$B$15='[3]CBA benchmark'!$AI$41,SUM(D4:D18),IF('[3]CBA benchmark'!$B$15='[3]CBA benchmark'!$AI$42,SUM(D4:D18)-D5-D12,IF('[3]CBA benchmark'!$B$15='[3]CBA benchmark'!$AI$43,IF('[3]CBA benchmark'!$B$12='[3]CBA benchmark'!$AH$23,'data "historic" (TIO)'!D12,IF('[3]CBA benchmark'!$B$15='[3]CBA benchmark'!$AI$43,IF('[3]CBA benchmark'!$B$12='[3]CBA benchmark'!$AH$30,'data "historic" (TIO)'!D5,0)))))) -> 0 | E19: =IF('[3]CBA benchmark'!$B$15='[3]CBA benchmark'!$AI$41,SUM(E4:E18),IF('[3]CBA benchmark'!$B$15='[3]CBA benchmark'!$AI$42,SUM(E4:E18)-E5-E12,IF('[3]CBA benchmark'!$B$15='[3]CBA benchmark'!$AI$43,IF('[3]CBA benchmark'!$B$12='[3]CBA benchmark'!$AH$23,'data "historic" (TIO)'!E12,IF('[3]CBA benchmark'!$B$15='[3]CBA benchmark'!$AI$43,IF('[3]CBA benchmark'!$B$12='[3]CBA benchmark'!$AH$30,'data "historic" (TIO)'!E5,0)))))) -> 0 | F19: =IF('[3]CBA benchmark'!$B$15='[3]CBA benchmark'!$AI$41,SUM(F4:F18),IF('[3]CBA benchmark'!$B$15='[3]CBA benchmark'!$AI$42,SUM(F4:F18)-F5-F12,IF('[3]CBA benchmark'!$B$15='[3]CBA benchmark'!$AI$43,IF('[3]CBA benchmark'!$B$12='[3]CBA benchmark'!$AH$23,'data "historic" (TIO)'!F12,IF('[3]CBA benchmark'!$B$15='[3]CBA benchmark'!$AI$43,IF('[3]CBA benchmark'!$B$12='[3]CBA benchmark'!$AH$30,'data "historic" (TIO)'!F5,0)))))) -> 0 | G19: =IF('[3]CBA benchmark'!$B$15='[3]CBA benchmark'!$AI$41,SUM(G4:G18),IF('[3]CBA benchmark'!$B$15='[3]CBA benchmark'!$AI$42,SUM(G4:G18)-G5-G12,IF('[3]CBA benchmark'!$B$15='[3]CBA benchmark'!$AI$43,IF('[3]CBA benchmark'!$B$12='[3]CBA benchmark'!$AH$23,'data "historic" (TIO)'!G12,IF('[3]CBA benchmark'!$B$15='[3]CBA benchmark'!$AI$43,IF('[3]CBA benchmark'!$B$12='[3]CBA benchmark'!$AH$30,'data "historic" (TIO)'!G5,0)))))) -> 0 | H19: =IF('[3]CBA benchmark'!$B$15='[3]CBA benchmark'!$AI$41,SUM(H4:H18),IF('[3]CBA benchmark'!$B$15='[3]CBA benchmark'!$AI$42,SUM(H4:H18)-H5-H12,IF('[3]CBA benchmark'!$B$15='[3]CBA benchmark'!$AI$43,IF('[3]CBA benchmark'!$B$12='[3]CBA benchmark'!$AH$23,'data "historic" (TIO)'!H12,IF('[3]CBA benchmark'!$B$15='[3]CBA benchmark'!$AI$43,IF('[3]CBA benchmark'!$B$12='[3]CBA benchmark'!$AH$30,'data "historic" (TIO)'!H5,0)))))) -> 0 | I19: =IF('[3]CBA benchmark'!$B$15='[3]CBA benchmark'!$AI$41,SUM(I4:I18),IF('[3]CBA benchmark'!$B$15='[3]CBA benchmark'!$AI$42,SUM(I4:I18)-I5-I12,IF('[3]CBA benchmark'!$B$15='[3]CBA benchmark'!$AI$43,IF('[3]CBA benchmark'!$B$12='[3]CBA benchmark'!$AH$23,'data "historic" (TIO)'!I12,IF('[3]CBA benchmark'!$B$15='[3]CBA benchmark'!$AI$43,IF('[3]CBA benchmark'!$B$12='[3]CBA benchmark'!$AH$30,'data "historic" (TIO)'!I5,0)))))) -> 0 | J19: =IF('[3]CBA benchmark'!$B$15='[3]CBA benchmark'!$AI$41,SUM(J4:J18),IF('[3]CBA benchmark'!$B$15='[3]CBA benchmark'!$AI$42,SUM(J4:J18)-J5-J12,IF('[3]CBA benchmark'!$B$15='[3]CBA benchmark'!$AI$43,IF('[3]CBA benchmark'!$B$12='[3]CBA benchmark'!$AH$23,'data "historic" (TIO)'!J12,IF('[3]CBA benchmark'!$B$15='[3]CBA benchmark'!$AI$43,IF('[3]CBA benchmark'!$B$12='[3]CBA benchmark'!$AH$30,'data "historic" (TIO)'!J5,0)))))) -> 0 | K19: =IF('[3]CBA benchmark'!$B$15='[3]CBA benchmark'!$AI$41,SUM(K4:K18),IF('[3]CBA benchmark'!$B$15='[3]CBA benchmark'!$AI$42,SUM(K4:K18)-K5-K12,IF('[3]CBA benchmark'!$B$15='[3]CBA benchmark'!$AI$43,IF('[3]CBA benchmark'!$B$12='[3]CBA benchmark'!$AH$23,'data "historic" (TIO)'!K12,IF('[3]CBA benchmark'!$B$15='[3]CBA benchmark'!$AI$43,IF('[3]CBA benchmark'!$B$12='[3]CBA benchmark'!$AH$30,'data "historic" (TIO)'!K5,0)))))) -> 0 | L19: =IF('[3]CBA benchmark'!$B$15='[3]CBA benchmark'!$AI$41,SUM(L4:L18),IF('[3]CBA benchmark'!$B$15='[3]CBA benchmark'!$AI$42,SUM(L4:L18)-L5-L12,IF('[3]CBA benchmark'!$B$15='[3]CBA benchmark'!$AI$43,IF('[3]CBA benchmark'!$B$12='[3]CBA benchmark'!$AH$23,'data "historic" (TIO)'!L12,IF('[3]CBA benchmark'!$B$15='[3]CBA benchmark'!$AI$43,IF('[3]CBA benchmark'!$B$12='[3]CBA benchmark'!$AH$30,'data "historic" (TIO)'!L5,0)))))) -> 0 | M19: =IF('[3]CBA benchmark'!$B$15='[3]CBA benchmark'!$AI$41,SUM(M4:M18),IF('[3]CBA benchmark'!$B$15='[3]CBA benchmark'!$AI$42,SUM(M4:M18)-M5-M12,IF('[3]CBA benchmark'!$B$15='[3]CBA benchmark'!$AI$43,IF('[3]CBA benchmark'!$B$12='[3]CBA benchmark'!$AH$23,'data "historic" (TIO)'!M12,IF('[3]CBA benchmark'!$B$15='[3]CBA benchmark'!$AI$43,IF('[3]CBA benchmark'!$B$12='[3]CBA benchmark'!$AH$30,'data "historic" (TIO)'!M5,0)))))) -> 0 | N19: =IF('[3]CBA benchmark'!$B$15='[3]CBA benchmark'!$AI$41,SUM(N4:N18),IF('[3]CBA benchmark'!$B$15='[3]CBA benchmark'!$AI$42,SUM(N4:N18)-N5-N12,IF('[3]CBA benchmark'!$B$15='[3]CBA benchmark'!$AI$43,IF('[3]CBA benchmark'!$B$12='[3]CBA benchmark'!$AH$23,'data "historic" (TIO)'!N12,IF('[3]CBA benchmark'!$B$15='[3]CBA benchmark'!$AI$43,IF('[3]CBA benchmark'!$B$12='[3]CBA benchmark'!$AH$30,'data "historic" (TIO)'!N5,0)))))) -> 0 | O19: =IF('[3]CBA benchmark'!$B$15='[3]CBA benchmark'!$AI$41,SUM(O4:O18),IF('[3]CBA benchmark'!$B$15='[3]CBA benchmark'!$AI$42,SUM(O4:O18)-O5-O12,IF('[3]CBA benchmark'!$B$15='[3]CBA benchmark'!$AI$43,IF('[3]CBA benchmark'!$B$12='[3]CBA benchmark'!$AH$23,'data "historic" (TIO)'!O12,IF('[3]CBA benchmark'!$B$15='[3]CBA benchmark'!$AI$43,IF('[3]CBA benchmark'!$B$12='[3]CBA benchmark'!$AH$30,'data "historic" (TIO)'!O5,0)))))) -> 0 | P19: =IF('[3]CBA benchmark'!$B$15='[3]CBA benchmark'!$AI$41,SUM(P4:P18),IF('[3]CBA benchmark'!$B$15='[3]CBA benchmark'!$AI$42,SUM(P4:P18)-P5-P12,IF('[3]CBA benchmark'!$B$15='[3]CBA benchmark'!$AI$43,IF('[3]CBA benchmark'!$B$12='[3]CBA benchmark'!$AH$23,'data "historic" (TIO)'!P12,IF('[3]CBA benchmark'!$B$15='[3]CBA benchmark'!$AI$43,IF('[3]CBA benchmark'!$B$12='[3]CBA benchmark'!$AH$30,'data "historic" (TIO)'!P5,0)))))) -> 0 | Q19: =IF('[3]CBA benchmark'!$B$15='[3]CBA benchmark'!$AI$41,SUM(Q4:Q18),IF('[3]CBA benchmark'!$B$15='[3]CBA benchmark'!$AI$42,SUM(Q4:Q18)-Q5-Q12,IF('[3]CBA benchmark'!$B$15='[3]CBA benchmark'!$AI$43,IF('[3]CBA benchmark'!$B$12='[3]CBA benchmark'!$AH$23,'data "historic" (TIO)'!Q12,IF('[3]CBA benchmark'!$B$15='[3]CBA benchmark'!$AI$43,IF('[3]CBA benchmark'!$B$12='[3]CBA benchmark'!$AH$30,'data "historic" (TIO)'!Q5,0)))))) -> 0 | R19: =IF('[3]CBA benchmark'!$B$15='[3]CBA benchmark'!$AI$41,SUM(R4:R18),IF('[3]CBA benchmark'!$B$15='[3]CBA benchmark'!$AI$42,SUM(R4:R18)-R5-R12,IF('[3]CBA benchmark'!$B$15='[3]CBA benchmark'!$AI$43,IF('[3]CBA benchmark'!$B$12='[3]CBA benchmark'!$AH$23,'data "historic" (TIO)'!R12,IF('[3]CBA benchmark'!$B$15='[3]CBA benchmark'!$AI$43,IF('[3]CBA benchmark'!$B$12='[3]CBA benchmark'!$AH$30,'data "historic" (TIO)'!R5,0)))))) -> 0 | S19: =IF('[3]CBA benchmark'!$B$15='[3]CBA benchmark'!$AI$41,SUM(S4:S18),IF('[3]CBA benchmark'!$B$15='[3]CBA benchmark'!$AI$42,SUM(S4:S18)-S5-S12,IF('[3]CBA benchmark'!$B$15='[3]CBA benchmark'!$AI$43,IF('[3]CBA benchmark'!$B$12='[3]CBA benchmark'!$AH$23,'data "historic" (TIO)'!S12,IF('[3]CBA benchmark'!$B$15='[3]CBA benchmark'!$AI$43,IF('[3]CBA benchmark'!$B$12='[3]CBA benchmark'!$AH$30,'data "historic" (TIO)'!S5,0)))))) -> 0 | T19: =IF('[3]CBA benchmark'!$B$15='[3]CBA benchmark'!$AI$41,SUM(T4:T18),IF('[3]CBA benchmark'!$B$15='[3]CBA benchmark'!$AI$42,SUM(T4:T18)-T5-T12,IF('[3]CBA benchmark'!$B$15='[3]CBA benchmark'!$AI$43,IF('[3]CBA benchmark'!$B$12='[3]CBA benchmark'!$AH$23,'data "historic" (TIO)'!T12,IF('[3]CBA benchmark'!$B$15='[3]CBA benchmark'!$AI$43,IF('[3]CBA benchmark'!$B$12='[3]CBA benchmark'!$AH$30,'data "historic" (TIO)'!T5,0)))))) -> 0 | U19: =IF('[3]CBA benchmark'!$B$15='[3]CBA benchmark'!$AI$41,SUM(U4:U18),IF('[3]CBA benchmark'!$B$15='[3]CBA benchmark'!$AI$42,SUM(U4:U18)-U5-U12,IF('[3]CBA benchmark'!$B$15='[3]CBA benchmark'!$AI$43,IF('[3]CBA benchmark'!$B$12='[3]CBA benchmark'!$AH$23,'data "historic" (TIO)'!U12,IF('[3]CBA benchmark'!$B$15='[3]CBA benchmark'!$AI$43,IF('[3]CBA benchmark'!$B$12='[3]CBA benchmark'!$AH$30,'data "historic" (TIO)'!U5,0)))))) -> 0 | V19: =IF('[3]CBA benchmark'!$B$15='[3]CBA benchmark'!$AI$41,SUM(V4:V18),IF('[3]CBA benchmark'!$B$15='[3]CBA benchmark'!$AI$42,SUM(V4:V18)-V5-V12,IF('[3]CBA benchmark'!$B$15='[3]CBA benchmark'!$AI$43,IF('[3]CBA benchmark'!$B$12='[3]CBA benchmark'!$AH$23,'data "historic" (TIO)'!V12,IF('[3]CBA benchmark'!$B$15='[3]CBA benchmark'!$AI$43,IF('[3]CBA benchmark'!$B$12='[3]CBA benchmark'!$AH$30,'data "historic" (TIO)'!V5,0)))))) -> 0 | W19: =IF('[3]CBA benchmark'!$B$15='[3]CBA benchmark'!$AI$41,SUM(W4:W18),IF('[3]CBA benchmark'!$B$15='[3]CBA benchmark'!$AI$42,SUM(W4:W18)-W5-W12,IF('[3]CBA benchmark'!$B$15='[3]CBA benchmark'!$AI$43,IF('[3]CBA benchmark'!$B$12='[3]CBA benchmark'!$AH$23,'data "historic" (TIO)'!W12,IF('[3]CBA benchmark'!$B$15='[3]CBA benchmark'!$AI$43,IF('[3]CBA benchmark'!$B$12='[3]CBA benchmark'!$AH$30,'data "historic" (TIO)'!W5,0)))))) -> 0 | X19: =IF('[3]CBA benchmark'!$B$15='[3]CBA benchmark'!$AI$41,SUM(X4:X18),IF('[3]CBA benchmark'!$B$15='[3]CBA benchmark'!$AI$42,SUM(X4:X18)-X5-X12,IF('[3]CBA benchmark'!$B$15='[3]CBA benchmark'!$AI$43,IF('[3]CBA benchmark'!$B$12='[3]CBA benchmark'!$AH$23,'data "historic" (TIO)'!X12,IF('[3]CBA benchmark'!$B$15='[3]CBA benchmark'!$AI$43,IF('[3]CBA benchmark'!$B$12='[3]CBA benchmark'!$AH$30,'data "historic" (TIO)'!X5,0)))))) -> 0 | Y19: =IF('[3]CBA benchmark'!$B$15='[3]CBA benchmark'!$AI$41,SUM(Y4:Y18),IF('[3]CBA benchmark'!$B$15='[3]CBA benchmark'!$AI$42,SUM(Y4:Y18)-Y5-Y12,IF('[3]CBA benchmark'!$B$15='[3]CBA benchmark'!$AI$43,IF('[3]CBA benchmark'!$B$12='[3]CBA benchmark'!$AH$23,'data "historic" (TIO)'!Y12,IF('[3]CBA benchmark'!$B$15='[3]CBA benchmark'!$AI$43,IF('[3]CBA benchmark'!$B$12='[3]CBA benchmark'!$AH$30,'data "historic" (TIO)'!Y5,0)))))) -> 0 | Z19: =IF('[3]CBA benchmark'!$B$15='[3]CBA benchmark'!$AI$41,SUM(Z4:Z18),IF('[3]CBA benchmark'!$B$15='[3]CBA benchmark'!$AI$42,SUM(Z4:Z18)-Z5-Z12,IF('[3]CBA benchmark'!$B$15='[3]CBA benchmark'!$AI$43,IF('[3]CBA benchmark'!$B$12='[3]CBA benchmark'!$AH$23,'data "historic" (TIO)'!Z12,IF('[3]CBA benchmark'!$B$15='[3]CBA benchmark'!$AI$43,IF('[3]CBA benchmark'!$B$12='[3]CBA benchmark'!$AH$30,'data "historic" (TIO)'!Z5,0)))))) -> 0 | AA19: =IF('[3]CBA benchmark'!$B$15='[3]CBA benchmark'!$AI$41,SUM(AA4:AA18),IF('[3]CBA benchmark'!$B$15='[3]CBA benchmark'!$AI$42,SUM(AA4:AA18)-AA5-AA12,IF('[3]CBA benchmark'!$B$15='[3]CBA benchmark'!$AI$43,IF('[3]CBA benchmark'!$B$12='[3]CBA benchmark'!$AH$23,'data "historic" (TIO)'!AA12,IF('[3]CBA benchmark'!$B$15='[3]CBA benchmark'!$AI$43,IF('[3]CBA benchmark'!$B$12='[3]CBA benchmark'!$AH$30,'data "historic" (TIO)'!AA5,0)))))) -> 0 | AB19: =HLOOKUP($AB$3,$V3:$AA19,17,FALSE) -> 0 | AC19: =HLOOKUP($AC$3,$V3:$AA19,17,FALSE) -> 0
B20: =VLOOKUP($B$484,$A4:$AB19,2,FALSE) ->  | C20: =VLOOKUP($B$484,$A4:$AB19,3,FALSE) ->  | D20: =VLOOKUP($B$484,$A4:$AB19,4,FALSE) ->  | E20: =VLOOKUP($B$484,$A4:$AB19,5,FALSE) ->  | F20: =VLOOKUP($B$484,$A4:$AB19,6,FALSE) ->  | G20: =VLOOKUP($B$484,$A4:$AB19,7,FALSE) ->  | H20: =VLOOKUP($B$484,$A4:$AB19,8,FALSE) ->  | I20: =VLOOKUP($B$484,$A4:$AB19,9,FALSE) ->  | J20: =VLOOKUP($B$484,$A4:$AB19,10,FALSE) ->  | K20: =VLOOKUP($B$484,$A4:$AB19,11,FALSE) ->  | L20: =VLOOKUP($B$484,$A4:$AB19,12,FALSE) ->  | M20: =VLOOKUP($B$484,$A4:$AB19,13,FALSE) ->  | N20: =VLOOKUP($B$484,$A4:$AB19,14,FALSE) ->  | O20: =VLOOKUP($B$484,$A4:$AB19,15,FALSE) ->  | P20: =VLOOKUP($B$484,$A4:$AB19,16,FALSE) ->  | Q20: =VLOOKUP($B$484,$A4:$AB19,17,FALSE) ->  | R20: =VLOOKUP($B$484,$A4:$AB19,18,FALSE) ->  | S20: =VLOOKUP($B$484,$A4:$AB19,19,FALSE) ->  | T20: =VLOOKUP($B$484,$A4:$AB19,20,FALSE) ->  | U20: =VLOOKUP($B$484,$A4:$AB19,21,FALSE) ->  | V20: =VLOOKUP($B$484,$A4:$AB19,22,FALSE) ->  | W20: =VLOOKUP($B$484,$A4:$AB19,23,FALSE) ->  | X20: =VLOOKUP($B$484,$A4:$AB19,24,FALSE) ->  | Y20: =VLOOKUP($B$484,$A4:$AB19,25,FALSE) ->  | Z20: =VLOOKUP($B$484,$A4:$AB19,26,FALSE) ->  | AA20: =VLOOKUP($B$484,$A4:$AB19,27,FALSE) ->  | AB20: =VLOOKUP($B$484,$A4:$AB19,28,FALSE) ->  | AC20: =VLOOKUP($B$484,$A4:$AC19,29,FALSE) -> 
B21: =B20 -> 
B22: =B20 ->  | C22: =C20 ->  | D22: =D20 ->  | J22: =IF('[3]scenario testing'!$C$3='[3]scenario testing'!$AH$11,'[3]scenario testing'!N8,'[3]scenario testing'!N8) -> 5192410 | K22: =IF('[3]scenario testing'!$C$3='[3]scenario testing'!$AH$11,'[3]scenario testing'!O8,0) -> 0 | L22: =IF('[3]scenario testing'!$C$3='[3]scenario testing'!$AH$11,'[3]scenario testing'!P8,0) -> 0 | M22: =IF('[3]scenario testing'!$C$3='[3]scenario testing'!$AH$11,'[3]scenario testing'!Q8,0) -> 0 | N22: =IF('[3]scenario testing'!$C$3='[3]scenario testing'!$AH$11,'[3]scenario testing'!R8,0) -> 0 | O22: =IF('[3]scenario testing'!$C$3='[3]scenario testing'!$AH$11,'[3]scenario testing'!S8,0) -> 0 | P22: =IF('[3]scenario testing'!$C$3='[3]scenario testing'!$AH$11,'[3]scenario testing'!T8,0) -> 0 | Q22: =IF('[3]scenario testing'!$C$3='[3]scenario testing'!$AH$11,'[3]scenario testing'!U8,0) -> 0 | R22: =IF('[3]scenario testing'!$C$3='[3]scenario testing'!$AH$11,'[3]scenario testing'!V8,0) -> 0 | S22: =IF('[3]scenario testing'!$C$3='[3]scenario testing'!$AH$11,'[3]scenario testing'!W8,0) -> 0 | T22: =IF('[3]scenario testing'!$C$3='[3]scenario testing'!$AH$11,'[3]scenario testing'!X8,0) -> 0 | U22: =IF('[3]scenario testing'!$C$3='[3]scenario testing'!$AH$11,'[3]scenario testing'!Y8,0) -> 0 | V22: =AVERAGE(C22:E22) ->  | W22: =AVERAGE(F22:H22) ->  | X22: =AVERAGE(I22:K22) ->  | Y22: =AVERAGE(L22:N22) -> 0 | Z22: =AVERAGE(O22:Q22) -> 0 | AA22: =AVERAGE(R22:T22) -> 0 | AB22: =HLOOKUP($AB$3,$V3:$AA22,19,FALSE) -> 0 | AC22: =HLOOKUP($AC$3,$V3:$AA22,19,FALSE) -> 0
B23: BUS PASSENGER KILOMETRES | C23: 2009/10 | D23: 2010/11 | E23: 2011/12 | F23: 2012/13 | G23: 2013/14 | H23: 2014/15 | I23: 2015/16 | J23: 2016/17 | K23: 2017/18 | L23: 2018/19 | M23: 2019/20 | N23: 2020/21 | O23: 2021/22 | P23: 2022/23 | Q23: =Q3 -> 2023/24 | R23: =R3 -> 2024/25 | S23: =S3 -> 2025/26 | T23: =T3 -> 2026/27 | U23: =U3 -> 2027/28 | V23: 2009-12 | W23: 2012-15 | X23: 2015-18 | Y23: =Y3 -> 2018-21 | Z23: =Z3 -> 2021-24 | AA23: =AA3 -> 2024-27 | AB23: =$AB$3 -> 2018-21 | AC23: =$AC$3 -> 2015-18
A24: Northland | B24: Northland passenger kilometres: | C24: 4350872.813 | D24: 4660962.871 | E24: 4954507 | F24: 4953341 | G24: 5232371 | H24: 5102110 | I24: 5003232 | J24: 4999280 | K24: 4995328 | L24: 4988048 | M24: 5017792 | N24: 4992000 | O24: 4922000 | P24: 5006560 | Q24: 5013840 | R24: 4988048 | V24: =AVERAGE(C24:E24) -> 4655447.561 | W24: =AVERAGE(F24:H24) -> 5095940.667 | X24: =AVERAGE(I24:K24) -> 4999280 | Y24: =AVERAGE(L24:N24) -> 4999280 | Z24: =AVERAGE(O24:Q24) -> 4980800 | AA24: =AVERAGE(R24:T24) -> 4988048 | AB24: =HLOOKUP($AB$3,$V23:$AA39,2,FALSE) -> 4999280 | AC24: =HLOOKUP($AC$3,$V23:$AA39,2,FALSE) -> 4999280
A25: Auckland | B25: Auckland passenger kilometres: | C25: 326649647 | D25: 354516132 | E25: 449258834 | F25: 438790183 | G25: 507174739 | H25: 458675254 | I25: 466615840 | J25: 476133624 | K25: 480625975 | L25: 496639483 | M25: 509849900 | N25: 521969169 | O25: 535473834 | P25: 551816055 | Q25: 565022774 | R25: 579028163 | V25: 376808204.3 | W25: 468213392 | X25: 474458479.7 | Y25: =AVERAGE(L25:N25) -> 509486184 | Z25: 550770887.7 | AA25: 579028163 | AB25: =HLOOKUP($AB$3,$V23:$AA39,3,FALSE) -> 509486184 | AC25: =HLOOKUP($AC$3,$V23:$AA39,3,FALSE) -> 474458479.7
A26: Waikato | B26: Waikato passenger kilometres: | C26: 33511595.76 | D26: 35165666.86 | E26: 37655571.37 | F26: 36924380.88 | G26: 37326461.2 | H26: 37075223 | I26: 43975449 | J26: 44654726 | K26: 45324537 | L26: 46004401 | M26: 46464441 | N26: 46929082 | O26: 47633017 | P26: 48330314 | Q26: 48830989 | R26: 49319297 | V26: 35444277.99 | W26: 37108688.36 | X26: 44651570.67 | Y26: 46465974.67 | Z26: 48264773.33 | AA26: 49319297 | AB26: =HLOOKUP($AB$3,$V23:$AA39,4,FALSE) -> 46465974.67 | AC26: =HLOOKUP($AC$3,$V23:$AA39,4,FALSE) -> 44651570.67
A27: Bay of Plenty | B27: Bay of Plenty passenger kilometres: | C27: 18157942 | D27: 21202596 | E27: 26017243 | F27: 26368092 | G27: 25050302 | H27: 26556095 | I27: 34372300 | J27: 35059800 | K27: 35761000 | L27: 36476200 | M27: 37205700 | N27: 37949800 | O27: 38708800 | P27: 39483000 | Q27: 40272600 | R27: 41078100 | V27: 21792593.67 | W27: 25991496.33 | X27: 35064366.67 | Y27: 37210566.67 | Z27: 39488133.33 | AA27: 41078100 | AB27: =HLOOKUP($AB$3,$V23:$AA39,5,FALSE) -> 37210566.67 | AC27: =HLOOKUP($AC$3,$V23:$AA39,5,FALSE) -> 35064366.67
A28: Gisborne | B28: Gisborne passenger kilometres: | C28: 816120 | D28: 913548 | E28: 945576 | F28: 942048 | G28: 836838 | H28: 829566 | I28: 837000 | J28: 837000 | K28: 837000 | L28: 870000 | M28: 870000 | N28: 870000 | O28: 883500 | P28: 883500 | Q28: 883500 | R28: 883500 | V28: 891748 | W28: 869484 | X28: 837000 | Y28: 870000 | Z28: 883500 | AA28: 883500 | AB28: =HLOOKUP($AB$3,$V23:$AA39,6,FALSE) -> 870000 | AC28: =HLOOKUP($AC$3,$V23:$AA39,6,FALSE) -> 837000
A29: Hawkes Bay | B29: Hawkes Bay passenger kilometres: | C29: 3360791 | D29: 3882529 | E29: 4770892 | F29: 5558531 | G29: 5838868 | H29: 7555620 | I29: 8471623 | J29: 8641055 | K29: 8813876 | L29: 8990154 | M29: 9169957 | N29: 9353356 | O29: 9540423 | P29: 9731232 | Q29: 9925856 | R29: 10124373 | V29: 4004737.333 | W29: 6317673 | X29: 8642184.667 | Y29: 9171155.667 | Z29: 9732503.667 | AA29: 10124373 | AB29: =HLOOKUP($AB$3,$V23:$AA39,7,FALSE) -> 9171155.667 | AC29: =HLOOKUP($AC$3,$V23:$AA39,7,FALSE) -> 8642184.667
A30: Taranaki | B30: Taranaki passenger kilometres: | C30: 3732302 | D30: 4615457 | E30: 5071909 | F30: 5176741 | G30: 5417954 | H30: 5394506 | I30: 5902195 | J30: 6253726 | K30: 6626349 | L30: 7021330 | M30: 7440009 | N30: 7883810 | O30: 8354238 | P30: 8852892 | Q30: 9381465 | R30: 9941753 | V30: 4473222.667 | W30: 5329733.667 | X30: 6260756.667 | Y30: 7448383 | Z30: 8862865 | AA30: 9941753 | AB30: =HLOOKUP($AB$3,$V23:$AA39,8,FALSE) -> 7448383 | AC30: =HLOOKUP($AC$3,$V23:$AA39,8,FALSE) -> 6260756.667
A31: Manawatu-Wanganui | B31: Manawatu-Wanganui passenger kilometres: | C31: 12829416 | D31: 16371395 | E31: 16621807 | F31: 16638914 | G31: 16417477 | H31: 16161786 | I31: 17080971 | J31: 17422591 | K31: 17771043 | L31: 18126464 | M31: 18488993 | N31: 18858773 | O31: 19235949 | P31: 19620667 | Q31: 20013081 | R31: 20413342 | V31: 15274206 | W31: 16406059 | X31: 17424868.33 | Y31: 18491410 | Z31: 19623232.33 | AA31: 20413342 | AB31: =HLOOKUP($AB$3,$V23:$AA39,9,FALSE) -> 18491410 | AC31: =HLOOKUP($AC$3,$V23:$AA39,9,FALSE) -> 17424868.33
A32: Wellington | B32: Wellington passenger kilometres: | C32: 169960002 | D32: 165844583 | E32: 167341426 | F32: 167918929 | G32: 167943006 | H32: 168211609 | I32: 172141600 | J32: 174723700 | K32: 177344600 | L32: 180004700 | M32: 182704800 | N32: 185445400 | O32: 188227100 | P32: 191050500 | Q32: 193916300 | R32: 196825000 | V32: 167715337 | W32: 168024514.7 | X32: 174736633.3 | Y32: 182718300 | Z32: 191064633.3 | AA32: 196825000 | AB32: =HLOOKUP($AB$3,$V23:$AA39,10,FALSE) -> 182718300 | AC32: =HLOOKUP($AC$3,$V23:$AA39,10,FALSE) -> 174736633.3
A33: Marlborough | B33: Marlborough passenger kilometres: | C33: 168900 | D33: 176423 | E33: 178298 | F33: 188618 | G33: 198735 | H33: 202342 | I33: 189000 | J33: 265950 | K33: 273930 | L33: 282144 | M33: 290610 | N33: 299328 | O33: 311304 | P33: 329640 | Q33: 339528 | R33: 349710 | V33: 174540.3333 | W33: 196565 | X33: 242960 | Y33: 290694 | Z33: 326824 | AA33: 349710 | AB33: =HLOOKUP($AB$3,$V23:$AA39,11,FALSE) -> 290694 | AC33: =HLOOKUP($AC$3,$V23:$AA39,11,FALSE) -> 242960
A34: Nelson | B34: Nelson passenger kilometres: | C34: 394385 | D34: 436820 | E34: 833860 | F34: 2317280 | G34: 2603481 | H34: 2784873 | I34: 2863829 | J34: 3124177 | K34: 3384525 | L34: 3644873 | M34: 3905222 | N34: 4022378 | O34: 4139535 | P34: 4256691 | Q34: 4373848 | R34: 4491005 | V34: 555021.6667 | W34: 2568544.667 | X34: 3124177 | Y34: 3857491 | Z34: 4256691.333 | AA34: 4491005 | AB34: =HLOOKUP($AB$3,$V23:$AA39,12,FALSE) -> 3857491 | AC34: =HLOOKUP($AC$3,$V23:$AA39,12,FALSE) -> 3124177
A35: Canterbury | B35: Canterbury passenger kilometres: | C35: 146992379 | D35: 111433488 | E35: 96497517 | F35: 114047543 | G35: 120479110 | H35: 120867272 | I35: 127343430 | J35: 132907258 | K35: 139552617 | L35: 146530250 | M35: 153856757 | N35: 161549589 | O35: 169627071 | P35: 178108413 | Q35: 187013838 | R35: 196364518 | V35: 118307794.7 | W35: 118464641.7 | X35: 133267768.3 | Y35: 153978865.3 | Z35: 178249774 | AA35: 196364518 | AB35: =HLOOKUP($AB$3,$V23:$AA39,13,FALSE) -> 153978865.3 | AC35: =HLOOKUP($AC$3,$V23:$AA39,13,FALSE) -> 133267768.3
A36: West Coast | B36: West Coast passenger kilometres: | C36: 113835 | D36: 111662 | E36: 110956 | F36: 153369 | G36: 138508 | H36: 134016 | I36: 70000 | J36: 70000 | K36: 70000 | L36: 70000 | M36: 70000 | N36: 70000 | O36: 70000 | P36: 70000 | Q36: 70000 | R36: 70000 | V36: 112151 | W36: 141964.3333 | X36: 70000 | Y36: 70000 | Z36: 70000 | AA36: 70000 | AB36: =HLOOKUP($AB$3,$V23:$AA39,14,FALSE) -> 70000 | AC36: =HLOOKUP($AC$3,$V23:$AA39,14,FALSE) -> 70000
A37: Otago | B37: Otago (DUNEDIN ONLY) passenger kilometres: | C37: =C736 -> 10334093 | D37: 11508414 | E37: 11816646.8 | F37: 11923600.8 | G37: 11927978.6 | H37: 11854579 | I37: 16232237 | J37: 16361735 | K37: 16491521 | L37: =L727 -> 16647566 | M37: 16805861 | N37: 16966455 | O37: 17129378 | P37: 17294680 | Q37: 17462399 | R37: 17577335 | V37: 11219717.93 | W37: 11902052.8 | X37: 16361831 | Y37: 16806627.33 | Z37: 17295485.67 | AA37: 17577335 | AB37: =HLOOKUP($AB$3,$V23:$AA39,15,FALSE) -> 16806627.33 | AC37: =HLOOKUP($AC$3,$V23:$AA39,15,FALSE) -> 16361831
A38: Southland | B38: Southland passenger kilometres: | C38: 1312272 | D38: 1223700 | E38: 1289040 | F38: 889907 | G38: 830821 | H38: 1711948 | I38: 1629000 | J38: 1669725 | K38: 1711468 | L38: 1754254 | M38: 1798111 | N38: 1843063 | O38: 1889140 | P38: 1936369 | Q38: 1984778 | R38: 2034397 | V38: 1275004 | W38: 1144225.333 | X38: 1670064.333 | Y38: 1798476 | Z38: 1936762.333 | AA38: 2034397 | AB38: =HLOOKUP($AB$3,$V23:$AA39,16,FALSE) -> 1798476 | AC38: =HLOOKUP($AC$3,$V23:$AA39,16,FALSE) -> 1670064.333
A39: National | B39: National total passenger kilometres | C39: =IF('[3]CBA benchmark'!$B$15='[3]CBA benchmark'!$AI$41,SUM(C24:C38),IF('[3]CBA benchmark'!$B$15='[3]CBA benchmark'!$AI$42,SUM(C24:C38)-C25-C32,IF('[3]CBA benchmark'!$B$15='[3]CBA benchmark'!$AI$43,IF('[3]CBA benchmark'!$B$12='[3]CBA benchmark'!$AH$23,'data "historic" (TIO)'!C32,IF('[3]CBA benchmark'!$B$15='[3]CBA benchmark'!$AI$43,IF('[3]CBA benchmark'!$B$12='[3]CBA benchmark'!$AH$30,'data "historic" (TIO)'!C25,0)))))) -> 0 | D39: =IF('[3]CBA benchmark'!$B$15='[3]CBA benchmark'!$AI$41,SUM(D24:D38),IF('[3]CBA benchmark'!$B$15='[3]CBA benchmark'!$AI$42,SUM(D24:D38)-D25-D32,IF('[3]CBA benchmark'!$B$15='[3]CBA benchmark'!$AI$43,IF('[3]CBA benchmark'!$B$12='[3]CBA benchmark'!$AH$23,'data "historic" (TIO)'!D32,IF('[3]CBA benchmark'!$B$15='[3]CBA benchmark'!$AI$43,IF('[3]CBA benchmark'!$B$12='[3]CBA benchmark'!$AH$30,'data "historic" (TIO)'!D25,0)))))) -> 0 | E39: =IF('[3]CBA benchmark'!$B$15='[3]CBA benchmark'!$AI$41,SUM(E24:E38),IF('[3]CBA benchmark'!$B$15='[3]CBA benchmark'!$AI$42,SUM(E24:E38)-E25-E32,IF('[3]CBA benchmark'!$B$15='[3]CBA benchmark'!$AI$43,IF('[3]CBA benchmark'!$B$12='[3]CBA benchmark'!$AH$23,'data "historic" (TIO)'!E32,IF('[3]CBA benchmark'!$B$15='[3]CBA benchmark'!$AI$43,IF('[3]CBA benchmark'!$B$12='[3]CBA benchmark'!$AH$30,'data "historic" (TIO)'!E25,0)))))) -> 0 | F39: =IF('[3]CBA benchmark'!$B$15='[3]CBA benchmark'!$AI$41,SUM(F24:F38),IF('[3]CBA benchmark'!$B$15='[3]CBA benchmark'!$AI$42,SUM(F24:F38)-F25-F32,IF('[3]CBA benchmark'!$B$15='[3]CBA benchmark'!$AI$43,IF('[3]CBA benchmark'!$B$12='[3]CBA benchmark'!$AH$23,'data "historic" (TIO)'!F32,IF('[3]CBA benchmark'!$B$15='[3]CBA benchmark'!$AI$43,IF('[3]CBA benchmark'!$B$12='[3]CBA benchmark'!$AH$30,'data "historic" (TIO)'!F25,0)))))) -> 0 | G39: =IF('[3]CBA benchmark'!$B$15='[3]CBA benchmark'!$AI$41,SUM(G24:G38),IF('[3]CBA benchmark'!$B$15='[3]CBA benchmark'!$AI$42,SUM(G24:G38)-G25-G32,IF('[3]CBA benchmark'!$B$15='[3]CBA benchmark'!$AI$43,IF('[3]CBA benchmark'!$B$12='[3]CBA benchmark'!$AH$23,'data "historic" (TIO)'!G32,IF('[3]CBA benchmark'!$B$15='[3]CBA benchmark'!$AI$43,IF('[3]CBA benchmark'!$B$12='[3]CBA benchmark'!$AH$30,'data "historic" (TIO)'!G25,0)))))) -> 0 | H39: =IF('[3]CBA benchmark'!$B$15='[3]CBA benchmark'!$AI$41,SUM(H24:H38),IF('[3]CBA benchmark'!$B$15='[3]CBA benchmark'!$AI$42,SUM(H24:H38)-H25-H32,IF('[3]CBA benchmark'!$B$15='[3]CBA benchmark'!$AI$43,IF('[3]CBA benchmark'!$B$12='[3]CBA benchmark'!$AH$23,'data "historic" (TIO)'!H32,IF('[3]CBA benchmark'!$B$15='[3]CBA benchmark'!$AI$43,IF('[3]CBA benchmark'!$B$12='[3]CBA benchmark'!$AH$30,'data "historic" (TIO)'!H25,0)))))) -> 0 | I39: =IF('[3]CBA benchmark'!$B$15='[3]CBA benchmark'!$AI$41,SUM(I24:I38),IF('[3]CBA benchmark'!$B$15='[3]CBA benchmark'!$AI$42,SUM(I24:I38)-I25-I32,IF('[3]CBA benchmark'!$B$15='[3]CBA benchmark'!$AI$43,IF('[3]CBA benchmark'!$B$12='[3]CBA benchmark'!$AH$23,'data "historic" (TIO)'!I32,IF('[3]CBA benchmark'!$B$15='[3]CBA benchmark'!$AI$43,IF('[3]CBA benchmark'!$B$12='[3]CBA benchmark'!$AH$30,'data "historic" (TIO)'!I25,0)))))) -> 0 | J39: =IF('[3]CBA benchmark'!$B$15='[3]CBA benchmark'!$AI$41,SUM(J24:J38),IF('[3]CBA benchmark'!$B$15='[3]CBA benchmark'!$AI$42,SUM(J24:J38)-J25-J32,IF('[3]CBA benchmark'!$B$15='[3]CBA benchmark'!$AI$43,IF('[3]CBA benchmark'!$B$12='[3]CBA benchmark'!$AH$23,'data "historic" (TIO)'!J32,IF('[3]CBA benchmark'!$B$15='[3]CBA benchmark'!$AI$43,IF('[3]CBA benchmark'!$B$12='[3]CBA benchmark'!$AH$30,'data "historic" (TIO)'!J25,0)))))) -> 0 | K39: =IF('[3]CBA benchmark'!$B$15='[3]CBA benchmark'!$AI$41,SUM(K24:K38),IF('[3]CBA benchmark'!$B$15='[3]CBA benchmark'!$AI$42,SUM(K24:K38)-K25-K32,IF('[3]CBA benchmark'!$B$15='[3]CBA benchmark'!$AI$43,IF('[3]CBA benchmark'!$B$12='[3]CBA benchmark'!$AH$23,'data "historic" (TIO)'!K32,IF('[3]CBA benchmark'!$B$15='[3]CBA benchmark'!$AI$43,IF('[3]CBA benchmark'!$B$12='[3]CBA benchmark'!$AH$30,'data "historic" (TIO)'!K25,0)))))) -> 0 | L39: =IF('[3]CBA benchmark'!$B$15='[3]CBA benchmark'!$AI$41,SUM(L24:L38),IF('[3]CBA benchmark'!$B$15='[3]CBA benchmark'!$AI$42,SUM(L24:L38)-L25-L32,IF('[3]CBA benchmark'!$B$15='[3]CBA benchmark'!$AI$43,IF('[3]CBA benchmark'!$B$12='[3]CBA benchmark'!$AH$23,'data "historic" (TIO)'!L32,IF('[3]CBA benchmark'!$B$15='[3]CBA benchmark'!$AI$43,IF('[3]CBA benchmark'!$B$12='[3]CBA benchmark'!$AH$30,'data "historic" (TIO)'!L25,0)))))) -> 0 | M39: =IF('[3]CBA benchmark'!$B$15='[3]CBA benchmark'!$AI$41,SUM(M24:M38),IF('[3]CBA benchmark'!$B$15='[3]CBA benchmark'!$AI$42,SUM(M24:M38)-M25-M32,IF('[3]CBA benchmark'!$B$15='[3]CBA benchmark'!$AI$43,IF('[3]CBA benchmark'!$B$12='[3]CBA benchmark'!$AH$23,'data "historic" (TIO)'!M32,IF('[3]CBA benchmark'!$B$15='[3]CBA benchmark'!$AI$43,IF('[3]CBA benchmark'!$B$12='[3]CBA benchmark'!$AH$30,'data "historic" (TIO)'!M25,0)))))) -> 0 | N39: =IF('[3]CBA benchmark'!$B$15='[3]CBA benchmark'!$AI$41,SUM(N24:N38),IF('[3]CBA benchmark'!$B$15='[3]CBA benchmark'!$AI$42,SUM(N24:N38)-N25-N32,IF('[3]CBA benchmark'!$B$15='[3]CBA benchmark'!$AI$43,IF('[3]CBA benchmark'!$B$12='[3]CBA benchmark'!$AH$23,'data "historic" (TIO)'!N32,IF('[3]CBA benchmark'!$B$15='[3]CBA benchmark'!$AI$43,IF('[3]CBA benchmark'!$B$12='[3]CBA benchmark'!$AH$30,'data "historic" (TIO)'!N25,0)))))) -> 0 | O39: =IF('[3]CBA benchmark'!$B$15='[3]CBA benchmark'!$AI$41,SUM(O24:O38),IF('[3]CBA benchmark'!$B$15='[3]CBA benchmark'!$AI$42,SUM(O24:O38)-O25-O32,IF('[3]CBA benchmark'!$B$15='[3]CBA benchmark'!$AI$43,IF('[3]CBA benchmark'!$B$12='[3]CBA benchmark'!$AH$23,'data "historic" (TIO)'!O32,IF('[3]CBA benchmark'!$B$15='[3]CBA benchmark'!$AI$43,IF('[3]CBA benchmark'!$B$12='[3]CBA benchmark'!$AH$30,'data "historic" (TIO)'!O25,0)))))) -> 0 | P39: =IF('[3]CBA benchmark'!$B$15='[3]CBA benchmark'!$AI$41,SUM(P24:P38),IF('[3]CBA benchmark'!$B$15='[3]CBA benchmark'!$AI$42,SUM(P24:P38)-P25-P32,IF('[3]CBA benchmark'!$B$15='[3]CBA benchmark'!$AI$43,IF('[3]CBA benchmark'!$B$12='[3]CBA benchmark'!$AH$23,'data "historic" (TIO)'!P32,IF('[3]CBA benchmark'!$B$15='[3]CBA benchmark'!$AI$43,IF('[3]CBA benchmark'!$B$12='[3]CBA benchmark'!$AH$30,'data "historic" (TIO)'!P25,0)))))) -> 0 | Q39: =IF('[3]CBA benchmark'!$B$15='[3]CBA benchmark'!$AI$41,SUM(Q24:Q38),IF('[3]CBA benchmark'!$B$15='[3]CBA benchmark'!$AI$42,SUM(Q24:Q38)-Q25-Q32,IF('[3]CBA benchmark'!$B$15='[3]CBA benchmark'!$AI$43,IF('[3]CBA benchmark'!$B$12='[3]CBA benchmark'!$AH$23,'data "historic" (TIO)'!Q32,IF('[3]CBA benchmark'!$B$15='[3]CBA benchmark'!$AI$43,IF('[3]CBA benchmark'!$B$12='[3]CBA benchmark'!$AH$30,'data "historic" (TIO)'!Q25,0)))))) -> 0 | R39: =IF('[3]CBA benchmark'!$B$15='[3]CBA benchmark'!$AI$41,SUM(R24:R38),IF('[3]CBA benchmark'!$B$15='[3]CBA benchmark'!$AI$42,SUM(R24:R38)-R25-R32,IF('[3]CBA benchmark'!$B$15='[3]CBA benchmark'!$AI$43,IF('[3]CBA benchmark'!$B$12='[3]CBA benchmark'!$AH$23,'data "historic" (TIO)'!R32,IF('[3]CBA benchmark'!$B$15='[3]CBA benchmark'!$AI$43,IF('[3]CBA benchmark'!$B$12='[3]CBA benchmark'!$AH$30,'data "historic" (TIO)'!R25,0)))))) -> 0 | S39: =IF('[3]CBA benchmark'!$B$15='[3]CBA benchmark'!$AI$41,SUM(S24:S38),IF('[3]CBA benchmark'!$B$15='[3]CBA benchmark'!$AI$42,SUM(S24:S38)-S25-S32,IF('[3]CBA benchmark'!$B$15='[3]CBA benchmark'!$AI$43,IF('[3]CBA benchmark'!$B$12='[3]CBA benchmark'!$AH$23,'data "historic" (TIO)'!S32,IF('[3]CBA benchmark'!$B$15='[3]CBA benchmark'!$AI$43,IF('[3]CBA benchmark'!$B$12='[3]CBA benchmark'!$AH$30,'data "historic" (TIO)'!S25,0)))))) -> 0 | T39: =IF('[3]CBA benchmark'!$B$15='[3]CBA benchmark'!$AI$41,SUM(T24:T38),IF('[3]CBA benchmark'!$B$15='[3]CBA benchmark'!$AI$42,SUM(T24:T38)-T25-T32,IF('[3]CBA benchmark'!$B$15='[3]CBA benchmark'!$AI$43,IF('[3]CBA benchmark'!$B$12='[3]CBA benchmark'!$AH$23,'data "historic" (TIO)'!T32,IF('[3]CBA benchmark'!$B$15='[3]CBA benchmark'!$AI$43,IF('[3]CBA benchmark'!$B$12='[3]CBA benchmark'!$AH$30,'data "historic" (TIO)'!T25,0)))))) -> 0 | U39: =IF('[3]CBA benchmark'!$B$15='[3]CBA benchmark'!$AI$41,SUM(U24:U38),IF('[3]CBA benchmark'!$B$15='[3]CBA benchmark'!$AI$42,SUM(U24:U38)-U25-U32,IF('[3]CBA benchmark'!$B$15='[3]CBA benchmark'!$AI$43,IF('[3]CBA benchmark'!$B$12='[3]CBA benchmark'!$AH$23,'data "historic" (TIO)'!U32,IF('[3]CBA benchmark'!$B$15='[3]CBA benchmark'!$AI$43,IF('[3]CBA benchmark'!$B$12='[3]CBA benchmark'!$AH$30,'data "historic" (TIO)'!U25,0)))))) -> 0 | V39: =IF('[3]CBA benchmark'!$B$15='[3]CBA benchmark'!$AI$41,SUM(V24:V38),IF('[3]CBA benchmark'!$B$15='[3]CBA benchmark'!$AI$42,SUM(V24:V38)-V25-V32,IF('[3]CBA benchmark'!$B$15='[3]CBA benchmark'!$AI$43,IF('[3]CBA benchmark'!$B$12='[3]CBA benchmark'!$AH$23,'data "historic" (TIO)'!V32,IF('[3]CBA benchmark'!$B$15='[3]CBA benchmark'!$AI$43,IF('[3]CBA benchmark'!$B$12='[3]CBA benchmark'!$AH$30,'data "historic" (TIO)'!V25,0)))))) -> 0 | W39: =IF('[3]CBA benchmark'!$B$15='[3]CBA benchmark'!$AI$41,SUM(W24:W38),IF('[3]CBA benchmark'!$B$15='[3]CBA benchmark'!$AI$42,SUM(W24:W38)-W25-W32,IF('[3]CBA benchmark'!$B$15='[3]CBA benchmark'!$AI$43,IF('[3]CBA benchmark'!$B$12='[3]CBA benchmark'!$AH$23,'data "historic" (TIO)'!W32,IF('[3]CBA benchmark'!$B$15='[3]CBA benchmark'!$AI$43,IF('[3]CBA benchmark'!$B$12='[3]CBA benchmark'!$AH$30,'data "historic" (TIO)'!W25,0)))))) -> 0 | X39: =IF('[3]CBA benchmark'!$B$15='[3]CBA benchmark'!$AI$41,SUM(X24:X38),IF('[3]CBA benchmark'!$B$15='[3]CBA benchmark'!$AI$42,SUM(X24:X38)-X25-X32,IF('[3]CBA benchmark'!$B$15='[3]CBA benchmark'!$AI$43,IF('[3]CBA benchmark'!$B$12='[3]CBA benchmark'!$AH$23,'data "historic" (TIO)'!X32,IF('[3]CBA benchmark'!$B$15='[3]CBA benchmark'!$AI$43,IF('[3]CBA benchmark'!$B$12='[3]CBA benchmark'!$AH$30,'data "historic" (TIO)'!X25,0)))))) -> 0 | Y39: =IF('[3]CBA benchmark'!$B$15='[3]CBA benchmark'!$AI$41,SUM(Y24:Y38),IF('[3]CBA benchmark'!$B$15='[3]CBA benchmark'!$AI$42,SUM(Y24:Y38)-Y25-Y32,IF('[3]CBA benchmark'!$B$15='[3]CBA benchmark'!$AI$43,IF('[3]CBA benchmark'!$B$12='[3]CBA benchmark'!$AH$23,'data "historic" (TIO)'!Y32,IF('[3]CBA benchmark'!$B$15='[3]CBA benchmark'!$AI$43,IF('[3]CBA benchmark'!$B$12='[3]CBA benchmark'!$AH$30,'data "historic" (TIO)'!Y25,0)))))) -> 0 | Z39: =IF('[3]CBA benchmark'!$B$15='[3]CBA benchmark'!$AI$41,SUM(Z24:Z38),IF('[3]CBA benchmark'!$B$15='[3]CBA benchmark'!$AI$42,SUM(Z24:Z38)-Z25-Z32,IF('[3]CBA benchmark'!$B$15='[3]CBA benchmark'!$AI$43,IF('[3]CBA benchmark'!$B$12='[3]CBA benchmark'!$AH$23,'data "historic" (TIO)'!Z32,IF('[3]CBA benchmark'!$B$15='[3]CBA benchmark'!$AI$43,IF('[3]CBA benchmark'!$B$12='[3]CBA benchmark'!$AH$30,'data "historic" (TIO)'!Z25,0)))))) -> 0 | AA39: =IF('[3]CBA benchmark'!$B$15='[3]CBA benchmark'!$AI$41,SUM(AA24:AA38),IF('[3]CBA benchmark'!$B$15='[3]CBA benchmark'!$AI$42,SUM(AA24:AA38)-AA25-AA32,IF('[3]CBA benchmark'!$B$15='[3]CBA benchmark'!$AI$43,IF('[3]CBA benchmark'!$B$12='[3]CBA benchmark'!$AH$23,'data "historic" (TIO)'!AA32,IF('[3]CBA benchmark'!$B$15='[3]CBA benchmark'!$AI$43,IF('[3]CBA benchmark'!$B$12='[3]CBA benchmark'!$AH$30,'data "historic" (TIO)'!AA25,0)))))) -> 0 | AB39: =HLOOKUP($AB$3,$V23:$AA39,17,FALSE) -> 0 | AC39: =HLOOKUP($AC$3,$V23:$AA39,17,FALSE) -> 0
B40: =VLOOKUP($B$484,$A24:$AB39,2,FALSE) ->  | C40: =VLOOKUP($B$484,$A24:$AB39,3,FALSE) ->  | D40: =VLOOKUP($B$484,$A24:$AB39,4,FALSE) ->  | E40: =VLOOKUP($B$484,$A24:$AB39,5,FALSE) ->  | F40: =VLOOKUP($B$484,$A24:$AB39,6,FALSE) ->  | G40: =VLOOKUP($B$484,$A24:$AB39,7,FALSE) ->  | H40: =VLOOKUP($B$484,$A24:$AB39,8,FALSE) ->  | I40: =VLOOKUP($B$484,$A24:$AB39,9,FALSE) ->  | J40: =VLOOKUP($B$484,$A24:$AB39,10,FALSE) ->  | K40: =VLOOKUP($B$484,$A24:$AB39,11,FALSE) ->  | L40: =VLOOKUP($B$484,$A24:$AB39,12,FALSE) ->  | M40: =VLOOKUP($B$484,$A24:$AB39,13,FALSE) ->  | N40: =VLOOKUP($B$484,$A24:$AB39,14,FALSE) ->  | O40: =VLOOKUP($B$484,$A24:$AB39,15,FALSE) ->  | P40: =VLOOKUP($B$484,$A24:$AB39,16,FALSE) ->  | Q40: =VLOOKUP($B$484,$A24:$AB39,17,FALSE) ->  | R40: =VLOOKUP($B$484,$A24:$AB39,18,FALSE) ->  | S40: =VLOOKUP($B$484,$A24:$AB39,19,FALSE) ->  | T40: =VLOOKUP($B$484,$A24:$AB39,20,FALSE) ->  | U40: =VLOOKUP($B$484,$A24:$AB39,21,FALSE) ->  | V40: =VLOOKUP($B$484,$A24:$AB39,22,FALSE) ->  | W40: =VLOOKUP($B$484,$A24:$AB39,23,FALSE) ->  | X40: =VLOOKUP($B$484,$A24:$AB39,24,FALSE) ->  | Y40: =VLOOKUP($B$484,$A24:$AB39,25,FALSE) ->  | Z40: =VLOOKUP($B$484,$A24:$AB39,26,FALSE) ->  | AA40: =VLOOKUP($B$484,$A24:$AB39,27,FALSE) ->  | AB40: =VLOOKUP($B$484,$A24:$AB39,28,FALSE) ->  | AC40: =VLOOKUP($B$484,$A24:$AC39,29,FALSE) -> 
B41: =B40 -> 
B42: =B40 ->  | C42: =C40 ->  | D42: =D40 ->  | J42: =IF('[3]scenario testing'!$C$3='[3]scenario testing'!$AH$11,'[3]scenario testing'!N9,'[3]scenario testing'!N9) -> 44654726 | K42: =IF('[3]scenario testing'!$C$3='[3]scenario testing'!$AH$11,'[3]scenario testing'!O9,0) -> 0 | L42: =IF('[3]scenario testing'!$C$3='[3]scenario testing'!$AH$11,'[3]scenario testing'!P9,0) -> 0 | M42: =IF('[3]scenario testing'!$C$3='[3]scenario testing'!$AH$11,'[3]scenario testing'!Q9,0) -> 0 | N42: =IF('[3]scenario testing'!$C$3='[3]scenario testing'!$AH$11,'[3]scenario testing'!R9,0) -> 0 | O42: =IF('[3]scenario testing'!$C$3='[3]scenario testing'!$AH$11,'[3]scenario testing'!S9,0) -> 0 | P42: =IF('[3]scenario testing'!$C$3='[3]scenario testing'!$AH$11,'[3]scenario testing'!T9,0) -> 0 | Q42: =IF('[3]scenario testing'!$C$3='[3]scenario testing'!$AH$11,'[3]scenario testing'!U9,0) -> 0 | R42: =IF('[3]scenario testing'!$C$3='[3]scenario testing'!$AH$11,'[3]scenario testing'!V9,0) -> 0 | S42: =IF('[3]scenario testing'!$C$3='[3]scenario testing'!$AH$11,'[3]scenario testing'!W9,0) -> 0 | T42: =IF('[3]scenario testing'!$C$3='[3]scenario testing'!$AH$11,'[3]scenario testing'!X9,0) -> 0 | U42: =IF('[3]scenario testing'!$C$3='[3]scenario testing'!$AH$11,'[3]scenario testing'!Y9,0) -> 0 | V42: =AVERAGE(C42:E42) ->  | W42: =AVERAGE(F42:H42) ->  | X42: =AVERAGE(I42:K42) ->  | Y42: =AVERAGE(L42:N42) -> 0 | Z42: =AVERAGE(O42:Q42) -> 0 | AA42: =AVERAGE(R42:T42) -> 0 | AB42: =HLOOKUP($AB$3,$V23:$AA42,19,FALSE) -> 0 | AC42: =HLOOKUP($AC$3,$V23:$AA42,19,FALSE) -> 0
B43: BUS IN SERVICE VEHICLE KILOMETRES | C43: 2009/10 | D43: 2010/11 | E43: 2011/12 | F43: 2012/13 | G43: 2013/14 | H43: 2014/15 | I43: 2015/16 | J43: 2016/17 | K43: 2017/18 | L43: 2018/19 | M43: 2019/20 | N43: 2020/21 | O43: 2021/22 | P43: 2022/23 | Q43: 2023/24 | R43: 2024/25 | S43: =S23 -> 2025/26 | T43: =T23 -> 2026/27 | U43: =U23 -> 2027/28 | V43: 2009-12 | W43: 2012-15 | X43: 2015-18 | Y43: =Y23 -> 2018-21 | Z43: =Z3 -> 2021-24 | AA43: =AA23 -> 2024-27 | AB43: =$AB$3 -> 2018-21 | AC43: =$AC$3 -> 2015-18
A44: Northland | B44: Northland in service vehicle kilometres: | C44: 450783 | D44: 379825 | E44: 479441 | F44: 382108 | G44: 387601 | H44: 391751 | I44: 384864 | J44: 384560 | K44: 384256 | L44: 383696 | M44: 385984 | N44: 384000 | O44: 384000 | P44: 385120 | Q44: 385680 | R44: 383696 | V44: =AVERAGE(C44:E44) -> 436683 | W44: =AVERAGE(F44:H44) -> 387153.3333 | X44: =AVERAGE(I44:K44) -> 384560 | Y44: =AVERAGE(L44:N44) -> 384560 | Z44: =AVERAGE(O44:Q44) -> 384933.3333 | AA44: =AVERAGE(R44:T44) -> 383696 | AB44: =HLOOKUP($AB$3,$V43:$AA59,2,FALSE) -> 384560 | AC44: =HLOOKUP($AC$3,$V43:$AA59,2,FALSE) -> 384560
A45: Auckland | B45: Auckland in service vehicle kilometres: | C45: 38635710 | D45: 40962837 | E45: 41564412 | F45: 46175186 | G45: 47901288 | H45: 48631594 | I45: 47099045 | J45: 48276522 | K45: 49483435 | L45: 50720520 | M45: 51988533 | N45: 53288247 | O45: 54620453 | P45: 55085964 | Q45: 57385613 | R45: 58820254 | V45: 40387653 | W45: 47569356 | X45: 48286334 | Y45: =AVERAGE(L45:N45) -> 51999100 | Z45: 55697343.33 | AA45: 58820254 | AB45: =HLOOKUP($AB$3,$V43:$AA59,3,FALSE) -> 51999100 | AC45: =HLOOKUP($AC$3,$V43:$AA59,3,FALSE) -> 48286334
A46: Waikato | B46: Waikato in service vehicle kilometres: | C46: 5280031 | D46: 5244111 | E46: 5718423 | F46: 5771515 | G46: 5780209 | H46: 5718423 | I46: 5780209 | J46: 5780209 | K46: 5780209 | L46: 5780209 | M46: 5780209 | N46: 5780209 | O46: 5780209 | P46: 5780209 | Q46: 5780209 | R46: 5780209 | V46: 5414188.333 | W46: 5756715.667 | X46: 5780209 | Y46: 5780209 | Z46: 5780209 | AA46: 5780209 | AB46: =HLOOKUP($AB$3,$V43:$AA59,4,FALSE) -> 5780209 | AC46: =HLOOKUP($AC$3,$V43:$AA59,4,FALSE) -> 5780209
A47: Bay of Plenty | B47: Bay of Plenty in service vehicle kilometres: | C47: 4678107 | D47: 5117546 | E47: 4760476 | F47: 4713062 | G47: 4798674 | H47: 5504912 | I47: 5178474 | J47: 5178474 | K47: 5178474 | L47: 5196474 | M47: 5196474 | N47: 5214474 | O47: 5214474 | P47: 5232474 | Q47: 5232474 | R47: 5250474 | V47: 4852043 | W47: 5005549.333 | X47: 5178474 | Y47: 5202474 | Z47: 5226474 | AA47: 5250474 | AB47: =HLOOKUP($AB$3,$V43:$AA59,5,FALSE) -> 5202474 | AC47: =HLOOKUP($AC$3,$V43:$AA59,5,FALSE) -> 5178474
A48: Gisborne | B48: Gisborne in service vehicle kilometres: | C48: 97558 | D48: 127481 | E48: 129552 | F48: 129552 | G48: 103512 | H48: 103512 | I48: 105000 | J48: 105000 | K48: 105000 | L48: 105000 | M48: 105000 | N48: 105000 | O48: 105000 | P48: 105000 | Q48: 105000 | R48: 105000 | V48: 118197 | W48: 112192 | X48: 105000 | Y48: 105000 | Z48: 105000 | AA48: 105000 | AB48: =HLOOKUP($AB$3,$V43:$AA59,6,FALSE) -> 105000 | AC48: =HLOOKUP($AC$3,$V43:$AA59,6,FALSE) -> 105000
A49: Hawkes Bay | B49: Hawkes Bay in service vehicle kilometres: | C49: 740496 | D49: 794660 | E49: 1036045 | F49: 1146751 | G49: 1200851 | H49: 932537 | I49: 1016552 | J49: 1016552 | K49: 1016552 | L49: 1016552 | M49: 1016552 | N49: 1016552 | O49: 1016552 | P49: 1016552 | Q49: 1016552 | R49: 1016552 | V49: 857067 | W49: 1093379.667 | X49: 1016552 | Y49: 1016552 | Z49: 1016552 | AA49: 1016552 | AB49: =HLOOKUP($AB$3,$V43:$AA59,7,FALSE) -> 1016552 | AC49: =HLOOKUP($AC$3,$V43:$AA59,7,FALSE) -> 1016552
A50: Taranaki | B50: Taranaki in service vehicle kilometres: | C50: 471659 | D50: 825768 | E50: 857159 | F50: 853908 | G50: 677241 | H50: 627854 | I50: 737756 | J50: 737756 | K50: 737756 | L50: 807556 | M50: 807556 | N50: 807556 | O50: 884336 | P50: 884336 | Q50: 884336 | R50: 884336 | V50: 718195.3333 | W50: 719667.6667 | X50: 737756 | Y50: 807556 | Z50: 884336 | AA50: 884336 | AB50: =HLOOKUP($AB$3,$V43:$AA59,8,FALSE) -> 807556 | AC50: =HLOOKUP($AC$3,$V43:$AA59,8,FALSE) -> 737756
A51: Manawatu-Wanganui | B51: Manawatu-Wanganui in service vehicle kilometres: | C51: 1253112 | D51: 1375530 | E51: 1381737 | F51: 1422181 | G51: 1391569 | H51: 1394002 | I51: 1448299 | J51: 1555142 | K51: 2130142 | L51: 2130142 | M51: 2130142 | N51: 2130142 | O51: 2130142 | P51: 2130142 | Q51: 2130142 | R51: 2130142 | V51: 1336793 | W51: 1402584 | X51: 1711194.333 | Y51: 2130142 | Z51: 2130142 | AA51: 2130142 | AB51: =HLOOKUP($AB$3,$V43:$AA59,9,FALSE) -> 2130142 | AC51: =HLOOKUP($AC$3,$V43:$AA59,9,FALSE) -> 1711194.333
A52: Wellington | B52: Wellington in service vehicle kilometres: | C52: 17117162 | D52: 17005944 | E52: 16780946 | F52: 16071292 | G52: 16550815 | H52: 16754976 | I52: 16964600 | J52: 17219100 | K52: 17477400 | L52: 17739600 | M52: 18005700 | N52: 18275800 | O52: 18549900 | P52: 18828100 | Q52: 19110500 | R52: 19397100 | V52: 16968017.33 | W52: 16459027.67 | X52: 17220366.67 | Y52: 18007033.33 | Z52: 18829500 | AA52: 19397100 | AB52: =HLOOKUP($AB$3,$V43:$AA59,10,FALSE) -> 18007033.33 | AC52: =HLOOKUP($AC$3,$V43:$AA59,10,FALSE) -> 17220366.67
A53: Marlborough | B53: Marlborough in service vehicle kilometres: | C53: 37500 | D53: 37500 | E53: 39510 | F53: 43590 | G53: 43590 | H53: 43590 | I53: 55000 | J53: 90000 | K53: 90000 | L53: 90000 | M53: 90000 | N53: 90000 | O53: 95000 | P53: 110000 | Q53: 110000 | R53: 110000 | V53: 38170 | W53: 43590 | X53: 78333.33333 | Y53: 90000 | Z53: 105000 | AA53: 110000 | AB53: =HLOOKUP($AB$3,$V43:$AA59,11,FALSE) -> 90000 | AC53: =HLOOKUP($AC$3,$V43:$AA59,11,FALSE) -> 78333.33333
A54: Nelson | B54: Nelson in service vehicle kilometres: | C54: 160776 | D54: 160776 | E54: 247852 | F54: 436248 | G54: 444311 | H54: 424876 | I54: 444311 | J54: 444311 | K54: 444311 | L54: 444311 | M54: 444311 | N54: 444311 | O54: 444311 | P54: 444311 | Q54: 444311 | R54: 444311 | V54: 189801.3333 | W54: 435145 | X54: 444311 | Y54: 444311 | Z54: 444311 | AA54: 444311 | AB54: =HLOOKUP($AB$3,$V43:$AA59,12,FALSE) -> 444311 | AC54: =HLOOKUP($AC$3,$V43:$AA59,12,FALSE) -> 444311
A55: Canterbury | B55: Canterbury in service vehicle kilometres: | C55: 19663443 | D55: 20392554 | E55: 18373496 | F55: 16794358 | G55: 17479590 | H55: 17264677 | I55: 15533518 | J55: 15533518 | K55: 15533518 | L55: 15533518 | M55: 15533518 | N55: 15533518 | O55: 15533518 | P55: 15533518 | Q55: 15533518 | R55: 15533518 | V55: 19476497.67 | W55: 17179541.67 | X55: 15533518 | Y55: 15533518 | Z55: 15533518 | AA55: 15533518 | AB55: =HLOOKUP($AB$3,$V43:$AA59,13,FALSE) -> 15533518 | AC55: =HLOOKUP($AC$3,$V43:$AA59,13,FALSE) -> 15533518
A56: West Coast | B56: West Coast in service vehicle kilometres: | C56: =D56 -> 93860 | D56: =E56 -> 93860 | E56: =F56 -> 93860 | F56: 93860 | G56: 69706 | H56: 69700 | I56: 0 | J56: 0 | K56: 0 | L56: 0 | M56: 0 | N56: 0 | O56: 0 | P56: 0 | Q56: 0 | R56: 0 | V56: 93860 | W56: 77755.33333 | X56: 0 | Y56: 0 | Z56: 0 | AA56: 0 | AB56: =HLOOKUP($AB$3,$V43:$AA59,14,FALSE) -> 0 | AC56: =HLOOKUP($AC$3,$V43:$AA59,14,FALSE) -> 0
A57: Otago | B57: Otago (DUNEDIN ONLY) in service vehicle kilometres: | C57: =C737 -> 2639411 | D57: 2680703 | E57: 2761562 | F57: 3051997 | G57: 3080892 | H57: 3025156 | I57: 3877084 | J57: 3877084 | K57: 3877084 | L57: =L737 -> 3688395.034 | M57: 4385880.488 | N57: 4351896.981 | O57: 4342175.854 | P57: 4342175.854 | Q57: 4335772.122 | R57: 4335530.642 | V57: 2693892 | W57: 3052681.667 | X57: 3877084 | Y57: 4142057.501 | Z57: 4340041.277 | AA57: 4335530.642 | AB57: =HLOOKUP($AB$3,$V43:$AA59,15,FALSE) -> 4142057.501 | AC57: =HLOOKUP($AC$3,$V43:$AA59,15,FALSE) -> 3877084
A58: Southland | B58: Southland in service vehicle kilometres: | C58: 437424 | D58: 430000 | E58: 430000 | F58: 355000 | G58: 301676 | H58: 306692 | I58: 306000 | J58: 306000 | K58: 306000 | L58: 306000 | M58: 306000 | N58: 306000 | O58: 306000 | P58: 306000 | Q58: 306000 | R58: 306000 | V58: 432474.6667 | W58: 321122.6667 | X58: 306000 | Y58: 306000 | Z58: 306000 | AA58: 306000 | AB58: =HLOOKUP($AB$3,$V43:$AA59,16,FALSE) -> 306000 | AC58: =HLOOKUP($AC$3,$V43:$AA59,16,FALSE) -> 306000
A59: National | B59: National total in service vehicle kilometres | C59: =IF('[3]CBA benchmark'!$B$15='[3]CBA benchmark'!$AI$41,SUM(C44:C58),IF('[3]CBA benchmark'!$B$15='[3]CBA benchmark'!$AI$42,SUM(C44:C58)-C45-C52,IF('[3]CBA benchmark'!$B$15='[3]CBA benchmark'!$AI$43,IF('[3]CBA benchmark'!$B$12='[3]CBA benchmark'!$AH$23,'data "historic" (TIO)'!C52,IF('[3]CBA benchmark'!$B$15='[3]CBA benchmark'!$AI$43,IF('[3]CBA benchmark'!$B$12='[3]CBA benchmark'!$AH$30,'data "historic" (TIO)'!C45,0)))))) -> 0 | D59: =IF('[3]CBA benchmark'!$B$15='[3]CBA benchmark'!$AI$41,SUM(D44:D58),IF('[3]CBA benchmark'!$B$15='[3]CBA benchmark'!$AI$42,SUM(D44:D58)-D45-D52,IF('[3]CBA benchmark'!$B$15='[3]CBA benchmark'!$AI$43,IF('[3]CBA benchmark'!$B$12='[3]CBA benchmark'!$AH$23,'data "historic" (TIO)'!D52,IF('[3]CBA benchmark'!$B$15='[3]CBA benchmark'!$AI$43,IF('[3]CBA benchmark'!$B$12='[3]CBA benchmark'!$AH$30,'data "historic" (TIO)'!D45,0)))))) -> 0 | E59: =IF('[3]CBA benchmark'!$B$15='[3]CBA benchmark'!$AI$41,SUM(E44:E58),IF('[3]CBA benchmark'!$B$15='[3]CBA benchmark'!$AI$42,SUM(E44:E58)-E45-E52,IF('[3]CBA benchmark'!$B$15='[3]CBA benchmark'!$AI$43,IF('[3]CBA benchmark'!$B$12='[3]CBA benchmark'!$AH$23,'data "historic" (TIO)'!E52,IF('[3]CBA benchmark'!$B$15='[3]CBA benchmark'!$AI$43,IF('[3]CBA benchmark'!$B$12='[3]CBA benchmark'!$AH$30,'data "historic" (TIO)'!E45,0)))))) -> 0 | F59: =IF('[3]CBA benchmark'!$B$15='[3]CBA benchmark'!$AI$41,SUM(F44:F58),IF('[3]CBA benchmark'!$B$15='[3]CBA benchmark'!$AI$42,SUM(F44:F58)-F45-F52,IF('[3]CBA benchmark'!$B$15='[3]CBA benchmark'!$AI$43,IF('[3]CBA benchmark'!$B$12='[3]CBA benchmark'!$AH$23,'data "historic" (TIO)'!F52,IF('[3]CBA benchmark'!$B$15='[3]CBA benchmark'!$AI$43,IF('[3]CBA benchmark'!$B$12='[3]CBA benchmark'!$AH$30,'data "historic" (TIO)'!F45,0)))))) -> 0 | G59: =IF('[3]CBA benchmark'!$B$15='[3]CBA benchmark'!$AI$41,SUM(G44:G58),IF('[3]CBA benchmark'!$B$15='[3]CBA benchmark'!$AI$42,SUM(G44:G58)-G45-G52,IF('[3]CBA benchmark'!$B$15='[3]CBA benchmark'!$AI$43,IF('[3]CBA benchmark'!$B$12='[3]CBA benchmark'!$AH$23,'data "historic" (TIO)'!G52,IF('[3]CBA benchmark'!$B$15='[3]CBA benchmark'!$AI$43,IF('[3]CBA benchmark'!$B$12='[3]CBA benchmark'!$AH$30,'data "historic" (TIO)'!G45,0)))))) -> 0 | H59: =IF('[3]CBA benchmark'!$B$15='[3]CBA benchmark'!$AI$41,SUM(H44:H58),IF('[3]CBA benchmark'!$B$15='[3]CBA benchmark'!$AI$42,SUM(H44:H58)-H45-H52,IF('[3]CBA benchmark'!$B$15='[3]CBA benchmark'!$AI$43,IF('[3]CBA benchmark'!$B$12='[3]CBA benchmark'!$AH$23,'data "historic" (TIO)'!H52,IF('[3]CBA benchmark'!$B$15='[3]CBA benchmark'!$AI$43,IF('[3]CBA benchmark'!$B$12='[3]CBA benchmark'!$AH$30,'data "historic" (TIO)'!H45,0)))))) -> 0 | I59: =IF('[3]CBA benchmark'!$B$15='[3]CBA benchmark'!$AI$41,SUM(I44:I58),IF('[3]CBA benchmark'!$B$15='[3]CBA benchmark'!$AI$42,SUM(I44:I58)-I45-I52,IF('[3]CBA benchmark'!$B$15='[3]CBA benchmark'!$AI$43,IF('[3]CBA benchmark'!$B$12='[3]CBA benchmark'!$AH$23,'data "historic" (TIO)'!I52,IF('[3]CBA benchmark'!$B$15='[3]CBA benchmark'!$AI$43,IF('[3]CBA benchmark'!$B$12='[3]CBA benchmark'!$AH$30,'data "historic" (TIO)'!I45,0)))))) -> 0 | J59: =IF('[3]CBA benchmark'!$B$15='[3]CBA benchmark'!$AI$41,SUM(J44:J58),IF('[3]CBA benchmark'!$B$15='[3]CBA benchmark'!$AI$42,SUM(J44:J58)-J45-J52,IF('[3]CBA benchmark'!$B$15='[3]CBA benchmark'!$AI$43,IF('[3]CBA benchmark'!$B$12='[3]CBA benchmark'!$AH$23,'data "historic" (TIO)'!J52,IF('[3]CBA benchmark'!$B$15='[3]CBA benchmark'!$AI$43,IF('[3]CBA benchmark'!$B$12='[3]CBA benchmark'!$AH$30,'data "historic" (TIO)'!J45,0)))))) -> 0 | K59: =IF('[3]CBA benchmark'!$B$15='[3]CBA benchmark'!$AI$41,SUM(K44:K58),IF('[3]CBA benchmark'!$B$15='[3]CBA benchmark'!$AI$42,SUM(K44:K58)-K45-K52,IF('[3]CBA benchmark'!$B$15='[3]CBA benchmark'!$AI$43,IF('[3]CBA benchmark'!$B$12='[3]CBA benchmark'!$AH$23,'data "historic" (TIO)'!K52,IF('[3]CBA benchmark'!$B$15='[3]CBA benchmark'!$AI$43,IF('[3]CBA benchmark'!$B$12='[3]CBA benchmark'!$AH$30,'data "historic" (TIO)'!K45,0)))))) -> 0 | L59: =IF('[3]CBA benchmark'!$B$15='[3]CBA benchmark'!$AI$41,SUM(L44:L58),IF('[3]CBA benchmark'!$B$15='[3]CBA benchmark'!$AI$42,SUM(L44:L58)-L45-L52,IF('[3]CBA benchmark'!$B$15='[3]CBA benchmark'!$AI$43,IF('[3]CBA benchmark'!$B$12='[3]CBA benchmark'!$AH$23,'data "historic" (TIO)'!L52,IF('[3]CBA benchmark'!$B$15='[3]CBA benchmark'!$AI$43,IF('[3]CBA benchmark'!$B$12='[3]CBA benchmark'!$AH$30,'data "historic" (TIO)'!L45,0)))))) -> 0 | M59: =IF('[3]CBA benchmark'!$B$15='[3]CBA benchmark'!$AI$41,SUM(M44:M58),IF('[3]CBA benchmark'!$B$15='[3]CBA benchmark'!$AI$42,SUM(M44:M58)-M45-M52,IF('[3]CBA benchmark'!$B$15='[3]CBA benchmark'!$AI$43,IF('[3]CBA benchmark'!$B$12='[3]CBA benchmark'!$AH$23,'data "historic" (TIO)'!M52,IF('[3]CBA benchmark'!$B$15='[3]CBA benchmark'!$AI$43,IF('[3]CBA benchmark'!$B$12='[3]CBA benchmark'!$AH$30,'data "historic" (TIO)'!M45,0)))))) -> 0 | N59: =IF('[3]CBA benchmark'!$B$15='[3]CBA benchmark'!$AI$41,SUM(N44:N58),IF('[3]CBA benchmark'!$B$15='[3]CBA benchmark'!$AI$42,SUM(N44:N58)-N45-N52,IF('[3]CBA benchmark'!$B$15='[3]CBA benchmark'!$AI$43,IF('[3]CBA benchmark'!$B$12='[3]CBA benchmark'!$AH$23,'data "historic" (TIO)'!N52,IF('[3]CBA benchmark'!$B$15='[3]CBA benchmark'!$AI$43,IF('[3]CBA benchmark'!$B$12='[3]CBA benchmark'!$AH$30,'data "historic" (TIO)'!N45,0)))))) -> 0 | O59: =IF('[3]CBA benchmark'!$B$15='[3]CBA benchmark'!$AI$41,SUM(O44:O58),IF('[3]CBA benchmark'!$B$15='[3]CBA benchmark'!$AI$42,SUM(O44:O58)-O45-O52,IF('[3]CBA benchmark'!$B$15='[3]CBA benchmark'!$AI$43,IF('[3]CBA benchmark'!$B$12='[3]CBA benchmark'!$AH$23,'data "historic" (TIO)'!O52,IF('[3]CBA benchmark'!$B$15='[3]CBA benchmark'!$AI$43,IF('[3]CBA benchmark'!$B$12='[3]CBA benchmark'!$AH$30,'data "historic" (TIO)'!O45,0)))))) -> 0 | P59: =IF('[3]CBA benchmark'!$B$15='[3]CBA benchmark'!$AI$41,SUM(P44:P58),IF('[3]CBA benchmark'!$B$15='[3]CBA benchmark'!$AI$42,SUM(P44:P58)-P45-P52,IF('[3]CBA benchmark'!$B$15='[3]CBA benchmark'!$AI$43,IF('[3]CBA benchmark'!$B$12='[3]CBA benchmark'!$AH$23,'data "historic" (TIO)'!P52,IF('[3]CBA benchmark'!$B$15='[3]CBA benchmark'!$AI$43,IF('[3]CBA benchmark'!$B$12='[3]CBA benchmark'!$AH$30,'data "historic" (TIO)'!P45,0)))))) -> 0 | Q59: =IF('[3]CBA benchmark'!$B$15='[3]CBA benchmark'!$AI$41,SUM(Q44:Q58),IF('[3]CBA benchmark'!$B$15='[3]CBA benchmark'!$AI$42,SUM(Q44:Q58)-Q45-Q52,IF('[3]CBA benchmark'!$B$15='[3]CBA benchmark'!$AI$43,IF('[3]CBA benchmark'!$B$12='[3]CBA benchmark'!$AH$23,'data "historic" (TIO)'!Q52,IF('[3]CBA benchmark'!$B$15='[3]CBA benchmark'!$AI$43,IF('[3]CBA benchmark'!$B$12='[3]CBA benchmark'!$AH$30,'data "historic" (TIO)'!Q45,0)))))) -> 0 | R59: =IF('[3]CBA benchmark'!$B$15='[3]CBA benchmark'!$AI$41,SUM(R44:R58),IF('[3]CBA benchmark'!$B$15='[3]CBA benchmark'!$AI$42,SUM(R44:R58)-R45-R52,IF('[3]CBA benchmark'!$B$15='[3]CBA benchmark'!$AI$43,IF('[3]CBA benchmark'!$B$12='[3]CBA benchmark'!$AH$23,'data "historic" (TIO)'!R52,IF('[3]CBA benchmark'!$B$15='[3]CBA benchmark'!$AI$43,IF('[3]CBA benchmark'!$B$12='[3]CBA benchmark'!$AH$30,'data "historic" (TIO)'!R45,0)))))) -> 0 | S59: =IF('[3]CBA benchmark'!$B$15='[3]CBA benchmark'!$AI$41,SUM(S44:S58),IF('[3]CBA benchmark'!$B$15='[3]CBA benchmark'!$AI$42,SUM(S44:S58)-S45-S52,IF('[3]CBA benchmark'!$B$15='[3]CBA benchmark'!$AI$43,IF('[3]CBA benchmark'!$B$12='[3]CBA benchmark'!$AH$23,'data "historic" (TIO)'!S52,IF('[3]CBA benchmark'!$B$15='[3]CBA benchmark'!$AI$43,IF('[3]CBA benchmark'!$B$12='[3]CBA benchmark'!$AH$30,'data "historic" (TIO)'!S45,0)))))) -> 0 | T59: =IF('[3]CBA benchmark'!$B$15='[3]CBA benchmark'!$AI$41,SUM(T44:T58),IF('[3]CBA benchmark'!$B$15='[3]CBA benchmark'!$AI$42,SUM(T44:T58)-T45-T52,IF('[3]CBA benchmark'!$B$15='[3]CBA benchmark'!$AI$43,IF('[3]CBA benchmark'!$B$12='[3]CBA benchmark'!$AH$23,'data "historic" (TIO)'!T52,IF('[3]CBA benchmark'!$B$15='[3]CBA benchmark'!$AI$43,IF('[3]CBA benchmark'!$B$12='[3]CBA benchmark'!$AH$30,'data "historic" (TIO)'!T45,0)))))) -> 0 | U59: =IF('[3]CBA benchmark'!$B$15='[3]CBA benchmark'!$AI$41,SUM(U44:U58),IF('[3]CBA benchmark'!$B$15='[3]CBA benchmark'!$AI$42,SUM(U44:U58)-U45-U52,IF('[3]CBA benchmark'!$B$15='[3]CBA benchmark'!$AI$43,IF('[3]CBA benchmark'!$B$12='[3]CBA benchmark'!$AH$23,'data "historic" (TIO)'!U52,IF('[3]CBA benchmark'!$B$15='[3]CBA benchmark'!$AI$43,IF('[3]CBA benchmark'!$B$12='[3]CBA benchmark'!$AH$30,'data "historic" (TIO)'!U45,0)))))) -> 0 | V59: =IF('[3]CBA benchmark'!$B$15='[3]CBA benchmark'!$AI$41,SUM(V44:V58),IF('[3]CBA benchmark'!$B$15='[3]CBA benchmark'!$AI$42,SUM(V44:V58)-V45-V52,IF('[3]CBA benchmark'!$B$15='[3]CBA benchmark'!$AI$43,IF('[3]CBA benchmark'!$B$12='[3]CBA benchmark'!$AH$23,'data "historic" (TIO)'!V52,IF('[3]CBA benchmark'!$B$15='[3]CBA benchmark'!$AI$43,IF('[3]CBA benchmark'!$B$12='[3]CBA benchmark'!$AH$30,'data "historic" (TIO)'!V45,0)))))) -> 0 | W59: =IF('[3]CBA benchmark'!$B$15='[3]CBA benchmark'!$AI$41,SUM(W44:W58),IF('[3]CBA benchmark'!$B$15='[3]CBA benchmark'!$AI$42,SUM(W44:W58)-W45-W52,IF('[3]CBA benchmark'!$B$15='[3]CBA benchmark'!$AI$43,IF('[3]CBA benchmark'!$B$12='[3]CBA benchmark'!$AH$23,'data "historic" (TIO)'!W52,IF('[3]CBA benchmark'!$B$15='[3]CBA benchmark'!$AI$43,IF('[3]CBA benchmark'!$B$12='[3]CBA benchmark'!$AH$30,'data "historic" (TIO)'!W45,0)))))) -> 0 | X59: =IF('[3]CBA benchmark'!$B$15='[3]CBA benchmark'!$AI$41,SUM(X44:X58),IF('[3]CBA benchmark'!$B$15='[3]CBA benchmark'!$AI$42,SUM(X44:X58)-X45-X52,IF('[3]CBA benchmark'!$B$15='[3]CBA benchmark'!$AI$43,IF('[3]CBA benchmark'!$B$12='[3]CBA benchmark'!$AH$23,'data "historic" (TIO)'!X52,IF('[3]CBA benchmark'!$B$15='[3]CBA benchmark'!$AI$43,IF('[3]CBA benchmark'!$B$12='[3]CBA benchmark'!$AH$30,'data "historic" (TIO)'!X45,0)))))) -> 0 | Y59: =IF('[3]CBA benchmark'!$B$15='[3]CBA benchmark'!$AI$41,SUM(Y44:Y58),IF('[3]CBA benchmark'!$B$15='[3]CBA benchmark'!$AI$42,SUM(Y44:Y58)-Y45-Y52,IF('[3]CBA benchmark'!$B$15='[3]CBA benchmark'!$AI$43,IF('[3]CBA benchmark'!$B$12='[3]CBA benchmark'!$AH$23,'data "historic" (TIO)'!Y52,IF('[3]CBA benchmark'!$B$15='[3]CBA benchmark'!$AI$43,IF('[3]CBA benchmark'!$B$12='[3]CBA benchmark'!$AH$30,'data "historic" (TIO)'!Y45,0)))))) -> 0 | Z59: =IF('[3]CBA benchmark'!$B$15='[3]CBA benchmark'!$AI$41,SUM(Z44:Z58),IF('[3]CBA benchmark'!$B$15='[3]CBA benchmark'!$AI$42,SUM(Z44:Z58)-Z45-Z52,IF('[3]CBA benchmark'!$B$15='[3]CBA benchmark'!$AI$43,IF('[3]CBA benchmark'!$B$12='[3]CBA benchmark'!$AH$23,'data "historic" (TIO)'!Z52,IF('[3]CBA benchmark'!$B$15='[3]CBA benchmark'!$AI$43,IF('[3]CBA benchmark'!$B$12='[3]CBA benchmark'!$AH$30,'data "historic" (TIO)'!Z45,0)))))) -> 0 | AA59: =IF('[3]CBA benchmark'!$B$15='[3]CBA benchmark'!$AI$41,SUM(AA44:AA58),IF('[3]CBA benchmark'!$B$15='[3]CBA benchmark'!$AI$42,SUM(AA44:AA58)-AA45-AA52,IF('[3]CBA benchmark'!$B$15='[3]CBA benchmark'!$AI$43,IF('[3]CBA benchmark'!$B$12='[3]CBA benchmark'!$AH$23,'data "historic" (TIO)'!AA52,IF('[3]CBA benchmark'!$B$15='[3]CBA benchmark'!$AI$43,IF('[3]CBA benchmark'!$B$12='[3]CBA benchmark'!$AH$30,'data "historic" (TIO)'!AA45,0)))))) -> 0 | AB59: =HLOOKUP($AB$3,$V43:$AA59,17,FALSE) -> 0 | AC59: =HLOOKUP($AC$3,$V43:$AA59,17,FALSE) -> 0
B60: =VLOOKUP($B$484,$A44:$AB59,2,FALSE) ->  | C60: =VLOOKUP($B$484,$A44:$AB59,3,FALSE) ->  | D60: =VLOOKUP($B$484,$A44:$AB59,4,FALSE) ->  | E60: =VLOOKUP($B$484,$A44:$AB59,5,FALSE) ->  | F60: =VLOOKUP($B$484,$A44:$AB59,6,FALSE) ->  | G60: =VLOOKUP($B$484,$A44:$AB59,7,FALSE) ->  | H60: =VLOOKUP($B$484,$A44:$AB59,8,FALSE) ->  | I60: =VLOOKUP($B$484,$A44:$AB59,9,FALSE) ->  | J60: =VLOOKUP($B$484,$A44:$AB59,10,FALSE) ->  | K60: =VLOOKUP($B$484,$A44:$AB59,11,FALSE) ->  | L60: =VLOOKUP($B$484,$A44:$AB59,12,FALSE) ->  | M60: =VLOOKUP($B$484,$A44:$AB59,13,FALSE) ->  | N60: =VLOOKUP($B$484,$A44:$AB59,14,FALSE) ->  | O60: =VLOOKUP($B$484,$A44:$AB59,15,FALSE) ->  | P60: =VLOOKUP($B$484,$A44:$AB59,16,FALSE) ->  | Q60: =VLOOKUP($B$484,$A44:$AB59,17,FALSE) ->  | R60: =VLOOKUP($B$484,$A44:$AB59,18,FALSE) ->  | S60: =VLOOKUP($B$484,$A44:$AB59,19,FALSE) ->  | T60: =VLOOKUP($B$484,$A44:$AB59,20,FALSE) ->  | U60: =VLOOKUP($B$484,$A44:$AB59,21,FALSE) ->  | V60: =VLOOKUP($B$484,$A44:$AB59,22,FALSE) ->  | W60: =VLOOKUP($B$484,$A44:$AB59,23,FALSE) ->  | X60: =VLOOKUP($B$484,$A44:$AB59,24,FALSE) ->  | Y60: =VLOOKUP($B$484,$A44:$AB59,25,FALSE) ->  | Z60: =VLOOKUP($B$484,$A44:$AB59,26,FALSE) ->  | AA60: =VLOOKUP($B$484,$A44:$AB59,27,FALSE) ->  | AB60: =VLOOKUP($B$484,$A44:$AB59,28,FALSE) ->  | AC60: =VLOOKUP($B$484,$A44:$AC59,29,FALSE) -> 
B61: =B60 -> 
B62: =B60 ->  | C62: =C60 ->  | D62: =D60 ->  | J62: =IF('[3]scenario testing'!$C$3='[3]scenario testing'!$AH$11,'[3]scenario testing'!N10,'[3]scenario testing'!N10) -> 5780209 | K62: =IF('[3]scenario testing'!$C$3='[3]scenario testing'!$AH$11,'[3]scenario testing'!O10,0) -> 0 | L62: =IF('[3]scenario testing'!$C$3='[3]scenario testing'!$AH$11,'[3]scenario testing'!P10,0) -> 0 | M62: =IF('[3]scenario testing'!$C$3='[3]scenario testing'!$AH$11,'[3]scenario testing'!Q10,0) -> 0 | N62: =IF('[3]scenario testing'!$C$3='[3]scenario testing'!$AH$11,'[3]scenario testing'!R10,0) -> 0 | O62: =IF('[3]scenario testing'!$C$3='[3]scenario testing'!$AH$11,'[3]scenario testing'!S10,0) -> 0 | P62: =IF('[3]scenario testing'!$C$3='[3]scenario testing'!$AH$11,'[3]scenario testing'!T10,0) -> 0 | Q62: =IF('[3]scenario testing'!$C$3='[3]scenario testing'!$AH$11,'[3]scenario testing'!U10,0) -> 0 | R62: =IF('[3]scenario testing'!$C$3='[3]scenario testing'!$AH$11,'[3]scenario testing'!V10,0) -> 0 | S62: =IF('[3]scenario testing'!$C$3='[3]scenario testing'!$AH$11,'[3]scenario testing'!W10,0) -> 0 | T62: =IF('[3]scenario testing'!$C$3='[3]scenario testing'!$AH$11,'[3]scenario testing'!X10,0) -> 0 | U62: =IF('[3]scenario testing'!$C$3='[3]scenario testing'!$AH$11,'[3]scenario testing'!Y10,0) -> 0 | V62: =AVERAGE(C62:E62) ->  | W62: =AVERAGE(F62:H62) ->  | X62: =AVERAGE(I62:K62) ->  | Y62: =AVERAGE(L62:N62) -> 0 | Z62: =AVERAGE(O62:Q62) -> 0 | AA62: =AVERAGE(R62:T62) -> 0 | AB62: =HLOOKUP($AB$3,$V43:$AA62,19,FALSE) -> 0 | AC62: =HLOOKUP($AC$3,$V43:$AA62,19,FALSE) -> 0
B63: BUS SERVICE FARE REVENUE (TOTAL) | C63: 2009/10 | D63: 2010/11 | E63: 2011/12 | F63: 2012/13 | G63: 2013/14 | H63: 2014/15 | I63: 2015/16 | J63: 2016/17 | K63: 2017/18 | L63: 2018/19 | M63: 2019/20 | N63: 2020/21 | O63: 2021/22 | P63: 2022/23 | Q63: 2023/24 | R63: 2024/25 | S63: =S43 -> 2025/26 | T63: =T43 -> 2026/27 | U63: =U43 -> 2027/28 | V63: 2009-12 | W63: 2012-15 | X63: 2015-18 | Y63: =Y43 -> 2018-21 | Z63: =Z43 -> 2021-24 | AA63: =AA43 -> 2024-27 | AB63: =$AB$3 -> 2018-21 | AC63: =$AC$3 -> 2015-18
A64: Northland | B64: Northland fare revenue (total): | C64: 744411 | D64: 619592 | E64: 858915.8696 | F64: 672410.4783 | G64: 661116.7826 | H64: 647775 | I64: 795813.4718 | J64: 815429.1154 | K64: 835615.7928 | L64: 856320.2993 | M64: 878404.4457 | N64: 899947.0591 | O64: 922670.983 | P64: 946359.0776 | Q64: 970573.2202 | R64: 994792.3054 | V64: =AVERAGE(C64:E64) -> 740972.9565 | W64: =AVERAGE(F64:H64) -> 660434.087 | X64: =AVERAGE(I64:K64) -> 815619.46 | Y64: =AVERAGE(L64:N64) -> 878223.9347 | Z64: =AVERAGE(O64:Q64) -> 946534.4269 | AA64: =AVERAGE(R64:T64) -> 994792.3054 | AB64: =HLOOKUP($AB$3,$V63:$AA79,2,FALSE) -> 878223.9347 | AC64: =HLOOKUP($AC$3,$V63:$AA79,2,FALSE) -> 815619.46
A65: Auckland | B65: Auckland fare revenue (total): | C65: 84065203 | D65: 94247846.56 | E65: 103048668.3 | F65: 107313334.8 | G65: 114596653.3 | H65: 130289786 | I65: 149795370.9 | J65: 155529334.5 | K65: 159849487.9 | L65: 167965016.8 | M65: 175415958.1 | N65: 182727016.9 | O65: 190720083.5 | P65: 199925177 | Q65: 208372650.8 | R65: 217232806 | V65: 93787239.3 | W65: 117399924.7 | X65: 155058064.4 | Y65: =AVERAGE(L65:N65) -> 175369330.6 | Z65: 199672637.1 | AA65: 217232806 | AB65: =HLOOKUP($AB$3,$V63:$AA79,3,FALSE) -> 175369330.6 | AC65: =HLOOKUP($AC$3,$V63:$AA79,3,FALSE) -> 155058064.4
A66: Waikato | B66: Waikato fare revenue (total): | C66: 5736845.133 | D66: 6794732 | E66: 7461179.315 | F66: 7002119.451 | G66: 7279532.638 | H66: 7108862 | I66: 7221886.206 | J66: 7315929.511 | K66: 7444257.382 | L66: 7805862.932 | M66: 7958364.857 | N66: 8062811.492 | O66: 8204548.879 | P66: 8349222.826 | Q66: 8460545.976 | R66: 8574046.875 | V66: 6664252.149 | W66: 7130171.363 | X66: 7327357.7 | Y66: 7942346.427 | Z66: 8338105.894 | AA66: 8574046.875 | AB66: =HLOOKUP($AB$3,$V63:$AA79,4,FALSE) -> 7942346.427 | AC66: =HLOOKUP($AC$3,$V63:$AA79,4,FALSE) -> 7327357.7
A67: Bay of Plenty | B67: Bay of Plenty fare revenue (total): | C67: 3277025.973 | D67: 3525105 | E67: 4138796.611 | F67: 4562676.026 | G67: 4769725.289 | H67: 4841427 | I67: 6020160.818 | J67: 6318014.775 | K67: 6636636.592 | L67: 6978175.742 | M67: 7344951.505 | N67: 7739888.49 | O67: 8146156.831 | P67: 8528417.671 | Q67: 8946274.641 | R67: 9403932.11 | V67: 3646975.862 | W67: 4724609.438 | X67: 6324937.395 | Y67: 7354338.579 | Z67: 8540283.048 | AA67: 9403932.11 | AB67: =HLOOKUP($AB$3,$V63:$AA79,5,FALSE) -> 7354338.579 | AC67: =HLOOKUP($AC$3,$V63:$AA79,5,FALSE) -> 6324937.395
A68: Gisborne | B68: Gisborne fare revenue (total): | C68: 170363.8 | D68: 207884 | E68: 213701.913 | F68: 216457.5217 | G68: 182307.3478 | H68: 178126 | I68: 186935.913 | J68: 186935.913 | K68: 186935.913 | L68: 187935.913 | M68: 187935.913 | N68: 187935.913 | O68: 188935.913 | P68: 188935.913 | Q68: 188935.913 | R68: 188935.913 | V68: 197316.571 | W68: 192296.9565 | X68: 186935.913 | Y68: 187935.913 | Z68: 188935.913 | AA68: 188935.913 | AB68: =HLOOKUP($AB$3,$V63:$AA79,6,FALSE) -> 187935.913 | AC68: =HLOOKUP($AC$3,$V63:$AA79,6,FALSE) -> 186935.913
A69: Hawkes Bay | B69: Hawkes Bay fare revenue (total): | C69: 852377.3067 | D69: 1008633 | E69: 1208768.95 | F69: 1393427.402 | G69: 1526026.233 | H69: 1429051 | I69: 1806696.089 | J69: 1961510.972 | K69: 2140431.661 | L69: 2348352.061 | M69: 2591210.41 | N69: 2876216.796 | O69: 3212230.215 | P69: 3609796.003 | Q69: 4081756.766 | R69: 4644152.837 | V69: 1023259.752 | W69: 1449501.545 | X69: 1969546.241 | Y69: 2605259.756 | Z69: 3634594.328 | AA69: 4644152.837 | AB69: =HLOOKUP($AB$3,$V63:$AA79,7,FALSE) -> 2605259.756 | AC69: =HLOOKUP($AC$3,$V63:$AA79,7,FALSE) -> 1969546.241
A70: Taranaki | B70: Taranaki fare revenue (total): | C70: 675124.2467 | D70: 838666 | E70: 900041.8478 | F70: 928064.8261 | G70: 1006440.696 | H70: 999659 | I70: 1071816.926 | J70: 1129336.483 | K70: 1190815.817 | L70: 1255253.421 | M70: 1324061.824 | N70: 1396263.591 | O70: 1473397.324 | P70: 1554313.665 | Q70: 1639979.296 | R70: 1730675.939 | V70: 804610.6982 | W70: 978054.8406 | X70: 1130656.408 | Y70: 1325192.945 | Z70: 1555896.762 | AA70: 1730675.939 | AB70: =HLOOKUP($AB$3,$V63:$AA79,8,FALSE) -> 1325192.945 | AC70: =HLOOKUP($AC$3,$V63:$AA79,8,FALSE) -> 1130656.408
A71: Manawatu-Wanganui | B71: Manawatu-Wanganui fare revenue (total): | C71: 1675950.467 | D71: 1660313 | E71: 1793855.21 | F71: 1997148.989 | G71: 2124656.119 | H71: 1969992 | I71: 2041825.397 | J71: 2118240.688 | K71: 2202001.705 | L71: 2294208.416 | M71: 2396134.043 | N71: 2509263.054 | O71: 2635317.882 | P71: 2776301.173 | Q71: 2844537.436 | R71: 3112737.177 | V71: 1710039.559 | W71: 2030599.036 | X71: 2120689.263 | Y71: 2399868.504 | Z71: 2752052.164 | AA71: 3112737.177 | AB71: =HLOOKUP($AB$3,$V63:$AA79,9,FALSE) -> 2399868.504 | AC71: =HLOOKUP($AC$3,$V63:$AA79,9,FALSE) -> 2120689.263
A72: Wellington | B72: Wellington fare revenue (total): | C72: 46483098 | D72: 52734805.28 | E72: 54540952.52 | F72: 54586185.57 | G72: 55897803.88 | H72: 56478074 | I72: 57248873.9 | J72: 58761496.8 | K72: 60314937.8 | L72: 61910409.09 | M72: 63549135.19 | N72: 65232253.39 | O72: 66361714.29 | P72: 67514082.32 | Q72: 68689936.27 | R72: 69889769.86 | V72: 51252951.93 | W72: 55654021.15 | X72: 58775102.83 | Y72: 63563932.56 | Z72: 67521910.96 | AA72: 69889769.86 | AB72: =HLOOKUP($AB$3,$V63:$AA79,10,FALSE) -> 63563932.56 | AC72: =HLOOKUP($AC$3,$V63:$AA79,10,FALSE) -> 58775102.83
A73: Marlborough | B73: Marlborough fare revenue (total): | C73: 62252.33333 | D73: 61834 | E73: 62486.30435 | F73: 67898.08696 | G73: 63937.86957 | H73: 55886 | I73: 34764.12725 | J73: 47380.26001 | K73: 48397.17398 | L73: 49441.87442 | M73: 50514.3666 | N73: 51617.65586 | O73: 55472.74755 | P73: 68093.64709 | Q73: 69715.35989 | R73: 71382.89143 | V73: 62190.87923 | W73: 62573.98551 | X73: 43513.85375 | Y73: 50524.63229 | Z73: 64427.25151 | AA73: 71382.89143 | AB73: =HLOOKUP($AB$3,$V63:$AA79,11,FALSE) -> 50524.63229 | AC73: =HLOOKUP($AC$3,$V63:$AA79,11,FALSE) -> 43513.85375
A74: Nelson | B74: Nelson fare revenue (total): | C74: 126308.8667 | D74: 145055 | E74: 355704.9391 | F74: 1007640.848 | G74: 1118525.587 | H74: 911046 | I74: 1233549.034 | J74: 1350123.978 | K74: 1468697.511 | L74: 1589520.027 | M74: 1712877.814 | N74: 1783668.077 | O74: 1857673.478 | P74: 2007113.251 | Q74: 2160631.956 | R74: 2318743.969 | V74: 209022.9353 | W74: 1012404.145 | X74: 1350790.174 | Y74: 1695355.306 | Z74: 2008472.895 | AA74: 2318743.969 | AB74: =HLOOKUP($AB$3,$V63:$AA79,12,FALSE) -> 1695355.306 | AC74: =HLOOKUP($AC$3,$V63:$AA79,12,FALSE) -> 1350790.174
A75: Canterbury | B75: Canterbury fare revenue (total): | C75: 25055154 | D75: 20550106.7 | E75: 15604412.31 | F75: 18127291.26 | G75: 19086395.96 | H75: 21482866 | I75: 21022010.31 | J75: 21966410.31 | K75: 22958030.31 | L75: 23999231.31 | M75: 25092492.31 | N75: 26240416.31 | O75: 27445736.31 | P75: 28711322.31 | Q75: 30040188.31 | R75: 31435497.31 | V75: 20403224.34 | W75: 19565517.74 | X75: 21982150.31 | Y75: 25110713.31 | Z75: 28732415.64 | AA75: 31435497.31 | AB75: =HLOOKUP($AB$3,$V63:$AA79,13,FALSE) -> 25110713.31 | AC75: =HLOOKUP($AC$3,$V63:$AA79,13,FALSE) -> 21982150.31
A76: West Coast | B76: West Coast fare revenue (total): | C76: 205572 | D76: 206338 | E76: 216287 | F76: 262378 | G76: 285797 | H76: 275470 | I76: 215780 | J76: 221780 | K76: 221780 | L76: 224780 | M76: 224780 | N76: 224780 | O76: 227780 | P76: 227780 | Q76: 227780 | R76: 230780 | V76: 209399 | W76: 274548.3333 | X76: 219780 | Y76: 224780 | Z76: 227780 | AA76: 230780 | AB76: =HLOOKUP($AB$3,$V63:$AA79,14,FALSE) -> 224780 | AC76: =HLOOKUP($AC$3,$V63:$AA79,14,FALSE) -> 219780
A77: Otago | B77: Otago (DUNEDIN ONLY) fare revenue (total): | C77: =C738 -> 4546683.467 | D77: 4496176.067 | E77: 4540671.3 | F77: 4709015.517 | G77: 4628843.574 | H77: 4627631.127 | I77: 6564545.453 | J77: 6650822.343 | K77: 6738796.057 | L77: =L738 -> 5738466.397 | M77: 65835810.48 | N77: 5917689.708 | O77: 6000013.652 | P77: 6064885.482 | Q77: 6131323.686 | R77: 6196407.473 | V77: 4527843.611 | W77: 4655163.406 | X77: 6651387.951 | Y77: 25830655.53 | Z77: 6065407.607 | AA77: 6196407.473 | AB77: =HLOOKUP($AB$3,$V63:$AA79,15,FALSE) -> 25830655.53 | AC77: =HLOOKUP($AC$3,$V63:$AA79,15,FALSE) -> 6651387.951
A78: Southland | B78: Southland fare revenue (total): | C78: 256098.6667 | D78: 242108 | E78: 260009.3 | F78: 286057.8 | G78: 342248.3478 | H78: 341417 | I78: 367619.3 | J78: 374551.3 | K78: 381622.3 | L78: 388834.3 | M78: 396191.3 | N78: 403694.3 | O78: 411348.3 | P78: 419155.3 | Q78: 427118.3 | R78: 435240.3 | V78: 252738.6556 | W78: 323241.0493 | X78: 374597.6333 | Y78: 396239.9667 | Z78: 419207.3 | AA78: 435240.3 | AB78: =HLOOKUP($AB$3,$V63:$AA79,16,FALSE) -> 396239.9667 | AC78: =HLOOKUP($AC$3,$V63:$AA79,16,FALSE) -> 374597.6333
A79: National | B79: National total fare revenue (total): | C79: =IF('[3]CBA benchmark'!$B$15='[3]CBA benchmark'!$AI$41,SUM(C64:C78),IF('[3]CBA benchmark'!$B$15='[3]CBA benchmark'!$AI$42,SUM(C64:C78)-C65-C72,IF('[3]CBA benchmark'!$B$15='[3]CBA benchmark'!$AI$43,IF('[3]CBA benchmark'!$B$12='[3]CBA benchmark'!$AH$23,'data "historic" (TIO)'!C72,IF('[3]CBA benchmark'!$B$15='[3]CBA benchmark'!$AI$43,IF('[3]CBA benchmark'!$B$12='[3]CBA benchmark'!$AH$30,'data "historic" (TIO)'!C65,0)))))) -> 0 | D79: =IF('[3]CBA benchmark'!$B$15='[3]CBA benchmark'!$AI$41,SUM(D64:D78),IF('[3]CBA benchmark'!$B$15='[3]CBA benchmark'!$AI$42,SUM(D64:D78)-D65-D72,IF('[3]CBA benchmark'!$B$15='[3]CBA benchmark'!$AI$43,IF('[3]CBA benchmark'!$B$12='[3]CBA benchmark'!$AH$23,'data "historic" (TIO)'!D72,IF('[3]CBA benchmark'!$B$15='[3]CBA benchmark'!$AI$43,IF('[3]CBA benchmark'!$B$12='[3]CBA benchmark'!$AH$30,'data "historic" (TIO)'!D65,0)))))) -> 0 | E79: =IF('[3]CBA benchmark'!$B$15='[3]CBA benchmark'!$AI$41,SUM(E64:E78),IF('[3]CBA benchmark'!$B$15='[3]CBA benchmark'!$AI$42,SUM(E64:E78)-E65-E72,IF('[3]CBA benchmark'!$B$15='[3]CBA benchmark'!$AI$43,IF('[3]CBA benchmark'!$B$12='[3]CBA benchmark'!$AH$23,'data "historic" (TIO)'!E72,IF('[3]CBA benchmark'!$B$15='[3]CBA benchmark'!$AI$43,IF('[3]CBA benchmark'!$B$12='[3]CBA benchmark'!$AH$30,'data "historic" (TIO)'!E65,0)))))) -> 0 | F79: =IF('[3]CBA benchmark'!$B$15='[3]CBA benchmark'!$AI$41,SUM(F64:F78),IF('[3]CBA benchmark'!$B$15='[3]CBA benchmark'!$AI$42,SUM(F64:F78)-F65-F72,IF('[3]CBA benchmark'!$B$15='[3]CBA benchmark'!$AI$43,IF('[3]CBA benchmark'!$B$12='[3]CBA benchmark'!$AH$23,'data "historic" (TIO)'!F72,IF('[3]CBA benchmark'!$B$15='[3]CBA benchmark'!$AI$43,IF('[3]CBA benchmark'!$B$12='[3]CBA benchmark'!$AH$30,'data "historic" (TIO)'!F65,0)))))) -> 0 | G79: =IF('[3]CBA benchmark'!$B$15='[3]CBA benchmark'!$AI$41,SUM(G64:G78),IF('[3]CBA benchmark'!$B$15='[3]CBA benchmark'!$AI$42,SUM(G64:G78)-G65-G72,IF('[3]CBA benchmark'!$B$15='[3]CBA benchmark'!$AI$43,IF('[3]CBA benchmark'!$B$12='[3]CBA benchmark'!$AH$23,'data "historic" (TIO)'!G72,IF('[3]CBA benchmark'!$B$15='[3]CBA benchmark'!$AI$43,IF('[3]CBA benchmark'!$B$12='[3]CBA benchmark'!$AH$30,'data "historic" (TIO)'!G65,0)))))) -> 0 | H79: =IF('[3]CBA benchmark'!$B$15='[3]CBA benchmark'!$AI$41,SUM(H64:H78),IF('[3]CBA benchmark'!$B$15='[3]CBA benchmark'!$AI$42,SUM(H64:H78)-H65-H72,IF('[3]CBA benchmark'!$B$15='[3]CBA benchmark'!$AI$43,IF('[3]CBA benchmark'!$B$12='[3]CBA benchmark'!$AH$23,'data "historic" (TIO)'!H72,IF('[3]CBA benchmark'!$B$15='[3]CBA benchmark'!$AI$43,IF('[3]CBA benchmark'!$B$12='[3]CBA benchmark'!$AH$30,'data "historic" (TIO)'!H65,0)))))) -> 0 | I79: =IF('[3]CBA benchmark'!$B$15='[3]CBA benchmark'!$AI$41,SUM(I64:I78),IF('[3]CBA benchmark'!$B$15='[3]CBA benchmark'!$AI$42,SUM(I64:I78)-I65-I72,IF('[3]CBA benchmark'!$B$15='[3]CBA benchmark'!$AI$43,IF('[3]CBA benchmark'!$B$12='[3]CBA benchmark'!$AH$23,'data "historic" (TIO)'!I72,IF('[3]CBA benchmark'!$B$15='[3]CBA benchmark'!$AI$43,IF('[3]CBA benchmark'!$B$12='[3]CBA benchmark'!$AH$30,'data "historic" (TIO)'!I65,0)))))) -> 0 | J79: =IF('[3]CBA benchmark'!$B$15='[3]CBA benchmark'!$AI$41,SUM(J64:J78),IF('[3]CBA benchmark'!$B$15='[3]CBA benchmark'!$AI$42,SUM(J64:J78)-J65-J72,IF('[3]CBA benchmark'!$B$15='[3]CBA benchmark'!$AI$43,IF('[3]CBA benchmark'!$B$12='[3]CBA benchmark'!$AH$23,'data "historic" (TIO)'!J72,IF('[3]CBA benchmark'!$B$15='[3]CBA benchmark'!$AI$43,IF('[3]CBA benchmark'!$B$12='[3]CBA benchmark'!$AH$30,'data "historic" (TIO)'!J65,0)))))) -> 0 | K79: =IF('[3]CBA benchmark'!$B$15='[3]CBA benchmark'!$AI$41,SUM(K64:K78),IF('[3]CBA benchmark'!$B$15='[3]CBA benchmark'!$AI$42,SUM(K64:K78)-K65-K72,IF('[3]CBA benchmark'!$B$15='[3]CBA benchmark'!$AI$43,IF('[3]CBA benchmark'!$B$12='[3]CBA benchmark'!$AH$23,'data "historic" (TIO)'!K72,IF('[3]CBA benchmark'!$B$15='[3]CBA benchmark'!$AI$43,IF('[3]CBA benchmark'!$B$12='[3]CBA benchmark'!$AH$30,'data "historic" (TIO)'!K65,0)))))) -> 0 | L79: =IF('[3]CBA benchmark'!$B$15='[3]CBA benchmark'!$AI$41,SUM(L64:L78),IF('[3]CBA benchmark'!$B$15='[3]CBA benchmark'!$AI$42,SUM(L64:L78)-L65-L72,IF('[3]CBA benchmark'!$B$15='[3]CBA benchmark'!$AI$43,IF('[3]CBA benchmark'!$B$12='[3]CBA benchmark'!$AH$23,'data "historic" (TIO)'!L72,IF('[3]CBA benchmark'!$B$15='[3]CBA benchmark'!$AI$43,IF('[3]CBA benchmark'!$B$12='[3]CBA benchmark'!$AH$30,'data "historic" (TIO)'!L65,0)))))) -> 0 | M79: =IF('[3]CBA benchmark'!$B$15='[3]CBA benchmark'!$AI$41,SUM(M64:M78),IF('[3]CBA benchmark'!$B$15='[3]CBA benchmark'!$AI$42,SUM(M64:M78)-M65-M72,IF('[3]CBA benchmark'!$B$15='[3]CBA benchmark'!$AI$43,IF('[3]CBA benchmark'!$B$12='[3]CBA benchmark'!$AH$23,'data "historic" (TIO)'!M72,IF('[3]CBA benchmark'!$B$15='[3]CBA benchmark'!$AI$43,IF('[3]CBA benchmark'!$B$12='[3]CBA benchmark'!$AH$30,'data "historic" (TIO)'!M65,0)))))) -> 0 | N79: =IF('[3]CBA benchmark'!$B$15='[3]CBA benchmark'!$AI$41,SUM(N64:N78),IF('[3]CBA benchmark'!$B$15='[3]CBA benchmark'!$AI$42,SUM(N64:N78)-N65-N72,IF('[3]CBA benchmark'!$B$15='[3]CBA benchmark'!$AI$43,IF('[3]CBA benchmark'!$B$12='[3]CBA benchmark'!$AH$23,'data "historic" (TIO)'!N72,IF('[3]CBA benchmark'!$B$15='[3]CBA benchmark'!$AI$43,IF('[3]CBA benchmark'!$B$12='[3]CBA benchmark'!$AH$30,'data "historic" (TIO)'!N65,0)))))) -> 0 | O79: =IF('[3]CBA benchmark'!$B$15='[3]CBA benchmark'!$AI$41,SUM(O64:O78),IF('[3]CBA benchmark'!$B$15='[3]CBA benchmark'!$AI$42,SUM(O64:O78)-O65-O72,IF('[3]CBA benchmark'!$B$15='[3]CBA benchmark'!$AI$43,IF('[3]CBA benchmark'!$B$12='[3]CBA benchmark'!$AH$23,'data "historic" (TIO)'!O72,IF('[3]CBA benchmark'!$B$15='[3]CBA benchmark'!$AI$43,IF('[3]CBA benchmark'!$B$12='[3]CBA benchmark'!$AH$30,'data "historic" (TIO)'!O65,0)))))) -> 0 | P79: =IF('[3]CBA benchmark'!$B$15='[3]CBA benchmark'!$AI$41,SUM(P64:P78),IF('[3]CBA benchmark'!$B$15='[3]CBA benchmark'!$AI$42,SUM(P64:P78)-P65-P72,IF('[3]CBA benchmark'!$B$15='[3]CBA benchmark'!$AI$43,IF('[3]CBA benchmark'!$B$12='[3]CBA benchmark'!$AH$23,'data "historic" (TIO)'!P72,IF('[3]CBA benchmark'!$B$15='[3]CBA benchmark'!$AI$43,IF('[3]CBA benchmark'!$B$12='[3]CBA benchmark'!$AH$30,'data "historic" (TIO)'!P65,0)))))) -> 0 | Q79: =IF('[3]CBA benchmark'!$B$15='[3]CBA benchmark'!$AI$41,SUM(Q64:Q78),IF('[3]CBA benchmark'!$B$15='[3]CBA benchmark'!$AI$42,SUM(Q64:Q78)-Q65-Q72,IF('[3]CBA benchmark'!$B$15='[3]CBA benchmark'!$AI$43,IF('[3]CBA benchmark'!$B$12='[3]CBA benchmark'!$AH$23,'data "historic" (TIO)'!Q72,IF('[3]CBA benchmark'!$B$15='[3]CBA benchmark'!$AI$43,IF('[3]CBA benchmark'!$B$12='[3]CBA benchmark'!$AH$30,'data "historic" (TIO)'!Q65,0)))))) -> 0 | R79: =IF('[3]CBA benchmark'!$B$15='[3]CBA benchmark'!$AI$41,SUM(R64:R78),IF('[3]CBA benchmark'!$B$15='[3]CBA benchmark'!$AI$42,SUM(R64:R78)-R65-R72,IF('[3]CBA benchmark'!$B$15='[3]CBA benchmark'!$AI$43,IF('[3]CBA benchmark'!$B$12='[3]CBA benchmark'!$AH$23,'data "historic" (TIO)'!R72,IF('[3]CBA benchmark'!$B$15='[3]CBA benchmark'!$AI$43,IF('[3]CBA benchmark'!$B$12='[3]CBA benchmark'!$AH$30,'data "historic" (TIO)'!R65,0)))))) -> 0 | S79: =IF('[3]CBA benchmark'!$B$15='[3]CBA benchmark'!$AI$41,SUM(S64:S78),IF('[3]CBA benchmark'!$B$15='[3]CBA benchmark'!$AI$42,SUM(S64:S78)-S65-S72,IF('[3]CBA benchmark'!$B$15='[3]CBA benchmark'!$AI$43,IF('[3]CBA benchmark'!$B$12='[3]CBA benchmark'!$AH$23,'data "historic" (TIO)'!S72,IF('[3]CBA benchmark'!$B$15='[3]CBA benchmark'!$AI$43,IF('[3]CBA benchmark'!$B$12='[3]CBA benchmark'!$AH$30,'data "historic" (TIO)'!S65,0)))))) -> 0 | T79: =IF('[3]CBA benchmark'!$B$15='[3]CBA benchmark'!$AI$41,SUM(T64:T78),IF('[3]CBA benchmark'!$B$15='[3]CBA benchmark'!$AI$42,SUM(T64:T78)-T65-T72,IF('[3]CBA benchmark'!$B$15='[3]CBA benchmark'!$AI$43,IF('[3]CBA benchmark'!$B$12='[3]CBA benchmark'!$AH$23,'data "historic" (TIO)'!T72,IF('[3]CBA benchmark'!$B$15='[3]CBA benchmark'!$AI$43,IF('[3]CBA benchmark'!$B$12='[3]CBA benchmark'!$AH$30,'data "historic" (TIO)'!T65,0)))))) -> 0 | U79: =IF('[3]CBA benchmark'!$B$15='[3]CBA benchmark'!$AI$41,SUM(U64:U78),IF('[3]CBA benchmark'!$B$15='[3]CBA benchmark'!$AI$42,SUM(U64:U78)-U65-U72,IF('[3]CBA benchmark'!$B$15='[3]CBA benchmark'!$AI$43,IF('[3]CBA benchmark'!$B$12='[3]CBA benchmark'!$AH$23,'data "historic" (TIO)'!U72,IF('[3]CBA benchmark'!$B$15='[3]CBA benchmark'!$AI$43,IF('[3]CBA benchmark'!$B$12='[3]CBA benchmark'!$AH$30,'data "historic" (TIO)'!U65,0)))))) -> 0 | V79: =IF('[3]CBA benchmark'!$B$15='[3]CBA benchmark'!$AI$41,SUM(V64:V78),IF('[3]CBA benchmark'!$B$15='[3]CBA benchmark'!$AI$42,SUM(V64:V78)-V65-V72,IF('[3]CBA benchmark'!$B$15='[3]CBA benchmark'!$AI$43,IF('[3]CBA benchmark'!$B$12='[3]CBA benchmark'!$AH$23,'data "historic" (TIO)'!V72,IF('[3]CBA benchmark'!$B$15='[3]CBA benchmark'!$AI$43,IF('[3]CBA benchmark'!$B$12='[3]CBA benchmark'!$AH$30,'data "historic" (TIO)'!V65,0)))))) -> 0 | W79: =IF('[3]CBA benchmark'!$B$15='[3]CBA benchmark'!$AI$41,SUM(W64:W78),IF('[3]CBA benchmark'!$B$15='[3]CBA benchmark'!$AI$42,SUM(W64:W78)-W65-W72,IF('[3]CBA benchmark'!$B$15='[3]CBA benchmark'!$AI$43,IF('[3]CBA benchmark'!$B$12='[3]CBA benchmark'!$AH$23,'data "historic" (TIO)'!W72,IF('[3]CBA benchmark'!$B$15='[3]CBA benchmark'!$AI$43,IF('[3]CBA benchmark'!$B$12='[3]CBA benchmark'!$AH$30,'data "historic" (TIO)'!W65,0)))))) -> 0 | X79: =IF('[3]CBA benchmark'!$B$15='[3]CBA benchmark'!$AI$41,SUM(X64:X78),IF('[3]CBA benchmark'!$B$15='[3]CBA benchmark'!$AI$42,SUM(X64:X78)-X65-X72,IF('[3]CBA benchmark'!$B$15='[3]CBA benchmark'!$AI$43,IF('[3]CBA benchmark'!$B$12='[3]CBA benchmark'!$AH$23,'data "historic" (TIO)'!X72,IF('[3]CBA benchmark'!$B$15='[3]CBA benchmark'!$AI$43,IF('[3]CBA benchmark'!$B$12='[3]CBA benchmark'!$AH$30,'data "historic" (TIO)'!X65,0)))))) -> 0 | Y79: =IF('[3]CBA benchmark'!$B$15='[3]CBA benchmark'!$AI$41,SUM(Y64:Y78),IF('[3]CBA benchmark'!$B$15='[3]CBA benchmark'!$AI$42,SUM(Y64:Y78)-Y65-Y72,IF('[3]CBA benchmark'!$B$15='[3]CBA benchmark'!$AI$43,IF('[3]CBA benchmark'!$B$12='[3]CBA benchmark'!$AH$23,'data "historic" (TIO)'!Y72,IF('[3]CBA benchmark'!$B$15='[3]CBA benchmark'!$AI$43,IF('[3]CBA benchmark'!$B$12='[3]CBA benchmark'!$AH$30,'data "historic" (TIO)'!Y65,0)))))) -> 0 | Z79: =IF('[3]CBA benchmark'!$B$15='[3]CBA benchmark'!$AI$41,SUM(Z64:Z78),IF('[3]CBA benchmark'!$B$15='[3]CBA benchmark'!$AI$42,SUM(Z64:Z78)-Z65-Z72,IF('[3]CBA benchmark'!$B$15='[3]CBA benchmark'!$AI$43,IF('[3]CBA benchmark'!$B$12='[3]CBA benchmark'!$AH$23,'data "historic" (TIO)'!Z72,IF('[3]CBA benchmark'!$B$15='[3]CBA benchmark'!$AI$43,IF('[3]CBA benchmark'!$B$12='[3]CBA benchmark'!$AH$30,'data "historic" (TIO)'!Z65,0)))))) -> 0 | AA79: =IF('[3]CBA benchmark'!$B$15='[3]CBA benchmark'!$AI$41,SUM(AA64:AA78),IF('[3]CBA benchmark'!$B$15='[3]CBA benchmark'!$AI$42,SUM(AA64:AA78)-AA65-AA72,IF('[3]CBA benchmark'!$B$15='[3]CBA benchmark'!$AI$43,IF('[3]CBA benchmark'!$B$12='[3]CBA benchmark'!$AH$23,'data "historic" (TIO)'!AA72,IF('[3]CBA benchmark'!$B$15='[3]CBA benchmark'!$AI$43,IF('[3]CBA benchmark'!$B$12='[3]CBA benchmark'!$AH$30,'data "historic" (TIO)'!AA65,0)))))) -> 0 | AB79: =HLOOKUP($AB$3,$V63:$AA79,17,FALSE) -> 0 | AC79: =HLOOKUP($AC$3,$V63:$AA79,17,FALSE) -> 0
B80: =VLOOKUP($B$484,$A64:$AB79,2,FALSE) ->  | C80: =VLOOKUP($B$484,$A64:$AB79,3,FALSE) ->  | D80: =VLOOKUP($B$484,$A64:$AB79,4,FALSE) ->  | E80: =VLOOKUP($B$484,$A64:$AB79,5,FALSE) ->  | F80: =VLOOKUP($B$484,$A64:$AB79,6,FALSE) ->  | G80: =VLOOKUP($B$484,$A64:$AB79,7,FALSE) ->  | H80: =VLOOKUP($B$484,$A64:$AB79,8,FALSE) ->  | I80: =VLOOKUP($B$484,$A64:$AB79,9,FALSE) ->  | J80: =VLOOKUP($B$484,$A64:$AB79,10,FALSE) ->  | K80: =VLOOKUP($B$484,$A64:$AB79,11,FALSE) ->  | L80: =VLOOKUP($B$484,$A64:$AB79,12,FALSE) ->  | M80: =VLOOKUP($B$484,$A64:$AB79,13,FALSE) ->  | N80: =VLOOKUP($B$484,$A64:$AB79,14,FALSE) ->  | O80: =VLOOKUP($B$484,$A64:$AB79,15,FALSE) ->  | P80: =VLOOKUP($B$484,$A64:$AB79,16,FALSE) ->  | Q80: =VLOOKUP($B$484,$A64:$AB79,17,FALSE) ->  | R80: =VLOOKUP($B$484,$A64:$AB79,18,FALSE) ->  | S80: =VLOOKUP($B$484,$A64:$AB79,19,FALSE) ->  | T80: =VLOOKUP($B$484,$A64:$AB79,20,FALSE) ->  | U80: =VLOOKUP($B$484,$A64:$AB79,21,FALSE) ->  | V80: =VLOOKUP($B$484,$A64:$AB79,22,FALSE) ->  | W80: =VLOOKUP($B$484,$A64:$AB79,23,FALSE) ->  | X80: =VLOOKUP($B$484,$A64:$AB79,24,FALSE) ->  | Y80: =VLOOKUP($B$484,$A64:$AB79,25,FALSE) ->  | Z80: =VLOOKUP($B$484,$A64:$AB79,26,FALSE) ->  | AA80: =VLOOKUP($B$484,$A64:$AB79,27,FALSE) ->  | AB80: =VLOOKUP($B$484,$A64:$AB79,28,FALSE) ->  | AC80: =VLOOKUP($B$484,$A64:$AC79,29,FALSE) -> 
B81: =B80 -> 
B82: =B80 ->  | C82: =C80 ->  | D82: =D80 ->  | J82: =IF('[3]scenario testing'!$C$3='[3]scenario testing'!$AH$11,'[3]scenario testing'!N13,'[3]scenario testing'!N13) -> 7315929.511 | K82: =IF('[3]scenario testing'!$C$3='[3]scenario testing'!$AH$11,'[3]scenario testing'!O13,0) -> 0 | L82: =IF('[3]scenario testing'!$C$3='[3]scenario testing'!$AH$11,'[3]scenario testing'!P13,0) -> 0 | M82: =IF('[3]scenario testing'!$C$3='[3]scenario testing'!$AH$11,'[3]scenario testing'!Q13,0) -> 0 | N82: =IF('[3]scenario testing'!$C$3='[3]scenario testing'!$AH$11,'[3]scenario testing'!R13,0) -> 0 | O82: =IF('[3]scenario testing'!$C$3='[3]scenario testing'!$AH$11,'[3]scenario testing'!S13,0) -> 0 | P82: =IF('[3]scenario testing'!$C$3='[3]scenario testing'!$AH$11,'[3]scenario testing'!T13,0) -> 0 | Q82: =IF('[3]scenario testing'!$C$3='[3]scenario testing'!$AH$11,'[3]scenario testing'!U13,0) -> 0 | R82: =IF('[3]scenario testing'!$C$3='[3]scenario testing'!$AH$11,'[3]scenario testing'!V13,0) -> 0 | S82: =IF('[3]scenario testing'!$C$3='[3]scenario testing'!$AH$11,'[3]scenario testing'!W13,0) -> 0 | T82: =IF('[3]scenario testing'!$C$3='[3]scenario testing'!$AH$11,'[3]scenario testing'!X13,0) -> 0 | U82: =IF('[3]scenario testing'!$C$3='[3]scenario testing'!$AH$11,'[3]scenario testing'!Y13,0) -> 0 | V82: =AVERAGE(C82:E82) ->  | W82: =AVERAGE(F82:H82) ->  | X82: =AVERAGE(I82:K82) ->  | Y82: =AVERAGE(L82:N82) -> 0 | Z82: =AVERAGE(O82:Q82) -> 0 | AA82: =AVERAGE(R82:T82) -> 0 | AB82: =HLOOKUP($AB$3,$V63:$AA82,19,FALSE) -> 0 | AC82: =HLOOKUP($AC$3,$V63:$AA82,19,FALSE) -> 0
B83: BUS SERVICE EXPENDITURE (NET) | C83: 2009/10 | D83: 2010/11 | E83: 2011/12 | F83: 2012/13 | G83: 2013/14 | H83: 2014/15 | I83: 2015/16 | J83: 2016/17 | K83: 2017/18 | L83: 2018/19 | M83: 2019/20 | N83: 2020/21 | O83: 2021/22 | P83: 2022/23 | Q83: 2023/24 | R83: 2024/25 | S83: =S63 -> 2025/26 | T83: =T63 -> 2026/27 | U83: =U63 -> 2027/28 | V83: 2009-12 | W83: 2012-15 | X83: 2015-18 | Y83: =Y63 -> 2018-21 | Z83: =Z63 -> 2021-24 | AA83: =AA63 -> 2024-27 | AB83: =$AB$3 -> 2018-21 | AC83: =$AC$3 -> 2015-18
A84: Northland | B84: Northland service expenditure (net): | C84: 838250 | D84: 663254 | E84: 798508 | F84: 704085 | G84: 818035 | H84: 847966 | I84: 1145626 | J84: 1210530 | K84: 1192941 | L84: 2083879 | M84: 2085050 | N84: 2086928 | O84: 2087642 | P84: 2089074 | Q84: 2090603 | R84: 2092172 | V84: =AVERAGE(C84:E84) -> 766670.6667 | W84: =AVERAGE(F84:H84) -> 790028.6667 | X84: =AVERAGE(I84:K84) -> 1183032.333 | Y84: =AVERAGE(L84:N84) -> 2085285.667 | Z84: =AVERAGE(O84:Q84) -> 2089106.333 | AA84: =AVERAGE(R84:T84) -> 2092172 | AB84: =HLOOKUP($AB$3,$V83:$AA99,2,FALSE) -> 2085285.667 | AC84: =HLOOKUP($AC$3,$V83:$AA99,2,FALSE) -> 1183032.333
A85: Auckland | B85: Auckland service expenditure (net): | C85: 113411892.3 | D85: 114320947.3 | E85: 130299652.3 | F85: 118744137 | G85: 125518005 | H85: 127206318 | I85: 143290688 | J85: 148924131 | K85: 151910981 | L85: 161302512 | M85: 169673759 | N85: 179330282 | O85: 189918757 | P85: 204028698 | Q85: 216417809 | R85: 229895068 | V85: 119344164 | W85: 123822820 | X85: 148041933.3 | Y85: =AVERAGE(L85:N85) -> 170102184.3 | Z85: 203455088 | AA85: 229895068 | AB85: =HLOOKUP($AB$3,$V83:$AA99,3,FALSE) -> 170102184.3 | AC85: =HLOOKUP($AC$3,$V83:$AA99,3,FALSE) -> 148041933.3
A86: Waikato | B86: Waikato service expenditure (net): | C86: 14083063 | D86: 14480623 | E86: 14835240 | F86: 13369351 | G86: 13120738 | H86: 13278956 | I86: 13600000 | J86: 13872000 | K86: 14150000 | L86: 14430000 | M86: 14721000 | N86: 15020000 | O86: 15316000 | P86: 15622000 | Q86: 15935000 | R86: 16253800 | V86: 14466308.67 | W86: 13256348.33 | X86: 13874000 | Y86: 14723666.67 | Z86: 15624333.33 | AA86: 16253800 | AB86: =HLOOKUP($AB$3,$V83:$AA99,4,FALSE) -> 14723666.67 | AC86: =HLOOKUP($AC$3,$V83:$AA99,4,FALSE) -> 13874000
A87: Bay of Plenty | B87: Bay of Plenty service expenditure (net): | C87: 8190730 | D87: 8049601 | E87: 8500030 | F87: 8414029 | G87: 9346815 | H87: 11001359 | I87: 12679444 | J87: 12813211 | K87: 12953474 | L87: 11553800 | M87: 11553800 | N87: 11553800 | O87: 11553800 | P87: 11553800 | Q87: 11553800 | R87: 11553800 | V87: 8246787 | W87: 9587401 | X87: 12815376.33 | Y87: 11553800 | Z87: 11553800 | AA87: 11553800 | AB87: =HLOOKUP($AB$3,$V83:$AA99,5,FALSE) -> 11553800 | AC87: =HLOOKUP($AC$3,$V83:$AA99,5,FALSE) -> 12815376.33
A88: Gisborne | B88: Gisborne service expenditure (net): | C88: 229255 | D88: 239551 | E88: 275854 | F88: 270631 | G88: 259571 | H88: 276383 | I88: 365000 | J88: 365000 | K88: 365000 | L88: 350000 | M88: 350000 | N88: 350000 | O88: 350000 | P88: 350000 | Q88: 350000 | R88: 350000 | V88: 248220 | W88: 268861.6667 | X88: 365000 | Y88: 350000 | Z88: 350000 | AA88: 350000 | AB88: =HLOOKUP($AB$3,$V83:$AA99,6,FALSE) -> 350000 | AC88: =HLOOKUP($AC$3,$V83:$AA99,6,FALSE) -> 365000
A89: Hawkes Bay | B89: Hawkes Bay service expenditure (net): | C89: 1775918 | D89: 1848286 | E89: 3015090 | F89: 3035156 | G89: 2590776 | H89: 2351952 | I89: 2475000 | J89: 2624500 | K89: 2676900 | L89: 2827400 | M89: 2912200 | N89: 2999500 | O89: 3089500 | P89: 3182200 | Q89: 3277700 | R89: 3376000 | V89: 2213098 | W89: 2659294.667 | X89: 2592133.333 | Y89: 2913033.333 | Z89: 3183133.333 | AA89: 3376000 | AB89: =HLOOKUP($AB$3,$V83:$AA99,7,FALSE) -> 2913033.333 | AC89: =HLOOKUP($AC$3,$V83:$AA99,7,FALSE) -> 2592133.333
A90: Taranaki | B90: Taranaki service expenditure (net): | C90: 857889 | D90: 1542589 | E90: 1606172 | F90: 1629983 | G90: 1733449 | H90: 1743229 | I90: 1840381 | J90: 1866957 | K90: 1893410 | L90: 2014269 | M90: 2074697 | N90: 2136938 | O90: 2201046 | P90: 2267077 | Q90: 2335089 | R90: 2405142 | V90: 1335550 | W90: 1702220.333 | X90: 1866916 | Y90: 2075301.333 | Z90: 2267737.333 | AA90: 2405142 | AB90: =HLOOKUP($AB$3,$V83:$AA99,8,FALSE) -> 2075301.333 | AC90: =HLOOKUP($AC$3,$V83:$AA99,8,FALSE) -> 1866916
A91: Manawatu-Wanganui | B91: Manawatu-Wanganui service expenditure (net): | C91: 2832797 | D91: 3099952 | E91: 3075420 | F91: 2984479 | G91: 2931942 | H91: 3053440 | I91: 3136405 | J91: 3249370 | K91: 3312534 | L91: 3420960 | M91: 3535500 | N91: 3652332 | O91: 3771501 | P91: 3893053 | Q91: 4017036 | R91: 4143498 | V91: 3002723 | W91: 2989953.667 | X91: 3232769.667 | Y91: 3536264 | Z91: 3893863.333 | AA91: 4143498 | AB91: =HLOOKUP($AB$3,$V83:$AA99,9,FALSE) -> 3536264 | AC91: =HLOOKUP($AC$3,$V83:$AA99,9,FALSE) -> 3232769.667
A92: Wellington | B92: Wellington service expenditure (net): | C92: 43467621.71 | D92: 42597014.91 | E92: 45789214.73 | F92: 41222608 | G92: 44465904 | H92: 48524207 | I92: 48713128 | J92: 48716203 | K92: 53055374 | L92: 52120867 | M92: 54712051 | N92: 57535993 | O92: 60434144 | P92: 63829240 | Q92: 67629781 | R92: 71466312 | V92: 43951283.78 | W92: 44737573 | X92: 50161568.33 | Y92: 54789637 | Z92: 63964388.33 | AA92: 71466312 | AB92: =HLOOKUP($AB$3,$V83:$AA99,10,FALSE) -> 54789637 | AC92: =HLOOKUP($AC$3,$V83:$AA99,10,FALSE) -> 50161568.33
A93: Marlborough | B93: Marlborough service expenditure (net): | C93: 96986 | D93: 97451 | E93: 82802 | F93: 79173 | G93: 82873 | H93: 108064 | I93: 120000 | J93: 160000 | K93: 160000 | L93: 160000 | M93: 160000 | N93: 160000 | O93: 180000 | P93: 220000 | Q93: 220000 | R93: 220000 | V93: 92413 | W93: 90036.66667 | X93: 146666.6667 | Y93: 160000 | Z93: 206666.6667 | AA93: 220000 | AB93: =HLOOKUP($AB$3,$V83:$AA99,11,FALSE) -> 160000 | AC93: =HLOOKUP($AC$3,$V83:$AA99,11,FALSE) -> 146666.6667
A94: Nelson | B94: Nelson service expenditure (net): | C94: 263285 | D94: 246355 | E94: 342724 | F94: 492415 | G94: 570915 | H94: 403236 | I94: 479000 | J94: 510950 | K94: 530120 | L94: 781710 | M94: 803720 | N94: 827150 | O94: 852710 | P94: 880400 | Q94: 910930 | R94: 943590 | V94: 284121.3333 | W94: 488855.3333 | X94: 506690 | Y94: 804193.3333 | Z94: 881346.6667 | AA94: 943590 | AB94: =HLOOKUP($AB$3,$V83:$AA99,12,FALSE) -> 804193.3333 | AC94: =HLOOKUP($AC$3,$V83:$AA99,12,FALSE) -> 506690
A95: Canterbury | B95: Canterbury service expenditure (net): | C95: 30117159.88 | D95: 30721695.54 | E95: 33945597.2 | F95: 33011274 | G95: 31414749 | H95: 31700000 | I95: 31884873 | J95: 33137619 | K95: 34429778 | L95: 35806969 | M95: 37239248 | N95: 38728818 | O95: 40277971 | P95: 41889089 | Q95: 43564653 | R95: 45307239 | V95: 31594817.54 | W95: 32042007.67 | X95: 33150756.67 | Y95: 37258345 | Z95: 41910571 | AA95: 45307239 | AB95: =HLOOKUP($AB$3,$V83:$AA99,13,FALSE) -> 37258345 | AC95: =HLOOKUP($AC$3,$V83:$AA99,13,FALSE) -> 33150756.67
A96: West Coast | B96: West Coast service expenditure (net): | C96: 72375 | D96: 70175 | E96: 79682 | F96: 62564 | G96: 109791 | H96: 88708 | I96: 93820 | J96: 95608 | K96: 97488 | L96: 99390 | M96: 101908 | N96: 104511 | O96: 106793 | P96: 109175 | Q96: 112236 | R96: 115422 | V96: 74077.33333 | W96: 87021 | X96: 95638.66667 | Y96: 101936.3333 | Z96: 109401.3333 | AA96: 115422 | AB96: =HLOOKUP($AB$3,$V83:$AA99,14,FALSE) -> 101936.3333 | AC96: =HLOOKUP($AC$3,$V83:$AA99,14,FALSE) -> 95638.66667
A97: Otago | B97: Otago (DUNEDIN ONLY) service expenditure (net): | C97: =C741 -> 4088080 | D97: 5100770 | E97: 6280180 | F97: 6143111 | G97: 5328747 | H97: 6128746 | I97: 6262784 | J97: 6417900 | K97: 6464375 | L97: =L741 -> 6501412.117 | M97: 7454013.147 | N97: 7192656.008 | O97: 7097969.685 | P97: 7043426.982 | Q97: 6971787.515 | R97: 6915719.176 | V97: 5156343.333 | W97: 5866868 | X97: 6381686.333 | Y97: 7049360.424 | Z97: 7037728.061 | AA97: 6915719.176 | AB97: =HLOOKUP($AB$3,$V83:$AA99,15,FALSE) -> 7049360.424 | AC97: =HLOOKUP($AC$3,$V83:$AA99,15,FALSE) -> 6381686.333 | AF97: 6628267 | AG97: 8188616 | AH97: 8090608 | AI97: 6661967 | AJ97: 6155264 | AK97: 6335643 | AL97: 6462369 | AM97: 6696020 | AN97: 6846782 | AO97: 7094152 | AT97: 6628267 | AU97: 8188616 | AV97: 8090608 | AW97: 6661967 | AX97: 6155264 | AY97: 6335643 | AZ97: 6462369 | BA97: 6696020 | BB97: 6846782 | BC97: 7094152
A98: Southland | B98: Southland service expenditure (net): | C98: 1437024 | D98: 1491424 | E98: 1603858 | F98: 1187277 | G98: 942723 | H98: 845628 | I98: 730514 | J98: 743621 | K98: 738403 | L98: 760500 | M98: 783300 | N98: 806800 | O98: 831000 | P98: 856000 | Q98: 881600 | R98: 900000 | V98: 1510768.667 | W98: 991876 | X98: 737512.6667 | Y98: 783533.3333 | Z98: 856200 | AA98: 900000 | AB98: =HLOOKUP($AB$3,$V83:$AA99,16,FALSE) -> 783533.3333 | AC98: =HLOOKUP($AC$3,$V83:$AA99,16,FALSE) -> 737512.6667
A99: National | B99: National total service expenditure (net): | C99: =IF('[3]CBA benchmark'!$B$15='[3]CBA benchmark'!$AI$41,SUM(C84:C98),IF('[3]CBA benchmark'!$B$15='[3]CBA benchmark'!$AI$42,SUM(C84:C98)-C85-C92,IF('[3]CBA benchmark'!$B$15='[3]CBA benchmark'!$AI$43,IF('[3]CBA benchmark'!$B$12='[3]CBA benchmark'!$AH$23,'data "historic" (TIO)'!C92,IF('[3]CBA benchmark'!$B$15='[3]CBA benchmark'!$AI$43,IF('[3]CBA benchmark'!$B$12='[3]CBA benchmark'!$AH$30,'data "historic" (TIO)'!C85,0)))))) -> 0 | D99: =IF('[3]CBA benchmark'!$B$15='[3]CBA benchmark'!$AI$41,SUM(D84:D98),IF('[3]CBA benchmark'!$B$15='[3]CBA benchmark'!$AI$42,SUM(D84:D98)-D85-D92,IF('[3]CBA benchmark'!$B$15='[3]CBA benchmark'!$AI$43,IF('[3]CBA benchmark'!$B$12='[3]CBA benchmark'!$AH$23,'data "historic" (TIO)'!D92,IF('[3]CBA benchmark'!$B$15='[3]CBA benchmark'!$AI$43,IF('[3]CBA benchmark'!$B$12='[3]CBA benchmark'!$AH$30,'data "historic" (TIO)'!D85,0)))))) -> 0 | E99: =IF('[3]CBA benchmark'!$B$15='[3]CBA benchmark'!$AI$41,SUM(E84:E98),IF('[3]CBA benchmark'!$B$15='[3]CBA benchmark'!$AI$42,SUM(E84:E98)-E85-E92,IF('[3]CBA benchmark'!$B$15='[3]CBA benchmark'!$AI$43,IF('[3]CBA benchmark'!$B$12='[3]CBA benchmark'!$AH$23,'data "historic" (TIO)'!E92,IF('[3]CBA benchmark'!$B$15='[3]CBA benchmark'!$AI$43,IF('[3]CBA benchmark'!$B$12='[3]CBA benchmark'!$AH$30,'data "historic" (TIO)'!E85,0)))))) -> 0 | F99: =IF('[3]CBA benchmark'!$B$15='[3]CBA benchmark'!$AI$41,SUM(F84:F98),IF('[3]CBA benchmark'!$B$15='[3]CBA benchmark'!$AI$42,SUM(F84:F98)-F85-F92,IF('[3]CBA benchmark'!$B$15='[3]CBA benchmark'!$AI$43,IF('[3]CBA benchmark'!$B$12='[3]CBA benchmark'!$AH$23,'data "historic" (TIO)'!F92,IF('[3]CBA benchmark'!$B$15='[3]CBA benchmark'!$AI$43,IF('[3]CBA benchmark'!$B$12='[3]CBA benchmark'!$AH$30,'data "historic" (TIO)'!F85,0)))))) -> 0 | G99: =IF('[3]CBA benchmark'!$B$15='[3]CBA benchmark'!$AI$41,SUM(G84:G98),IF('[3]CBA benchmark'!$B$15='[3]CBA benchmark'!$AI$42,SUM(G84:G98)-G85-G92,IF('[3]CBA benchmark'!$B$15='[3]CBA benchmark'!$AI$43,IF('[3]CBA benchmark'!$B$12='[3]CBA benchmark'!$AH$23,'data "historic" (TIO)'!G92,IF('[3]CBA benchmark'!$B$15='[3]CBA benchmark'!$AI$43,IF('[3]CBA benchmark'!$B$12='[3]CBA benchmark'!$AH$30,'data "historic" (TIO)'!G85,0)))))) -> 0 | H99: =IF('[3]CBA benchmark'!$B$15='[3]CBA benchmark'!$AI$41,SUM(H84:H98),IF('[3]CBA benchmark'!$B$15='[3]CBA benchmark'!$AI$42,SUM(H84:H98)-H85-H92,IF('[3]CBA benchmark'!$B$15='[3]CBA benchmark'!$AI$43,IF('[3]CBA benchmark'!$B$12='[3]CBA benchmark'!$AH$23,'data "historic" (TIO)'!H92,IF('[3]CBA benchmark'!$B$15='[3]CBA benchmark'!$AI$43,IF('[3]CBA benchmark'!$B$12='[3]CBA benchmark'!$AH$30,'data "historic" (TIO)'!H85,0)))))) -> 0 | I99: =IF('[3]CBA benchmark'!$B$15='[3]CBA benchmark'!$AI$41,SUM(I84:I98),IF('[3]CBA benchmark'!$B$15='[3]CBA benchmark'!$AI$42,SUM(I84:I98)-I85-I92,IF('[3]CBA benchmark'!$B$15='[3]CBA benchmark'!$AI$43,IF('[3]CBA benchmark'!$B$12='[3]CBA benchmark'!$AH$23,'data "historic" (TIO)'!I92,IF('[3]CBA benchmark'!$B$15='[3]CBA benchmark'!$AI$43,IF('[3]CBA benchmark'!$B$12='[3]CBA benchmark'!$AH$30,'data "historic" (TIO)'!I85,0)))))) -> 0 | J99: =IF('[3]CBA benchmark'!$B$15='[3]CBA benchmark'!$AI$41,SUM(J84:J98),IF('[3]CBA benchmark'!$B$15='[3]CBA benchmark'!$AI$42,SUM(J84:J98)-J85-J92,IF('[3]CBA benchmark'!$B$15='[3]CBA benchmark'!$AI$43,IF('[3]CBA benchmark'!$B$12='[3]CBA benchmark'!$AH$23,'data "historic" (TIO)'!J92,IF('[3]CBA benchmark'!$B$15='[3]CBA benchmark'!$AI$43,IF('[3]CBA benchmark'!$B$12='[3]CBA benchmark'!$AH$30,'data "historic" (TIO)'!J85,0)))))) -> 0 | K99: =IF('[3]CBA benchmark'!$B$15='[3]CBA benchmark'!$AI$41,SUM(K84:K98),IF('[3]CBA benchmark'!$B$15='[3]CBA benchmark'!$AI$42,SUM(K84:K98)-K85-K92,IF('[3]CBA benchmark'!$B$15='[3]CBA benchmark'!$AI$43,IF('[3]CBA benchmark'!$B$12='[3]CBA benchmark'!$AH$23,'data "historic" (TIO)'!K92,IF('[3]CBA benchmark'!$B$15='[3]CBA benchmark'!$AI$43,IF('[3]CBA benchmark'!$B$12='[3]CBA benchmark'!$AH$30,'data "historic" (TIO)'!K85,0)))))) -> 0 | L99: =IF('[3]CBA benchmark'!$B$15='[3]CBA benchmark'!$AI$41,SUM(L84:L98),IF('[3]CBA benchmark'!$B$15='[3]CBA benchmark'!$AI$42,SUM(L84:L98)-L85-L92,IF('[3]CBA benchmark'!$B$15='[3]CBA benchmark'!$AI$43,IF('[3]CBA benchmark'!$B$12='[3]CBA benchmark'!$AH$23,'data "historic" (TIO)'!L92,IF('[3]CBA benchmark'!$B$15='[3]CBA benchmark'!$AI$43,IF('[3]CBA benchmark'!$B$12='[3]CBA benchmark'!$AH$30,'data "historic" (TIO)'!L85,0)))))) -> 0 | M99: =IF('[3]CBA benchmark'!$B$15='[3]CBA benchmark'!$AI$41,SUM(M84:M98),IF('[3]CBA benchmark'!$B$15='[3]CBA benchmark'!$AI$42,SUM(M84:M98)-M85-M92,IF('[3]CBA benchmark'!$B$15='[3]CBA benchmark'!$AI$43,IF('[3]CBA benchmark'!$B$12='[3]CBA benchmark'!$AH$23,'data "historic" (TIO)'!M92,IF('[3]CBA benchmark'!$B$15='[3]CBA benchmark'!$AI$43,IF('[3]CBA benchmark'!$B$12='[3]CBA benchmark'!$AH$30,'data "historic" (TIO)'!M85,0)))))) -> 0 | N99: =IF('[3]CBA benchmark'!$B$15='[3]CBA benchmark'!$AI$41,SUM(N84:N98),IF('[3]CBA benchmark'!$B$15='[3]CBA benchmark'!$AI$42,SUM(N84:N98)-N85-N92,IF('[3]CBA benchmark'!$B$15='[3]CBA benchmark'!$AI$43,IF('[3]CBA benchmark'!$B$12='[3]CBA benchmark'!$AH$23,'data "historic" (TIO)'!N92,IF('[3]CBA benchmark'!$B$15='[3]CBA benchmark'!$AI$43,IF('[3]CBA benchmark'!$B$12='[3]CBA benchmark'!$AH$30,'data "historic" (TIO)'!N85,0)))))) -> 0 | O99: =IF('[3]CBA benchmark'!$B$15='[3]CBA benchmark'!$AI$41,SUM(O84:O98),IF('[3]CBA benchmark'!$B$15='[3]CBA benchmark'!$AI$42,SUM(O84:O98)-O85-O92,IF('[3]CBA benchmark'!$B$15='[3]CBA benchmark'!$AI$43,IF('[3]CBA benchmark'!$B$12='[3]CBA benchmark'!$AH$23,'data "historic" (TIO)'!O92,IF('[3]CBA benchmark'!$B$15='[3]CBA benchmark'!$AI$43,IF('[3]CBA benchmark'!$B$12='[3]CBA benchmark'!$AH$30,'data "historic" (TIO)'!O85,0)))))) -> 0 | P99: =IF('[3]CBA benchmark'!$B$15='[3]CBA benchmark'!$AI$41,SUM(P84:P98),IF('[3]CBA benchmark'!$B$15='[3]CBA benchmark'!$AI$42,SUM(P84:P98)-P85-P92,IF('[3]CBA benchmark'!$B$15='[3]CBA benchmark'!$AI$43,IF('[3]CBA benchmark'!$B$12='[3]CBA benchmark'!$AH$23,'data "historic" (TIO)'!P92,IF('[3]CBA benchmark'!$B$15='[3]CBA benchmark'!$AI$43,IF('[3]CBA benchmark'!$B$12='[3]CBA benchmark'!$AH$30,'data "historic" (TIO)'!P85,0)))))) -> 0 | Q99: =IF('[3]CBA benchmark'!$B$15='[3]CBA benchmark'!$AI$41,SUM(Q84:Q98),IF('[3]CBA benchmark'!$B$15='[3]CBA benchmark'!$AI$42,SUM(Q84:Q98)-Q85-Q92,IF('[3]CBA benchmark'!$B$15='[3]CBA benchmark'!$AI$43,IF('[3]CBA benchmark'!$B$12='[3]CBA benchmark'!$AH$23,'data "historic" (TIO)'!Q92,IF('[3]CBA benchmark'!$B$15='[3]CBA benchmark'!$AI$43,IF('[3]CBA benchmark'!$B$12='[3]CBA benchmark'!$AH$30,'data "historic" (TIO)'!Q85,0)))))) -> 0 | R99: =IF('[3]CBA benchmark'!$B$15='[3]CBA benchmark'!$AI$41,SUM(R84:R98),IF('[3]CBA benchmark'!$B$15='[3]CBA benchmark'!$AI$42,SUM(R84:R98)-R85-R92,IF('[3]CBA benchmark'!$B$15='[3]CBA benchmark'!$AI$43,IF('[3]CBA benchmark'!$B$12='[3]CBA benchmark'!$AH$23,'data "historic" (TIO)'!R92,IF('[3]CBA benchmark'!$B$15='[3]CBA benchmark'!$AI$43,IF('[3]CBA benchmark'!$B$12='[3]CBA benchmark'!$AH$30,'data "historic" (TIO)'!R85,0)))))) -> 0 | S99: =IF('[3]CBA benchmark'!$B$15='[3]CBA benchmark'!$AI$41,SUM(S84:S98),IF('[3]CBA benchmark'!$B$15='[3]CBA benchmark'!$AI$42,SUM(S84:S98)-S85-S92,IF('[3]CBA benchmark'!$B$15='[3]CBA benchmark'!$AI$43,IF('[3]CBA benchmark'!$B$12='[3]CBA benchmark'!$AH$23,'data "historic" (TIO)'!S92,IF('[3]CBA benchmark'!$B$15='[3]CBA benchmark'!$AI$43,IF('[3]CBA benchmark'!$B$12='[3]CBA benchmark'!$AH$30,'data "historic" (TIO)'!S85,0)))))) -> 0 | T99: =IF('[3]CBA benchmark'!$B$15='[3]CBA benchmark'!$AI$41,SUM(T84:T98),IF('[3]CBA benchmark'!$B$15='[3]CBA benchmark'!$AI$42,SUM(T84:T98)-T85-T92,IF('[3]CBA benchmark'!$B$15='[3]CBA benchmark'!$AI$43,IF('[3]CBA benchmark'!$B$12='[3]CBA benchmark'!$AH$23,'data "historic" (TIO)'!T92,IF('[3]CBA benchmark'!$B$15='[3]CBA benchmark'!$AI$43,IF('[3]CBA benchmark'!$B$12='[3]CBA benchmark'!$AH$30,'data "historic" (TIO)'!T85,0)))))) -> 0 | U99: =IF('[3]CBA benchmark'!$B$15='[3]CBA benchmark'!$AI$41,SUM(U84:U98),IF('[3]CBA benchmark'!$B$15='[3]CBA benchmark'!$AI$42,SUM(U84:U98)-U85-U92,IF('[3]CBA benchmark'!$B$15='[3]CBA benchmark'!$AI$43,IF('[3]CBA benchmark'!$B$12='[3]CBA benchmark'!$AH$23,'data "historic" (TIO)'!U92,IF('[3]CBA benchmark'!$B$15='[3]CBA benchmark'!$AI$43,IF('[3]CBA benchmark'!$B$12='[3]CBA benchmark'!$AH$30,'data "historic" (TIO)'!U85,0)))))) -> 0 | V99: =IF('[3]CBA benchmark'!$B$15='[3]CBA benchmark'!$AI$41,SUM(V84:V98),IF('[3]CBA benchmark'!$B$15='[3]CBA benchmark'!$AI$42,SUM(V84:V98)-V85-V92,IF('[3]CBA benchmark'!$B$15='[3]CBA benchmark'!$AI$43,IF('[3]CBA benchmark'!$B$12='[3]CBA benchmark'!$AH$23,'data "historic" (TIO)'!V92,IF('[3]CBA benchmark'!$B$15='[3]CBA benchmark'!$AI$43,IF('[3]CBA benchmark'!$B$12='[3]CBA benchmark'!$AH$30,'data "historic" (TIO)'!V85,0)))))) -> 0 | W99: =IF('[3]CBA benchmark'!$B$15='[3]CBA benchmark'!$AI$41,SUM(W84:W98),IF('[3]CBA benchmark'!$B$15='[3]CBA benchmark'!$AI$42,SUM(W84:W98)-W85-W92,IF('[3]CBA benchmark'!$B$15='[3]CBA benchmark'!$AI$43,IF('[3]CBA benchmark'!$B$12='[3]CBA benchmark'!$AH$23,'data "historic" (TIO)'!W92,IF('[3]CBA benchmark'!$B$15='[3]CBA benchmark'!$AI$43,IF('[3]CBA benchmark'!$B$12='[3]CBA benchmark'!$AH$30,'data "historic" (TIO)'!W85,0)))))) -> 0 | X99: =IF('[3]CBA benchmark'!$B$15='[3]CBA benchmark'!$AI$41,SUM(X84:X98),IF('[3]CBA benchmark'!$B$15='[3]CBA benchmark'!$AI$42,SUM(X84:X98)-X85-X92,IF('[3]CBA benchmark'!$B$15='[3]CBA benchmark'!$AI$43,IF('[3]CBA benchmark'!$B$12='[3]CBA benchmark'!$AH$23,'data "historic" (TIO)'!X92,IF('[3]CBA benchmark'!$B$15='[3]CBA benchmark'!$AI$43,IF('[3]CBA benchmark'!$B$12='[3]CBA benchmark'!$AH$30,'data "historic" (TIO)'!X85,0)))))) -> 0 | Y99: =IF('[3]CBA benchmark'!$B$15='[3]CBA benchmark'!$AI$41,SUM(Y84:Y98),IF('[3]CBA benchmark'!$B$15='[3]CBA benchmark'!$AI$42,SUM(Y84:Y98)-Y85-Y92,IF('[3]CBA benchmark'!$B$15='[3]CBA benchmark'!$AI$43,IF('[3]CBA benchmark'!$B$12='[3]CBA benchmark'!$AH$23,'data "historic" (TIO)'!Y92,IF('[3]CBA benchmark'!$B$15='[3]CBA benchmark'!$AI$43,IF('[3]CBA benchmark'!$B$12='[3]CBA benchmark'!$AH$30,'data "historic" (TIO)'!Y85,0)))))) -> 0 | Z99: =IF('[3]CBA benchmark'!$B$15='[3]CBA benchmark'!$AI$41,SUM(Z84:Z98),IF('[3]CBA benchmark'!$B$15='[3]CBA benchmark'!$AI$42,SUM(Z84:Z98)-Z85-Z92,IF('[3]CBA benchmark'!$B$15='[3]CBA benchmark'!$AI$43,IF('[3]CBA benchmark'!$B$12='[3]CBA benchmark'!$AH$23,'data "historic" (TIO)'!Z92,IF('[3]CBA benchmark'!$B$15='[3]CBA benchmark'!$AI$43,IF('[3]CBA benchmark'!$B$12='[3]CBA benchmark'!$AH$30,'data "historic" (TIO)'!Z85,0)))))) -> 0 | AA99: =IF('[3]CBA benchmark'!$B$15='[3]CBA benchmark'!$AI$41,SUM(AA84:AA98),IF('[3]CBA benchmark'!$B$15='[3]CBA benchmark'!$AI$42,SUM(AA84:AA98)-AA85-AA92,IF('[3]CBA benchmark'!$B$15='[3]CBA benchmark'!$AI$43,IF('[3]CBA benchmark'!$B$12='[3]CBA benchmark'!$AH$23,'data "historic" (TIO)'!AA92,IF('[3]CBA benchmark'!$B$15='[3]CBA benchmark'!$AI$43,IF('[3]CBA benchmark'!$B$12='[3]CBA benchmark'!$AH$30,'data "historic" (TIO)'!AA85,0)))))) -> 0 | AB99: =HLOOKUP($AB$3,$V83:$AA99,17,FALSE) -> 0 | AC99: =HLOOKUP($AC$3,$V83:$AA99,17,FALSE) -> 0
B100: =VLOOKUP($B$484,$A84:$AB99,2,FALSE) ->  | C100: =VLOOKUP($B$484,$A84:$AB99,3,FALSE) ->  | D100: =VLOOKUP($B$484,$A84:$AB99,4,FALSE) ->  | E100: =VLOOKUP($B$484,$A84:$AB99,5,FALSE) ->  | F100: =VLOOKUP($B$484,$A84:$AB99,6,FALSE) ->  | G100: =VLOOKUP($B$484,$A84:$AB99,7,FALSE) ->  | H100: =VLOOKUP($B$484,$A84:$AB99,8,FALSE) ->  | I100: =VLOOKUP($B$484,$A84:$AB99,9,FALSE) ->  | J100: =VLOOKUP($B$484,$A84:$AB99,10,FALSE) ->  | K100: =VLOOKUP($B$484,$A84:$AB99,11,FALSE) ->  | L100: =VLOOKUP($B$484,$A84:$AB99,12,FALSE) ->  | M100: =VLOOKUP($B$484,$A84:$AB99,13,FALSE) ->  | N100: =VLOOKUP($B$484,$A84:$AB99,14,FALSE) ->  | O100: =VLOOKUP($B$484,$A84:$AB99,15,FALSE) ->  | P100: =VLOOKUP($B$484,$A84:$AB99,16,FALSE) ->  | Q100: =VLOOKUP($B$484,$A84:$AB99,17,FALSE) ->  | R100: =VLOOKUP($B$484,$A84:$AB99,18,FALSE) ->  | S100: =VLOOKUP($B$484,$A84:$AB99,19,FALSE) ->  | T100: =VLOOKUP($B$484,$A84:$AB99,20,FALSE) ->  | U100: =VLOOKUP($B$484,$A84:$AB99,21,FALSE) ->  | V100: =VLOOKUP($B$484,$A84:$AB99,22,FALSE) ->  | W100: =VLOOKUP($B$484,$A84:$AB99,23,FALSE) ->  | X100: =VLOOKUP($B$484,$A84:$AB99,24,FALSE) ->  | Y100: =VLOOKUP($B$484,$A84:$AB99,25,FALSE) ->  | Z100: =VLOOKUP($B$484,$A84:$AB99,26,FALSE) ->  | AA100: =VLOOKUP($B$484,$A84:$AB99,27,FALSE) ->  | AB100: =VLOOKUP($B$484,$A84:$AB99,28,FALSE) ->  | AC100: =VLOOKUP($B$484,$A84:$AC99,29,FALSE) -> 
B101: =B100 -> 
